Workbook

Sheet Users Guide (hidden)
C10: MSU 2014 Farm Bill Analyzer USERS GUIDE
C11: FIRM Fact Sheet 14-09
C12: USER’S GUIDE
C13: Version 1.9 Feb 24, 2015
C14: Roger Betz, Senior Farm Management
C15: Michigan State University Extension
C17: The MSU 2014 FARM BILL ANALYZER provides an analysis of three important decisions that are included in the Agricultural Act of 2014 (the 2014 Farm Bill). First, owners will be permitted to update the program yields on their farms. Second, owners will be permitted to reallocate the base acres on their farms. Finally, owners and/or tenants will be required to elect either the new Agricultural Risk Coverage (ARC-CO or ARC-IC) or Price Loss Coverage (PLC) programs for each covered commodity on their farms.
C18: This FARM BILL ANALYZER provides farm management information on the yield update, base reallocation, and ARC versus PLC decisions based on assumptions about farm yields, county yields, and national market prices.Given the inputted variables listed below, the MSU 2014 FARM BILL ANALYZER will calculate the consequences for the farm manager’s alternative decisions regarding yield updates, base reallocation, and the election of ARC-CO, ARC-IC, or PLC programs.
C19: Calculation Methods: All calculations are consistent with the best available information on the provisions of the 2014 Farm Bill. The sheet “Background Calculations” provides details on all of the calculations included in the MSU 2014 FARM BILL ANALYZER. For detailed descriptions of the calculations provided in the 2014 Farm Bill, see the 2014 Farm Bill Fact Sheets available at the webpage http://firm.msue.msu.edu/
C20: age: http://firm.msue.msu.edu/
C21: Disclaimer: This MSU 2014 FARM BILL ANALYZER is designed with the most recent information available about the provisions of the 2014 Farm Bill. It is not endorsed by the Farm Service Agency or the USDA.
C23: I. To operate the MSU 2014 FARM BILL ANALYZER, the user will need the following information:
C24: A. The Farm Service Agency (FSA) history for base acres and counter-cyclical (CC) yields, and planted and considered planted (P&CP) acres on a farm that has been assigned a farm number by FSA.
C25: B. Historical yields for the farm from 2008 - 2013
C26: C. Assumed yields for the farm from 2014 -2018
C27: D. Assumed county average yields for the county in which the farm is administered by FSA for 2014-2018.
C28: E. Assumed national market prices for 2014-2018
C29: F. Assumed planned planted acres on the farm from 2015-2018
C30: II. On sheet 3, the ”FSA Crop History” of the MSU 2014 FARM BILL ANALYZER, enter the information from the farm’s FSA report “Reported Commodity Crop History Summary.” Enter all information regarding:
C31: A. The farm’s base acres for all “covered commodities” on the farm.
C32: Note: In the 2014 Farm Bill, “covered commodities” with base acres in Michigan are barley, corn, oats, wheat, or other). For simplicity, base acres for barley, oats, and other crops are added to wheat base. If you have a significant base in these crops and/or plan to plant these crops, the analyzer may mislead the decisions. In this situation, please contact Roger Betz or use one of the other national analyzer programs to verify results.
C33: B. Choose the county for which the farm is administered from the “drop down” menu button at cell E3.
C34: C. The farm’s CC yield for all covered commodities on the farm.
C35: D. The farm’s Planted & Considered Planted (P&CP) acres during the 2008-2012 crop years.
C36: E. Enter base acres and CC yield data into cells E6 to I8. Enter P&PC acres data in cells E11 to I22
C37: III. On sheet4, ”2014 Farm Bill Calculator” of the MSU 2014 FARM BILL ANALYZER, enter the information on the farm’s actual and projected farm yields, the projected county average yields, the farm’s planned planted acres, and national market prices (MYA) for the 2014-2018 crop years:
C38: A. Enter the farm’s historical actual yield data (2008–2013) by crop by year in cells D12 to H13.
C39: 1. The “Default Values” are the same as the county average yields.
C40: B. Enter the farm’s projected yield data (2014 -2018) by crop by year in cells D18 to H22.
C41: 1. The “Default Values” are the same as the projected county average yields.
C42: 2. An assumed annual increase for the farm’s projected yield increase can be entered in cells B14 to B16 but is overwritten if user enters values for years 2014-2018. (Cells D18 to H22).
C43: 3. The calculation used is the most recent 5 years average plus the percent change.
C44: 4. The user is encouraged to enter their own desired values by each crop and by each year to further test calculator results for various yield scenarios.
C45: 5. The calculations for future years (2014 to 2018) can be restored to the default by using the “Restore Default Yield Projections” button
C46: C. The projected future “County Yield Annual Increase” can be modified by changing the assumed annual yield increase at cells B20 to B22.
C47: 1. The default is the same value percent increase as the farm yields increase but can be independent of the farm’s yield. Positive or negative numbers may be used. The default calculation used for projected county yields is the most recent 5 years average plus the user defined percent change.
C48: 2. The calculations for future years can be restored to the default by using the “Restore Default Yield Projections” button.
C49: IV. On Sheet 2 “2014 Farm Bill Calculator” Enter the projected national market year average (MYA) prices for all covered commodities on the farm.
C50: A. Projected prices from four alternative sources can be chosen by using the “drop-down” menu button at cell D25.
C51: B. The user can also increase or decrease these base price projections by entering the desired percent change in cells on line 26.
C52: C. The user is encouraged to enter each of their own desired values by each crop and by each year to further test various price scenarios.
C53: D. The default values can be restored to default by using the “Restore Default Price Projections” button.
C54: V. Interpretation of Results: The results calculated by the MSU 2014 FARM BILL ANALYZER appear at cell A45 and below and in the accompanying charts. Results include:
C55: A. Yield update: What is the consequence of electing to update the farm’s FSA program yield? The MSU 2014 FARM BILL ANALYZER compares the farm’s updated yield under the 2014 Farm Bill to the farm’s existing CC yield (sheet 1). The user can select the highest payment yield by crop. The “Checked YES box” for each crop is where the user can choose whether to update yields or not. This choice can be made on a covered commodity-by-covered commodity basis.
C56: B. Base reallocation: What is the consequence of electing to reallocate the farm’s FSA base acres? The MSU 2014 FARM BILL ANALYZER compares the farm’s total (years 2014 to 2018) expected program payments of the farm’s existing base acres (sheet 1) to the “reallocation” of base acres choice. The user clicks on the “Checked YES box” to see the differences in program payments, based upon inputted variables, if the user decided to reallocate base acres.
C57: C. ARC-CO versus ARC-IC versus PLC: What is the consequence of electing to enroll the farm in ARC-CO or ARC-IC or PLC? The MSU 2014 FARM BILL ANALYZER compares the farm’s expected total program payment (2014 to 2018) for each covered commodity under each of these three program choices. PLC and ARC-CO are independent of each other while ARC-IC must be used on all covered commodities on the farm as program benefits are determined from all crops revenues combined.
C58: VI. Conclusion: Given the many factors that could affect the three major decisions contained in the 2014 Farm Bill, users are encouraged to consider:
C59: A. Running a wide range of scenarios for prices, yields and various future plantings that could include best case scenarios, worst case scenarios, etc. This is highly recommended and the calculator is designed to accommodate this testing of the USDA program.
C60: B. Factors such as the correlation of the farm’s yield with the county yield.
C61: C. Coverage of price and yield risk by the ARC-CO, ARC-IC or PLC programs.
C62: D. Planting strategies and rotations by FSA Farm number.
C63: E. Other factors in the farm’s overall risk management strategy.
C66: MSU 2014 Farm Bill ARC-PLC Decision Making Tool © 2015 Michigan State University Board of Trustees. 4-H and other Cooperative Extension System groups and other nonprofit educational groups may print hard copies of this material for noncommercial, educational use, provided that attribution is given to Michigan State University Extension. All other rights reserved. For information, contact MSU Extension, 108 Agriculture Hall, 446 West Circle Drive, East Lansing, MI 48824.
C67: MSU is an affirmative-action, equal-opportunity employer, committed to achieving excellence through a diverse workforce and inclusive culture that encourages all people to reach their full potential. Michigan State University Extension programs and materials are open to all without regard to race, color, national origin, gender, gender identity, religion, age, height, weight, disability, political beliefs, sexual orientation, marital status, family status or veteran status. Issued in furtherance of MSU Extension work, acts of May 8 and June 30, 1914, in cooperation with the U.S. Department of Agriculture. Ray Hammerschmidt, Director, MSU Extension, East Lansing, MI 48824. This information is for educational purposes only. Reference to commercial products or trade names does not imply endorsement by MSU Extension or bias against those not mentioned.
C69: VII. Version Updates
C70: Version 1.3 Correct PLC yield calculation when no crop was planted in a year.
C71: Version 1.4 New rules on how ARC-IC plug yields are used. Planted versus not planted.
C72: Version 1.5 Updates crop price projections and adds a new "composite" which is an average of the 4 sources.
C73: Version 1.6 Corrects how ARC-IC plug yields are calculated when planted or not planted.
C74: Version 1.7 Uses FSA county yields versus NASS county yields. Price percentage increase or decrease does not now change for the 2014 year. Uses 0.1 yield for crops in counties that are not listed in either FSA or NASS yield data sets. This allows calculations versus error messages.
C75: Version 1.8 Updated Price Projections. Added larger view of YES/NO questions so can see choices better.
C76: Version 1.9 Uses NASS 2014 county yield estimates versus average of last 5 years and updates projected crop prices.

Sheet 2015 Co ARC Payments (Oct '16)
D1: 2015 FSA County ARC Program Estimated Payments
D2: Paid in October 2016 | F2: Reported Commodity Crop History Summary
D3: 2016-08-08
D5: Crop prices for 2015 Corn and Soys are not yet final | L5: =E9 -> WASHTENAW | M5: County Yields
D6: Crop yields for 2015 are from NASS not FSA | L6: 2009 | M6: 2010 | N6: 2011 | O6: 2012 | P6: 2013 | Q6: 2014 | R6: 2015
G7: Roger Betz, MSU Extension | K7: =D19 -> Corn | L7: ='Background Calculations'!S3 -> 133 | M7: ='Background Calculations'!T3 -> 143 | N7: ='Background Calculations'!U3 -> 144 | O7: ='Background Calculations'!V3 -> 88 | P7: ='Background Calculations'!W3 -> 155 | Q7: ='Background Calculations'!X3 -> 171 | R7: ='Background Calculations'!Y3 -> 147.6
D8: Step 1. Select your County | K8: =D20 -> Soybeans | L8: ='Background Calculations'!S4 -> 39 | M8: ='Background Calculations'!T4 -> 40 | N8: ='Background Calculations'!U4 -> 43 | O8: ='Background Calculations'!V4 -> 25 | P8: ='Background Calculations'!W4 -> 47 | Q8: ='Background Calculations'!X4 -> 45 | R8: ='Background Calculations'!Y4 -> 44.8
D9: Administrative County: | E9: WASHTENAW | F9: Farm Number: | H9: Farm Name: | J9: Base Example Farm | K9: =D21 -> Wheat | L9: ='Background Calculations'!S5 -> 68 | M9: ='Background Calculations'!T5 -> 68 | N9: ='Background Calculations'!U5 -> 69 | O9: ='Background Calculations'!V5 -> 67 | P9: ='Background Calculations'!W5 -> 64 | Q9: ='Background Calculations'!X5 -> 77 | R9: ='Background Calculations'!Y5 -> 71.6
D10: Step 2. Enter your Base Acres | H10: Farm Number: | J10: 9999 | L10: National Average Producer Prices
D11: Commodity | E11: Base Acres | F11: 2014 CC Yield | G11: Commodity | H11: Base Acres | I11: 2014 CC Yield | K11: Corn | L11: ='Background Calculations'!S47 -> 3.55 | M11: ='Background Calculations'!T47 -> 5.18 | N11: ='Background Calculations'!U47 -> 6.22 | O11: ='Background Calculations'!V47 -> 6.89 | P11: ='Background Calculations'!W47 -> 4.46 | Q11: ='Background Calculations'!X47 -> 3.7 | R11: ='Background Calculations'!Y47 -> 3.6
D12: Soybeans | E12: 100 | F12: 38 | G12: Wheat | H12: 100 | I12: 50 | K12: Soybeans | L12: ='Background Calculations'!S48 -> 9.59 | M12: ='Background Calculations'!T48 -> 11.3 | N12: ='Background Calculations'!U48 -> 12.5 | O12: ='Background Calculations'!V48 -> 14.4 | P12: ='Background Calculations'!W48 -> 13 | Q12: ='Background Calculations'!X48 -> 10.1 | R12: ='Background Calculations'!Y48 -> 8.8
D13: Corn | E13: 100 | F13: 96 | I13: 69 | K13: Wheat | L13: ='Background Calculations'!S49 -> 4.87 | M13: ='Background Calculations'!T49 -> 5.7 | N13: ='Background Calculations'!U49 -> 7.24 | O13: ='Background Calculations'!V49 -> 7.77 | P13: ='Background Calculations'!W49 -> 6.87 | Q13: ='Background Calculations'!X49 -> 5.99 | R13: ='Background Calculations'!Y49 -> 4.89
F14: 0 | I14: 0
E15: 2015 County ARC Estimated Payments | N15: =L5 -> WASHTENAW | O15: County | P15: 86% of Revenue Guarantee/ac
E16: 2015 Marketing Year (Paid in October of 2016) | P16: Corn | Q16: ='Background Calculations'!E28 -> 636.916 | R16: ='Background Calculations'!E29 -> 668.7618
E17: Sequestration Rate? | G17: 0.072 | P17: Soybeans | Q17: ='Background Calculations'!G28 -> 432.6402 | R17: ='Background Calculations'!G29 -> 453.7446
E18: Payment Rate/Base Acre | G18: 85% & Sequestration | H18: Crop Payment | P18: Wheat | Q18: ='Background Calculations'!I28 -> 385.968 | R18: ='Background Calculations'!I29 -> 391.816
D19: Corn | E19: ='Background Calculations'!D13 -> 77.763 | G19: =E19*0.85*(1-G$17) -> 61.3394544 | H19: =G19*E13 -> 6133.94544 | Q19: Actual Revenue /ac
D20: Soybeans | E20: ='Background Calculations'!F13 -> 52.761 | G20: =E20*0.85*(1-G$17) -> 41.6178768 | H20: =G20*E12 -> 4161.78768 | P20: Corn | Q20: =Q7*Q11 -> 632.7 | R20: =R7*R11 -> 531.36
D21: Wheat | E21: ='Background Calculations'!H13 -> 41.692 | G21: 32.8866496 | H21: =G21*H12 -> 3288.66496 | P21: Soybeans | Q21: =Q8*Q12 -> 454.5 | R21: 394.24
G22: Total Payment Oct '16 | H22: =SUM(H19:H21) -> 13584.39808 | P22: Wheat | Q22: =Q9*Q13 -> 461.23 | R22: 350.124
E24: 2014 County ARC Payments | P24: ARC County Payment/ac (max 10% of Revenue Guarantee)
E25: 2014 Marketing Year (Paid in October of 2015) | P25: Corn | Q25: ='Background Calculations'!E46 -> 4.216 | R25: ='Background Calculations'!E47 -> 77.763
E26: Sequestration Rate | G26: =G17 -> 0.072 | P26: Soybeans | Q26: ='Background Calculations'!G46 -> 0 | R26: ='Background Calculations'!G47 -> 52.761
E27: Payment Rate/Base Acre | G27: 85% & Sequestration | H27: Crop Payment | P27: Wheat | Q27: ='Background Calculations'!I46 -> 0 | R27: ='Background Calculations'!I47 -> 41.692
D28: Corn | E28: ='Background Calculations'!E46 -> 4.216 | G28: =E28*0.85*(1-G$17) -> 3.3255808 | H28: =G28*E13 -> 332.55808
D29: Soybeans | E29: ='Background Calculations'!G46 -> 0 | G29: =E29*0.85*(1-G$17) -> 0 | H29: =G29*E12 -> 0
D30: Wheat | E30: ='Background Calculations'!I46 -> 0 | G30: =E30*0.85*(1-G$17) -> 0 | H30: =G30*H12 -> 0
G31: Total Payment Oct '15 | H31: =SUM(H28:H30) -> 332.55808
D65: Planted & Prevented | E65: 2008 | F65: 2009 | G65: 2010 | H65: 2011 | I65: 2012
D66: Soybeans Planted | E66: 100 | F66: 0 | G66: 150 | H66: 40 | I66: 160
D67: Soybeans Prevented
D68: Corn Planted | E68: 50 | F68: 150 | G68: 50 | H68: 160 | I68: 40
D69: Corn Prevented
D70: Wheat Planted | E70: 50 | F70: 50 | G70: 0 | H70: 0 | I70: 0
D71: Wheat Prevented
D72: Oats Planted
D73: Oats prevented
D74: Barley Planted
D75: Barley Prevented
D76: Other Planted
D77: Other Prevented
D78: Total Acres Planted | E78: =SUM(E66:E77) -> 200 | F78: =SUM(F66:F77) -> 200 | G78: 200 | H78: 200 | I78: 200

Sheet 2014 Farm Bill Calculator (hidden)
D1: MSU 2014 -2018 FARM BILL ANALYZER | I1: Version 1.9
D2: FSA Farm # | E2: ='2015 Co ARC Payments (Oct ''16)'!J10 -> 9999 | F2: Farm Name: | G2: ='2015 Co ARC Payments (Oct ''16)'!J9 -> Base Example Farm
C3: ='2015 Co ARC Payments (Oct ''16)'!E9 -> WASHTENAW | D3: CORN | F3: SOYBEANS | H3: WHEAT
C4: National Loan Rate | D4: 1.95 | F4: 5 | H4: 2.94 | I4: Note: All Base acres other than corn and Soys are added together here
J5: Total FSA Base Acres
C6: FSA 2014 BASE Acres (FSA CROP HISTORY) | E6: ='2015 Co ARC Payments (Oct ''16)'!E13 -> 100 | G6: ='2015 Co ARC Payments (Oct ''16)'!E12 -> 100 | I6: ='2015 Co ARC Payments (Oct ''16)'!H12+'2015 Co ARC Payments (Oct ''16)'!H13+'2015 Co ARC Payments (Oct ''16)'!H14+'2015 Co ARC Payments (Oct ''16)'!E14 -> 100 | J6: =E6+G6+I6 -> 300
C7: 2014 CC Yield (FSA CROP HISTORY) | D7: ='2015 Co ARC Payments (Oct ''16)'!F13 -> 96 | F7: ='2015 Co ARC Payments (Oct ''16)'!F12 -> 38 | H7: ='2015 Co ARC Payments (Oct ''16)'!I12 -> 50
N8: Farm
A9: Please check the FIRM website for possible updates: | F9: Historical and Projected Farm Yields and Acreages | N9: 0.02
A10: http://firm.msue.msu.edu/ | D10: Corn | E10: Corn | F10: Soybeans | G10: Soybean | H10: Wheat | I10: Wheat | N10: 0.01
A11: This is | B11: =I1 -> Version 1.9 | C11: Crop Year | D11: Farm Yield | E11: Acres | F11: Farm Yield | G11: Acres | H11: Farm Yield | I11: Acres | J11: Total Commodity Acres | N11: 0.01
A12: Farm Yield | C12: 2008 | D12: ='Background Calculations'!R3 -> 110 | E12: ='2015 Co ARC Payments (Oct ''16)'!E68+'2015 Co ARC Payments (Oct ''16)'!E69 -> 50 | F12: ='Background Calculations'!R4 -> 30 | G12: ='2015 Co ARC Payments (Oct ''16)'!E66+'2015 Co ARC Payments (Oct ''16)'!E67 -> 100 | H12: 80 | I12: =SUM('2015 Co ARC Payments (Oct ''16)'!E70:E77) -> 50 | J12: =I12+G12+E12 -> 200 | N12: County
A13: Annual Increase | C13: 2009 | D13: ='Background Calculations'!S3 -> 133 | E13: ='2015 Co ARC Payments (Oct ''16)'!F68+'2015 Co ARC Payments (Oct ''16)'!F69 -> 150 | F13: ='Background Calculations'!S4 -> 39 | G13: ='2015 Co ARC Payments (Oct ''16)'!F66+'2015 Co ARC Payments (Oct ''16)'!F67 -> 0 | H13: 80 | I13: =SUM('2015 Co ARC Payments (Oct ''16)'!F70:F77) -> 50 | J13: 200 | N13: =$B$14 -> 0.02
A14: Corn % | B14: 0.02 | C14: 2010 | D14: ='Background Calculations'!T3 -> 143 | E14: ='2015 Co ARC Payments (Oct ''16)'!G68+'2015 Co ARC Payments (Oct ''16)'!G69 -> 50 | F14: ='Background Calculations'!T4 -> 40 | G14: ='2015 Co ARC Payments (Oct ''16)'!G66+'2015 Co ARC Payments (Oct ''16)'!G67 -> 150 | H14: 80 | I14: =SUM('2015 Co ARC Payments (Oct ''16)'!G70:G77) -> 0 | J14: 200 | N14: =$B$15 -> 0.01
A15: Soys % | B15: 0.01 | C15: 2011 | D15: ='Background Calculations'!U3 -> 144 | E15: ='2015 Co ARC Payments (Oct ''16)'!H68+'2015 Co ARC Payments (Oct ''16)'!H69 -> 160 | F15: ='Background Calculations'!U4 -> 43 | G15: ='2015 Co ARC Payments (Oct ''16)'!H66+'2015 Co ARC Payments (Oct ''16)'!H67 -> 40 | H15: 90 | I15: =SUM('2015 Co ARC Payments (Oct ''16)'!H70:H77) -> 0 | J15: 200 | N15: =$B$16 -> 0.01
A16: Wheat % | B16: 0.01 | C16: 2012 | D16: ='Background Calculations'!V3 -> 88 | E16: ='2015 Co ARC Payments (Oct ''16)'!I68+'2015 Co ARC Payments (Oct ''16)'!I69 -> 40 | F16: ='Background Calculations'!V4 -> 25 | G16: ='2015 Co ARC Payments (Oct ''16)'!I66+'2015 Co ARC Payments (Oct ''16)'!I67 -> 160 | H16: ='Background Calculations'!V$5 -> 67 | I16: =SUM('2015 Co ARC Payments (Oct ''16)'!I70:I77) -> 0 | J16: 200
C17: 2013 | D17: ='Background Calculations'!W3 -> 155 | E17: =G16 -> 160 | F17: ='Background Calculations'!W4 -> 47 | G17: =E16 -> 40 | H17: 90 | I17: 0 | J17: 200 | N17: Default Future Yield Calculations
A18: County Yield | C18: 2014 | D18: ='Background Calculations'!X3 -> 171 | E18: 40 | F18: ='Background Calculations'!X4 -> 45 | G18: 160 | H18: ='Background Calculations'!X5 -> 77 | I18: =I17 -> 0 | J18: 200
A19: Annual Increase | C19: 2015 | D19: =AVERAGE($D14:$D18)*(1+$B$14) -> 143.004 | E19: 160 | F19: =AVERAGE($F14:$F18)*(1+$B$15) -> 40.4 | G19: 40 | H19: =AVERAGE($H14:$H18)*(1+$B$16) -> 81.608 | I19: =I18 -> 0 | J19: 200 | N19: =AVERAGE($D14:$D18)*(1+$B$14) -> 143.004 | O19: =AVERAGE($F14:$F18)*(1+$B$15) -> 40.4 | P19: =AVERAGE($H14:$H18)*(1+$B$16) -> 81.608
A20: Corn % | B20: =$B$14 -> 0.02 | C20: 2016 | D20: 100 | E20: 40 | F20: 30 | G20: 160 | H20: 95 | I20: =I19 -> 0 | J20: 200 | N20: =AVERAGE($D15:$D19)*(1+$B$14) -> 143.004816 | O20: =AVERAGE($F15:$F19)*(1+$B$15) -> 40.4808 | P20: =AVERAGE($H15:$H19)*(1+$B$16) -> 81.932816
A21: Soys % | B21: =$B$15 -> 0.01 | C21: 2017 | D21: =AVERAGE($D16:$D20)*(1+$B$14) -> 134.028816 | E21: 160 | F21: =AVERAGE($F16:$F20)*(1+$B$15) -> 37.8548 | G21: 40 | H21: =AVERAGE($H16:$H20)*(1+$B$16) -> 82.942816 | I21: =I20 -> 0 | J21: 200 | N21: 134.028816 | O21: 37.8548 | P21: 82.942816
A22: Wheat % | B22: =$B$16 -> 0.01 | C22: 2018 | D22: 143.4186945 | E22: 40 | F22: 40.4514696 | G22: 160 | H22: 86.16326483 | I22: 0 | J22: 200 | N22: 143.4186945 | O22: 40.4514696 | P22: 86.16326483
F24: Projected National Market Year Average Prices
C25: Base assumptions for MYA Prices to Use: | D25: Composite
C26: Price Change from Base assumptions | D26: 0 | F26: =$D26 -> 0 | H26: =$D26 -> 0 | N26: 0 | O26: =$D26 -> 0 | P26: =$D26 -> 0
C27: Crop Year | D27: CORN | F27: SOYBEANS | H27: =H3 -> WHEAT
C28: 2013 | D28: 4.46 | F28: 13 | H28: 6.87
C29: 2014 | D29: =$N41 -> 3.7 | F29: =$O41 -> 10.1 | H29: =$P41 -> 5.99 | N29: =$N41 -> 3.7 | O29: =$O41 -> 10.1 | P29: =$P41 -> 5.99
C30: 2015 | D30: =$N42 -> 3.6 | F30: =$O42 -> 8.8 | H30: =$P42 -> 4.89 | N30: =$N42 -> 3.6 | O30: =$O42 -> 8.8 | P30: =$P42 -> 4.89
C31: 2016 | D31: =$N43 -> 3.5 | F31: =$O43 -> 9 | H31: =$P43 -> 4.8 | N31: =$N43 -> 3.5 | O31: =$O43 -> 9 | P31: =$P43 -> 4.8
C32: 2017 | D32: =$N44 -> 3.864734485 | F32: =$O44 -> 9.532783715 | H32: =$P44 -> 5.213061487 | N32: =$N44 -> 3.864734485 | O32: =$O44 -> 9.532783715 | P32: =$P44 -> 5.213061487
C33: 2018 | D33: =$N45 -> 3.910727389 | F33: =$O45 -> 9.688214703 | H33: =$P45 -> 5.319861925 | N33: =$N45 -> 3.910727389 | O33: =$O45 -> 9.688214703 | P33: =$P45 -> 5.319861925
C34: Average 5 yr Price | D34: =AVERAGE(D29:D33) -> 3.715092375 | F34: =AVERAGE(F29:F33) -> 9.424199684 | H34: 5.242584682
N35: Market Year Prices
N36: =VLOOKUP($D$25,'MYA Prices'!$B$32:$Q$36,2,FALSE) -> 3.7 | O36: =VLOOKUP($D$25,'MYA Prices'!$B$32:$Q$36,7,FALSE) -> 10.1 | P36: =VLOOKUP($D$25,'MYA Prices'!$B$32:$Q$36,12,FALSE) -> 5.99
B37: FSA Decision 1 : | C37: Update Yields? | D37: CORN ? | F37: SOYBEANS? | H37: WHEAT ? | N37: =VLOOKUP($D$25,'MYA Prices'!$B$32:$Q$36,3,FALSE) -> 3.6 | O37: =VLOOKUP($D$25,'MYA Prices'!$B$32:$Q$36,8,FALSE) -> 8.8 | P37: =VLOOKUP($D$25,'MYA Prices'!$B$32:$Q$36,13,FALSE) -> 4.89
C38: Choose Highest Yield for Each Crop--> | D38: =IF($R38,'Background Calculations'!D3,D7) -> 113.166 | E38: =IF(R38=FALSE,"NO","YES") -> YES | F38: =IF($S38,'Background Calculations'!F3,F7) -> 38 | G38: =IF(S38=FALSE,"NO","YES") -> NO | H38: =IF($T38,'Background Calculations'!H3,H7) -> 72 | I38: =IF(T38=FALSE,"NO","YES") -> YES | N38: =VLOOKUP($D$25,'MYA Prices'!$B$32:$Q$36,4,FALSE) -> 3.5 | O38: =VLOOKUP($D$25,'MYA Prices'!$B$32:$Q$36,9,FALSE) -> 9 | P38: =VLOOKUP($D$25,'MYA Prices'!$B$32:$Q$36,14,FALSE) -> 4.8 | R38: TRUE | S38: FALSE | T38: TRUE
B39: FSA Decision 2 : | C39: Reallocate Base Acres? | D39: =IF(R39=FALSE,"NO","YES") -> NO | E39: =IF($R39,'Background Calculations'!E2*$J6,E6) -> 100 | G39: =IF($R39,'Background Calculations'!G2*$J6,G6) -> 100 | I39: =IF($R39,'Background Calculations'!I2*$J6,I6) -> 100 | N39: =VLOOKUP($D$25,'MYA Prices'!$B$32:$Q$36,5,FALSE) -> 3.864734485 | O39: =VLOOKUP($D$25,'MYA Prices'!$B$32:$Q$36,10,FALSE) -> 9.532783715 | P39: =VLOOKUP($D$25,'MYA Prices'!$B$32:$Q$36,15,FALSE) -> 5.213061487 | R39: FALSE
B40: FSA Decision 3 : | C40: Program Choices? | N40: =VLOOKUP($D$25,'MYA Prices'!$B$32:$Q$36,6,FALSE) -> 3.910727389 | O40: =VLOOKUP($D$25,'MYA Prices'!$B$32:$Q$36,11,FALSE) -> 9.688214703 | P40: =VLOOKUP($D$25,'MYA Prices'!$B$32:$Q$36,16,FALSE) -> 5.319861925
B41: Choose Resulting Highest 5yr Total Program Payments below: | N41: =N36 -> 3.7 | O41: =O36 -> 10.1 | P41: =P36 -> 5.99
A42: 5yr Total Program Payments | D42: CORN 5yrs | F42: SOYBEANS 5yrs | H42: WHEAT 5yrs | N42: =N37*(1+$D$26) -> 3.6 | O42: =O37*(1+$F$26) -> 8.8 | P42: =P37*(1+$H$26) -> 4.89
A43: =SUM(D43:H43) -> 13761.44172 | C43: <-All PLC | D43: =SUM('Background Calculations'!D5:D9)*E39*0.85 -> 2885.733 | F43: =SUM('Background Calculations'!F5:F9)*G39*0.85 -> 0 | H43: =SUM('Background Calculations'!H5:H9)*I39*0.85 -> 10875.70872 | N43: =N38*(1+$D$26) -> 3.5 | O43: =O38*(1+$F$26) -> 9 | P43: =P38*(1+$H$26) -> 4.8
A44: =SUM(D44:I44) -> 29432.185 | C44: <-All ARC-CO | D44: =SUM('Background Calculations'!D12:D16)*E39*0.85 -> 13034.75 | F44: =SUM('Background Calculations'!F12:F16)*G39*0.85 -> 8924.065 | H44: =SUM('Background Calculations'!H12:H16)*I39*0.85 -> 7473.37 | N44: =N39*(1+$D$26) -> 3.864734485 | O44: =O39*(1+$F$26) -> 9.532783715 | P44: =P39*(1+$H$26) -> 5.213061487
A45: =SUM('Background Calculations'!J96:J100) -> 22477.18119 | C45: <-ARC-IC | D45: NA | F45: NA | H45: NA | N45: =N40*(1+$D$26) -> 3.910727389 | O45: =O40*(1+$F$26) -> 9.688214703 | P45: =P40*(1+$H$26) -> 5.319861925
A46: =SUM(D46+F46+H46) -> 32834.52372 | C46: <-Best PLC,ARC-CO | D46: =MAX(D43:D44) -> 13034.75 | F46: =MAX(F43:F44) -> 8924.065 | H46: =MAX(H43:H44) -> 10875.70872
A47: =MAX(A43:B46)-MIN(A43:B46) -> 19073.082 | C47: Difference Max vs Min
A48: =A44-A45 -> 6955.003813 | C48: Difference ARC-CO vs ARC-IC
A49: =MAX(A43:B46)/J6 -> 109.4484124 | C49: Total Payments per Base Acre (5 yrs combined)
A50: =A49/5 -> 21.88968248 | C50: Average Payment per Base Acre per year

Sheet Background Calculations (hidden)
C2: 2009 - '12 Each Crop Percent | E2: =SUM('2014 Farm Bill Calculator'!E13:E16)/SUM('2014 Farm Bill Calculator'!$J13:$J16) -> 0.5 | G2: =SUM('2014 Farm Bill Calculator'!G13:G16)/SUM('2014 Farm Bill Calculator'!$J13:$J16) -> 0.4375 | I2: =SUM('2014 Farm Bill Calculator'!I13:I16)/SUM('2014 Farm Bill Calculator'!$J13:$J16) -> 0.0625 | M2: County Yield | N2: 2004 | O2: 2005 | P2: 2006 | Q2: 2007 | R2: 2008 | S2: 2009 | T2: 2010 | U2: 2011 | V2: 2012 | W2: 2013 | X2: 2014 | Y2: 2015 | Z2: 2016 | AA2: 2017 | AB2: 2018
C3: 90% PLC Yield | D3: =AVERAGE('Background Calculations'!R33:V33)*0.9 -> 113.166 | F3: =AVERAGE('Background Calculations'!R34:V34)*0.9 -> 31.93875 | H3: =AVERAGE('Background Calculations'!R35:V35)*0.9 -> 72 | L3: Corn | M3: ='2014 Farm Bill Calculator'!C3 -> WASHTENAW | N3: =VLOOKUP('2014 Farm Bill Calculator'!$C$3,'County Yields'!$A$3:$CA$85,2) -> 132 | O3: =VLOOKUP('2014 Farm Bill Calculator'!$C$3,'County Yields'!$A$3:$CA$85,3) -> 150 | P3: =VLOOKUP('2014 Farm Bill Calculator'!$C$3,'County Yields'!$A$3:$CA$85,4) -> 141 | Q3: =VLOOKUP('2014 Farm Bill Calculator'!$C$3,'County Yields'!$A$3:$CA$85,5) -> 128 | R3: =VLOOKUP('2014 Farm Bill Calculator'!$C$3,'County Yields'!$A$3:$CA$85,6) -> 110 | S3: =VLOOKUP('2014 Farm Bill Calculator'!$C$3,'County Yields'!$A$3:$CA$85,7) -> 133 | T3: =VLOOKUP('2014 Farm Bill Calculator'!$C$3,'County Yields'!$A$3:$CA$85,8) -> 143 | U3: =VLOOKUP('2014 Farm Bill Calculator'!$C$3,'County Yields'!$A$3:$CA$85,9) -> 144 | V3: =VLOOKUP('2014 Farm Bill Calculator'!$C$3,'County Yields'!$A$3:$CA$85,10) -> 88 | W3: =VLOOKUP('2014 Farm Bill Calculator'!$C$3,'County Yields'!$A$3:$CA$85,11) -> 155 | X3: =VLOOKUP('2014 Farm Bill Calculator'!$C$3,'County Yields'!$A$3:$CA$85,12) -> 171 | Y3: =VLOOKUP('2014 Farm Bill Calculator'!$C$3,'County Yields'!$A$3:$CA$85,13) -> 147.6 | Z3: =VLOOKUP('2014 Farm Bill Calculator'!$C$3,'County Yields'!$A$3:$CA$85,14) -> 107.9568 | AA3: =VLOOKUP('2014 Farm Bill Calculator'!$C$3,'County Yields'!$A$3:$CA$85,15) -> 136.5895872 | AB3: =VLOOKUP('2014 Farm Bill Calculator'!$C$3,'County Yields'!$A$3:$CA$85,16) -> 146.501863
C4: PLC / Acre/Before 85% | D4: CORN | F4: SOYBEANS | H4: WHEAT | L4: Soys | M4: ='2014 Farm Bill Calculator'!C3 -> WASHTENAW | N4: =VLOOKUP('2014 Farm Bill Calculator'!$C$3,'County Yields'!$A$3:$CA$85,22) -> 36 | O4: =VLOOKUP('2014 Farm Bill Calculator'!$C$3,'County Yields'!$A$3:$CA$85,23) -> 39 | P4: =VLOOKUP('2014 Farm Bill Calculator'!$C$3,'County Yields'!$A$3:$CA$85,24) -> 43 | Q4: =VLOOKUP('2014 Farm Bill Calculator'!$C$3,'County Yields'!$A$3:$CA$85,25) -> 41 | R4: =VLOOKUP('2014 Farm Bill Calculator'!$C$3,'County Yields'!$A$3:$CA$85,26) -> 30 | S4: =VLOOKUP('2014 Farm Bill Calculator'!$C$3,'County Yields'!$A$3:$CA$85,27) -> 39 | T4: =VLOOKUP('2014 Farm Bill Calculator'!$C$3,'County Yields'!$A$3:$CA$85,28) -> 40 | U4: =VLOOKUP('2014 Farm Bill Calculator'!$C$3,'County Yields'!$A$3:$CA$85,29) -> 43 | V4: =VLOOKUP('2014 Farm Bill Calculator'!$C$3,'County Yields'!$A$3:$CA$85,30) -> 25 | W4: =VLOOKUP('2014 Farm Bill Calculator'!$C$3,'County Yields'!$A$3:$CA$85,31) -> 47 | X4: =VLOOKUP('2014 Farm Bill Calculator'!$C$3,'County Yields'!$A$3:$CA$85,32) -> 45 | Y4: =VLOOKUP('2014 Farm Bill Calculator'!$C$3,'County Yields'!$A$3:$CA$85,33) -> 44.8 | Z4: =VLOOKUP('2014 Farm Bill Calculator'!$C$3,'County Yields'!$A$3:$CA$85,34) -> 31.0272 | AA4: =VLOOKUP('2014 Farm Bill Calculator'!$C$3,'County Yields'!$A$3:$CA$85,35) -> 38.9510944 | AB4: =VLOOKUP('2014 Farm Bill Calculator'!$C$3,'County Yields'!$A$3:$CA$85,36) -> 41.76921547
C5: 2014 | D5: =IF('2014 Farm Bill Calculator'!D29>'2014 Farm Bill Calculator'!D$4,IF('2014 Farm Bill Calculator'!D29<D$19,D$19-'2014 Farm Bill Calculator'!D29,0)*'2014 Farm Bill Calculator'!D$38,(D$19-'2014 Farm Bill Calculator'!D$4)*'2014 Farm Bill Calculator'!D$38) -> 0 | E5: =D5*'2014 Farm Bill Calculator'!E$39*0.85 -> 0 | F5: =IF('2014 Farm Bill Calculator'!F29>'2014 Farm Bill Calculator'!F$4,IF('2014 Farm Bill Calculator'!F29<F$19,F$19-'2014 Farm Bill Calculator'!F29,0)*'2014 Farm Bill Calculator'!F$38,(F$19-'2014 Farm Bill Calculator'!F$4)*'2014 Farm Bill Calculator'!F$38) -> 0 | G5: =F5*'2014 Farm Bill Calculator'!G$39*0.85 -> 0 | H5: =IF('2014 Farm Bill Calculator'!H29>'2014 Farm Bill Calculator'!H$4,IF('2014 Farm Bill Calculator'!H29<H$19,H$19-'2014 Farm Bill Calculator'!H29,0)*'2014 Farm Bill Calculator'!H$38,(H$19-'2014 Farm Bill Calculator'!H$4)*'2014 Farm Bill Calculator'!H$38) -> 0 | I5: =H5*'2014 Farm Bill Calculator'!I$39*0.85 -> 0 | J5: =E5+G5+'2014 Farm Bill Calculator'!I559 -> 0 | L5: Wheat | M5: ='2014 Farm Bill Calculator'!C3 -> WASHTENAW | N5: =VLOOKUP('2014 Farm Bill Calculator'!$C$3,'County Yields'!$A$3:$CA$85,42) -> 54 | O5: =VLOOKUP('2014 Farm Bill Calculator'!$C$3,'County Yields'!$A$3:$CA$85,43) -> 61 | P5: =VLOOKUP('2014 Farm Bill Calculator'!$C$3,'County Yields'!$A$3:$CA$85,44) -> 64 | Q5: =VLOOKUP('2014 Farm Bill Calculator'!$C$3,'County Yields'!$A$3:$CA$85,45) -> 59 | R5: =VLOOKUP('2014 Farm Bill Calculator'!$C$3,'County Yields'!$A$3:$CA$85,46) -> 61 | S5: =VLOOKUP('2014 Farm Bill Calculator'!$C$3,'County Yields'!$A$3:$CA$85,47) -> 68 | T5: =VLOOKUP('2014 Farm Bill Calculator'!$C$3,'County Yields'!$A$3:$CA$85,48) -> 68 | U5: =VLOOKUP('2014 Farm Bill Calculator'!$C$3,'County Yields'!$A$3:$CA$85,49) -> 69 | V5: =VLOOKUP('2014 Farm Bill Calculator'!$C$3,'County Yields'!$A$3:$CA$85,50) -> 67 | W5: =VLOOKUP('2014 Farm Bill Calculator'!$C$3,'County Yields'!$A$3:$CA$85,51) -> 64 | X5: =VLOOKUP('2014 Farm Bill Calculator'!$C$3,'County Yields'!$A$3:$CA$85,52) -> 77 | Y5: =VLOOKUP('2014 Farm Bill Calculator'!$C$3,'County Yields'!$A$3:$CA$85,53) -> 71.6 | Z5: =VLOOKUP('2014 Farm Bill Calculator'!$C$3,'County Yields'!$A$3:$CA$85,54) -> 70.4172 | AA5: =VLOOKUP('2014 Farm Bill Calculator'!$C$3,'County Yields'!$A$3:$CA$85,55) -> 70.7034744 | AB5: =VLOOKUP('2014 Farm Bill Calculator'!$C$3,'County Yields'!$A$3:$CA$85,56) -> 71.45157623
C6: 2015 | D6: =IF('2014 Farm Bill Calculator'!D30>'2014 Farm Bill Calculator'!D$4,IF('2014 Farm Bill Calculator'!D30<D$19,D$19-'2014 Farm Bill Calculator'!D30,0)*'2014 Farm Bill Calculator'!D$38,(D$19-'2014 Farm Bill Calculator'!D$4)*'2014 Farm Bill Calculator'!D$38) -> 11.3166 | E6: =D6*'2014 Farm Bill Calculator'!E$39*0.85 -> 961.911 | F6: =IF('2014 Farm Bill Calculator'!F30>'2014 Farm Bill Calculator'!F$4,IF('2014 Farm Bill Calculator'!F30<F$19,F$19-'2014 Farm Bill Calculator'!F30,0)*'2014 Farm Bill Calculator'!F$38,(F$19-'2014 Farm Bill Calculator'!F$4)*'2014 Farm Bill Calculator'!F$38) -> 0 | G6: =F6*'2014 Farm Bill Calculator'!G$39*0.85 -> 0 | H6: =IF('2014 Farm Bill Calculator'!H30>'2014 Farm Bill Calculator'!H$4,IF('2014 Farm Bill Calculator'!H30<H$19,H$19-'2014 Farm Bill Calculator'!H30,0)*'2014 Farm Bill Calculator'!H$38,(H$19-'2014 Farm Bill Calculator'!H$4)*'2014 Farm Bill Calculator'!H$38) -> 43.92 | I6: =H6*'2014 Farm Bill Calculator'!I$39*0.85 -> 3733.2 | J6: =E6+G6+I6 -> 4695.111
C7: 2016 | D7: =IF('2014 Farm Bill Calculator'!D31>'2014 Farm Bill Calculator'!D$4,IF('2014 Farm Bill Calculator'!D31<D$19,D$19-'2014 Farm Bill Calculator'!D31,0)*'2014 Farm Bill Calculator'!D$38,(D$19-'2014 Farm Bill Calculator'!D$4)*'2014 Farm Bill Calculator'!D$38) -> 22.6332 | E7: =D7*'2014 Farm Bill Calculator'!E$39*0.85 -> 1923.822 | F7: =IF('2014 Farm Bill Calculator'!F31>'2014 Farm Bill Calculator'!F$4,IF('2014 Farm Bill Calculator'!F31<F$19,F$19-'2014 Farm Bill Calculator'!F31,0)*'2014 Farm Bill Calculator'!F$38,(F$19-'2014 Farm Bill Calculator'!F$4)*'2014 Farm Bill Calculator'!F$38) -> 0 | G7: =F7*'2014 Farm Bill Calculator'!G$39*0.85 -> 0 | H7: =IF('2014 Farm Bill Calculator'!H31>'2014 Farm Bill Calculator'!H$4,IF('2014 Farm Bill Calculator'!H31<H$19,H$19-'2014 Farm Bill Calculator'!H31,0)*'2014 Farm Bill Calculator'!H$38,(H$19-'2014 Farm Bill Calculator'!H$4)*'2014 Farm Bill Calculator'!H$38) -> 50.4 | I7: =H7*'2014 Farm Bill Calculator'!I$39*0.85 -> 4284 | J7: =E7+G7+I7 -> 6207.822 | Q7: County Olympic Average Yield | S7: 2009 | T7: 2010 | U7: 2011 | V7: 2012 | W7: 2013 | X7: 2014 | Y7: 2015 | Z7: 2016 | AA7: 2017 | AB7: 2018
C8: 2017 | D8: =IF('2014 Farm Bill Calculator'!D32>'2014 Farm Bill Calculator'!D$4,IF('2014 Farm Bill Calculator'!D32<D$19,D$19-'2014 Farm Bill Calculator'!D32,0)*'2014 Farm Bill Calculator'!D$38,(D$19-'2014 Farm Bill Calculator'!D$4)*'2014 Farm Bill Calculator'!D$38) -> 0 | E8: =D8*'2014 Farm Bill Calculator'!E$39*0.85 -> 0 | F8: =IF('2014 Farm Bill Calculator'!F32>'2014 Farm Bill Calculator'!F$4,IF('2014 Farm Bill Calculator'!F32<F$19,F$19-'2014 Farm Bill Calculator'!F32,0)*'2014 Farm Bill Calculator'!F$38,(F$19-'2014 Farm Bill Calculator'!F$4)*'2014 Farm Bill Calculator'!F$38) -> 0 | G8: =F8*'2014 Farm Bill Calculator'!G$39*0.85 -> 0 | H8: =IF('2014 Farm Bill Calculator'!H32>'2014 Farm Bill Calculator'!H$4,IF('2014 Farm Bill Calculator'!H32<H$19,H$19-'2014 Farm Bill Calculator'!H32,0)*'2014 Farm Bill Calculator'!H$38,(H$19-'2014 Farm Bill Calculator'!H$4)*'2014 Farm Bill Calculator'!H$38) -> 20.65957294 | I8: =H8*'2014 Farm Bill Calculator'!I$39*0.85 -> 1756.0637 | J8: =E8+G8+I8 -> 1756.0637 | Q8: Corn | R8: ='2014 Farm Bill Calculator'!C3 -> WASHTENAW | S8: NA | T8: NA | U8: NA | V8: NA | W8: NA | X8: =ROUND((VLOOKUP('2014 Farm Bill Calculator'!$C$3,'County Yields'!$A$3:$CA$85,63)),0) -> 140 | Y8: =ROUND((VLOOKUP('2014 Farm Bill Calculator'!$C$3,'County Yields'!$A$3:$CA$85,64)),0) -> 147 | Z8: =ROUND((VLOOKUP('2014 Farm Bill Calculator'!$C$3,'County Yields'!$A$3:$CA$85,65)),0) -> 149 | AA8: =ROUND((VLOOKUP('2014 Farm Bill Calculator'!$C$3,'County Yields'!$A$3:$CA$85,66)),0) -> 137 | AB8: =ROUND((VLOOKUP('2014 Farm Bill Calculator'!$C$3,'County Yields'!$A$3:$CA$85,67)),0) -> 146
C9: 2018 | D9: =IF('2014 Farm Bill Calculator'!D33>'2014 Farm Bill Calculator'!D$4,IF('2014 Farm Bill Calculator'!D33<D$19,D$19-'2014 Farm Bill Calculator'!D33,0)*'2014 Farm Bill Calculator'!D$38,(D$19-'2014 Farm Bill Calculator'!D$4)*'2014 Farm Bill Calculator'!D$38) -> 0 | E9: =D9*'2014 Farm Bill Calculator'!E$39*0.85 -> 0 | F9: =IF('2014 Farm Bill Calculator'!F33>'2014 Farm Bill Calculator'!F$4,IF('2014 Farm Bill Calculator'!F33<F$19,F$19-'2014 Farm Bill Calculator'!F33,0)*'2014 Farm Bill Calculator'!F$38,(F$19-'2014 Farm Bill Calculator'!F$4)*'2014 Farm Bill Calculator'!F$38) -> 0 | G9: =F9*'2014 Farm Bill Calculator'!G$39*0.85 -> 0 | H9: =IF('2014 Farm Bill Calculator'!H33>'2014 Farm Bill Calculator'!H$4,IF('2014 Farm Bill Calculator'!H33<H$19,H$19-'2014 Farm Bill Calculator'!H33,0)*'2014 Farm Bill Calculator'!H$38,(H$19-'2014 Farm Bill Calculator'!H$4)*'2014 Farm Bill Calculator'!H$38) -> 12.96994143 | I9: =H9*'2014 Farm Bill Calculator'!I$39*0.85 -> 1102.445022 | J9: =E9+G9+I9 -> 1102.445022 | Q9: Soys | R9: ='2014 Farm Bill Calculator'!C3 -> WASHTENAW | S9: NA | T9: NA | U9: NA | V9: NA | W9: NA | X9: =ROUND((VLOOKUP('2014 Farm Bill Calculator'!$C$3,'County Yields'!$A$3:$CA$85,69)),0) -> 41 | Y9: =ROUND((VLOOKUP('2014 Farm Bill Calculator'!$C$3,'County Yields'!$A$3:$CA$85,70)),0) -> 43 | Z9: =ROUND((VLOOKUP('2014 Farm Bill Calculator'!$C$3,'County Yields'!$A$3:$CA$85,71)),0) -> 44 | AA9: =ROUND((VLOOKUP('2014 Farm Bill Calculator'!$C$3,'County Yields'!$A$3:$CA$85,72)),0) -> 40 | AB9: =ROUND((VLOOKUP('2014 Farm Bill Calculator'!$C$3,'County Yields'!$A$3:$CA$85,73)),0) -> 43
C10: Totals | D10: =SUM(D5:D9) -> 33.9498 | F10: =SUM(F5:F9) -> 0 | G10: =F10*'2014 Farm Bill Calculator'!G$39*0.85 -> 0 | H10: =SUM(H5:H9) -> 127.9495144 | Q10: Wheat | R10: ='2014 Farm Bill Calculator'!C3 -> WASHTENAW | S10: NA | T10: NA | U10: NA | V10: NA | W10: NA | X10: =ROUND((VLOOKUP('2014 Farm Bill Calculator'!$C$3,'County Yields'!$A$3:$CA$85,75)),0) -> 68 | Y10: =ROUND((VLOOKUP('2014 Farm Bill Calculator'!$C$3,'County Yields'!$A$3:$CA$85,76)),0) -> 68 | Z10: =ROUND((VLOOKUP('2014 Farm Bill Calculator'!$C$3,'County Yields'!$A$3:$CA$85,77)),0) -> 69 | AA10: =ROUND((VLOOKUP('2014 Farm Bill Calculator'!$C$3,'County Yields'!$A$3:$CA$85,78)),0) -> 70 | AB10: =ROUND((VLOOKUP('2014 Farm Bill Calculator'!$C$3,'County Yields'!$A$3:$CA$85,79)),0) -> 71
C11: ARC-CO / Acre before the 85% | Q11: Estimated T-Yield / 10yr Average Yield | R11: 2008 | S11: =S2 -> 2009 | T11: 2010 | U11: 2011 | V11: 2012 | W11: 2013 | X11: 2014 | Y11: 2015 | Z11: 2016 | AA11: 2017 | AB11: 2018
C12: 2014 | D12: =MIN(IF('Background Calculations'!X$47*'Background Calculations'!X$3<E28,E28-('Background Calculations'!X$47*'Background Calculations'!X$3),0),E40) -> 4.216 | E12: =D12*'2014 Farm Bill Calculator'!E$39*0.85 -> 358.36 | F12: =MIN(IF('Background Calculations'!X$48*'Background Calculations'!X$4<G28,G28-('Background Calculations'!X$48*'Background Calculations'!X$4),0),G40) -> 0 | G12: =F12*'2014 Farm Bill Calculator'!G$39*0.85 -> 0 | H12: =MIN(IF('Background Calculations'!X$49*'Background Calculations'!X$5<I28,I28-('Background Calculations'!X$49*'Background Calculations'!X$5),0),I40) -> 0 | I12: =H12*'2014 Farm Bill Calculator'!I$39*0.85 -> 0 | J12: =E12+G12+'2014 Farm Bill Calculator'!I566 -> 358.36 | Q12: Corn | R12: =AVERAGE(M3:Q3) -> 137.75 | S12: =AVERAGE(L3:R3) -> 132.2 | T12: =AVERAGE(L3:S3) -> 132.3333333 | U12: =AVERAGE(L3:T3) -> 133.8571429 | V12: =AVERAGE(L3:U3) -> 135.125 | W12: 129.8888889 | X12: 132.4 | Y12: 136.3 | Z12: 136.06 | AA12: 132.75568 | AB12: 133.6146387
C13: 2015 | D13: =MIN(IF('Background Calculations'!Y$47*'Background Calculations'!Y$3<E29,E29-('Background Calculations'!Y$47*'Background Calculations'!Y$3),0),E41) -> 77.763 | E13: =D13*'2014 Farm Bill Calculator'!E$39*0.85 -> 6609.855 | F13: =MIN(IF('Background Calculations'!Y$48*'Background Calculations'!Y$4<G29,G29-('Background Calculations'!Y$48*'Background Calculations'!Y$4),0),G41) -> 52.761 | G13: =F13*'2014 Farm Bill Calculator'!G$39*0.85 -> 4484.685 | H13: =MIN(IF('Background Calculations'!Y$49*'Background Calculations'!Y$5<I29,I29-('Background Calculations'!Y$49*'Background Calculations'!Y$5),0),I41) -> 41.692 | I13: =H13*'2014 Farm Bill Calculator'!I$39*0.85 -> 3543.82 | J13: =E13+G13+'2014 Farm Bill Calculator'!I567 -> 11094.54 | Q13: Soybeans | R13: =AVERAGE(M4:Q4) -> 39.75 | S13: =AVERAGE(L4:R4) -> 37.8 | T13: =AVERAGE(L4:S4) -> 38 | U13: =AVERAGE(L4:T4) -> 38.28571429 | V13: 38.875 | W13: 37.33333333 | X13: 38.3 | Y13: 39.2 | Z13: 39.78 | AA13: 38.58272 | AB13: 38.37782944
C14: 2016 | D14: =MIN(IF('Background Calculations'!Z$47*'Background Calculations'!Z$3<E30,E30-('Background Calculations'!Z$47*'Background Calculations'!Z$3),0),E42) -> 71.371 | E14: =D14*'2014 Farm Bill Calculator'!E$39*0.85 -> 6066.535 | F14: =MIN(IF('Background Calculations'!Z$48*'Background Calculations'!Z$4<G30,G30-('Background Calculations'!Z$48*'Background Calculations'!Z$4),0),G42) -> 52.228 | G14: =F14*'2014 Farm Bill Calculator'!G$39*0.85 -> 4439.38 | H14: =MIN(IF('Background Calculations'!Z$49*'Background Calculations'!Z$5<I30,I30-('Background Calculations'!Z$49*'Background Calculations'!Z$5),0),I42) -> 46.23 | I14: =H14*'2014 Farm Bill Calculator'!I$39*0.85 -> 3929.55 | J14: =E14+G14+'2014 Farm Bill Calculator'!I568 -> 10505.915 | Q14: Wheat | R14: =AVERAGE(M5:Q5) -> 59.5 | S14: =AVERAGE(L5:R5) -> 59.8 | T14: =AVERAGE(L5:S5) -> 61.16666667 | U14: =AVERAGE(L5:T5) -> 62.14285714 | V14: 63 | W14: 63.44444444 | X14: 63.5 | Y14: 65.8 | Z14: 66.86 | AA14: 67.50172 | AB14: 68.67206744
C15: 2017 | D15: =MIN(IF('Background Calculations'!AA$47*'Background Calculations'!AA$3<E31,E31-('Background Calculations'!AA$47*'Background Calculations'!AA$3),0),E43) -> 0 | E15: =D15*'2014 Farm Bill Calculator'!E$39*0.85 -> 0 | F15: =MIN(IF('Background Calculations'!AA$48*'Background Calculations'!AA$4<G31,G31-('Background Calculations'!AA$48*'Background Calculations'!AA$4),0),G43) -> 0 | G15: =F15*'2014 Farm Bill Calculator'!G$39*0.85 -> 0 | H15: =MIN(IF('Background Calculations'!AA$49*'Background Calculations'!AA$5<I31,I31-('Background Calculations'!AA$49*'Background Calculations'!AA$5),0),I43) -> 0 | I15: =H15*'2014 Farm Bill Calculator'!I$39*0.85 -> 0 | J15: =E15+G15+'2014 Farm Bill Calculator'!I569 -> 0 | Q15: 5 YR Average Yield
C16: 2018 | D16: =MIN(IF('Background Calculations'!AB$47*'Background Calculations'!AB$3<E32,E32-('Background Calculations'!AB$47*'Background Calculations'!AB$3),0),E44) -> 0 | E16: =D16*'2014 Farm Bill Calculator'!E$39*0.85 -> 0 | F16: =MIN(IF('Background Calculations'!AB$48*'Background Calculations'!AB$4<G32,G32-('Background Calculations'!AB$48*'Background Calculations'!AB$4),0),G44) -> 0 | G16: =F16*'2014 Farm Bill Calculator'!G$39*0.85 -> 0 | H16: =MIN(IF('Background Calculations'!AB$49*'Background Calculations'!AB$5<I32,I32-('Background Calculations'!AB$49*'Background Calculations'!AB$5),0),I44) -> 0 | I16: =H16*'2014 Farm Bill Calculator'!I$39*0.85 -> 0 | J16: =E16+G16+'2014 Farm Bill Calculator'!I570 -> 0 | Q16: Corn | R16: =AVERAGE(M3:Q3) -> 137.75 | S16: =AVERAGE(N3:R3) -> 132.2 | T16: =AVERAGE(O3:S3) -> 132.4 | U16: 131 | V16: 131.6 | W16: 123.6 | X16: 132.6 | Y16: 140.2 | Z16: 141.12 | AA16: 133.91136 | AB16: 143.6292774
C17: Totals | D17: =SUM(D12:D16) -> 153.35 | F17: =SUM(F12:F16) -> 104.989 | H17: =SUM(H12:H16) -> 87.922 | Q17: Soybeans | R17: 39.75 | S17: 37.8 | T17: 38.4 | U17: 38.6 | V17: 38.6 | W17: 35.4 | X17: 38.8 | Y17: 40 | Z17: 40.96 | AA17: 38.56544 | AB17: 41.35565888
C18: PLC | Q18: Wheat | R18: 59.5 | S18: 59.8 | T18: 62.6 | U18: 64 | V18: 65 | W18: 66.6 | X18: 67.2 | Y18: 69 | Z18: 69.72 | AA18: 70.00344 | AB18: 70.74413488
C19: 2014-18 PLC Price Guarantee | D19: 3.7 | F19: 8.4 | H19: 5.5
P20: 70% T-Yield
C21: ARC-CO Benchmark Revenue/ac | D21: =D4 -> CORN | F21: =F4 -> SOYBEANS | H21: =H4 -> WHEAT | Q21: Corn | R21: =0.7*R12 -> 96.425 | S21: 92.54 | T21: 92.63333333 | U21: 93.7 | V21: 94.5875 | W21: 90.92222222 | X21: 92.68 | Y21: 95.41 | Z21: 95.242 | AA21: 92.928976 | AB21: 93.5302471
C22: 2014 | E22: ='Background Calculations'!X8*'Background Calculations'!X60 -> 740.6 | G22: ='Background Calculations'!X61*'Background Calculations'!X9 -> 503.07 | I22: ='Background Calculations'!X10*'Background Calculations'!X62 -> 448.8 | Q22: Soybeans | R22: =0.7*R13 -> 27.825 | S22: 26.46 | T22: 26.6 | U22: 26.8 | V22: 27.2125 | W22: 26.13333333 | X22: 26.81 | Y22: 27.44 | Z22: 27.846 | AA22: 27.007904 | AB22: 26.86448061
C23: 2015 | E23: ='Background Calculations'!Y8*'Background Calculations'!Y60 -> 777.63 | G23: ='Background Calculations'!Y61*'Background Calculations'!Y9 -> 527.61 | I23: ='Background Calculations'!Y10*'Background Calculations'!Y62 -> 455.6 | Q23: Wheat | R23: =0.7*R14 -> 41.65 | S23: 41.86 | T23: 42.81666667 | U23: 43.5 | V23: 44.1 | W23: 44.41111111 | X23: 44.45 | Y23: 46.06 | Z23: 46.802 | AA23: 47.251204 | AB23: 48.07044721
C24: 2016 | E24: ='Background Calculations'!Z8*'Background Calculations'!Z60 -> 713.71 | G24: ='Background Calculations'!Z9*'Background Calculations'!Z61 -> 522.28 | I24: ='Background Calculations'!Z10*'Background Calculations'!Z62 -> 462.3
C25: 2017 | E25: ='Background Calculations'!AA8*'Background Calculations'!AA60 -> 541.15 | G25: ='Background Calculations'!AA9*'Background Calculations'!AA61 -> 428 | I25: ='Background Calculations'!AA10*'Background Calculations'!AA62 -> 428.4
C26: 2018 | E26: ='Background Calculations'!AB8*'Background Calculations'!AB60 -> 547.5 | G26: ='Background Calculations'!AB9*'Background Calculations'!AB61 -> 410.22 | I26: ='Background Calculations'!AB10*'Background Calculations'!AB62 -> 401.86
C27: 86% ARC-CO Guarantee/Ac | P27: 75% of 5yr County Average Yield
C28: 2014 | E28: =E22*0.86 -> 636.916 | G28: =G22*0.86 -> 432.6402 | I28: =I22*0.86 -> 385.968 | Q28: =Q16 -> Corn | R28: =0.75*R16 -> 103.3125 | S28: 99.15 | T28: 99.3 | U28: 98.25 | V28: 98.7 | W28: 92.7 | X28: 99.45 | Y28: 105.15 | Z28: 105.84 | AA28: 100.43352 | AB28: 107.7219581
C29: 2015 | E29: =E23*0.86 -> 668.7618 | G29: =G23*0.86 -> 453.7446 | I29: =I23*0.86 -> 391.816 | Q29: =Q17 -> Soybeans | R29: =0.75*R17 -> 29.8125 | S29: 28.35 | T29: 28.8 | U29: 28.95 | V29: 28.95 | W29: 26.55 | X29: 29.1 | Y29: 30 | Z29: 30.72 | AA29: 28.92408 | AB29: 31.01674416
C30: 2016 | E30: =E24*0.86 -> 613.7906 | G30: =G24*0.86 -> 449.1608 | I30: =I24*0.86 -> 397.578 | Q30: =Q18 -> Wheat | R30: =0.75*R18 -> 44.625 | S30: 44.85 | T30: 46.95 | U30: 48 | V30: 48.75 | W30: 49.95 | X30: 50.4 | Y30: 51.75 | Z30: 52.29 | AA30: 52.50258 | AB30: 53.05810116
C31: 2017 | E31: =E25*0.86 -> 465.389 | G31: =G25*0.86 -> 368.08 | I31: =I25*0.86 -> 368.424 | R31: =R11 -> 2008 | S31: 2009 | T31: 2010 | U31: 2011 | V31: 2012 | W31: 2013 | X31: 2014 | Y31: 2015 | Z31: 2016 | AA31: 2017 | AB31: 2018
C32: 2018 | E32: =E26*0.86 -> 470.85 | G32: =G26*0.86 -> 352.7892 | I32: =I26*0.86 -> 345.5996 | P32: Min "75% Yield" for Farm (PLC Yield)
C33: ARC-CO Payment Rate/Ac (before 85%) | Q33: =Q28 -> Corn | R33: =IF('2014 Farm Bill Calculator'!$E12>0.00001,(MAX(R28,'2014 Farm Bill Calculator'!$D12)),"No Crop") -> 110 | S33: =IF('2014 Farm Bill Calculator'!$E13>0.00001,(MAX(S28,'2014 Farm Bill Calculator'!$D13)),"No Crop") -> 133 | T33: =IF('2014 Farm Bill Calculator'!$E14>0.00001,(MAX(T28,'2014 Farm Bill Calculator'!$D14)),"No Crop") -> 143 | U33: =IF('2014 Farm Bill Calculator'!$E15>0.00001,(MAX(U28,'2014 Farm Bill Calculator'!$D15)),"No Crop") -> 144 | V33: =IF('2014 Farm Bill Calculator'!$E16>0.00001,(MAX(V28,'2014 Farm Bill Calculator'!$D16)),"No Crop") -> 98.7 | W33: =IF('2014 Farm Bill Calculator'!$E17>0.00001,(MAX(W28,'2014 Farm Bill Calculator'!$D17)),"No Crop") -> 155 | X33: =IF('2014 Farm Bill Calculator'!$E18>0.00001,(MAX(X28,'2014 Farm Bill Calculator'!$D18)),"No Crop") -> 171 | Y33: =IF('2014 Farm Bill Calculator'!$E19>0.00001,(MAX(Y28,'2014 Farm Bill Calculator'!$D19)),"No Crop") -> 143.004 | Z33: =IF('2014 Farm Bill Calculator'!$E20>0.00001,(MAX(Z28,'2014 Farm Bill Calculator'!$D20)),"No Crop") -> 105.84 | AA33: =IF('2014 Farm Bill Calculator'!$E21>0.00001,(MAX(AA28,'2014 Farm Bill Calculator'!$D21)),"No Crop") -> 134.028816 | AB33: =IF('2014 Farm Bill Calculator'!$E22>0.00001,(MAX(AB28,'2014 Farm Bill Calculator'!$D22)),"No Crop") -> 143.4186945
C34: 2014 | E34: =E28-('2014 Farm Bill Calculator'!D29*'Background Calculations'!X$3) -> 4.216 | G34: =G28-('2014 Farm Bill Calculator'!F29*'Background Calculations'!X$4) -> -21.8598 | I34: =I28-('2014 Farm Bill Calculator'!H29*'Background Calculations'!X$5) -> -75.262 | Q34: =Q29 -> Soybeans | R34: =IF('2014 Farm Bill Calculator'!$G12>0.00001,(MAX(R29,'2014 Farm Bill Calculator'!$F12)),"No Crop") -> 30 | S34: =IF('2014 Farm Bill Calculator'!$G13>0.00001,(MAX(S29,'2014 Farm Bill Calculator'!$F13)),"No Crop") -> No Crop | T34: =IF('2014 Farm Bill Calculator'!$G14>0.00001,(MAX(T29,'2014 Farm Bill Calculator'!$F14)),"No Crop") -> 40 | U34: =IF('2014 Farm Bill Calculator'!$G15>0.00001,(MAX(U29,'2014 Farm Bill Calculator'!$F15)),"No Crop") -> 43 | V34: =IF('2014 Farm Bill Calculator'!$G16>0.00001,(MAX(V29,'2014 Farm Bill Calculator'!$F16)),"No Crop") -> 28.95 | W34: =IF('2014 Farm Bill Calculator'!$G17>0.00001,(MAX(W29,'2014 Farm Bill Calculator'!$F17)),"No Crop") -> 47 | X34: =IF('2014 Farm Bill Calculator'!$G18>0.00001,(MAX(X29,'2014 Farm Bill Calculator'!$F18)),"No Crop") -> 45 | Y34: =IF('2014 Farm Bill Calculator'!$G19>0.00001,(MAX(Y29,'2014 Farm Bill Calculator'!$F19)),"No Crop") -> 40.4 | Z34: =IF('2014 Farm Bill Calculator'!$G20>0.00001,(MAX(Z29,'2014 Farm Bill Calculator'!$F20)),"No Crop") -> 30.72 | AA34: =IF('2014 Farm Bill Calculator'!$G21>0.00001,(MAX(AA29,'2014 Farm Bill Calculator'!$F21)),"No Crop") -> 37.8548 | AB34: =IF('2014 Farm Bill Calculator'!$G22>0.00001,(MAX(AB29,'2014 Farm Bill Calculator'!$F22)),"No Crop") -> 40.4514696
C35: 2015 | E35: =E29-('2014 Farm Bill Calculator'!D30*'Background Calculations'!Y$3) -> 137.4018 | G35: =G29-('2014 Farm Bill Calculator'!F30*'Background Calculations'!Y$4) -> 59.5046 | I35: =I29-('2014 Farm Bill Calculator'!H30*'Background Calculations'!Y$5) -> 41.692 | Q35: =Q30 -> Wheat | R35: =IF('2014 Farm Bill Calculator'!$I12>0.00001,(MAX(R30,'2014 Farm Bill Calculator'!$H12)),"No Crop") -> 80 | S35: =IF('2014 Farm Bill Calculator'!$I13>0.00001,(MAX(S30,'2014 Farm Bill Calculator'!$H13)),"No Crop") -> 80 | T35: =IF('2014 Farm Bill Calculator'!$I14>0.00001,(MAX(T30,'2014 Farm Bill Calculator'!$H14)),"No Crop") -> No Crop | U35: =IF('2014 Farm Bill Calculator'!$I15>0.00001,(MAX(U30,'2014 Farm Bill Calculator'!$H15)),"No Crop") -> No Crop | V35: =IF('2014 Farm Bill Calculator'!$I16>0.00001,(MAX(V30,'2014 Farm Bill Calculator'!$H16)),"No Crop") -> No Crop | W35: =IF('2014 Farm Bill Calculator'!$I17>0.00001,(MAX(W30,'2014 Farm Bill Calculator'!$H17)),"No Crop") -> No Crop | X35: =IF('2014 Farm Bill Calculator'!$I18>0.00001,(MAX(X30,'2014 Farm Bill Calculator'!$H18)),"No Crop") -> No Crop | Y35: =IF('2014 Farm Bill Calculator'!$I19>0.00001,(MAX(Y30,'2014 Farm Bill Calculator'!$H19)),"No Crop") -> No Crop | Z35: =IF('2014 Farm Bill Calculator'!$I20>0.00001,(MAX(Z30,'2014 Farm Bill Calculator'!$H20)),"No Crop") -> No Crop | AA35: =IF('2014 Farm Bill Calculator'!$I21>0.00001,(MAX(AA30,'2014 Farm Bill Calculator'!$H21)),"No Crop") -> No Crop | AB35: =IF('2014 Farm Bill Calculator'!$I22>0.00001,(MAX(AB30,'2014 Farm Bill Calculator'!$H22)),"No Crop") -> No Crop
C36: 2016 | E36: =E30-('2014 Farm Bill Calculator'!D31*'Background Calculations'!Z$3) -> 235.9418 | G36: =G30-('2014 Farm Bill Calculator'!F31*'Background Calculations'!Z$4) -> 169.916 | I36: =I30-('2014 Farm Bill Calculator'!H31*'Background Calculations'!Z$5) -> 59.57544
C37: 2017 | E37: =E31-('2014 Farm Bill Calculator'!D32*'Background Calculations'!AA$3) -> -62.49348792 | G37: =G31-('2014 Farm Bill Calculator'!F32*'Background Calculations'!AA$4) -> -3.232358381 | I37: =I31-('2014 Farm Bill Calculator'!H32*'Background Calculations'!AA$5) -> -0.1575593856
C38: 2018 | E38: =E32-('2014 Farm Bill Calculator'!D33*'Background Calculations'!AB$3) -> -102.0788481 | G38: =G32-('2014 Farm Bill Calculator'!F33*'Background Calculations'!AB$4) -> -51.87992745 | I38: =I32-('2014 Farm Bill Calculator'!H33*'Background Calculations'!AB$5) -> -34.51291983
C39: 10% Maximum Payment ARC-CO/Ac (before 85%) | P39: FOR ARC-IC if not planted = MAX of (County Yield or "70% T Yield") -OR- if planted MAX of (farm actual or 70% T-Yield)
C40: 2014 | E40: =E22*0.1 -> 74.06 | G40: =G22*0.1 -> 50.307 | I40: =I22*0.1 -> 44.88 | Q40: =Q33 -> Corn | R40: =IF('2014 Farm Bill Calculator'!$E12>0.9,MAX(R21,'2014 Farm Bill Calculator'!$D12),MAX(R21,R3)) -> 110 | S40: =IF('2014 Farm Bill Calculator'!$E13>0.9,MAX(S21,'2014 Farm Bill Calculator'!$D13),MAX(S21,S3)) -> 133 | T40: =IF('2014 Farm Bill Calculator'!$E14>0.9,MAX(T21,'2014 Farm Bill Calculator'!$D14),MAX(T21,T3)) -> 143 | U40: =IF('2014 Farm Bill Calculator'!$E15>0.9,MAX(U21,'2014 Farm Bill Calculator'!$D15),MAX(U21,U3)) -> 144 | V40: =IF('2014 Farm Bill Calculator'!$E16>0.9,MAX(V21,'2014 Farm Bill Calculator'!$D16),MAX(V21,V3)) -> 94.5875 | W40: =IF('2014 Farm Bill Calculator'!$E17>0.9,MAX(W21,'2014 Farm Bill Calculator'!$D17),MAX(W21,W3)) -> 155 | X40: =IF('2014 Farm Bill Calculator'!$E18>0.9,MAX(X21,'2014 Farm Bill Calculator'!$D18),MAX(X21,X3)) -> 171 | Y40: =IF('2014 Farm Bill Calculator'!$E19>0.9,MAX(Y21,'2014 Farm Bill Calculator'!$D19),MAX(Y21,Y3)) -> 143.004 | Z40: =IF('2014 Farm Bill Calculator'!$E20>0.9,MAX(Z21,'2014 Farm Bill Calculator'!$D20),MAX(Z21,Z3)) -> 100 | AA40: =IF('2014 Farm Bill Calculator'!$E21>0.9,MAX(AA21,'2014 Farm Bill Calculator'!$D17),MAX(AA21,AA3)) -> 155 | AB40: =IF('2014 Farm Bill Calculator'!$E22>0.9,MAX(AB21,'2014 Farm Bill Calculator'!$D22),MAX(AB21,AB3)) -> 143.4186945
C41: 2015 | E41: =E23*0.1 -> 77.763 | G41: =G23*0.1 -> 52.761 | I41: =I23*0.1 -> 45.56 | Q41: =Q34 -> Soybeans | R41: =IF('2014 Farm Bill Calculator'!$G12>0.9,MAX(R22,'2014 Farm Bill Calculator'!$F12),MAX(R22,R4)) -> 30 | S41: =IF('2014 Farm Bill Calculator'!$G13>0.9,MAX(S22,'2014 Farm Bill Calculator'!$F13),MAX(S22,S4)) -> 39 | T41: =IF('2014 Farm Bill Calculator'!$G14>0.9,MAX(T22,'2014 Farm Bill Calculator'!$F14),MAX(T22,T4)) -> 40 | U41: =IF('2014 Farm Bill Calculator'!$G15>0.9,MAX(U22,'2014 Farm Bill Calculator'!$F15),MAX(U22,U4)) -> 43 | V41: =IF('2014 Farm Bill Calculator'!$G16>0.9,MAX(V22,'2014 Farm Bill Calculator'!$F16),MAX(V22,V4)) -> 27.2125 | W41: =IF('2014 Farm Bill Calculator'!$G17>0.9,MAX(W22,'2014 Farm Bill Calculator'!$F17),MAX(W22,W4)) -> 47 | X41: =IF('2014 Farm Bill Calculator'!$G18>0.9,MAX(X22,'2014 Farm Bill Calculator'!$F18),MAX(X22,X4)) -> 45 | Y41: =IF('2014 Farm Bill Calculator'!$G19>0.9,MAX(Y22,'2014 Farm Bill Calculator'!$F19),MAX(Y22,Y4)) -> 40.4 | Z41: =IF('2014 Farm Bill Calculator'!$G20>0.9,MAX(Z22,'2014 Farm Bill Calculator'!$F20),MAX(Z22,Z4)) -> 30 | AA41: =IF('2014 Farm Bill Calculator'!$G21>0.9,MAX(AA22,'2014 Farm Bill Calculator'!$F21),MAX(AA22,AA4)) -> 37.8548 | AB41: =IF('2014 Farm Bill Calculator'!$G22>0.9,MAX(AB22,'2014 Farm Bill Calculator'!$F22),MAX(AB22,AB4)) -> 40.4514696
C42: 2016 | E42: =E24*0.1 -> 71.371 | G42: =G24*0.1 -> 52.228 | I42: =I24*0.1 -> 46.23 | Q42: =Q35 -> Wheat | R42: =IF('2014 Farm Bill Calculator'!$I12>0.9,MAX(R23,'2014 Farm Bill Calculator'!$H12),MAX(R23,R5)) -> 80 | S42: =IF('2014 Farm Bill Calculator'!$I13>0.9,MAX(S23,'2014 Farm Bill Calculator'!$H13),MAX(S23,S5)) -> 80 | T42: =IF('2014 Farm Bill Calculator'!$I14>0.9,MAX(T23,'2014 Farm Bill Calculator'!$H14),MAX(T23,T5)) -> 68 | U42: =IF('2014 Farm Bill Calculator'!$I15>0.9,MAX(U23,'2014 Farm Bill Calculator'!$H15),MAX(U23,U5)) -> 69 | V42: =IF('2014 Farm Bill Calculator'!$I16>0.9,MAX(V23,'2014 Farm Bill Calculator'!$H16),MAX(V23,V5)) -> 67 | W42: =IF('2014 Farm Bill Calculator'!$I17>0.9,MAX(W23,'2014 Farm Bill Calculator'!$H17),MAX(W23,W5)) -> 64 | X42: =IF('2014 Farm Bill Calculator'!$I18>0.9,MAX(X23,'2014 Farm Bill Calculator'!$H18),MAX(X23,X5)) -> 77 | Y42: =IF('2014 Farm Bill Calculator'!$I19>0.9,MAX(Y23,'2014 Farm Bill Calculator'!$H19),MAX(Y23,Y5)) -> 71.6 | Z42: =IF('2014 Farm Bill Calculator'!$I20>0.9,MAX(Z23,'2014 Farm Bill Calculator'!$H20),MAX(Z23,Z5)) -> 70.4172 | AA42: =IF('2014 Farm Bill Calculator'!$I21>0.9,MAX(AA23,'2014 Farm Bill Calculator'!$H21),MAX(AA23,AA5)) -> 70.7034744 | AB42: =IF('2014 Farm Bill Calculator'!$I22>0.9,MAX(AB23,'2014 Farm Bill Calculator'!$H22),MAX(AB23,AB5)) -> 71.45157623
C43: 2017 | E43: =E25*0.1 -> 54.115 | G43: =G25*0.1 -> 42.8 | I43: =I25*0.1 -> 42.84
C44: 2018 | E44: =E26*0.1 -> 54.75 | G44: =G26*0.1 -> 41.022 | I44: =I26*0.1 -> 40.186
C45: ARC-CO PAYMENT /ac (before 85%) | Q45: Actual National Market Year Average Price (MYA)
C46: 2014 | E46: =IF(E34>0,MIN(E34,E40),0) -> 4.216 | G46: =IF(G34>0,MIN(G34,G40),0) -> 0 | I46: =IF(I34>0,MIN(I34,I40),0) -> 0 | S46: 2009 | T46: 2010 | U46: 2011 | V46: 2012 | W46: 2013 | X46: 2014 | Y46: 2015 | Z46: 2016 | AA46: 2017 | AB46: 2018
C47: 2015 | E47: =IF(E35>0,MIN(E35,E41),0) -> 77.763 | G47: =IF(G35>0,MIN(G35,G41),0) -> 52.761 | I47: =IF(I35>0,MIN(I35,I41),0) -> 41.692 | R47: Corn MYA Producer Price 3.70 | S47: 3.55 | T47: 5.18 | U47: 6.22 | V47: 6.89 | W47: ='2014 Farm Bill Calculator'!D28 -> 4.46 | X47: ='2014 Farm Bill Calculator'!D29 -> 3.7 | Y47: ='2014 Farm Bill Calculator'!D30 -> 3.6 | Z47: ='2014 Farm Bill Calculator'!D31 -> 3.5 | AA47: ='2014 Farm Bill Calculator'!D32 -> 3.864734485 | AB47: ='2014 Farm Bill Calculator'!D33 -> 3.910727389
C48: 2016 | E48: =IF(E36>0,MIN(E36,E42),0) -> 71.371 | G48: =IF(G36>0,MIN(G36,G42),0) -> 52.228 | I48: =IF(I36>0,MIN(I36,I42),0) -> 46.23 | R48: Soy MYA Producer Price 8.40 | S48: 9.59 | T48: 11.3 | U48: 12.5 | V48: 14.4 | W48: ='2014 Farm Bill Calculator'!F28 -> 13 | X48: ='2014 Farm Bill Calculator'!F29 -> 10.1 | Y48: ='2014 Farm Bill Calculator'!F30 -> 8.8 | Z48: ='2014 Farm Bill Calculator'!F31 -> 9 | AA48: ='2014 Farm Bill Calculator'!F32 -> 9.532783715 | AB48: ='2014 Farm Bill Calculator'!F33 -> 9.688214703
C49: 2017 | E49: =IF(E37>0,MIN(E37,E43),0) -> 0 | G49: =IF(G37>0,MIN(G37,G43),0) -> 0 | I49: =IF(I37>0,MIN(I37,I43),0) -> 0 | R49: Wheat MYA Producer Price 5.50 | S49: 4.87 | T49: 5.7 | U49: 7.24 | V49: 7.77 | W49: ='2014 Farm Bill Calculator'!H28 -> 6.87 | X49: ='2014 Farm Bill Calculator'!H29 -> 5.99 | Y49: ='2014 Farm Bill Calculator'!H30 -> 4.89 | Z49: ='2014 Farm Bill Calculator'!H31 -> 4.8 | AA49: ='2014 Farm Bill Calculator'!H32 -> 5.213061487 | AB49: ='2014 Farm Bill Calculator'!H33 -> 5.319861925
C50: 2018 | E50: =IF(E38>0,MIN(E38,E44),0) -> 0 | G50: =IF(G38>0,MIN(G38,G44),0) -> 0 | I50: =IF(I38>0,MIN(I38,I44),0) -> 0
C51: ARC-IC
C52: Individual Farm Actual Revenues
D53: ='2014 Farm Bill Calculator'!D3 -> CORN | F53: ='2014 Farm Bill Calculator'!F3 -> SOYBEANS | H53: ='2014 Farm Bill Calculator'!H3 -> WHEAT | J53: Farm Actual Revenue/ac
C54: 2009 | D54: ='Background Calculations'!S$47*'2014 Farm Bill Calculator'!D13 -> 472.15 | F54: ='2014 Farm Bill Calculator'!F13*'Background Calculations'!S$48 -> 374.01 | H54: ='2014 Farm Bill Calculator'!H13*'Background Calculations'!S$49 -> 389.6 | J54: =D54*D77+F54*F77+H54*H77 -> 451.5125 | Q54: Minimum Prices for Revenue Guarantees
C55: 2010 | D55: ='Background Calculations'!T$47*'2014 Farm Bill Calculator'!D14 -> 740.74 | F55: ='2014 Farm Bill Calculator'!F14*'Background Calculations'!T$48 -> 452 | H55: ='2014 Farm Bill Calculator'!H14*'Background Calculations'!T$49 -> 456 | J55: 524.185 | R55: Corn MYA Producer Price 3.70 | S55: =IF(S47<3.7,3.7,S47) -> 3.7 | T55: 5.18 | U55: 6.22 | V55: 6.89 | W55: 4.46 | X55: 3.7 | Y55: 3.7 | Z55: 3.7 | AA55: 3.864734485 | AB55: 3.910727389
C56: 2011 | D56: ='Background Calculations'!U$47*'2014 Farm Bill Calculator'!D15 -> 895.68 | F56: ='2014 Farm Bill Calculator'!F15*'Background Calculations'!U$48 -> 537.5 | H56: ='2014 Farm Bill Calculator'!H15*'Background Calculations'!U$49 -> 651.6 | J56: 824.044 | R56: Soy MYA Producer Price 8.40 | S56: =IF(S48<8.4,8.4,S48) -> 9.59 | T56: 11.3 | U56: 12.5 | V56: 14.4 | W56: 13 | X56: 10.1 | Y56: 8.8 | Z56: 9 | AA56: 9.532783715 | AB56: 9.688214703
C57: 2012 | D57: ='Background Calculations'!V$47*'2014 Farm Bill Calculator'!D16 -> 606.32 | F57: ='2014 Farm Bill Calculator'!F16*'Background Calculations'!V$48 -> 360 | H57: ='2014 Farm Bill Calculator'!H16*'Background Calculations'!V$49 -> 520.59 | J57: 409.264 | R57: Wheat MYA Producer Price 5.50 | S57: =IF(S49<5.5,5.5,S49) -> 5.5 | T57: 5.7 | U57: 7.24 | V57: 7.77 | W57: 6.87 | X57: 5.99 | Y57: 5.5 | Z57: 5.5 | AA57: 5.5 | AB57: 5.5
C58: 2013 | D58: ='Background Calculations'!W$47*'2014 Farm Bill Calculator'!D17 -> 691.3 | F58: ='2014 Farm Bill Calculator'!F17*'Background Calculations'!W$48 -> 611 | H58: ='2014 Farm Bill Calculator'!H17*'Background Calculations'!W$49 -> 618.3 | J58: 675.24
C59: 2014 | D59: ='Background Calculations'!X$47*'2014 Farm Bill Calculator'!D18 -> 632.7 | F59: ='2014 Farm Bill Calculator'!F18*'Background Calculations'!X$48 -> 454.5 | H59: ='2014 Farm Bill Calculator'!H18*'Background Calculations'!X$49 -> 461.23 | J59: 490.14 | X59: Olympic Price | Y59: Olympic Price | Z59: Olympic Price | AA59: Olympic Price | AB59: Olympic Price
C60: 2015 | D60: ='Background Calculations'!Y$47*'2014 Farm Bill Calculator'!D19 -> 514.8144 | F60: ='2014 Farm Bill Calculator'!F19*'Background Calculations'!Y$48 -> 355.52 | H60: ='2014 Farm Bill Calculator'!H19*'Background Calculations'!Y$49 -> 399.06312 | J60: 482.95552 | W60: Corn | X60: =ROUND(((SUM(S55:W55)-MAX(S55:W55)-MIN(S55:W55))/3),2) -> 5.29 | Y60: =ROUND(((SUM(T55:X55)-MAX(T55:X55)-MIN(T55:X55))/3),2) -> 5.29 | Z60: =ROUND(((SUM(U55:Y55)-MAX(U55:Y55)-MIN(U55:Y55))/3),2) -> 4.79 | AA60: =ROUND(((SUM(V55:Z55)-MAX(V55:Z55)-MIN(V55:Z55))/3),2) -> 3.95 | AB60: =ROUND(((SUM(W55:AA55)-MAX(W55:AA55)-MIN(W55:AA55))/3),2) -> 3.75
C61: 2016 | D61: ='Background Calculations'!Z$47*'2014 Farm Bill Calculator'!D20 -> 350 | F61: ='2014 Farm Bill Calculator'!F20*'Background Calculations'!Z$48 -> 270 | H61: ='2014 Farm Bill Calculator'!H20*'Background Calculations'!Z$49 -> 456 | J61: 286 | W61: Soys | X61: =ROUND(((SUM(S56:W56)-MAX(S56:W56)-MIN(S56:W56))/3),2) -> 12.27 | Y61: =ROUND(((SUM(T56:X56)-MAX(T56:X56)-MIN(T56:X56))/3),2) -> 12.27 | Z61: 11.87 | AA61: 10.7 | AB61: 9.54
C62: 2017 | D62: ='Background Calculations'!AA$47*'2014 Farm Bill Calculator'!D21 -> 517.9857872 | F62: ='2014 Farm Bill Calculator'!F21*'Background Calculations'!AA$48 -> 360.861621 | H62: ='2014 Farm Bill Calculator'!H21*'Background Calculations'!AA$49 -> 432.3859997 | J62: 486.5609539 | W62: Wheat | X62: =ROUND(((SUM(S57:W57)-MAX(S57:W57)-MIN(S57:W57))/3),2) -> 6.6 | Y62: =ROUND(((SUM(T57:X57)-MAX(T57:X57)-MIN(T57:X57))/3),2) -> 6.7 | Z62: 6.7 | AA62: 6.12 | AB62: 5.66
C63: 2018 | D63: ='Background Calculations'!AB$47*'2014 Farm Bill Calculator'!D22 -> 560.8714165 | F63: ='2014 Farm Bill Calculator'!F22*'Background Calculations'!AB$48 -> 391.9025225 | H63: ='2014 Farm Bill Calculator'!H22*'Background Calculations'!AB$49 -> 458.3766719 | J63: 425.6963013
C65: Individual Farm Benchmark Revenues
C66: 2009 | D66: ='Background Calculations'!S$55*'Background Calculations'!S$40 -> 492.1 | F66: ='Background Calculations'!$S$56*'Background Calculations'!$S$41 -> 374.01 | H66: ='Background Calculations'!$S$57*'Background Calculations'!$S$42 -> 440
C67: 2010 | D67: ='Background Calculations'!T$55*'Background Calculations'!T$40 -> 740.74 | F67: ='Background Calculations'!T$56*'Background Calculations'!T$41 -> 452 | H67: ='Background Calculations'!$T$57*'Background Calculations'!$T$42 -> 387.6
C68: 2011 | D68: ='Background Calculations'!U$55*'Background Calculations'!U$40 -> 895.68 | F68: ='Background Calculations'!U$56*'Background Calculations'!U$41 -> 537.5 | H68: ='Background Calculations'!$U$57*'Background Calculations'!$U$42 -> 499.56
C69: 2012 | D69: ='Background Calculations'!V$55*'Background Calculations'!V$40 -> 651.707875 | F69: ='Background Calculations'!V$56*'Background Calculations'!V$41 -> 391.86 | H69: ='Background Calculations'!$V$57*'Background Calculations'!$V$42 -> 520.59
C70: 2013 | D70: ='Background Calculations'!W$55*'Background Calculations'!W$40 -> 691.3 | F70: ='Background Calculations'!W$56*'Background Calculations'!W$41 -> 611 | H70: ='Background Calculations'!$W$57*'Background Calculations'!$W$42 -> 439.68
C71: 2014 | D71: ='Background Calculations'!X$55*'Background Calculations'!X$40 -> 632.7 | F71: ='Background Calculations'!X$56*'Background Calculations'!X$41 -> 454.5 | H71: ='Background Calculations'!$X$57*'Background Calculations'!$X$42 -> 461.23
C72: 2015 | D72: ='Background Calculations'!Y$55*'Background Calculations'!Y$40 -> 529.1148 | F72: ='Background Calculations'!Y$56*'Background Calculations'!Y$41 -> 355.52 | H72: ='Background Calculations'!$Y$57*'Background Calculations'!$Y$42 -> 393.8
C73: 2016 | D73: ='Background Calculations'!Z$55*'Background Calculations'!Z$40 -> 370 | F73: ='Background Calculations'!Z$56*'Background Calculations'!Z$41 -> 270 | H73: ='Background Calculations'!$Z$57*'Background Calculations'!$Z$42 -> 387.2946
C74: 2017 | D74: ='Background Calculations'!AA$55*'Background Calculations'!AA$40 -> 599.0338451 | F74: ='Background Calculations'!AA$56*'Background Calculations'!AA$41 -> 360.861621 | H74: ='Background Calculations'!$AA$57*'Background Calculations'!$AA$42 -> 388.8691092
C75: 2018 | D75: ='Background Calculations'!AB$55*'Background Calculations'!AB$40 -> 560.8714165 | F75: ='Background Calculations'!AB$56*'Background Calculations'!AB$41 -> 391.9025225 | H75: ='Background Calculations'!$AB$57*'Background Calculations'!$AB$42 -> 392.9836693
C76: Percent Planted by Year
C77: 2009 | D77: ='2014 Farm Bill Calculator'!E13/'2014 Farm Bill Calculator'!$J13 -> 0.75 | F77: ='2014 Farm Bill Calculator'!G13/'2014 Farm Bill Calculator'!$J13 -> 0 | H77: ='2014 Farm Bill Calculator'!I13/'2014 Farm Bill Calculator'!$J13 -> 0.25
C78: 2010 | D78: ='2014 Farm Bill Calculator'!E14/'2014 Farm Bill Calculator'!$J14 -> 0.25 | F78: ='2014 Farm Bill Calculator'!G14/'2014 Farm Bill Calculator'!$J14 -> 0.75 | H78: ='2014 Farm Bill Calculator'!I14/'2014 Farm Bill Calculator'!$J14 -> 0
C79: 2011 | D79: ='2014 Farm Bill Calculator'!E15/'2014 Farm Bill Calculator'!$J15 -> 0.8 | F79: ='2014 Farm Bill Calculator'!G15/'2014 Farm Bill Calculator'!$J15 -> 0.2 | H79: ='2014 Farm Bill Calculator'!I15/'2014 Farm Bill Calculator'!$J15 -> 0
C80: 2012 | D80: ='2014 Farm Bill Calculator'!E16/'2014 Farm Bill Calculator'!$J16 -> 0.2 | F80: ='2014 Farm Bill Calculator'!G16/'2014 Farm Bill Calculator'!$J16 -> 0.8 | H80: ='2014 Farm Bill Calculator'!I16/'2014 Farm Bill Calculator'!$J16 -> 0
C81: 2013 | D81: ='2014 Farm Bill Calculator'!E17/'2014 Farm Bill Calculator'!$J17 -> 0.8 | F81: ='2014 Farm Bill Calculator'!G17/'2014 Farm Bill Calculator'!$J17 -> 0.2 | H81: ='2014 Farm Bill Calculator'!I17/'2014 Farm Bill Calculator'!$J17 -> 0
C82: 2014 | D82: ='2014 Farm Bill Calculator'!E18/'2014 Farm Bill Calculator'!$J18 -> 0.2 | F82: ='2014 Farm Bill Calculator'!G18/'2014 Farm Bill Calculator'!$J18 -> 0.8 | H82: ='2014 Farm Bill Calculator'!I18/'2014 Farm Bill Calculator'!$J18 -> 0
C83: 2015 | D83: ='2014 Farm Bill Calculator'!E19/'2014 Farm Bill Calculator'!$J19 -> 0.8 | F83: ='2014 Farm Bill Calculator'!G19/'2014 Farm Bill Calculator'!$J19 -> 0.2 | H83: ='2014 Farm Bill Calculator'!I19/'2014 Farm Bill Calculator'!$J19 -> 0
C84: 2016 | D84: ='2014 Farm Bill Calculator'!E20/'2014 Farm Bill Calculator'!$J20 -> 0.2 | F84: ='2014 Farm Bill Calculator'!G20/'2014 Farm Bill Calculator'!$J20 -> 0.8 | H84: ='2014 Farm Bill Calculator'!I20/'2014 Farm Bill Calculator'!$J20 -> 0
C85: 2017 | D85: ='2014 Farm Bill Calculator'!E21/'2014 Farm Bill Calculator'!$J21 -> 0.8 | F85: ='2014 Farm Bill Calculator'!G21/'2014 Farm Bill Calculator'!$J21 -> 0.2 | H85: ='2014 Farm Bill Calculator'!I21/'2014 Farm Bill Calculator'!$J21 -> 0
C86: 2018 | D86: ='2014 Farm Bill Calculator'!E22/'2014 Farm Bill Calculator'!$J22 -> 0.2 | F86: ='2014 Farm Bill Calculator'!G22/'2014 Farm Bill Calculator'!$J22 -> 0.8 | H86: ='2014 Farm Bill Calculator'!I22/'2014 Farm Bill Calculator'!$J22 -> 0
C88: ARC-IC OLYMPIC AVERAGES | H88: ARC-IC | J88: ARC-IC
D89: Corn | E89: Soys | F89: Wheat | H89: Benchmark Rev | J89: Coverage Guarantee
C90: 2014 | D90: =(SUM(D66:D70)-MIN(D66:D70)-MAX(D66:D70))/3 -> 694.582625 | E90: =(SUM(F66:F70)-MIN(F66:F70)-MAX(F66:F70))/3 -> 460.4533333 | F90: =(SUM(H66:H70)-MIN(H66:H70)-MAX(H66:H70))/3 -> 459.7466667 | H90: =D90*D82+E90*F82+F90*H82 -> 507.2791917 | J90: =0.86*H90 -> 436.2601048
C91: 2015 | D91: =(SUM(D67:D71)-MIN(D67:D71)-MAX(D67:D71))/3 -> 694.582625 | E91: =(SUM(F67:F71)-MIN(F67:F71)-MAX(F67:F71))/3 -> 481.3333333 | F91: =(SUM(H67:H71)-MIN(H67:H71)-MAX(H67:H71))/3 -> 466.8233333 | H91: =D91*D83+E91*F83+F91*H83 -> 651.9327667 | J91: =0.86*H91 -> 560.6621793
C92: 2016 | D92: =(SUM(D68:D72)-MIN(D68:D72)-MAX(D68:D72))/3 -> 658.5692917 | E92: =(SUM(F68:F72)-MIN(F68:F72)-MAX(F68:F72))/3 -> 461.2866667 | F92: =(SUM(H68:H72)-MIN(H68:H72)-MAX(H68:H72))/3 -> 466.8233333 | H92: =D92*D84+E92*F84+F92*H84 -> 500.7431917 | J92: =0.86*H92 -> 430.6391448
C93: 2017 | D93: =(SUM(D69:D73)-MIN(D69:D73)-MAX(D69:D73))/3 -> 604.5075583 | E93: =(SUM(F69:F73)-MIN(F69:F73)-MAX(F69:F73))/3 -> 400.6266667 | F93: =(SUM(H69:H73)-MIN(H69:H73)-MAX(H69:H73))/3 -> 431.57 | H93: =D93*D85+E93*F85+F93*H85 -> 563.73138 | J93: =0.86*H93 -> 484.8089868
C94: 2018 | D94: =(SUM(D70:D74)-MIN(D70:D74)-MAX(D70:D74))/3 -> 586.9495484 | E94: =(SUM(F70:F74)-MIN(F70:F74)-MAX(F70:F74))/3 -> 390.2938737 | F94: =(SUM(H70:H74)-MIN(H70:H74)-MAX(H70:H74))/3 -> 407.4497031 | H94: =D94*D86+E94*F86+F94*H86 -> 429.6250086 | J94: =0.86*H94 -> 369.4775074
C95: ARC-IC | D95: Payment Rate/Ac(before 65%) | F95: Max Rate/Ac(before65%) | H95: Payment/Ac(before 65%) | J95: Farm Payment @ 65% of Base Acres
C96: 2014 | D96: =J90-J59 -> -53.87989517 | F96: =H90*0.1 -> 50.72791917 | H96: =IF(D96>0.01,MIN(D96,F96),0) -> 0 | J96: =IF(H96>0,H96*'2014 Farm Bill Calculator'!$J$6*0.65,0) -> 0
C97: 2015 | D97: =J91-J60 -> 77.70665933 | F97: =H91*0.1 -> 65.19327667 | H97: =IF(D97>0.01,MIN(D97,F97),0) -> 65.19327667 | J97: =IF(H97>0,H97*'2014 Farm Bill Calculator'!$J$6*0.65,0) -> 12712.68895
C98: 2016 | D98: =J92-J61 -> 144.6391448 | F98: =H92*0.1 -> 50.07431917 | H98: =IF(D98>0.01,MIN(D98,F98),0) -> 50.07431917 | J98: =IF(H98>0,H98*'2014 Farm Bill Calculator'!$J$6*0.65,0) -> 9764.492238
C99: 2017 | D99: =J93-J62 -> -1.75196712 | F99: =H93*0.1 -> 56.373138 | H99: =IF(D99>0.01,MIN(D99,F99),0) -> 0 | J99: =IF(H99>0,H99*'2014 Farm Bill Calculator'!$J$6*0.65,0) -> 0
C100: 2018 | D100: =J94-J63 -> -56.21879395 | F100: =H94*0.1 -> 42.96250086 | H100: =IF(D100>0.01,MIN(D100,F100),0) -> 0 | J100: =IF(H100>0,H100*'2014 Farm Bill Calculator'!$J$6*0.65,0) -> 0

Sheet County Yields (hidden)
A1: 1 | B1: 2 | C1: 3 | D1: 4 | E1: 5 | F1: 6 | G1: 7 | H1: 8 | I1: 9 | J1: 10 | K1: 11 | L1: 12 | M1: 13 | N1: 14 | O1: 15 | P1: 16 | Q1: 17 | R1: 18 | S1: 19 | T1: 20 | U1: 21 | V1: 22 | W1: 23 | X1: 24 | Y1: 25 | Z1: 26 | AA1: 27 | AB1: 28 | AC1: 29 | AD1: 30 | AE1: 31 | AF1: 32 | AG1: 33 | AH1: 34 | AI1: 35 | AJ1: 36 | AK1: 37 | AL1: 38 | AM1: 39 | AN1: 40 | AO1: 41 | AP1: 42 | AQ1: 43 | AR1: 44 | AS1: 45 | AT1: 46 | AU1: 47 | AV1: 48 | AW1: 49 | AX1: 50 | AY1: 51 | AZ1: 52 | BA1: 53 | BB1: 54 | BC1: 55 | BD1: 56 | BE1: 57 | BF1: 58 | BG1: 59 | BH1: 60 | BI1: 61 | BJ1: 62 | BK1: 63 | BL1: 64 | BM1: 65 | BN1: 66 | BO1: 67 | BP1: 68 | BQ1: 69 | BR1: 70 | BS1: 71 | BT1: 72 | BU1: 73 | BV1: 74 | BW1: 75 | BX1: 76 | BY1: 77 | BZ1: 78 | CA1: 79 | CB1: 80
A2: county | B2: Yield2004 | C2: Yield2005 | D2: Yield2006 | E2: Yield2007 | F2: Yield2008 | G2: CY09 | H2: CY10 | I2: CY11 | J2: CY12 | K2: CY13 | L2: CY14 | M2: CY15 | N2: CY16 | O2: CY17 | P2: CY18 | Q2: 10yr 14 | R2: 10yr 15 | S2: 10yr 16 | T2: 10yr 17 | U2: 10yr 18 | V2: Yield2004 | W2: Yield2005 | X2: Yield2006 | Y2: Yield2007 | Z2: Yield2008 | AA2: SY09 | AB2: SY10 | AC2: SY11 | AD2: SY12 | AE2: SY13 | AF2: SY14 | AG2: SY15 | AH2: SY16 | AI2: SY17 | AJ2: SY18 | AK2: 10yr 14 | AL2: 10yr 15 | AM2: 10yr 16 | AN2: 10yr 17 | AO2: 10yr 18 | AP2: Yield2004 | AQ2: Yield2005 | AR2: Yield2006 | AS2: Yield2007 | AT2: Yield2008 | AU2: WY09 | AV2: WY10 | AW2: WY11 | AX2: WY12 | AY2: WY13 | AZ2: WY14 | BA2: WY15 | BB2: WY16 | BC2: WY17 | BD2: WY18 | BE2: 10yr 14 | BF2: 10yr 15 | BG2: 10yr 16 | BH2: 10yr 17 | BI2: 10yr 18 | BK2: COAY14 | BL2: COAY15 | BM2: COAY16 | BN2: COAY17 | BO2: COAY18 | BQ2: SOAY14 | BR2: SOAY15 | BS2: SOAY16 | BT2: SOAY17 | BU2: SOAY18 | BW2: WOAY14 | BX2: WOAY15 | BY2: WOAY16 | BZ2: WOAY17 | CA2: WOAY18
A3: ALCONA | C3: 147 | G3: 73 | H3: 131 | I3: 80 | J3: 69 | K3: 120 | L3: 81 | M3: =AVERAGE(H3:L3)*(1+'2014 Farm Bill Calculator'!$B$20) -> 98.124 | N3: =AVERAGE(I3:M3)*(1+'2014 Farm Bill Calculator'!$B$20)*N$87 -> 68.562972 | O3: =AVERAGE(J3:N3)*(1+'2014 Farm Bill Calculator'!$B$20) -> 89.08414229 | P3: =AVERAGE(K3:O3)*(1+'2014 Farm Bill Calculator'!$B$20) -> 93.18130731 | Q3: =AVERAGE(B3:K3) -> 103.3333333 | R3: =AVERAGE(C3:L3) -> 100.1428571 | S3: =AVERAGE(D3:M3) -> 93.16057143 | T3: =AVERAGE(E3:N3) -> 90.0858715 | U3: =AVERAGE(F3:O3) -> 89.97456825 | AA3: 0.1 | AB3: =AA3 -> 0.1 | AC3: =AB3 -> 0.1 | AD3: =AC3 -> 0.1 | AE3: =AD3 -> 0.1 | AF3: 18 | AG3: =AVERAGE(AB3:AF3)*(1+'2014 Farm Bill Calculator'!$B$21) -> 3.7168 | AH3: =AVERAGE(AC3:AG3)*(1+'2014 Farm Bill Calculator'!$B$21)*AH$87 -> 3.3355452 | AI3: =AVERAGE(AD3:AH3)*(1+'2014 Farm Bill Calculator'!$B$21) -> 5.10097373 | AJ3: =AVERAGE(AE3:AI3)*(1+'2014 Farm Bill Calculator'!$B$21) -> 6.111170424 | AK3: =AVERAGE(V3:AE3) -> 0.1 | AL3: =AVERAGE(W3:AF3) -> 3.083333333 | AM3: =AVERAGE(X3:AG3) -> 3.173828571 | AN3: =AVERAGE(Y3:AH3) -> 3.19404315 | AO3: =AVERAGE(Z3:AI3) -> 3.405924326 | AP3: 49 | AQ3: 68 | AS3: 64 | AT3: 60.5 | AU3: 49 | AV3: 66 | AW3: 70 | AX3: 68 | AY3: 40 | AZ3: 46 | BA3: =AVERAGE(AV3:AZ3)*(1+'2014 Farm Bill Calculator'!$B$22) -> 58.58 | BB3: =AVERAGE(AW3:BA3)*(1+'2014 Farm Bill Calculator'!$B$22) -> 57.08116 | BC3: =AVERAGE(AX3:BB3)*(1+'2014 Farm Bill Calculator'!$B$22) -> 54.47155432 | BD3: =AVERAGE(AY3:BC3)*(1+'2014 Farm Bill Calculator'!$B$22) -> 51.73880829 | BE3: =AVERAGE(AP3:AY3) -> 59.38888889 | BF3: =AVERAGE(AQ3:AZ3) -> 59.05555556 | BG3: =AVERAGE(AR3:BA3) -> 58.00888889 | BH3: =AVERAGE(AS3:BB3) -> 57.916116 | BI3: =AVERAGE(AT3:BC3) -> 56.96327143 | BK3: =IF(COUNT(G3:K3)=5,((SUM(G3:K3)-MIN(G3:K3)-MAX(G3:K3))/3),"Data Error") -> 91 | BL3: =IF(COUNT(H3:L3)=5,((SUM(H3:L3)-MIN(H3:L3)-MAX(H3:L3))/3),"Data Error") -> 93.66666667 | BM3: =IF(COUNT(I3:M3)=5,((SUM(I3:M3)-MIN(I3:M3)-MAX(I3:M3))/3),"Data Error") -> 86.37466667 | BN3: =IF(COUNT(J3:N3)=5,((SUM(J3:N3)-MIN(J3:N3)-MAX(J3:N3))/3),"Data Error") -> 82.708 | BO3: =IF(COUNT(K3:O3)=5,((SUM(K3:O3)-MIN(K3:O3)-MAX(K3:O3))/3),"Data Error") -> 89.4027141 | BQ3: =IF(COUNT(AA3:AE3)=5,((SUM(AA3:AE3)-MIN(AA3:AE3)-MAX(AA3:AE3))/3),"Data Error") -> 0.1 | BR3: =IF(COUNT(AB3:AF3)=5,((SUM(AB3:AF3)-MIN(AB3:AF3)-MAX(AB3:AF3))/3),"Data Error") -> 0.1 | BS3: =IF(COUNT(AC3:AG3)=5,((SUM(AC3:AG3)-MIN(AC3:AG3)-MAX(AC3:AG3))/3),"Data Error") -> 1.3056 | BT3: =IF(COUNT(AD3:AH3)=5,((SUM(AD3:AH3)-MIN(AD3:AH3)-MAX(AD3:AH3))/3),"Data Error") -> 2.384115067 | BU3: =IF(COUNT(AE3:AI3)=5,((SUM(AE3:AI3)-MIN(AE3:AI3)-MAX(AE3:AI3))/3),"Data Error") -> 4.05110631 | BW3: =IF(COUNT(AU3:AY3)=5,((SUM(AU3:AY3)-MIN(AU3:AY3)-MAX(AU3:AY3))/3),"Data Error") -> 61 | BX3: =IF(COUNT(AV3:AZ3)=5,((SUM(AV3:AZ3)-MIN(AV3:AZ3)-MAX(AV3:AZ3))/3),"Data Error") -> 60 | BY3: =IF(COUNT(AW3:BA3)=5,((SUM(AW3:BA3)-MIN(AW3:BA3)-MAX(AW3:BA3))/3),"Data Error") -> 57.52666667 | BZ3: =IF(COUNT(AX3:BB3)=5,((SUM(AX3:BB3)-MIN(AX3:BB3)-MAX(AX3:BB3))/3),"Data Error") -> 53.88705333 | CA3: =IF(COUNT(AY3:BC3)=5,((SUM(AY3:BC3)-MIN(AY3:BC3)-MAX(AY3:BC3))/3),"Data Error") -> 52.51757144
A4: ALGER | G4: 0.1 | H4: =G4 -> 0.1 | I4: =H4 -> 0.1 | J4: =I4 -> 0.1 | K4: =J4 -> 0.1 | L4: 38 | M4: =AVERAGE(H4:L4)*(1+'2014 Farm Bill Calculator'!$B$20) -> 7.8336 | N4: =AVERAGE(I4:M4)*(1+'2014 Farm Bill Calculator'!$B$20)*N$87 -> 7.0584408 | O4: =AVERAGE(J4:N4)*(1+'2014 Farm Bill Calculator'!$B$20) -> 10.83077632 | P4: =AVERAGE(K4:O4)*(1+'2014 Farm Bill Calculator'!$B$20) -> 13.01985469 | Q4: =AVERAGE(B4:K4) -> 0.1 | R4: =AVERAGE(C4:L4) -> 6.416666667 | S4: =AVERAGE(D4:M4) -> 6.619085714 | T4: =AVERAGE(E4:N4) -> 6.6740051 | U4: =AVERAGE(F4:O4) -> 7.135868569 | AA4: 0.1 | AB4: =AA4 -> 0.1 | AC4: =AB4 -> 0.1 | AD4: =AC4 -> 0.1 | AE4: =AD4 -> 0.1 | AF4: =AVERAGE(AA4:AE4)*(1+'2014 Farm Bill Calculator'!$B$21) -> 0.101 | AG4: =AVERAGE(AB4:AF4)*(1+'2014 Farm Bill Calculator'!$B$21) -> 0.101202 | AH4: =AVERAGE(AC4:AG4)*(1+'2014 Farm Bill Calculator'!$B$21)*AH$87 -> 0.076083603 | AI4: =AVERAGE(AD4:AH4)*(1+'2014 Farm Bill Calculator'!$B$21) -> 0.09661369181 | AJ4: =AVERAGE(AE4:AI4)*(1+'2014 Farm Bill Calculator'!$B$21) -> 0.09592965755 | AK4: =AVERAGE(V4:AE4) -> 0.1 | AL4: =AVERAGE(W4:AF4) -> 0.1001666667 | AM4: =AVERAGE(X4:AG4) -> 0.1003145714 | AN4: =AVERAGE(Y4:AH4) -> 0.09728570038 | AO4: =AVERAGE(Z4:AI4) -> 0.09721103276 | AU4: 0.1 | AV4: =AU4 -> 0.1 | AW4: =AV4 -> 0.1 | AX4: =AW4 -> 0.1 | AY4: =AX4 -> 0.1 | AZ4: 47 | BA4: =AVERAGE(AV4:AZ4)*(1+'2014 Farm Bill Calculator'!$B$22) -> 9.5748 | BB4: =AVERAGE(AW4:BA4)*(1+'2014 Farm Bill Calculator'!$B$22) -> 11.4887096 | BC4: =AVERAGE(AX4:BB4)*(1+'2014 Farm Bill Calculator'!$B$22) -> 13.78922894 | BD4: =AVERAGE(AY4:BC4)*(1+'2014 Farm Bill Calculator'!$B$22) -> 16.55445318 | BE4: =AVERAGE(AP4:AY4) -> 0.1 | BF4: =AVERAGE(AQ4:AZ4) -> 7.916666667 | BG4: =AVERAGE(AR4:BA4) -> 8.153542857 | BH4: =AVERAGE(AS4:BB4) -> 8.5704387 | BI4: =AVERAGE(AT4:BC4) -> 9.150304282 | BK4: =IF(COUNT(G4:K4)=5,((SUM(G4:K4)-MIN(G4:K4)-MAX(G4:K4))/3),"Data Error") -> 0.1 | BL4: =IF(COUNT(H4:L4)=5,((SUM(H4:L4)-MIN(H4:L4)-MAX(H4:L4))/3),"Data Error") -> 0.1 | BM4: =IF(COUNT(I4:M4)=5,((SUM(I4:M4)-MIN(I4:M4)-MAX(I4:M4))/3),"Data Error") -> 2.677866667 | BN4: =IF(COUNT(J4:N4)=5,((SUM(J4:N4)-MIN(J4:N4)-MAX(J4:N4))/3),"Data Error") -> 4.997346933 | BO4: =IF(COUNT(K4:O4)=5,((SUM(K4:O4)-MIN(K4:O4)-MAX(K4:O4))/3),"Data Error") -> 8.574272374 | BQ4: =IF(COUNT(AA4:AE4)=5,((SUM(AA4:AE4)-MIN(AA4:AE4)-MAX(AA4:AE4))/3),"Data Error") -> 0.1 | BR4: =IF(COUNT(AB4:AF4)=5,((SUM(AB4:AF4)-MIN(AB4:AF4)-MAX(AB4:AF4))/3),"Data Error") -> 0.1 | BS4: =IF(COUNT(AC4:AG4)=5,((SUM(AC4:AG4)-MIN(AC4:AG4)-MAX(AC4:AG4))/3),"Data Error") -> 0.1003333333 | BT4: =IF(COUNT(AD4:AH4)=5,((SUM(AD4:AH4)-MIN(AD4:AH4)-MAX(AD4:AH4))/3),"Data Error") -> 0.1003333333 | BU4: =IF(COUNT(AE4:AI4)=5,((SUM(AE4:AI4)-MIN(AE4:AI4)-MAX(AE4:AI4))/3),"Data Error") -> 0.09920456394 | BW4: =IF(COUNT(AU4:AY4)=5,((SUM(AU4:AY4)-MIN(AU4:AY4)-MAX(AU4:AY4))/3),"Data Error") -> 0.1 | BX4: =IF(COUNT(AV4:AZ4)=5,((SUM(AV4:AZ4)-MIN(AV4:AZ4)-MAX(AV4:AZ4))/3),"Data Error") -> 0.1 | BY4: =IF(COUNT(AW4:BA4)=5,((SUM(AW4:BA4)-MIN(AW4:BA4)-MAX(AW4:BA4))/3),"Data Error") -> 3.258266667 | BZ4: =IF(COUNT(AX4:BB4)=5,((SUM(AX4:BB4)-MIN(AX4:BB4)-MAX(AX4:BB4))/3),"Data Error") -> 7.0545032 | CA4: =IF(COUNT(AY4:BC4)=5,((SUM(AY4:BC4)-MIN(AY4:BC4)-MAX(AY4:BC4))/3),"Data Error") -> 11.61757951
A5: ALLEGAN | B5: 150 | C5: 146 | D5: 145 | E5: 110 | F5: 147 | G5: 162 | H5: 151 | I5: 175 | J5: 111 | K5: 151 | L5: 175 | M5: 156.3 | N5: =AVERAGE(I5:M5)*(1+'2014 Farm Bill Calculator'!$B$20)*N$87 -> 117.5499 | O5: =AVERAGE(J5:N5)*(1+'2014 Farm Bill Calculator'!$B$20) -> 145.0133796 | P5: =AVERAGE(K5:O5)*(1+'2014 Farm Bill Calculator'!$B$20) -> 151.952109 | Q5: =AVERAGE(B5:K5) -> 144.8 | R5: =AVERAGE(C5:L5) -> 147.3 | S5: =AVERAGE(D5:M5) -> 148.33 | T5: =AVERAGE(E5:N5) -> 145.58499 | U5: =AVERAGE(F5:O5) -> 149.086328 | V5: 42 | W5: 41 | X5: 46 | Y5: 39 | Z5: 35.5 | AA5: 45 | AB5: 46 | AC5: 48 | AD5: 39 | AE5: 43 | AF5: 43 | AG5: 45.9 | AH5: =AVERAGE(AC5:AG5)*(1+'2014 Farm Bill Calculator'!$B$21)*AH$87 -> 33.16335 | AI5: =AVERAGE(AD5:AH5)*(1+'2014 Farm Bill Calculator'!$B$21) -> 41.2207967 | AJ5: =AVERAGE(AE5:AI5)*(1+'2014 Farm Bill Calculator'!$B$21) -> 41.66939763 | AK5: =AVERAGE(V5:AE5) -> 42.45 | AL5: =AVERAGE(W5:AF5) -> 42.55 | AM5: =AVERAGE(X5:AG5) -> 43.04 | AN5: =AVERAGE(Y5:AH5) -> 41.756335 | AO5: =AVERAGE(Z5:AI5) -> 41.97841467 | AP5: 59 | AQ5: 66 | AR5: 71 | AS5: 48 | AT5: 62.5 | AU5: 58 | AV5: 55 | AW5: 75 | AX5: 64 | AY5: 68 | AZ5: 69 | BA5: =AVERAGE(AV5:AZ5)*(1+'2014 Farm Bill Calculator'!$B$22) -> 66.862 | BB5: =AVERAGE(AW5:BA5)*(1+'2014 Farm Bill Calculator'!$B$22) -> 69.258124 | BC5: =AVERAGE(AX5:BB5)*(1+'2014 Farm Bill Calculator'!$B$22) -> 68.09826505 | BD5: =AVERAGE(AY5:BC5)*(1+'2014 Farm Bill Calculator'!$B$22) -> 68.92611459 | BE5: =AVERAGE(AP5:AY5) -> 62.65 | BF5: =AVERAGE(AQ5:AZ5) -> 63.65 | BG5: =AVERAGE(AR5:BA5) -> 63.7362 | BH5: =AVERAGE(AS5:BB5) -> 63.5620124 | BI5: =AVERAGE(AT5:BC5) -> 65.5718389 | BK5: =IF(COUNT(G5:K5)=5,((SUM(G5:K5)-MIN(G5:K5)-MAX(G5:K5))/3),"Data Error") -> 154.6666667 | BL5: =IF(COUNT(H5:L5)=5,((SUM(H5:L5)-MIN(H5:L5)-MAX(H5:L5))/3),"Data Error") -> 159 | BM5: =IF(COUNT(I5:M5)=5,((SUM(I5:M5)-MIN(I5:M5)-MAX(I5:M5))/3),"Data Error") -> 160.7666667 | BN5: =IF(COUNT(J5:N5)=5,((SUM(J5:N5)-MIN(J5:N5)-MAX(J5:N5))/3),"Data Error") -> 141.6166333 | BO5: =IF(COUNT(K5:O5)=5,((SUM(K5:O5)-MIN(K5:O5)-MAX(K5:O5))/3),"Data Error") -> 150.7711265 | BQ5: =IF(COUNT(AA5:AE5)=5,((SUM(AA5:AE5)-MIN(AA5:AE5)-MAX(AA5:AE5))/3),"Data Error") -> 44.66666667 | BR5: =IF(COUNT(AB5:AF5)=5,((SUM(AB5:AF5)-MIN(AB5:AF5)-MAX(AB5:AF5))/3),"Data Error") -> 44 | BS5: =IF(COUNT(AC5:AG5)=5,((SUM(AC5:AG5)-MIN(AC5:AG5)-MAX(AC5:AG5))/3),"Data Error") -> 43.96666667 | BT5: =IF(COUNT(AD5:AH5)=5,((SUM(AD5:AH5)-MIN(AD5:AH5)-MAX(AD5:AH5))/3),"Data Error") -> 41.66666667 | BU5: =IF(COUNT(AE5:AI5)=5,((SUM(AE5:AI5)-MIN(AE5:AI5)-MAX(AE5:AI5))/3),"Data Error") -> 42.40693223 | BW5: =IF(COUNT(AU5:AY5)=5,((SUM(AU5:AY5)-MIN(AU5:AY5)-MAX(AU5:AY5))/3),"Data Error") -> 63.33333333 | BX5: =IF(COUNT(AV5:AZ5)=5,((SUM(AV5:AZ5)-MIN(AV5:AZ5)-MAX(AV5:AZ5))/3),"Data Error") -> 67 | BY5: =IF(COUNT(AW5:BA5)=5,((SUM(AW5:BA5)-MIN(AW5:BA5)-MAX(AW5:BA5))/3),"Data Error") -> 67.954 | BZ5: =IF(COUNT(AX5:BB5)=5,((SUM(AX5:BB5)-MIN(AX5:BB5)-MAX(AX5:BB5))/3),"Data Error") -> 67.954 | CA5: =IF(COUNT(AY5:BC5)=5,((SUM(AY5:BC5)-MIN(AY5:BC5)-MAX(AY5:BC5))/3),"Data Error") -> 68.36608835
A6: ALPENA | B6: 92 | C6: 119 | D6: 130 | E6: 82 | F6: 109 | G6: 97 | H6: 126 | I6: 111 | J6: 108 | K6: 99 | L6: 102 | M6: 128.2 | N6: =AVERAGE(I6:M6)*(1+'2014 Farm Bill Calculator'!$B$20)*N$87 -> 83.8746 | O6: =AVERAGE(J6:N6)*(1+'2014 Farm Bill Calculator'!$B$20) -> 106.2992184 | P6: =AVERAGE(K6:O6)*(1+'2014 Farm Bill Calculator'!$B$20) -> 105.952259 | Q6: =AVERAGE(B6:K6) -> 107.3 | R6: =AVERAGE(C6:L6) -> 108.3 | S6: =AVERAGE(D6:M6) -> 109.22 | T6: =AVERAGE(E6:N6) -> 104.60746 | U6: =AVERAGE(F6:O6) -> 107.0373818 | V6: 20 | W6: 33 | X6: 37 | Y6: 25 | Z6: 31.5 | AA6: 30 | AB6: 38 | AC6: 31 | AD6: 34 | AE6: 23 | AF6: 24 | AG6: =AVERAGE(AB6:AF6)*(1+'2014 Farm Bill Calculator'!$B$21) -> 30.3 | AH6: =AVERAGE(AC6:AG6)*(1+'2014 Farm Bill Calculator'!$B$21)*AH$87 -> 21.55845 | AI6: =AVERAGE(AD6:AH6)*(1+'2014 Farm Bill Calculator'!$B$21) -> 26.8374069 | AJ6: =AVERAGE(AE6:AI6)*(1+'2014 Farm Bill Calculator'!$B$21) -> 25.39056309 | AK6: =AVERAGE(V6:AE6) -> 30.25 | AL6: =AVERAGE(W6:AF6) -> 30.65 | AM6: =AVERAGE(X6:AG6) -> 30.38 | AN6: =AVERAGE(Y6:AH6) -> 28.835845 | AO6: =AVERAGE(Z6:AI6) -> 29.01958569 | AP6: 57 | AQ6: 52 | AR6: 63 | AS6: 45 | AT6: 43 | AU6: 51 | AV6: 54 | AW6: 64 | AX6: 69 | AY6: 44 | AZ6: 48 | BA6: 68.6 | BB6: =AVERAGE(AW6:BA6)*(1+'2014 Farm Bill Calculator'!$B$22) -> 59.3072 | BC6: =AVERAGE(AX6:BB6)*(1+'2014 Farm Bill Calculator'!$B$22) -> 58.3592544 | BD6: =AVERAGE(AY6:BC6)*(1+'2014 Farm Bill Calculator'!$B$22) -> 56.20982379 | BE6: =AVERAGE(AP6:AY6) -> 54.2 | BF6: =AVERAGE(AQ6:AZ6) -> 53.3 | BG6: =AVERAGE(AR6:BA6) -> 54.96 | BH6: =AVERAGE(AS6:BB6) -> 54.59072 | BI6: =AVERAGE(AT6:BC6) -> 55.92664544 | BK6: =IF(COUNT(G6:K6)=5,((SUM(G6:K6)-MIN(G6:K6)-MAX(G6:K6))/3),"Data Error") -> 106 | BL6: =IF(COUNT(H6:L6)=5,((SUM(H6:L6)-MIN(H6:L6)-MAX(H6:L6))/3),"Data Error") -> 107 | BM6: =IF(COUNT(I6:M6)=5,((SUM(I6:M6)-MIN(I6:M6)-MAX(I6:M6))/3),"Data Error") -> 107 | BN6: =IF(COUNT(J6:N6)=5,((SUM(J6:N6)-MIN(J6:N6)-MAX(J6:N6))/3),"Data Error") -> 103 | BO6: =IF(COUNT(K6:O6)=5,((SUM(K6:O6)-MIN(K6:O6)-MAX(K6:O6))/3),"Data Error") -> 102.4330728 | BQ6: =IF(COUNT(AA6:AE6)=5,((SUM(AA6:AE6)-MIN(AA6:AE6)-MAX(AA6:AE6))/3),"Data Error") -> 31.66666667 | BR6: =IF(COUNT(AB6:AF6)=5,((SUM(AB6:AF6)-MIN(AB6:AF6)-MAX(AB6:AF6))/3),"Data Error") -> 29.66666667 | BS6: =IF(COUNT(AC6:AG6)=5,((SUM(AC6:AG6)-MIN(AC6:AG6)-MAX(AC6:AG6))/3),"Data Error") -> 28.43333333 | BT6: =IF(COUNT(AD6:AH6)=5,((SUM(AD6:AH6)-MIN(AD6:AH6)-MAX(AD6:AH6))/3),"Data Error") -> 25.76666667 | BU6: =IF(COUNT(AE6:AI6)=5,((SUM(AE6:AI6)-MIN(AE6:AI6)-MAX(AE6:AI6))/3),"Data Error") -> 24.61246897 | BW6: =IF(COUNT(AU6:AY6)=5,((SUM(AU6:AY6)-MIN(AU6:AY6)-MAX(AU6:AY6))/3),"Data Error") -> 56.33333333 | BX6: =IF(COUNT(AV6:AZ6)=5,((SUM(AV6:AZ6)-MIN(AV6:AZ6)-MAX(AV6:AZ6))/3),"Data Error") -> 55.33333333 | BY6: =IF(COUNT(AW6:BA6)=5,((SUM(AW6:BA6)-MIN(AW6:BA6)-MAX(AW6:BA6))/3),"Data Error") -> 60.2 | BZ6: =IF(COUNT(AX6:BB6)=5,((SUM(AX6:BB6)-MIN(AX6:BB6)-MAX(AX6:BB6))/3),"Data Error") -> 58.63573333 | CA6: =IF(COUNT(AY6:BC6)=5,((SUM(AY6:BC6)-MIN(AY6:BC6)-MAX(AY6:BC6))/3),"Data Error") -> 55.22215147
A7: ANTRIM | B7: 119 | C7: 111 | D7: 108 | E7: 65 | F7: 81 | G7: 95 | H7: 121 | I7: 103 | J7: 92 | K7: 97 | L7: 114 | M7: 110.8 | N7: =AVERAGE(I7:M7)*(1+'2014 Farm Bill Calculator'!$B$20)*N$87 -> 79.0704 | O7: =AVERAGE(J7:N7)*(1+'2014 Farm Bill Calculator'!$B$20) -> 100.5455616 | P7: =AVERAGE(K7:O7)*(1+'2014 Farm Bill Calculator'!$B$20) -> 102.2888562 | Q7: =AVERAGE(B7:K7) -> 99.2 | R7: =AVERAGE(C7:L7) -> 98.7 | S7: =AVERAGE(D7:M7) -> 98.68 | T7: =AVERAGE(E7:N7) -> 95.78704 | U7: =AVERAGE(F7:O7) -> 99.34159616 | Y7: 18 | AA7: 0.1 | AB7: =AA7 -> 0.1 | AC7: =AB7 -> 0.1 | AD7: =AC7 -> 0.1 | AE7: =AD7 -> 0.1 | AF7: 45 | AG7: =AVERAGE(AB7:AF7)*(1+'2014 Farm Bill Calculator'!$B$21) -> 9.1708 | AH7: =AVERAGE(AC7:AG7)*(1+'2014 Farm Bill Calculator'!$B$21)*AH$87 -> 8.2523262 | AI7: =AVERAGE(AD7:AH7)*(1+'2014 Farm Bill Calculator'!$B$21) -> 12.64987149 | AJ7: =AVERAGE(AE7:AI7)*(1+'2014 Farm Bill Calculator'!$B$21) -> 15.18494553 | AK7: =AVERAGE(V7:AE7) -> 3.083333333 | AL7: =AVERAGE(W7:AF7) -> 9.071428571 | AM7: =AVERAGE(X7:AG7) -> 9.08385 | AN7: =AVERAGE(Y7:AH7) -> 8.991458467 | AO7: =AVERAGE(Z7:AI7) -> 8.396999744 | AW7: 61.3 | AX7: 61.5 | AZ7: =(74+60)/2 -> 67 | BA7: =AVERAGE(AV7:AZ7)*(1+'2014 Farm Bill Calculator'!$B$22) -> 63.89933333 | BB7: =AVERAGE(AW7:BA7)*(1+'2014 Farm Bill Calculator'!$B$22) -> 64.05908167 | BC7: =AVERAGE(AX7:BB7)*(1+'2014 Farm Bill Calculator'!$B$22) -> 64.75574979 | BD7: =AVERAGE(AY7:BC7)*(1+'2014 Farm Bill Calculator'!$B$22) -> 65.57782661 | BE7: =AVERAGE(AP7:AY7) -> 61.4 | BF7: =AVERAGE(AQ7:AZ7) -> 63.26666667 | BG7: =AVERAGE(AR7:BA7) -> 63.42483333 | BH7: =AVERAGE(AS7:BB7) -> 63.551683 | BI7: =AVERAGE(AT7:BC7) -> 63.7523608 | BK7: =IF(COUNT(G7:K7)=5,((SUM(G7:K7)-MIN(G7:K7)-MAX(G7:K7))/3),"Data Error") -> 98.33333333 | BL7: =IF(COUNT(H7:L7)=5,((SUM(H7:L7)-MIN(H7:L7)-MAX(H7:L7))/3),"Data Error") -> 104.6666667 | BM7: =IF(COUNT(I7:M7)=5,((SUM(I7:M7)-MIN(I7:M7)-MAX(I7:M7))/3),"Data Error") -> 103.6 | BN7: =IF(COUNT(J7:N7)=5,((SUM(J7:N7)-MIN(J7:N7)-MAX(J7:N7))/3),"Data Error") -> 99.93333333 | BO7: =IF(COUNT(K7:O7)=5,((SUM(K7:O7)-MIN(K7:O7)-MAX(K7:O7))/3),"Data Error") -> 102.7818539 | BQ7: =IF(COUNT(AA7:AE7)=5,((SUM(AA7:AE7)-MIN(AA7:AE7)-MAX(AA7:AE7))/3),"Data Error") -> 0.1 | BR7: =IF(COUNT(AB7:AF7)=5,((SUM(AB7:AF7)-MIN(AB7:AF7)-MAX(AB7:AF7))/3),"Data Error") -> 0.1 | BS7: =IF(COUNT(AC7:AG7)=5,((SUM(AC7:AG7)-MIN(AC7:AG7)-MAX(AC7:AG7))/3),"Data Error") -> 3.1236 | BT7: =IF(COUNT(AD7:AH7)=5,((SUM(AD7:AH7)-MIN(AD7:AH7)-MAX(AD7:AH7))/3),"Data Error") -> 5.841042067 | BU7: =IF(COUNT(AE7:AI7)=5,((SUM(AE7:AI7)-MIN(AE7:AI7)-MAX(AE7:AI7))/3),"Data Error") -> 10.02433256 | BW7: =IF(COUNT(AU7:AY7)=5,((SUM(AU7:AY7)-MIN(AU7:AY7)-MAX(AU7:AY7))/3),"Data Error") -> Data Error | BX7: =IF(COUNT(AV7:AZ7)=5,((SUM(AV7:AZ7)-MIN(AV7:AZ7)-MAX(AV7:AZ7))/3),"Data Error") -> Data Error | BY7: =IF(COUNT(AW7:BA7)=5,((SUM(AW7:BA7)-MIN(AW7:BA7)-MAX(AW7:BA7))/3),"Data Error") -> Data Error | BZ7: =IF(COUNT(AX7:BB7)=5,((SUM(AX7:BB7)-MIN(AX7:BB7)-MAX(AX7:BB7))/3),"Data Error") -> Data Error | CA7: =IF(COUNT(AY7:BC7)=5,((SUM(AY7:BC7)-MIN(AY7:BC7)-MAX(AY7:BC7))/3),"Data Error") -> Data Error
A8: ARENAC | B8: 110 | C8: 148 | D8: 129 | E8: 115 | F8: 165 | G8: 139 | H8: 151 | I8: 160 | J8: 142 | K8: 114 | L8: 134 | M8: =AVERAGE(H8:L8)*(1+'2014 Farm Bill Calculator'!$B$20) -> 143.004 | N8: =AVERAGE(I8:M8)*(1+'2014 Farm Bill Calculator'!$B$20)*N$87 -> 106.029612 | O8: =AVERAGE(J8:N8)*(1+'2014 Farm Bill Calculator'!$B$20) -> 130.3628568 | P8: =AVERAGE(K8:O8)*(1+'2014 Farm Bill Calculator'!$B$20) -> 127.9888796 | Q8: =AVERAGE(B8:K8) -> 137.3 | R8: =AVERAGE(C8:L8) -> 139.7 | S8: =AVERAGE(D8:M8) -> 139.2004 | T8: =AVERAGE(E8:N8) -> 136.9033612 | U8: =AVERAGE(F8:O8) -> 138.4396469 | V8: 32 | W8: 40 | X8: 41 | Y8: 38 | Z8: 44 | AA8: 37 | AB8: 46 | AC8: 44 | AD8: 51 | AE8: 36 | AF8: 37 | AG8: 45.1 | AH8: =AVERAGE(AC8:AG8)*(1+'2014 Farm Bill Calculator'!$B$21)*AH$87 -> 32.28465 | AI8: =AVERAGE(AD8:AH8)*(1+'2014 Farm Bill Calculator'!$B$21) -> 40.6796993 | AJ8: =AVERAGE(AE8:AI8)*(1+'2014 Farm Bill Calculator'!$B$21) -> 38.59499856 | AK8: =AVERAGE(V8:AE8) -> 40.9 | AL8: =AVERAGE(W8:AF8) -> 41.4 | AM8: =AVERAGE(X8:AG8) -> 41.91 | AN8: =AVERAGE(Y8:AH8) -> 41.038465 | AO8: =AVERAGE(Z8:AI8) -> 41.30643493 | AP8: 73 | AQ8: 72 | AR8: 78 | AS8: 73 | AT8: 73.5 | AU8: 68 | AV8: 72 | AW8: 76 | AX8: 76 | AY8: 63 | AZ8: 69 | BA8: 76.9 | BB8: =AVERAGE(AW8:BA8)*(1+'2014 Farm Bill Calculator'!$B$22) -> 72.9018 | BC8: =AVERAGE(AX8:BB8)*(1+'2014 Farm Bill Calculator'!$B$22) -> 72.2759636 | BD8: =AVERAGE(AY8:BC8)*(1+'2014 Farm Bill Calculator'!$B$22) -> 71.52370825 | BE8: =AVERAGE(AP8:AY8) -> 72.45 | BF8: =AVERAGE(AQ8:AZ8) -> 72.05 | BG8: =AVERAGE(AR8:BA8) -> 72.54 | BH8: =AVERAGE(AS8:BB8) -> 72.03018 | BI8: =AVERAGE(AT8:BC8) -> 71.95777636 | BK8: =IF(COUNT(G8:K8)=5,((SUM(G8:K8)-MIN(G8:K8)-MAX(G8:K8))/3),"Data Error") -> 144 | BL8: =IF(COUNT(H8:L8)=5,((SUM(H8:L8)-MIN(H8:L8)-MAX(H8:L8))/3),"Data Error") -> 142.3333333 | BM8: =IF(COUNT(I8:M8)=5,((SUM(I8:M8)-MIN(I8:M8)-MAX(I8:M8))/3),"Data Error") -> 139.668 | BN8: =IF(COUNT(J8:N8)=5,((SUM(J8:N8)-MIN(J8:N8)-MAX(J8:N8))/3),"Data Error") -> 130 | BO8: =IF(COUNT(K8:O8)=5,((SUM(K8:O8)-MIN(K8:O8)-MAX(K8:O8))/3),"Data Error") -> 126.1209523 | BQ8: =IF(COUNT(AA8:AE8)=5,((SUM(AA8:AE8)-MIN(AA8:AE8)-MAX(AA8:AE8))/3),"Data Error") -> 42.33333333 | BR8: =IF(COUNT(AB8:AF8)=5,((SUM(AB8:AF8)-MIN(AB8:AF8)-MAX(AB8:AF8))/3),"Data Error") -> 42.33333333 | BS8: =IF(COUNT(AC8:AG8)=5,((SUM(AC8:AG8)-MIN(AC8:AG8)-MAX(AC8:AG8))/3),"Data Error") -> 42.03333333 | BT8: =IF(COUNT(AD8:AH8)=5,((SUM(AD8:AH8)-MIN(AD8:AH8)-MAX(AD8:AH8))/3),"Data Error") -> 39.36666667 | BU8: =IF(COUNT(AE8:AI8)=5,((SUM(AE8:AI8)-MIN(AE8:AI8)-MAX(AE8:AI8))/3),"Data Error") -> 37.8932331 | BW8: =IF(COUNT(AU8:AY8)=5,((SUM(AU8:AY8)-MIN(AU8:AY8)-MAX(AU8:AY8))/3),"Data Error") -> 72 | BX8: =IF(COUNT(AV8:AZ8)=5,((SUM(AV8:AZ8)-MIN(AV8:AZ8)-MAX(AV8:AZ8))/3),"Data Error") -> 72.33333333 | BY8: =IF(COUNT(AW8:BA8)=5,((SUM(AW8:BA8)-MIN(AW8:BA8)-MAX(AW8:BA8))/3),"Data Error") -> 73.66666667 | BZ8: =IF(COUNT(AX8:BB8)=5,((SUM(AX8:BB8)-MIN(AX8:BB8)-MAX(AX8:BB8))/3),"Data Error") -> 72.63393333 | CA8: =IF(COUNT(AY8:BC8)=5,((SUM(AY8:BC8)-MIN(AY8:BC8)-MAX(AY8:BC8))/3),"Data Error") -> 71.39258787
A9: BARAGA | G9: 0.1 | H9: =G9 -> 0.1 | I9: =H9 -> 0.1 | J9: =I9 -> 0.1 | K9: =J9 -> 0.1 | L9: 38 | M9: =AVERAGE(H9:L9)*(1+'2014 Farm Bill Calculator'!$B$20) -> 7.8336 | N9: =AVERAGE(I9:M9)*(1+'2014 Farm Bill Calculator'!$B$20)*N$87 -> 7.0584408 | O9: =AVERAGE(J9:N9)*(1+'2014 Farm Bill Calculator'!$B$20) -> 10.83077632 | P9: =AVERAGE(K9:O9)*(1+'2014 Farm Bill Calculator'!$B$20) -> 13.01985469 | Q9: =AVERAGE(B9:K9) -> 0.1 | R9: =AVERAGE(C9:L9) -> 6.416666667 | S9: =AVERAGE(D9:M9) -> 6.619085714 | T9: =AVERAGE(E9:N9) -> 6.6740051 | U9: =AVERAGE(F9:O9) -> 7.135868569 | AA9: 0.1 | AB9: =AA9 -> 0.1 | AC9: =AB9 -> 0.1 | AD9: =AC9 -> 0.1 | AE9: =AD9 -> 0.1 | AF9: =AVERAGE(AA9:AE9)*(1+'2014 Farm Bill Calculator'!$B$21) -> 0.101 | AG9: =AVERAGE(AB9:AF9)*(1+'2014 Farm Bill Calculator'!$B$21) -> 0.101202 | AH9: =AVERAGE(AC9:AG9)*(1+'2014 Farm Bill Calculator'!$B$21)*AH$87 -> 0.076083603 | AI9: =AVERAGE(AD9:AH9)*(1+'2014 Farm Bill Calculator'!$B$21) -> 0.09661369181 | AJ9: =AVERAGE(AE9:AI9)*(1+'2014 Farm Bill Calculator'!$B$21) -> 0.09592965755 | AK9: =AVERAGE(V9:AE9) -> 0.1 | AL9: =AVERAGE(W9:AF9) -> 0.1001666667 | AM9: =AVERAGE(X9:AG9) -> 0.1003145714 | AN9: =AVERAGE(Y9:AH9) -> 0.09728570038 | AO9: =AVERAGE(Z9:AI9) -> 0.09721103276 | AU9: 0.1 | AV9: =AU9 -> 0.1 | AW9: =AV9 -> 0.1 | AX9: =AW9 -> 0.1 | AY9: =AX9 -> 0.1 | AZ9: =AVERAGE(AU9:AY9)*(1+'2014 Farm Bill Calculator'!$B$22) -> 0.101 | BA9: =AVERAGE(AV9:AZ9)*(1+'2014 Farm Bill Calculator'!$B$22) -> 0.101202 | BB9: =AVERAGE(AW9:BA9)*(1+'2014 Farm Bill Calculator'!$B$22) -> 0.101444804 | BC9: =AVERAGE(AX9:BB9)*(1+'2014 Farm Bill Calculator'!$B$22) -> 0.1017366544 | BD9: =AVERAGE(AY9:BC9)*(1+'2014 Farm Bill Calculator'!$B$22) -> 0.1020874586 | BE9: =AVERAGE(AP9:AY9) -> 0.1 | BF9: =AVERAGE(AQ9:AZ9) -> 0.1001666667 | BG9: =AVERAGE(AR9:BA9) -> 0.1003145714 | BH9: =AVERAGE(AS9:BB9) -> 0.1004558505 | BI9: =AVERAGE(AT9:BC9) -> 0.100598162 | BK9: =IF(COUNT(G9:K9)=5,((SUM(G9:K9)-MIN(G9:K9)-MAX(G9:K9))/3),"Data Error") -> 0.1 | BL9: =IF(COUNT(H9:L9)=5,((SUM(H9:L9)-MIN(H9:L9)-MAX(H9:L9))/3),"Data Error") -> 0.1 | BM9: =IF(COUNT(I9:M9)=5,((SUM(I9:M9)-MIN(I9:M9)-MAX(I9:M9))/3),"Data Error") -> 2.677866667 | BN9: =IF(COUNT(J9:N9)=5,((SUM(J9:N9)-MIN(J9:N9)-MAX(J9:N9))/3),"Data Error") -> 4.997346933 | BO9: =IF(COUNT(K9:O9)=5,((SUM(K9:O9)-MIN(K9:O9)-MAX(K9:O9))/3),"Data Error") -> 8.574272374 | BQ9: =IF(COUNT(AA9:AE9)=5,((SUM(AA9:AE9)-MIN(AA9:AE9)-MAX(AA9:AE9))/3),"Data Error") -> 0.1 | BR9: =IF(COUNT(AB9:AF9)=5,((SUM(AB9:AF9)-MIN(AB9:AF9)-MAX(AB9:AF9))/3),"Data Error") -> 0.1 | BS9: =IF(COUNT(AC9:AG9)=5,((SUM(AC9:AG9)-MIN(AC9:AG9)-MAX(AC9:AG9))/3),"Data Error") -> 0.1003333333 | BT9: =IF(COUNT(AD9:AH9)=5,((SUM(AD9:AH9)-MIN(AD9:AH9)-MAX(AD9:AH9))/3),"Data Error") -> 0.1003333333 | BU9: =IF(COUNT(AE9:AI9)=5,((SUM(AE9:AI9)-MIN(AE9:AI9)-MAX(AE9:AI9))/3),"Data Error") -> 0.09920456394 | BW9: =IF(COUNT(AU9:AY9)=5,((SUM(AU9:AY9)-MIN(AU9:AY9)-MAX(AU9:AY9))/3),"Data Error") -> 0.1 | BX9: =IF(COUNT(AV9:AZ9)=5,((SUM(AV9:AZ9)-MIN(AV9:AZ9)-MAX(AV9:AZ9))/3),"Data Error") -> 0.1 | BY9: =IF(COUNT(AW9:BA9)=5,((SUM(AW9:BA9)-MIN(AW9:BA9)-MAX(AW9:BA9))/3),"Data Error") -> 0.1003333333 | BZ9: =IF(COUNT(AX9:BB9)=5,((SUM(AX9:BB9)-MIN(AX9:BB9)-MAX(AX9:BB9))/3),"Data Error") -> 0.100734 | CA9: =IF(COUNT(AY9:BC9)=5,((SUM(AY9:BC9)-MIN(AY9:BC9)-MAX(AY9:BC9))/3),"Data Error") -> 0.1012156013
A10: BARRY | B10: 151 | C10: 135 | D10: 148 | E10: 115 | F10: 131 | G10: 142 | H10: 146 | I10: 153 | J10: 108 | K10: 163 | L10: 151 | M10: 157.4 | N10: =AVERAGE(I10:M10)*(1+'2014 Farm Bill Calculator'!$B$20)*N$87 -> 112.0572 | O10: =AVERAGE(J10:N10)*(1+'2014 Farm Bill Calculator'!$B$20) -> 141.0572688 | P10: =AVERAGE(K10:O10)*(1+'2014 Farm Bill Calculator'!$B$20) -> 147.8009516 | Q10: =AVERAGE(B10:K10) -> 139.2 | R10: =AVERAGE(C10:L10) -> 139.2 | S10: =AVERAGE(D10:M10) -> 141.44 | T10: =AVERAGE(E10:N10) -> 137.84572 | U10: =AVERAGE(F10:O10) -> 140.4514469 | V10: 41 | W10: 37 | X10: 46 | Y10: 38 | Z10: 31.5 | AA10: 41 | AB10: 43 | AC10: 45 | AD10: 41 | AE10: 49 | AF10: 43 | AG10: 45.9 | AH10: =AVERAGE(AC10:AG10)*(1+'2014 Farm Bill Calculator'!$B$21)*AH$87 -> 33.92085 | AI10: =AVERAGE(AD10:AH10)*(1+'2014 Farm Bill Calculator'!$B$21) -> 42.9898117 | AJ10: =AVERAGE(AE10:AI10)*(1+'2014 Farm Bill Calculator'!$B$21) -> 43.39175366 | AK10: =AVERAGE(V10:AE10) -> 41.25 | AL10: =AVERAGE(W10:AF10) -> 41.45 | AM10: =AVERAGE(X10:AG10) -> 42.34 | AN10: =AVERAGE(Y10:AH10) -> 41.132085 | AO10: =AVERAGE(Z10:AI10) -> 41.63106617 | AP10: 54 | AQ10: 66 | AR10: 66 | AS10: 57 | AT10: 54.5 | AU10: 64 | AV10: 57 | AW10: 70 | AX10: 72 | AY10: 72 | AZ10: 78 | BA10: 67.5 | BB10: =AVERAGE(AW10:BA10)*(1+'2014 Farm Bill Calculator'!$B$22) -> 72.619 | BC10: =AVERAGE(AX10:BB10)*(1+'2014 Farm Bill Calculator'!$B$22) -> 73.148038 | BD10: =AVERAGE(AY10:BC10)*(1+'2014 Farm Bill Calculator'!$B$22) -> 73.37994168 | BE10: =AVERAGE(AP10:AY10) -> 63.25 | BF10: =AVERAGE(AQ10:AZ10) -> 65.65 | BG10: =AVERAGE(AR10:BA10) -> 65.8 | BH10: =AVERAGE(AS10:BB10) -> 66.4619 | BI10: =AVERAGE(AT10:BC10) -> 68.0767038 | BK10: =IF(COUNT(G10:K10)=5,((SUM(G10:K10)-MIN(G10:K10)-MAX(G10:K10))/3),"Data Error") -> 147 | BL10: =IF(COUNT(H10:L10)=5,((SUM(H10:L10)-MIN(H10:L10)-MAX(H10:L10))/3),"Data Error") -> 150 | BM10: =IF(COUNT(I10:M10)=5,((SUM(I10:M10)-MIN(I10:M10)-MAX(I10:M10))/3),"Data Error") -> 153.8 | BN10: =IF(COUNT(J10:N10)=5,((SUM(J10:N10)-MIN(J10:N10)-MAX(J10:N10))/3),"Data Error") -> 140.1524 | BO10: =IF(COUNT(K10:O10)=5,((SUM(K10:O10)-MIN(K10:O10)-MAX(K10:O10))/3),"Data Error") -> 149.8190896 | BQ10: =IF(COUNT(AA10:AE10)=5,((SUM(AA10:AE10)-MIN(AA10:AE10)-MAX(AA10:AE10))/3),"Data Error") -> 43 | BR10: =IF(COUNT(AB10:AF10)=5,((SUM(AB10:AF10)-MIN(AB10:AF10)-MAX(AB10:AF10))/3),"Data Error") -> 43.66666667 | BS10: =IF(COUNT(AC10:AG10)=5,((SUM(AC10:AG10)-MIN(AC10:AG10)-MAX(AC10:AG10))/3),"Data Error") -> 44.63333333 | BT10: =IF(COUNT(AD10:AH10)=5,((SUM(AD10:AH10)-MIN(AD10:AH10)-MAX(AD10:AH10))/3),"Data Error") -> 43.3 | BU10: =IF(COUNT(AE10:AI10)=5,((SUM(AE10:AI10)-MIN(AE10:AI10)-MAX(AE10:AI10))/3),"Data Error") -> 43.96327057 | BW10: =IF(COUNT(AU10:AY10)=5,((SUM(AU10:AY10)-MIN(AU10:AY10)-MAX(AU10:AY10))/3),"Data Error") -> 68.66666667 | BX10: =IF(COUNT(AV10:AZ10)=5,((SUM(AV10:AZ10)-MIN(AV10:AZ10)-MAX(AV10:AZ10))/3),"Data Error") -> 71.33333333 | BY10: =IF(COUNT(AW10:BA10)=5,((SUM(AW10:BA10)-MIN(AW10:BA10)-MAX(AW10:BA10))/3),"Data Error") -> 71.33333333 | BZ10: =IF(COUNT(AX10:BB10)=5,((SUM(AX10:BB10)-MIN(AX10:BB10)-MAX(AX10:BB10))/3),"Data Error") -> 72.20633333 | CA10: =IF(COUNT(AY10:BC10)=5,((SUM(AY10:BC10)-MIN(AY10:BC10)-MAX(AY10:BC10))/3),"Data Error") -> 72.58901267
A11: BAY | B11: 132 | C11: 148 | D11: 138 | E11: 122 | F11: 163 | G11: 161 | H11: 163 | I11: 169 | J11: 162 | K11: 143 | L11: 163 | M11: =AVERAGE(H11:L11)*(1+'2014 Farm Bill Calculator'!$B$20) -> 163.2 | N11: =AVERAGE(I11:M11)*(1+'2014 Farm Bill Calculator'!$B$20)*N$87 -> 122.4306 | O11: =AVERAGE(J11:N11)*(1+'2014 Farm Bill Calculator'!$B$20) -> 153.7406424 | P11: =AVERAGE(K11:O11)*(1+'2014 Farm Bill Calculator'!$B$20) -> 152.0557334 | Q11: =AVERAGE(B11:K11) -> 150.1 | R11: =AVERAGE(C11:L11) -> 153.2 | S11: =AVERAGE(D11:M11) -> 154.72 | T11: =AVERAGE(E11:N11) -> 153.16306 | U11: =AVERAGE(F11:O11) -> 156.3371242 | V11: 34 | W11: 40 | X11: 42 | Y11: 42 | Z11: 47 | AA11: 41 | AB11: 47 | AC11: 48 | AD11: 50 | AE11: 42 | AF11: 49 | AG11: 54.2 | AH11: =AVERAGE(AC11:AG11)*(1+'2014 Farm Bill Calculator'!$B$21)*AH$87 -> 36.8448 | AI11: =AVERAGE(AD11:AH11)*(1+'2014 Farm Bill Calculator'!$B$21) -> 46.8730496 | AJ11: =AVERAGE(AE11:AI11)*(1+'2014 Farm Bill Calculator'!$B$21) -> 46.24140562 | AK11: =AVERAGE(V11:AE11) -> 43.3 | AL11: =AVERAGE(W11:AF11) -> 44.8 | AM11: =AVERAGE(X11:AG11) -> 46.22 | AN11: =AVERAGE(Y11:AH11) -> 45.70448 | AO11: =AVERAGE(Z11:AI11) -> 46.19178496 | AP11: 72 | AQ11: 68 | AR11: 81 | AS11: 72 | AT11: 76 | AU11: 75 | AV11: 71 | AW11: 85 | AX11: 80 | AY11: 75 | AZ11: 70 | BA11: 90.4 | BB11: =AVERAGE(AW11:BA11)*(1+'2014 Farm Bill Calculator'!$B$22) -> 80.8808 | BC11: =AVERAGE(AX11:BB11)*(1+'2014 Farm Bill Calculator'!$B$22) -> 80.0487216 | BD11: =AVERAGE(AY11:BC11)*(1+'2014 Farm Bill Calculator'!$B$22) -> 80.05856336 | BE11: =AVERAGE(AP11:AY11) -> 75.5 | BF11: =AVERAGE(AQ11:AZ11) -> 75.3 | BG11: =AVERAGE(AR11:BA11) -> 77.54 | BH11: =AVERAGE(AS11:BB11) -> 77.52808 | BI11: =AVERAGE(AT11:BC11) -> 78.33295216 | BK11: =IF(COUNT(G11:K11)=5,((SUM(G11:K11)-MIN(G11:K11)-MAX(G11:K11))/3),"Data Error") -> 162 | BL11: =IF(COUNT(H11:L11)=5,((SUM(H11:L11)-MIN(H11:L11)-MAX(H11:L11))/3),"Data Error") -> 162.6666667 | BM11: =IF(COUNT(I11:M11)=5,((SUM(I11:M11)-MIN(I11:M11)-MAX(I11:M11))/3),"Data Error") -> 162.7333333 | BN11: =IF(COUNT(J11:N11)=5,((SUM(J11:N11)-MIN(J11:N11)-MAX(J11:N11))/3),"Data Error") -> 156 | BO11: =IF(COUNT(K11:O11)=5,((SUM(K11:O11)-MIN(K11:O11)-MAX(K11:O11))/3),"Data Error") -> 153.2468808 | BQ11: =IF(COUNT(AA11:AE11)=5,((SUM(AA11:AE11)-MIN(AA11:AE11)-MAX(AA11:AE11))/3),"Data Error") -> 45.66666667 | BR11: =IF(COUNT(AB11:AF11)=5,((SUM(AB11:AF11)-MIN(AB11:AF11)-MAX(AB11:AF11))/3),"Data Error") -> 48 | BS11: =IF(COUNT(AC11:AG11)=5,((SUM(AC11:AG11)-MIN(AC11:AG11)-MAX(AC11:AG11))/3),"Data Error") -> 49 | BT11: =IF(COUNT(AD11:AH11)=5,((SUM(AD11:AH11)-MIN(AD11:AH11)-MAX(AD11:AH11))/3),"Data Error") -> 47 | BU11: =IF(COUNT(AE11:AI11)=5,((SUM(AE11:AI11)-MIN(AE11:AI11)-MAX(AE11:AI11))/3),"Data Error") -> 45.9576832 | BW11: =IF(COUNT(AU11:AY11)=5,((SUM(AU11:AY11)-MIN(AU11:AY11)-MAX(AU11:AY11))/3),"Data Error") -> 76.66666667 | BX11: =IF(COUNT(AV11:AZ11)=5,((SUM(AV11:AZ11)-MIN(AV11:AZ11)-MAX(AV11:AZ11))/3),"Data Error") -> 75.33333333 | BY11: =IF(COUNT(AW11:BA11)=5,((SUM(AW11:BA11)-MIN(AW11:BA11)-MAX(AW11:BA11))/3),"Data Error") -> 80 | BZ11: =IF(COUNT(AX11:BB11)=5,((SUM(AX11:BB11)-MIN(AX11:BB11)-MAX(AX11:BB11))/3),"Data Error") -> 78.62693333 | CA11: =IF(COUNT(AY11:BC11)=5,((SUM(AY11:BC11)-MIN(AY11:BC11)-MAX(AY11:BC11))/3),"Data Error") -> 78.64317387
A12: BENZIE | B12: 100 | C12: 104 | D12: 108 | E12: 45 | F12: 79 | G12: 108 | H12: 110 | I12: 74 | J12: 61 | K12: 105 | L12: 103 | M12: 113.6 | N12: =AVERAGE(I12:M12)*(1+'2014 Farm Bill Calculator'!$B$20)*N$87 -> 69.8598 | O12: =AVERAGE(J12:N12)*(1+'2014 Farm Bill Calculator'!$B$20) -> 92.3017992 | P12: =AVERAGE(K12:O12)*(1+'2014 Farm Bill Calculator'!$B$20) -> 98.68736624 | Q12: =AVERAGE(B12:K12) -> 89.4 | R12: =AVERAGE(C12:L12) -> 89.7 | S12: =AVERAGE(D12:M12) -> 90.66 | T12: =AVERAGE(E12:N12) -> 86.84598 | U12: =AVERAGE(F12:O12) -> 91.57615992 | AA12: 0.1 | AB12: =AA12 -> 0.1 | AC12: =AB12 -> 0.1 | AD12: =AC12 -> 0.1 | AE12: =AD12 -> 0.1 | AF12: 43 | AG12: =AVERAGE(AB12:AF12)*(1+'2014 Farm Bill Calculator'!$B$21) -> 8.7668 | AH12: =AVERAGE(AC12:AG12)*(1+'2014 Farm Bill Calculator'!$B$21)*AH$87 -> 7.8881202 | AI12: =AVERAGE(AD12:AH12)*(1+'2014 Farm Bill Calculator'!$B$21) -> 12.09069388 | AJ12: =AVERAGE(AE12:AI12)*(1+'2014 Farm Bill Calculator'!$B$21) -> 14.51281404 | AK12: =AVERAGE(V12:AE12) -> 0.1 | AL12: =AVERAGE(W12:AF12) -> 7.25 | AM12: =AVERAGE(X12:AG12) -> 7.466685714 | AN12: =AVERAGE(Y12:AH12) -> 7.519365025 | AO12: =AVERAGE(Z12:AI12) -> 8.027290453 | AU12: 0.1 | AV12: =AU12 -> 0.1 | AW12: =AV12 -> 0.1 | AX12: =AW12 -> 0.1 | AY12: =AX12 -> 0.1 | AZ12: =AVERAGE(AU12:AY12)*(1+'2014 Farm Bill Calculator'!$B$22) -> 0.101 | BA12: =AVERAGE(AV12:AZ12)*(1+'2014 Farm Bill Calculator'!$B$22) -> 0.101202 | BB12: =AVERAGE(AW12:BA12)*(1+'2014 Farm Bill Calculator'!$B$22) -> 0.101444804 | BC12: =AVERAGE(AX12:BB12)*(1+'2014 Farm Bill Calculator'!$B$22) -> 0.1017366544 | BD12: =AVERAGE(AY12:BC12)*(1+'2014 Farm Bill Calculator'!$B$22) -> 0.1020874586 | BE12: =AVERAGE(AP12:AY12) -> 0.1 | BF12: =AVERAGE(AQ12:AZ12) -> 0.1001666667 | BG12: =AVERAGE(AR12:BA12) -> 0.1003145714 | BH12: =AVERAGE(AS12:BB12) -> 0.1004558505 | BI12: =AVERAGE(AT12:BC12) -> 0.100598162 | BK12: =IF(COUNT(G12:K12)=5,((SUM(G12:K12)-MIN(G12:K12)-MAX(G12:K12))/3),"Data Error") -> 95.66666667 | BL12: =IF(COUNT(H12:L12)=5,((SUM(H12:L12)-MIN(H12:L12)-MAX(H12:L12))/3),"Data Error") -> 94 | BM12: =IF(COUNT(I12:M12)=5,((SUM(I12:M12)-MIN(I12:M12)-MAX(I12:M12))/3),"Data Error") -> 94 | BN12: =IF(COUNT(J12:N12)=5,((SUM(J12:N12)-MIN(J12:N12)-MAX(J12:N12))/3),"Data Error") -> 92.61993333 | BO12: =IF(COUNT(K12:O12)=5,((SUM(K12:O12)-MIN(K12:O12)-MAX(K12:O12))/3),"Data Error") -> 100.1005997 | BQ12: =IF(COUNT(AA12:AE12)=5,((SUM(AA12:AE12)-MIN(AA12:AE12)-MAX(AA12:AE12))/3),"Data Error") -> 0.1 | BR12: =IF(COUNT(AB12:AF12)=5,((SUM(AB12:AF12)-MIN(AB12:AF12)-MAX(AB12:AF12))/3),"Data Error") -> 0.1 | BS12: =IF(COUNT(AC12:AG12)=5,((SUM(AC12:AG12)-MIN(AC12:AG12)-MAX(AC12:AG12))/3),"Data Error") -> 2.988933333 | BT12: =IF(COUNT(AD12:AH12)=5,((SUM(AD12:AH12)-MIN(AD12:AH12)-MAX(AD12:AH12))/3),"Data Error") -> 5.5849734 | BU12: =IF(COUNT(AE12:AI12)=5,((SUM(AE12:AI12)-MIN(AE12:AI12)-MAX(AE12:AI12))/3),"Data Error") -> 9.58187136 | BW12: =IF(COUNT(AU12:AY12)=5,((SUM(AU12:AY12)-MIN(AU12:AY12)-MAX(AU12:AY12))/3),"Data Error") -> 0.1 | BX12: =IF(COUNT(AV12:AZ12)=5,((SUM(AV12:AZ12)-MIN(AV12:AZ12)-MAX(AV12:AZ12))/3),"Data Error") -> 0.1 | BY12: =IF(COUNT(AW12:BA12)=5,((SUM(AW12:BA12)-MIN(AW12:BA12)-MAX(AW12:BA12))/3),"Data Error") -> 0.1003333333 | BZ12: =IF(COUNT(AX12:BB12)=5,((SUM(AX12:BB12)-MIN(AX12:BB12)-MAX(AX12:BB12))/3),"Data Error") -> 0.100734 | CA12: =IF(COUNT(AY12:BC12)=5,((SUM(AY12:BC12)-MIN(AY12:BC12)-MAX(AY12:BC12))/3),"Data Error") -> 0.1012156013
A13: BERRIEN | B13: 143 | C13: 123 | D13: 154 | E13: 137 | F13: 148 | G13: 150 | H13: 159 | I13: 163 | J13: 144 | K13: 150 | L13: 176 | M13: =AVERAGE(H13:L13)*(1+'2014 Farm Bill Calculator'!$B$20) -> 161.568 | N13: =AVERAGE(I13:M13)*(1+'2014 Farm Bill Calculator'!$B$20)*N$87 -> 121.568904 | O13: =AVERAGE(J13:N13)*(1+'2014 Farm Bill Calculator'!$B$20) -> 153.6399284 | P13: =AVERAGE(K13:O13)*(1+'2014 Farm Bill Calculator'!$B$20) -> 155.6064738 | Q13: =AVERAGE(B13:K13) -> 147.1 | R13: =AVERAGE(C13:L13) -> 150.4 | S13: =AVERAGE(D13:M13) -> 154.2568 | T13: =AVERAGE(E13:N13) -> 151.0136904 | U13: =AVERAGE(F13:O13) -> 152.6776832 | V13: 44 | W13: 32 | X13: 48 | Y13: 44 | Z13: 44.5 | AA13: 44 | AB13: 48 | AC13: 41 | AD13: 45 | AE13: 41 | AF13: 48 | AG13: =AVERAGE(AB13:AF13)*(1+'2014 Farm Bill Calculator'!$B$21) -> 45.046 | AH13: =AVERAGE(AC13:AG13)*(1+'2014 Farm Bill Calculator'!$B$21)*AH$87 -> 33.336969 | AI13: =AVERAGE(AD13:AH13)*(1+'2014 Farm Bill Calculator'!$B$21) -> 42.90135974 | AJ13: =AVERAGE(AE13:AI13)*(1+'2014 Farm Bill Calculator'!$B$21) -> 42.47743441 | AK13: =AVERAGE(V13:AE13) -> 43.15 | AL13: =AVERAGE(W13:AF13) -> 43.55 | AM13: =AVERAGE(X13:AG13) -> 44.8546 | AN13: =AVERAGE(Y13:AH13) -> 43.3882969 | AO13: =AVERAGE(Z13:AI13) -> 43.27843287 | AP13: 58 | AQ13: 60 | AR13: 62 | AS13: 51 | AT13: 60.5 | AU13: 62 | AV13: 57 | AW13: 71 | AX13: 62 | AY13: 63 | AZ13: 73 | BA13: =AVERAGE(AV13:AZ13)*(1+'2014 Farm Bill Calculator'!$B$22) -> 65.852 | BB13: =AVERAGE(AW13:BA13)*(1+'2014 Farm Bill Calculator'!$B$22) -> 67.640104 | BC13: =AVERAGE(AX13:BB13)*(1+'2014 Farm Bill Calculator'!$B$22) -> 66.96140501 | BD13: =AVERAGE(AY13:BC13)*(1+'2014 Farm Bill Calculator'!$B$22) -> 67.96360882 | BE13: =AVERAGE(AP13:AY13) -> 60.65 | BF13: =AVERAGE(AQ13:AZ13) -> 62.15 | BG13: =AVERAGE(AR13:BA13) -> 62.7352 | BH13: =AVERAGE(AS13:BB13) -> 63.2992104 | BI13: =AVERAGE(AT13:BC13) -> 64.8953509 | BK13: =IF(COUNT(G13:K13)=5,((SUM(G13:K13)-MIN(G13:K13)-MAX(G13:K13))/3),"Data Error") -> 153 | BL13: =IF(COUNT(H13:L13)=5,((SUM(H13:L13)-MIN(H13:L13)-MAX(H13:L13))/3),"Data Error") -> 157.3333333 | BM13: =IF(COUNT(I13:M13)=5,((SUM(I13:M13)-MIN(I13:M13)-MAX(I13:M13))/3),"Data Error") -> 158.1893333 | BN13: =IF(COUNT(J13:N13)=5,((SUM(J13:N13)-MIN(J13:N13)-MAX(J13:N13))/3),"Data Error") -> 151.856 | BO13: =IF(COUNT(K13:O13)=5,((SUM(K13:O13)-MIN(K13:O13)-MAX(K13:O13))/3),"Data Error") -> 155.0693095 | BQ13: =IF(COUNT(AA13:AE13)=5,((SUM(AA13:AE13)-MIN(AA13:AE13)-MAX(AA13:AE13))/3),"Data Error") -> 43.33333333 | BR13: =IF(COUNT(AB13:AF13)=5,((SUM(AB13:AF13)-MIN(AB13:AF13)-MAX(AB13:AF13))/3),"Data Error") -> 44.66666667 | BS13: =IF(COUNT(AC13:AG13)=5,((SUM(AC13:AG13)-MIN(AC13:AG13)-MAX(AC13:AG13))/3),"Data Error") -> 43.682 | BT13: =IF(COUNT(AD13:AH13)=5,((SUM(AD13:AH13)-MIN(AD13:AH13)-MAX(AD13:AH13))/3),"Data Error") -> 43.682 | BU13: =IF(COUNT(AE13:AI13)=5,((SUM(AE13:AI13)-MIN(AE13:AI13)-MAX(AE13:AI13))/3),"Data Error") -> 42.98245325 | BW13: =IF(COUNT(AU13:AY13)=5,((SUM(AU13:AY13)-MIN(AU13:AY13)-MAX(AU13:AY13))/3),"Data Error") -> 62.33333333 | BX13: =IF(COUNT(AV13:AZ13)=5,((SUM(AV13:AZ13)-MIN(AV13:AZ13)-MAX(AV13:AZ13))/3),"Data Error") -> 65.33333333 | BY13: =IF(COUNT(AW13:BA13)=5,((SUM(AW13:BA13)-MIN(AW13:BA13)-MAX(AW13:BA13))/3),"Data Error") -> 66.61733333 | BZ13: =IF(COUNT(AX13:BB13)=5,((SUM(AX13:BB13)-MIN(AX13:BB13)-MAX(AX13:BB13))/3),"Data Error") -> 65.497368 | CA13: =IF(COUNT(AY13:BC13)=5,((SUM(AY13:BC13)-MIN(AY13:BC13)-MAX(AY13:BC13))/3),"Data Error") -> 66.81783634
A14: BRANCH | B14: 134 | C14: 141 | D14: 150 | E14: 114 | F14: 122 | G14: 135 | H14: 145.2 | I14: 156.4 | J14: 113.5 | K14: 164.5 | L14: =(180+150)/2 -> 165 | M14: 172.2 | N14: =AVERAGE(I14:M14)*(1+'2014 Farm Bill Calculator'!$B$20)*N$87 -> 118.0548 | O14: =AVERAGE(J14:N14)*(1+'2014 Farm Bill Calculator'!$B$20) -> 149.5839792 | P14: =AVERAGE(K14:O14)*(1+'2014 Farm Bill Calculator'!$B$20) -> 156.945111 | Q14: =AVERAGE(B14:K14) -> 137.56 | R14: =AVERAGE(C14:L14) -> 140.66 | S14: =AVERAGE(D14:M14) -> 143.78 | T14: =AVERAGE(E14:N14) -> 140.58548 | U14: =AVERAGE(F14:O14) -> 144.1438779 | V14: 41 | W14: 39 | X14: 47 | Y14: 40 | Z14: 30.5 | AA14: 35 | AB14: 44 | AC14: 45 | AD14: 42 | AE14: 45 | AF14: 40 | AG14: 46.7 | AH14: =AVERAGE(AC14:AG14)*(1+'2014 Farm Bill Calculator'!$B$21)*AH$87 -> 33.13305 | AI14: =AVERAGE(AD14:AH14)*(1+'2014 Farm Bill Calculator'!$B$21) -> 41.7802761 | AJ14: =AVERAGE(AE14:AI14)*(1+'2014 Farm Bill Calculator'!$B$21) -> 41.73589187 | AK14: =AVERAGE(V14:AE14) -> 40.85 | AL14: =AVERAGE(W14:AF14) -> 40.75 | AM14: =AVERAGE(X14:AG14) -> 41.52 | AN14: =AVERAGE(Y14:AH14) -> 40.133305 | AO14: =AVERAGE(Z14:AI14) -> 40.31133261 | AP14: 49 | AQ14: 55 | AR14: 60 | AS14: 49 | AT14: 53.5 | AU14: 62 | AV14: 55 | AW14: 66 | AX14: 58 | AY14: 53 | AZ14: 61 | BA14: =AVERAGE(AV14:AZ14)*(1+'2014 Farm Bill Calculator'!$B$22) -> 59.186 | BB14: =AVERAGE(AW14:BA14)*(1+'2014 Farm Bill Calculator'!$B$22) -> 60.031572 | BC14: =AVERAGE(AX14:BB14)*(1+'2014 Farm Bill Calculator'!$B$22) -> 58.82594954 | BD14: =AVERAGE(AY14:BC14)*(1+'2014 Farm Bill Calculator'!$B$22) -> 58.99279135 | BE14: =AVERAGE(AP14:AY14) -> 56.05 | BF14: =AVERAGE(AQ14:AZ14) -> 57.25 | BG14: =AVERAGE(AR14:BA14) -> 57.6686 | BH14: =AVERAGE(AS14:BB14) -> 57.6717572 | BI14: =AVERAGE(AT14:BC14) -> 58.65435215 | BK14: =IF(COUNT(G14:K14)=5,((SUM(G14:K14)-MIN(G14:K14)-MAX(G14:K14))/3),"Data Error") -> 145.5333333 | BL14: =IF(COUNT(H14:L14)=5,((SUM(H14:L14)-MIN(H14:L14)-MAX(H14:L14))/3),"Data Error") -> 155.3666667 | BM14: =IF(COUNT(I14:M14)=5,((SUM(I14:M14)-MIN(I14:M14)-MAX(I14:M14))/3),"Data Error") -> 161.9666667 | BN14: =IF(COUNT(J14:N14)=5,((SUM(J14:N14)-MIN(J14:N14)-MAX(J14:N14))/3),"Data Error") -> 149.1849333 | BO14: =IF(COUNT(K14:O14)=5,((SUM(K14:O14)-MIN(K14:O14)-MAX(K14:O14))/3),"Data Error") -> 159.6946597 | BQ14: =IF(COUNT(AA14:AE14)=5,((SUM(AA14:AE14)-MIN(AA14:AE14)-MAX(AA14:AE14))/3),"Data Error") -> 43.66666667 | BR14: =IF(COUNT(AB14:AF14)=5,((SUM(AB14:AF14)-MIN(AB14:AF14)-MAX(AB14:AF14))/3),"Data Error") -> 43.66666667 | BS14: =IF(COUNT(AC14:AG14)=5,((SUM(AC14:AG14)-MIN(AC14:AG14)-MAX(AC14:AG14))/3),"Data Error") -> 44 | BT14: =IF(COUNT(AD14:AH14)=5,((SUM(AD14:AH14)-MIN(AD14:AH14)-MAX(AD14:AH14))/3),"Data Error") -> 42.33333333 | BU14: =IF(COUNT(AE14:AI14)=5,((SUM(AE14:AI14)-MIN(AE14:AI14)-MAX(AE14:AI14))/3),"Data Error") -> 42.26009203 | BW14: =IF(COUNT(AU14:AY14)=5,((SUM(AU14:AY14)-MIN(AU14:AY14)-MAX(AU14:AY14))/3),"Data Error") -> 58.33333333 | BX14: =IF(COUNT(AV14:AZ14)=5,((SUM(AV14:AZ14)-MIN(AV14:AZ14)-MAX(AV14:AZ14))/3),"Data Error") -> 58 | BY14: =IF(COUNT(AW14:BA14)=5,((SUM(AW14:BA14)-MIN(AW14:BA14)-MAX(AW14:BA14))/3),"Data Error") -> 59.39533333 | BZ14: =IF(COUNT(AX14:BB14)=5,((SUM(AX14:BB14)-MIN(AX14:BB14)-MAX(AX14:BB14))/3),"Data Error") -> 59.072524 | CA14: =IF(COUNT(AY14:BC14)=5,((SUM(AY14:BC14)-MIN(AY14:BC14)-MAX(AY14:BC14))/3),"Data Error") -> 59.34784051
A15: CALHOUN | B15: 139 | C15: 135 | D15: 140 | E15: 109 | F15: 109 | G15: 138 | H15: 149 | I15: 144 | J15: 88 | K15: 156 | L15: 155 | M15: 144.4 | N15: =AVERAGE(I15:M15)*(1+'2014 Farm Bill Calculator'!$B$20)*N$87 -> 105.1722 | O15: =AVERAGE(J15:N15)*(1+'2014 Farm Bill Calculator'!$B$20) -> 132.3087288 | P15: =AVERAGE(K15:O15)*(1+'2014 Farm Bill Calculator'!$B$20) -> 141.3477095 | Q15: =AVERAGE(B15:K15) -> 130.7 | R15: =AVERAGE(C15:L15) -> 132.3 | S15: =AVERAGE(D15:M15) -> 133.24 | T15: =AVERAGE(E15:N15) -> 129.75722 | U15: =AVERAGE(F15:O15) -> 132.0880929 | V15: 42 | W15: 34 | X15: 43 | Y15: 40 | Z15: 27.5 | AA15: 39 | AB15: 47 | AC15: 45 | AD15: 32 | AE15: 49 | AF15: 39 | AG15: 44.5 | AH15: =AVERAGE(AC15:AG15)*(1+'2014 Farm Bill Calculator'!$B$21)*AH$87 -> 31.73925 | AI15: =AVERAGE(AD15:AH15)*(1+'2014 Farm Bill Calculator'!$B$21) -> 39.6403285 | AJ15: =AVERAGE(AE15:AI15)*(1+'2014 Farm Bill Calculator'!$B$21) -> 41.18367486 | AK15: =AVERAGE(V15:AE15) -> 39.85 | AL15: =AVERAGE(W15:AF15) -> 39.55 | AM15: =AVERAGE(X15:AG15) -> 40.6 | AN15: =AVERAGE(Y15:AH15) -> 39.473925 | AO15: =AVERAGE(Z15:AI15) -> 39.43795785 | AP15: 47 | AQ15: 53 | AR15: 61 | AS15: 49 | AT15: 56.5 | AU15: 65 | AV15: 63 | AW15: 65 | AX15: 62 | AY15: 59 | AZ15: 58 | BA15: 64.4 | BB15: =AVERAGE(AW15:BA15)*(1+'2014 Farm Bill Calculator'!$B$22) -> 62.2968 | BC15: =AVERAGE(AX15:BB15)*(1+'2014 Farm Bill Calculator'!$B$22) -> 61.7507536 | BD15: =AVERAGE(AY15:BC15)*(1+'2014 Farm Bill Calculator'!$B$22) -> 61.70040583 | BE15: =AVERAGE(AP15:AY15) -> 58.05 | BF15: =AVERAGE(AQ15:AZ15) -> 59.15 | BG15: =AVERAGE(AR15:BA15) -> 60.29 | BH15: =AVERAGE(AS15:BB15) -> 60.41968 | BI15: =AVERAGE(AT15:BC15) -> 61.69475536 | BK15: =IF(COUNT(G15:K15)=5,((SUM(G15:K15)-MIN(G15:K15)-MAX(G15:K15))/3),"Data Error") -> 143.6666667 | BL15: =IF(COUNT(H15:L15)=5,((SUM(H15:L15)-MIN(H15:L15)-MAX(H15:L15))/3),"Data Error") -> 149.3333333 | BM15: =IF(COUNT(I15:M15)=5,((SUM(I15:M15)-MIN(I15:M15)-MAX(I15:M15))/3),"Data Error") -> 147.8 | BN15: =IF(COUNT(J15:N15)=5,((SUM(J15:N15)-MIN(J15:N15)-MAX(J15:N15))/3),"Data Error") -> 134.8574 | BO15: =IF(COUNT(K15:O15)=5,((SUM(K15:O15)-MIN(K15:O15)-MAX(K15:O15))/3),"Data Error") -> 143.9029096 | BQ15: =IF(COUNT(AA15:AE15)=5,((SUM(AA15:AE15)-MIN(AA15:AE15)-MAX(AA15:AE15))/3),"Data Error") -> 43.66666667 | BR15: =IF(COUNT(AB15:AF15)=5,((SUM(AB15:AF15)-MIN(AB15:AF15)-MAX(AB15:AF15))/3),"Data Error") -> 43.66666667 | BS15: =IF(COUNT(AC15:AG15)=5,((SUM(AC15:AG15)-MIN(AC15:AG15)-MAX(AC15:AG15))/3),"Data Error") -> 42.83333333 | BT15: =IF(COUNT(AD15:AH15)=5,((SUM(AD15:AH15)-MIN(AD15:AH15)-MAX(AD15:AH15))/3),"Data Error") -> 38.5 | BU15: =IF(COUNT(AE15:AI15)=5,((SUM(AE15:AI15)-MIN(AE15:AI15)-MAX(AE15:AI15))/3),"Data Error") -> 41.04677617 | BW15: =IF(COUNT(AU15:AY15)=5,((SUM(AU15:AY15)-MIN(AU15:AY15)-MAX(AU15:AY15))/3),"Data Error") -> 63.33333333 | BX15: =IF(COUNT(AV15:AZ15)=5,((SUM(AV15:AZ15)-MIN(AV15:AZ15)-MAX(AV15:AZ15))/3),"Data Error") -> 61.33333333 | BY15: =IF(COUNT(AW15:BA15)=5,((SUM(AW15:BA15)-MIN(AW15:BA15)-MAX(AW15:BA15))/3),"Data Error") -> 61.8 | BZ15: =IF(COUNT(AX15:BB15)=5,((SUM(AX15:BB15)-MIN(AX15:BB15)-MAX(AX15:BB15))/3),"Data Error") -> 61.09893333 | CA15: =IF(COUNT(AY15:BC15)=5,((SUM(AY15:BC15)-MIN(AY15:BC15)-MAX(AY15:BC15))/3),"Data Error") -> 61.0158512
A16: CASS | B16: 140 | C16: 129 | D16: 159 | E16: 124 | F16: 148 | G16: 163 | H16: 168.5 | I16: 168 | J16: 139.3 | K16: 160.8 | L16: =(198+143)/2 -> 170.5 | M16: 159.3 | N16: =AVERAGE(I16:M16)*(1+'2014 Farm Bill Calculator'!$B$20)*N$87 -> 122.0787 | O16: =AVERAGE(J16:N16)*(1+'2014 Farm Bill Calculator'!$B$20) -> 153.4036548 | P16: =AVERAGE(K16:O16)*(1+'2014 Farm Bill Calculator'!$B$20) -> 156.2808004 | Q16: =AVERAGE(B16:K16) -> 149.96 | R16: =AVERAGE(C16:L16) -> 153.01 | S16: =AVERAGE(D16:M16) -> 156.04 | T16: =AVERAGE(E16:N16) -> 152.34787 | U16: =AVERAGE(F16:O16) -> 155.2882355 | V16: 43 | W16: 35 | X16: 49 | Y16: 44 | Z16: 33.5 | AA16: 35 | AB16: 45 | AC16: 42 | AD16: 43 | AE16: 41 | AF16: =(58+40)/2 -> 49 | AG16: 50.1 | AH16: =AVERAGE(AC16:AG16)*(1+'2014 Farm Bill Calculator'!$B$21)*AH$87 -> 34.10265 | AI16: =AVERAGE(AD16:AH16)*(1+'2014 Farm Bill Calculator'!$B$21) -> 43.8749353 | AJ16: =AVERAGE(AE16:AI16)*(1+'2014 Farm Bill Calculator'!$B$21) -> 44.05167223 | AK16: =AVERAGE(V16:AE16) -> 41.05 | AL16: =AVERAGE(W16:AF16) -> 41.65 | AM16: =AVERAGE(X16:AG16) -> 43.16 | AN16: =AVERAGE(Y16:AH16) -> 41.670265 | AO16: =AVERAGE(Z16:AI16) -> 41.65775853 | AP16: 52 | AQ16: 51 | AR16: 60 | AS16: 50 | AT16: 36 | AU16: 60 | AV16: 54 | AW16: 68 | AX16: 50 | AY16: 53 | AZ16: 67 | BA16: 64.3 | BB16: =AVERAGE(AW16:BA16)*(1+'2014 Farm Bill Calculator'!$B$22) -> 61.0646 | BC16: =AVERAGE(AX16:BB16)*(1+'2014 Farm Bill Calculator'!$B$22) -> 59.6636492 | BD16: =AVERAGE(AY16:BC16)*(1+'2014 Farm Bill Calculator'!$B$22) -> 61.61570634 | BE16: =AVERAGE(AP16:AY16) -> 53.4 | BF16: =AVERAGE(AQ16:AZ16) -> 54.9 | BG16: =AVERAGE(AR16:BA16) -> 56.23 | BH16: =AVERAGE(AS16:BB16) -> 56.33646 | BI16: =AVERAGE(AT16:BC16) -> 57.30282492 | BK16: =IF(COUNT(G16:K16)=5,((SUM(G16:K16)-MIN(G16:K16)-MAX(G16:K16))/3),"Data Error") -> 163.9333333 | BL16: =IF(COUNT(H16:L16)=5,((SUM(H16:L16)-MIN(H16:L16)-MAX(H16:L16))/3),"Data Error") -> 165.7666667 | BM16: =IF(COUNT(I16:M16)=5,((SUM(I16:M16)-MIN(I16:M16)-MAX(I16:M16))/3),"Data Error") -> 162.7 | BN16: =IF(COUNT(J16:N16)=5,((SUM(J16:N16)-MIN(J16:N16)-MAX(J16:N16))/3),"Data Error") -> 153.1333333 | BO16: =IF(COUNT(K16:O16)=5,((SUM(K16:O16)-MIN(K16:O16)-MAX(K16:O16))/3),"Data Error") -> 157.8345516 | BQ16: =IF(COUNT(AA16:AE16)=5,((SUM(AA16:AE16)-MIN(AA16:AE16)-MAX(AA16:AE16))/3),"Data Error") -> 42 | BR16: =IF(COUNT(AB16:AF16)=5,((SUM(AB16:AF16)-MIN(AB16:AF16)-MAX(AB16:AF16))/3),"Data Error") -> 43.33333333 | BS16: =IF(COUNT(AC16:AG16)=5,((SUM(AC16:AG16)-MIN(AC16:AG16)-MAX(AC16:AG16))/3),"Data Error") -> 44.66666667 | BT16: =IF(COUNT(AD16:AH16)=5,((SUM(AD16:AH16)-MIN(AD16:AH16)-MAX(AD16:AH16))/3),"Data Error") -> 44.33333333 | BU16: =IF(COUNT(AE16:AI16)=5,((SUM(AE16:AI16)-MIN(AE16:AI16)-MAX(AE16:AI16))/3),"Data Error") -> 44.62497843 | BW16: =IF(COUNT(AU16:AY16)=5,((SUM(AU16:AY16)-MIN(AU16:AY16)-MAX(AU16:AY16))/3),"Data Error") -> 55.66666667 | BX16: =IF(COUNT(AV16:AZ16)=5,((SUM(AV16:AZ16)-MIN(AV16:AZ16)-MAX(AV16:AZ16))/3),"Data Error") -> 58 | BY16: =IF(COUNT(AW16:BA16)=5,((SUM(AW16:BA16)-MIN(AW16:BA16)-MAX(AW16:BA16))/3),"Data Error") -> 61.43333333 | BZ16: =IF(COUNT(AX16:BB16)=5,((SUM(AX16:BB16)-MIN(AX16:BB16)-MAX(AX16:BB16))/3),"Data Error") -> 59.45486667 | CA16: =IF(COUNT(AY16:BC16)=5,((SUM(AY16:BC16)-MIN(AY16:BC16)-MAX(AY16:BC16))/3),"Data Error") -> 61.67608307
A17: CHARLEVOIX | B17: 108 | C17: 92 | D17: 110 | E17: 81 | F17: 79 | G17: 116 | H17: 115 | I17: 106 | J17: 111 | K17: 122 | L17: 104 | M17: 97.6 | N17: =AVERAGE(I17:M17)*(1+'2014 Farm Bill Calculator'!$B$20)*N$87 -> 82.7118 | O17: =AVERAGE(J17:N17)*(1+'2014 Farm Bill Calculator'!$B$20) -> 105.5316072 | P17: =AVERAGE(K17:O17)*(1+'2014 Farm Bill Calculator'!$B$20) -> 104.4160551 | Q17: =AVERAGE(B17:K17) -> 104 | R17: =AVERAGE(C17:L17) -> 103.6 | S17: =AVERAGE(D17:M17) -> 104.16 | T17: =AVERAGE(E17:N17) -> 101.43118 | U17: =AVERAGE(F17:O17) -> 103.8843407 | Y17: 16 | AA17: 0.1 | AB17: =AA17 -> 0.1 | AC17: =AB17 -> 0.1 | AD17: =AC17 -> 0.1 | AE17: =AD17 -> 0.1 | AF17: 36 | AG17: =AVERAGE(AB17:AF17)*(1+'2014 Farm Bill Calculator'!$B$21) -> 7.3528 | AH17: =AVERAGE(AC17:AG17)*(1+'2014 Farm Bill Calculator'!$B$21)*AH$87 -> 6.6133992 | AI17: =AVERAGE(AD17:AH17)*(1+'2014 Farm Bill Calculator'!$B$21) -> 10.13357224 | AJ17: =AVERAGE(AE17:AI17)*(1+'2014 Farm Bill Calculator'!$B$21) -> 12.16035383 | AK17: =AVERAGE(V17:AE17) -> 2.75 | AL17: =AVERAGE(W17:AF17) -> 7.5 | AM17: =AVERAGE(X17:AG17) -> 7.4816 | AN17: =AVERAGE(Y17:AH17) -> 7.385133244 | AO17: =AVERAGE(Z17:AI17) -> 6.733307938 | AU17: 0.1 | AV17: =AU17 -> 0.1 | AW17: =AV17 -> 0.1 | AX17: =AW17 -> 0.1 | AY17: =AX17 -> 0.1 | AZ17: 54 | BA17: =AVERAGE(AV17:AZ17)*(1+'2014 Farm Bill Calculator'!$B$22) -> 10.9888 | BB17: =AVERAGE(AW17:BA17)*(1+'2014 Farm Bill Calculator'!$B$22) -> 13.1883376 | BC17: =AVERAGE(AX17:BB17)*(1+'2014 Farm Bill Calculator'!$B$22) -> 15.8321818 | BD17: =AVERAGE(AY17:BC17)*(1+'2014 Farm Bill Calculator'!$B$22) -> 19.01008252 | BE17: =AVERAGE(AP17:AY17) -> 0.1 | BF17: =AVERAGE(AQ17:AZ17) -> 9.083333333 | BG17: =AVERAGE(AR17:BA17) -> 9.355542857 | BH17: =AVERAGE(AS17:BB17) -> 9.8346422 | BI17: =AVERAGE(AT17:BC17) -> 10.50103549 | BK17: =IF(COUNT(G17:K17)=5,((SUM(G17:K17)-MIN(G17:K17)-MAX(G17:K17))/3),"Data Error") -> 114 | BL17: =IF(COUNT(H17:L17)=5,((SUM(H17:L17)-MIN(H17:L17)-MAX(H17:L17))/3),"Data Error") -> 110.6666667 | BM17: =IF(COUNT(I17:M17)=5,((SUM(I17:M17)-MIN(I17:M17)-MAX(I17:M17))/3),"Data Error") -> 107 | BN17: =IF(COUNT(J17:N17)=5,((SUM(J17:N17)-MIN(J17:N17)-MAX(J17:N17))/3),"Data Error") -> 104.2 | BO17: =IF(COUNT(K17:O17)=5,((SUM(K17:O17)-MIN(K17:O17)-MAX(K17:O17))/3),"Data Error") -> 102.3772024 | BQ17: =IF(COUNT(AA17:AE17)=5,((SUM(AA17:AE17)-MIN(AA17:AE17)-MAX(AA17:AE17))/3),"Data Error") -> 0.1 | BR17: =IF(COUNT(AB17:AF17)=5,((SUM(AB17:AF17)-MIN(AB17:AF17)-MAX(AB17:AF17))/3),"Data Error") -> 0.1 | BS17: =IF(COUNT(AC17:AG17)=5,((SUM(AC17:AG17)-MIN(AC17:AG17)-MAX(AC17:AG17))/3),"Data Error") -> 2.5176 | BT17: =IF(COUNT(AD17:AH17)=5,((SUM(AD17:AH17)-MIN(AD17:AH17)-MAX(AD17:AH17))/3),"Data Error") -> 4.688733067 | BU17: =IF(COUNT(AE17:AI17)=5,((SUM(AE17:AI17)-MIN(AE17:AI17)-MAX(AE17:AI17))/3),"Data Error") -> 8.033257146 | BW17: =IF(COUNT(AU17:AY17)=5,((SUM(AU17:AY17)-MIN(AU17:AY17)-MAX(AU17:AY17))/3),"Data Error") -> 0.1 | BX17: =IF(COUNT(AV17:AZ17)=5,((SUM(AV17:AZ17)-MIN(AV17:AZ17)-MAX(AV17:AZ17))/3),"Data Error") -> 0.1 | BY17: =IF(COUNT(AW17:BA17)=5,((SUM(AW17:BA17)-MIN(AW17:BA17)-MAX(AW17:BA17))/3),"Data Error") -> 3.7296 | BZ17: =IF(COUNT(AX17:BB17)=5,((SUM(AX17:BB17)-MIN(AX17:BB17)-MAX(AX17:BB17))/3),"Data Error") -> 8.0923792 | CA17: =IF(COUNT(AY17:BC17)=5,((SUM(AY17:BC17)-MIN(AY17:BC17)-MAX(AY17:BC17))/3),"Data Error") -> 13.3364398
A18: CHEBOYGAN | G18: 64 | H18: 133 | I18: 110 | J18: 120 | K18: 113 | L18: 138 | M18: 109.1 | N18: =AVERAGE(I18:M18)*(1+'2014 Farm Bill Calculator'!$B$20)*N$87 -> 90.2853 | O18: =AVERAGE(J18:N18)*(1+'2014 Farm Bill Calculator'!$B$20) -> 116.3586012 | P18: =AVERAGE(K18:O18)*(1+'2014 Farm Bill Calculator'!$B$20) -> 115.6157558 | Q18: =AVERAGE(B18:K18) -> 108 | R18: =AVERAGE(C18:L18) -> 113 | S18: =AVERAGE(D18:M18) -> 112.4428571 | T18: =AVERAGE(E18:N18) -> 109.6731625 | U18: =AVERAGE(F18:O18) -> 110.415989 | AA18: 0.1 | AB18: =AA18 -> 0.1 | AC18: =AB18 -> 0.1 | AD18: =AC18 -> 0.1 | AE18: =AD18 -> 0.1 | AF18: 30 | AG18: =AVERAGE(AB18:AF18)*(1+'2014 Farm Bill Calculator'!$B$21) -> 6.1408 | AH18: =AVERAGE(AC18:AG18)*(1+'2014 Farm Bill Calculator'!$B$21)*AH$87 -> 5.5207812 | AI18: =AVERAGE(AD18:AH18)*(1+'2014 Farm Bill Calculator'!$B$21) -> 8.456039402 | AJ18: =AVERAGE(AE18:AI18)*(1+'2014 Farm Bill Calculator'!$B$21) -> 10.14395936 | AK18: =AVERAGE(V18:AE18) -> 0.1 | AL18: =AVERAGE(W18:AF18) -> 5.083333333 | AM18: =AVERAGE(X18:AG18) -> 5.2344 | AN18: =AVERAGE(Y18:AH18) -> 5.27019765 | AO18: =AVERAGE(Z18:AI18) -> 5.624180067 | AU18: 0.1 | AV18: =AU18 -> 0.1 | AW18: =AV18 -> 0.1 | AX18: =AW18 -> 0.1 | AY18: =AX18 -> 0.1 | AZ18: 52 | BA18: =AVERAGE(AV18:AZ18)*(1+'2014 Farm Bill Calculator'!$B$22) -> 10.5848 | BB18: =AVERAGE(AW18:BA18)*(1+'2014 Farm Bill Calculator'!$B$22) -> 12.7027296 | BC18: =AVERAGE(AX18:BB18)*(1+'2014 Farm Bill Calculator'!$B$22) -> 15.24848098 | BD18: =AVERAGE(AY18:BC18)*(1+'2014 Farm Bill Calculator'!$B$22) -> 18.30847414 | BE18: =AVERAGE(AP18:AY18) -> 0.1 | BF18: =AVERAGE(AQ18:AZ18) -> 8.75 | BG18: =AVERAGE(AR18:BA18) -> 9.012114286 | BH18: =AVERAGE(AS18:BB18) -> 9.4734412 | BI18: =AVERAGE(AT18:BC18) -> 10.11511229 | BK18: =IF(COUNT(G18:K18)=5,((SUM(G18:K18)-MIN(G18:K18)-MAX(G18:K18))/3),"Data Error") -> 114.3333333 | BL18: =IF(COUNT(H18:L18)=5,((SUM(H18:L18)-MIN(H18:L18)-MAX(H18:L18))/3),"Data Error") -> 122 | BM18: =IF(COUNT(I18:M18)=5,((SUM(I18:M18)-MIN(I18:M18)-MAX(I18:M18))/3),"Data Error") -> 114.3333333 | BN18: =IF(COUNT(J18:N18)=5,((SUM(J18:N18)-MIN(J18:N18)-MAX(J18:N18))/3),"Data Error") -> 114.0333333 | BO18: =IF(COUNT(K18:O18)=5,((SUM(K18:O18)-MIN(K18:O18)-MAX(K18:O18))/3),"Data Error") -> 112.8195337 | BQ18: =IF(COUNT(AA18:AE18)=5,((SUM(AA18:AE18)-MIN(AA18:AE18)-MAX(AA18:AE18))/3),"Data Error") -> 0.1 | BR18: =IF(COUNT(AB18:AF18)=5,((SUM(AB18:AF18)-MIN(AB18:AF18)-MAX(AB18:AF18))/3),"Data Error") -> 0.1 | BS18: =IF(COUNT(AC18:AG18)=5,((SUM(AC18:AG18)-MIN(AC18:AG18)-MAX(AC18:AG18))/3),"Data Error") -> 2.1136 | BT18: =IF(COUNT(AD18:AH18)=5,((SUM(AD18:AH18)-MIN(AD18:AH18)-MAX(AD18:AH18))/3),"Data Error") -> 3.920527067 | BU18: =IF(COUNT(AE18:AI18)=5,((SUM(AE18:AI18)-MIN(AE18:AI18)-MAX(AE18:AI18))/3),"Data Error") -> 6.705873534 | BW18: =IF(COUNT(AU18:AY18)=5,((SUM(AU18:AY18)-MIN(AU18:AY18)-MAX(AU18:AY18))/3),"Data Error") -> 0.1 | BX18: =IF(COUNT(AV18:AZ18)=5,((SUM(AV18:AZ18)-MIN(AV18:AZ18)-MAX(AV18:AZ18))/3),"Data Error") -> 0.1 | BY18: =IF(COUNT(AW18:BA18)=5,((SUM(AW18:BA18)-MIN(AW18:BA18)-MAX(AW18:BA18))/3),"Data Error") -> 3.594933333 | BZ18: =IF(COUNT(AX18:BB18)=5,((SUM(AX18:BB18)-MIN(AX18:BB18)-MAX(AX18:BB18))/3),"Data Error") -> 7.7958432 | CA18: =IF(COUNT(AY18:BC18)=5,((SUM(AY18:BC18)-MIN(AY18:BC18)-MAX(AY18:BC18))/3),"Data Error") -> 12.84533686
A19: CHIPPEWA | G19: 0.1 | H19: =G19 -> 0.1 | I19: =H19 -> 0.1 | J19: =I19 -> 0.1 | K19: =J19 -> 0.1 | L19: 38 | M19: =AVERAGE(H19:L19)*(1+'2014 Farm Bill Calculator'!$B$20) -> 7.8336 | N19: =AVERAGE(I19:M19)*(1+'2014 Farm Bill Calculator'!$B$20)*N$87 -> 7.0584408 | O19: =AVERAGE(J19:N19)*(1+'2014 Farm Bill Calculator'!$B$20) -> 10.83077632 | P19: =AVERAGE(K19:O19)*(1+'2014 Farm Bill Calculator'!$B$20) -> 13.01985469 | Q19: =AVERAGE(B19:K19) -> 0.1 | R19: =AVERAGE(C19:L19) -> 6.416666667 | S19: =AVERAGE(D19:M19) -> 6.619085714 | T19: =AVERAGE(E19:N19) -> 6.6740051 | U19: =AVERAGE(F19:O19) -> 7.135868569 | AA19: 0.1 | AB19: =AA19 -> 0.1 | AC19: =AB19 -> 0.1 | AD19: =AC19 -> 0.1 | AE19: =AD19 -> 0.1 | AF19: 24 | AG19: =AVERAGE(AB19:AF19)*(1+'2014 Farm Bill Calculator'!$B$21) -> 4.9288 | AH19: =AVERAGE(AC19:AG19)*(1+'2014 Farm Bill Calculator'!$B$21)*AH$87 -> 4.4281632 | AI19: =AVERAGE(AD19:AH19)*(1+'2014 Farm Bill Calculator'!$B$21) -> 6.778506566 | AJ19: =AVERAGE(AE19:AI19)*(1+'2014 Farm Bill Calculator'!$B$21) -> 8.127564893 | AK19: =AVERAGE(V19:AE19) -> 0.1 | AL19: =AVERAGE(W19:AF19) -> 4.083333333 | AM19: =AVERAGE(X19:AG19) -> 4.204114286 | AN19: =AVERAGE(Y19:AH19) -> 4.2321204 | AO19: =AVERAGE(Z19:AI19) -> 4.515052196 | AR19: 33 | AU19: 0.1 | AV19: =AU19 -> 0.1 | AW19: =AV19 -> 0.1 | AX19: =AW19 -> 0.1 | AY19: =AX19 -> 0.1 | AZ19: 47 | BA19: =AVERAGE(AV19:AZ19)*(1+'2014 Farm Bill Calculator'!$B$22) -> 9.5748 | BB19: =AVERAGE(AW19:BA19)*(1+'2014 Farm Bill Calculator'!$B$22) -> 11.4887096 | BC19: =AVERAGE(AX19:BB19)*(1+'2014 Farm Bill Calculator'!$B$22) -> 13.78922894 | BD19: =AVERAGE(AY19:BC19)*(1+'2014 Farm Bill Calculator'!$B$22) -> 16.55445318 | BE19: =AVERAGE(AP19:AY19) -> 5.583333333 | BF19: =AVERAGE(AQ19:AZ19) -> 11.5 | BG19: =AVERAGE(AR19:BA19) -> 11.25935 | BH19: =AVERAGE(AS19:BB19) -> 8.5704387 | BI19: =AVERAGE(AT19:BC19) -> 9.150304282 | BK19: =IF(COUNT(G19:K19)=5,((SUM(G19:K19)-MIN(G19:K19)-MAX(G19:K19))/3),"Data Error") -> 0.1 | BL19: =IF(COUNT(H19:L19)=5,((SUM(H19:L19)-MIN(H19:L19)-MAX(H19:L19))/3),"Data Error") -> 0.1 | BM19: =IF(COUNT(I19:M19)=5,((SUM(I19:M19)-MIN(I19:M19)-MAX(I19:M19))/3),"Data Error") -> 2.677866667 | BN19: =IF(COUNT(J19:N19)=5,((SUM(J19:N19)-MIN(J19:N19)-MAX(J19:N19))/3),"Data Error") -> 4.997346933 | BO19: =IF(COUNT(K19:O19)=5,((SUM(K19:O19)-MIN(K19:O19)-MAX(K19:O19))/3),"Data Error") -> 8.574272374 | BQ19: =IF(COUNT(AA19:AE19)=5,((SUM(AA19:AE19)-MIN(AA19:AE19)-MAX(AA19:AE19))/3),"Data Error") -> 0.1 | BR19: =IF(COUNT(AB19:AF19)=5,((SUM(AB19:AF19)-MIN(AB19:AF19)-MAX(AB19:AF19))/3),"Data Error") -> 0.1 | BS19: =IF(COUNT(AC19:AG19)=5,((SUM(AC19:AG19)-MIN(AC19:AG19)-MAX(AC19:AG19))/3),"Data Error") -> 1.7096 | BT19: =IF(COUNT(AD19:AH19)=5,((SUM(AD19:AH19)-MIN(AD19:AH19)-MAX(AD19:AH19))/3),"Data Error") -> 3.152321067 | BU19: =IF(COUNT(AE19:AI19)=5,((SUM(AE19:AI19)-MIN(AE19:AI19)-MAX(AE19:AI19))/3),"Data Error") -> 5.378489922 | BW19: =IF(COUNT(AU19:AY19)=5,((SUM(AU19:AY19)-MIN(AU19:AY19)-MAX(AU19:AY19))/3),"Data Error") -> 0.1 | BX19: =IF(COUNT(AV19:AZ19)=5,((SUM(AV19:AZ19)-MIN(AV19:AZ19)-MAX(AV19:AZ19))/3),"Data Error") -> 0.1 | BY19: =IF(COUNT(AW19:BA19)=5,((SUM(AW19:BA19)-MIN(AW19:BA19)-MAX(AW19:BA19))/3),"Data Error") -> 3.258266667 | BZ19: =IF(COUNT(AX19:BB19)=5,((SUM(AX19:BB19)-MIN(AX19:BB19)-MAX(AX19:BB19))/3),"Data Error") -> 7.0545032 | CA19: =IF(COUNT(AY19:BC19)=5,((SUM(AY19:BC19)-MIN(AY19:BC19)-MAX(AY19:BC19))/3),"Data Error") -> 11.61757951
A20: CLARE | B20: 86 | C20: 140 | D20: 112 | F20: 109 | G20: 68 | H20: 127 | I20: 123 | J20: 128 | K20: 104 | L20: 118 | M20: =AVERAGE(H20:L20)*(1+'2014 Farm Bill Calculator'!$B$20) -> 122.4 | N20: =AVERAGE(I20:M20)*(1+'2014 Farm Bill Calculator'!$B$20)*N$87 -> 91.0962 | O20: =AVERAGE(J20:N20)*(1+'2014 Farm Bill Calculator'!$B$20) -> 114.9532248 | P20: =AVERAGE(K20:O20)*(1+'2014 Farm Bill Calculator'!$B$20) -> 112.2916827 | Q20: =AVERAGE(B20:K20) -> 110.7777778 | R20: =AVERAGE(C20:L20) -> 114.3333333 | S20: =AVERAGE(D20:M20) -> 112.3777778 | T20: =AVERAGE(E20:N20) -> 110.0551333 | U20: =AVERAGE(F20:O20) -> 110.5449425 | V20: 20 | Y20: 35 | AA20: 31 | AB20: 43 | AC20: 34 | AD20: 47 | AE20: 30 | AF20: 37 | AG20: =AVERAGE(AB20:AF20)*(1+'2014 Farm Bill Calculator'!$B$21) -> 38.582 | AH20: =AVERAGE(AC20:AG20)*(1+'2014 Farm Bill Calculator'!$B$21)*AH$87 -> 28.267173 | AI20: =AVERAGE(AD20:AH20)*(1+'2014 Farm Bill Calculator'!$B$21) -> 36.53153295 | AJ20: =AVERAGE(AE20:AI20)*(1+'2014 Farm Bill Calculator'!$B$21) -> 34.4169026 | AK20: =AVERAGE(V20:AE20) -> 34.28571429 | AL20: =AVERAGE(W20:AF20) -> 36.71428571 | AM20: =AVERAGE(X20:AG20) -> 36.94775 | AN20: =AVERAGE(Y20:AH20) -> 35.98324144 | AO20: =AVERAGE(Z20:AI20) -> 36.15341177 | AQ20: 48 | AR20: 72 | AS20: 53 | AU20: 40 | AV20: 67 | AW20: 63 | AX20: 41 | AY20: 55 | AZ20: 59 | BA20: =AVERAGE(AV20:AZ20)*(1+'2014 Farm Bill Calculator'!$B$22) -> 57.57 | BB20: =AVERAGE(AW20:BA20)*(1+'2014 Farm Bill Calculator'!$B$22) -> 55.66514 | BC20: =AVERAGE(AX20:BB20)*(1+'2014 Farm Bill Calculator'!$B$22) -> 54.18349828 | BD20: =AVERAGE(AY20:BC20)*(1+'2014 Farm Bill Calculator'!$B$22) -> 56.84656493 | BE20: =AVERAGE(AP20:AY20) -> 54.875 | BF20: =AVERAGE(AQ20:AZ20) -> 55.33333333 | BG20: =AVERAGE(AR20:BA20) -> 56.39666667 | BH20: =AVERAGE(AS20:BB20) -> 54.58168222 | BI20: =AVERAGE(AT20:BC20) -> 54.71318203 | BK20: =IF(COUNT(G20:K20)=5,((SUM(G20:K20)-MIN(G20:K20)-MAX(G20:K20))/3),"Data Error") -> 118 | BL20: =IF(COUNT(H20:L20)=5,((SUM(H20:L20)-MIN(H20:L20)-MAX(H20:L20))/3),"Data Error") -> 122.6666667 | BM20: =IF(COUNT(I20:M20)=5,((SUM(I20:M20)-MIN(I20:M20)-MAX(I20:M20))/3),"Data Error") -> 121.1333333 | BN20: =IF(COUNT(J20:N20)=5,((SUM(J20:N20)-MIN(J20:N20)-MAX(J20:N20))/3),"Data Error") -> 114.8 | BO20: =IF(COUNT(K20:O20)=5,((SUM(K20:O20)-MIN(K20:O20)-MAX(K20:O20))/3),"Data Error") -> 112.3177416 | BQ20: =IF(COUNT(AA20:AE20)=5,((SUM(AA20:AE20)-MIN(AA20:AE20)-MAX(AA20:AE20))/3),"Data Error") -> 36 | BR20: =IF(COUNT(AB20:AF20)=5,((SUM(AB20:AF20)-MIN(AB20:AF20)-MAX(AB20:AF20))/3),"Data Error") -> 38 | BS20: =IF(COUNT(AC20:AG20)=5,((SUM(AC20:AG20)-MIN(AC20:AG20)-MAX(AC20:AG20))/3),"Data Error") -> 36.52733333 | BT20: =IF(COUNT(AD20:AH20)=5,((SUM(AD20:AH20)-MIN(AD20:AH20)-MAX(AD20:AH20))/3),"Data Error") -> 35.194 | BU20: =IF(COUNT(AE20:AI20)=5,((SUM(AE20:AI20)-MIN(AE20:AI20)-MAX(AE20:AI20))/3),"Data Error") -> 34.51051098 | BW20: =IF(COUNT(AU20:AY20)=5,((SUM(AU20:AY20)-MIN(AU20:AY20)-MAX(AU20:AY20))/3),"Data Error") -> 53 | BX20: =IF(COUNT(AV20:AZ20)=5,((SUM(AV20:AZ20)-MIN(AV20:AZ20)-MAX(AV20:AZ20))/3),"Data Error") -> 59 | BY20: =IF(COUNT(AW20:BA20)=5,((SUM(AW20:BA20)-MIN(AW20:BA20)-MAX(AW20:BA20))/3),"Data Error") -> 57.19 | BZ20: =IF(COUNT(AX20:BB20)=5,((SUM(AX20:BB20)-MIN(AX20:BB20)-MAX(AX20:BB20))/3),"Data Error") -> 56.07838 | CA20: =IF(COUNT(AY20:BC20)=5,((SUM(AY20:BC20)-MIN(AY20:BC20)-MAX(AY20:BC20))/3),"Data Error") -> 56.07838
A21: CLINTON | B21: 144 | C21: 139 | D21: 149 | E21: 124 | F21: 142 | G21: 145 | H21: 132 | I21: 149 | J21: 148 | K21: 122 | L21: 149 | M21: 171.7 | N21: =AVERAGE(I21:M21)*(1+'2014 Farm Bill Calculator'!$B$20)*N$87 -> 113.1741 | O21: =AVERAGE(J21:N21)*(1+'2014 Farm Bill Calculator'!$B$20) -> 143.5903164 | P21: =AVERAGE(K21:O21)*(1+'2014 Farm Bill Calculator'!$B$20) -> 142.6907409 | Q21: =AVERAGE(B21:K21) -> 139.4 | R21: =AVERAGE(C21:L21) -> 139.9 | S21: =AVERAGE(D21:M21) -> 143.17 | T21: =AVERAGE(E21:N21) -> 139.58741 | U21: =AVERAGE(F21:O21) -> 141.5464416 | V21: 40 | W21: 34 | X21: 46 | Y21: 39 | Z21: 39 | AA21: 42 | AB21: 39 | AC21: 45 | AD21: 47 | AE21: 41 | AF21: 45 | AG21: 52.3 | AH21: =AVERAGE(AC21:AG21)*(1+'2014 Farm Bill Calculator'!$B$21)*AH$87 -> 34.89045 | AI21: =AVERAGE(AD21:AH21)*(1+'2014 Farm Bill Calculator'!$B$21) -> 44.4784709 | AJ21: =AVERAGE(AE21:AI21)*(1+'2014 Farm Bill Calculator'!$B$21) -> 43.96912202 | AK21: =AVERAGE(V21:AE21) -> 41.2 | AL21: =AVERAGE(W21:AF21) -> 41.7 | AM21: =AVERAGE(X21:AG21) -> 43.53 | AN21: =AVERAGE(Y21:AH21) -> 42.419045 | AO21: =AVERAGE(Z21:AI21) -> 42.96689209 | AP21: 65 | AQ21: 73 | AR21: 76 | AS21: 63 | AT21: 70 | AU21: 67 | AV21: 66 | AW21: 81 | AX21: 79 | AY21: 82 | AZ21: 81 | BA21: 89.3 | BB21: =AVERAGE(AW21:BA21)*(1+'2014 Farm Bill Calculator'!$B$22) -> 83.2846 | BC21: =AVERAGE(AX21:BB21)*(1+'2014 Farm Bill Calculator'!$B$22) -> 83.7460892 | BD21: =AVERAGE(AY21:BC21)*(1+'2014 Farm Bill Calculator'!$B$22) -> 84.70479922 | BE21: =AVERAGE(AP21:AY21) -> 72.2 | BF21: =AVERAGE(AQ21:AZ21) -> 73.8 | BG21: =AVERAGE(AR21:BA21) -> 75.43 | BH21: =AVERAGE(AS21:BB21) -> 76.15846 | BI21: =AVERAGE(AT21:BC21) -> 78.23306892 | BK21: =IF(COUNT(G21:K21)=5,((SUM(G21:K21)-MIN(G21:K21)-MAX(G21:K21))/3),"Data Error") -> 141.6666667 | BL21: =IF(COUNT(H21:L21)=5,((SUM(H21:L21)-MIN(H21:L21)-MAX(H21:L21))/3),"Data Error") -> 143 | BM21: =IF(COUNT(I21:M21)=5,((SUM(I21:M21)-MIN(I21:M21)-MAX(I21:M21))/3),"Data Error") -> 148.6666667 | BN21: =IF(COUNT(J21:N21)=5,((SUM(J21:N21)-MIN(J21:N21)-MAX(J21:N21))/3),"Data Error") -> 139.6666667 | BO21: =IF(COUNT(K21:O21)=5,((SUM(K21:O21)-MIN(K21:O21)-MAX(K21:O21))/3),"Data Error") -> 138.1967721 | BQ21: =IF(COUNT(AA21:AE21)=5,((SUM(AA21:AE21)-MIN(AA21:AE21)-MAX(AA21:AE21))/3),"Data Error") -> 42.66666667 | BR21: =IF(COUNT(AB21:AF21)=5,((SUM(AB21:AF21)-MIN(AB21:AF21)-MAX(AB21:AF21))/3),"Data Error") -> 43.66666667 | BS21: =IF(COUNT(AC21:AG21)=5,((SUM(AC21:AG21)-MIN(AC21:AG21)-MAX(AC21:AG21))/3),"Data Error") -> 45.66666667 | BT21: =IF(COUNT(AD21:AH21)=5,((SUM(AD21:AH21)-MIN(AD21:AH21)-MAX(AD21:AH21))/3),"Data Error") -> 44.33333333 | BU21: =IF(COUNT(AE21:AI21)=5,((SUM(AE21:AI21)-MIN(AE21:AI21)-MAX(AE21:AI21))/3),"Data Error") -> 43.49282363 | BW21: =IF(COUNT(AU21:AY21)=5,((SUM(AU21:AY21)-MIN(AU21:AY21)-MAX(AU21:AY21))/3),"Data Error") -> 75.66666667 | BX21: =IF(COUNT(AV21:AZ21)=5,((SUM(AV21:AZ21)-MIN(AV21:AZ21)-MAX(AV21:AZ21))/3),"Data Error") -> 80.33333333 | BY21: =IF(COUNT(AW21:BA21)=5,((SUM(AW21:BA21)-MIN(AW21:BA21)-MAX(AW21:BA21))/3),"Data Error") -> 81.33333333 | BZ21: =IF(COUNT(AX21:BB21)=5,((SUM(AX21:BB21)-MIN(AX21:BB21)-MAX(AX21:BB21))/3),"Data Error") -> 82.09486667 | CA21: =IF(COUNT(AY21:BC21)=5,((SUM(AY21:BC21)-MIN(AY21:BC21)-MAX(AY21:BC21))/3),"Data Error") -> 83.01022973
A22: CRAWFORD | G22: 0.1 | H22: =G22 -> 0.1 | I22: =H22 -> 0.1 | J22: =I22 -> 0.1 | K22: =J22 -> 0.1 | L22: =AVERAGE(G22:K22)*(1+'2014 Farm Bill Calculator'!$B$20) -> 0.102 | M22: =AVERAGE(H22:L22)*(1+'2014 Farm Bill Calculator'!$B$20) -> 0.102408 | N22: =AVERAGE(I22:M22)*(1+'2014 Farm Bill Calculator'!$B$20)*N$87 -> 0.077174424 | O22: =AVERAGE(J22:N22)*(1+'2014 Farm Bill Calculator'!$B$20) -> 0.0982428145 | P22: =AVERAGE(K22:O22)*(1+'2014 Farm Bill Calculator'!$B$20) -> 0.09788434865 | Q22: =AVERAGE(B22:K22) -> 0.1 | R22: =AVERAGE(C22:L22) -> 0.1003333333 | S22: =AVERAGE(D22:M22) -> 0.1006297143 | T22: =AVERAGE(E22:N22) -> 0.097697803 | U22: =AVERAGE(F22:O22) -> 0.09775835983 | AA22: 0.1 | AB22: =AA22 -> 0.1 | AC22: =AB22 -> 0.1 | AD22: =AC22 -> 0.1 | AE22: =AD22 -> 0.1 | AF22: =AVERAGE(AA22:AE22)*(1+'2014 Farm Bill Calculator'!$B$21) -> 0.101 | AG22: =AVERAGE(AB22:AF22)*(1+'2014 Farm Bill Calculator'!$B$21) -> 0.101202 | AH22: =AVERAGE(AC22:AG22)*(1+'2014 Farm Bill Calculator'!$B$21)*AH$87 -> 0.076083603 | AI22: =AVERAGE(AD22:AH22)*(1+'2014 Farm Bill Calculator'!$B$21) -> 0.09661369181 | AJ22: =AVERAGE(AE22:AI22)*(1+'2014 Farm Bill Calculator'!$B$21) -> 0.09592965755 | AK22: =AVERAGE(V22:AE22) -> 0.1 | AL22: =AVERAGE(W22:AF22) -> 0.1001666667 | AM22: =AVERAGE(X22:AG22) -> 0.1003145714 | AN22: =AVERAGE(Y22:AH22) -> 0.09728570038 | AO22: =AVERAGE(Z22:AI22) -> 0.09721103276 | AU22: 0.1 | AV22: =AU22 -> 0.1 | AW22: =AV22 -> 0.1 | AX22: =AW22 -> 0.1 | AY22: =AX22 -> 0.1 | AZ22: =AVERAGE(AU22:AY22)*(1+'2014 Farm Bill Calculator'!$B$22) -> 0.101 | BA22: =AVERAGE(AV22:AZ22)*(1+'2014 Farm Bill Calculator'!$B$22) -> 0.101202 | BB22: =AVERAGE(AW22:BA22)*(1+'2014 Farm Bill Calculator'!$B$22) -> 0.101444804 | BC22: =AVERAGE(AX22:BB22)*(1+'2014 Farm Bill Calculator'!$B$22) -> 0.1017366544 | BD22: =AVERAGE(AY22:BC22)*(1+'2014 Farm Bill Calculator'!$B$22) -> 0.1020874586 | BE22: =AVERAGE(AP22:AY22) -> 0.1 | BF22: =AVERAGE(AQ22:AZ22) -> 0.1001666667 | BG22: =AVERAGE(AR22:BA22) -> 0.1003145714 | BH22: =AVERAGE(AS22:BB22) -> 0.1004558505 | BI22: =AVERAGE(AT22:BC22) -> 0.100598162 | BK22: =IF(COUNT(G22:K22)=5,((SUM(G22:K22)-MIN(G22:K22)-MAX(G22:K22))/3),"Data Error") -> 0.1 | BL22: =IF(COUNT(H22:L22)=5,((SUM(H22:L22)-MIN(H22:L22)-MAX(H22:L22))/3),"Data Error") -> 0.1 | BM22: =IF(COUNT(I22:M22)=5,((SUM(I22:M22)-MIN(I22:M22)-MAX(I22:M22))/3),"Data Error") -> 0.1006666667 | BN22: =IF(COUNT(J22:N22)=5,((SUM(J22:N22)-MIN(J22:N22)-MAX(J22:N22))/3),"Data Error") -> 0.1006666667 | BO22: =IF(COUNT(K22:O22)=5,((SUM(K22:O22)-MIN(K22:O22)-MAX(K22:O22))/3),"Data Error") -> 0.1000809382 | BQ22: =IF(COUNT(AA22:AE22)=5,((SUM(AA22:AE22)-MIN(AA22:AE22)-MAX(AA22:AE22))/3),"Data Error") -> 0.1 | BR22: =IF(COUNT(AB22:AF22)=5,((SUM(AB22:AF22)-MIN(AB22:AF22)-MAX(AB22:AF22))/3),"Data Error") -> 0.1 | BS22: =IF(COUNT(AC22:AG22)=5,((SUM(AC22:AG22)-MIN(AC22:AG22)-MAX(AC22:AG22))/3),"Data Error") -> 0.1003333333 | BT22: =IF(COUNT(AD22:AH22)=5,((SUM(AD22:AH22)-MIN(AD22:AH22)-MAX(AD22:AH22))/3),"Data Error") -> 0.1003333333 | BU22: =IF(COUNT(AE22:AI22)=5,((SUM(AE22:AI22)-MIN(AE22:AI22)-MAX(AE22:AI22))/3),"Data Error") -> 0.09920456394 | BW22: =IF(COUNT(AU22:AY22)=5,((SUM(AU22:AY22)-MIN(AU22:AY22)-MAX(AU22:AY22))/3),"Data Error") -> 0.1 | BX22: =IF(COUNT(AV22:AZ22)=5,((SUM(AV22:AZ22)-MIN(AV22:AZ22)-MAX(AV22:AZ22))/3),"Data Error") -> 0.1 | BY22: =IF(COUNT(AW22:BA22)=5,((SUM(AW22:BA22)-MIN(AW22:BA22)-MAX(AW22:BA22))/3),"Data Error") -> 0.1003333333 | BZ22: =IF(COUNT(AX22:BB22)=5,((SUM(AX22:BB22)-MIN(AX22:BB22)-MAX(AX22:BB22))/3),"Data Error") -> 0.100734 | CA22: =IF(COUNT(AY22:BC22)=5,((SUM(AY22:BC22)-MIN(AY22:BC22)-MAX(AY22:BC22))/3),"Data Error") -> 0.1012156013
A23: DELTA | B23: 59 | C23: 92 | D23: 129 | E23: 89 | F23: 64 | G23: 49 | H23: 133 | I23: 58 | J23: 99 | K23: 120 | L23: 42 | M23: 130 | N23: =AVERAGE(I23:M23)*(1+'2014 Farm Bill Calculator'!$B$20)*N$87 -> 68.697 | O23: =AVERAGE(J23:N23)*(1+'2014 Farm Bill Calculator'!$B$20) -> 93.778188 | P23: =AVERAGE(K23:O23)*(1+'2014 Farm Bill Calculator'!$B$20) -> 92.71293835 | Q23: =AVERAGE(B23:K23) -> 89.2 | R23: =AVERAGE(C23:L23) -> 87.5 | S23: =AVERAGE(D23:M23) -> 91.3 | T23: =AVERAGE(E23:N23) -> 85.2697 | U23: =AVERAGE(F23:O23) -> 85.7475188 | AA23: 0.1 | AB23: =AA23 -> 0.1 | AC23: =AB23 -> 0.1 | AD23: =AC23 -> 0.1 | AE23: =AD23 -> 0.1 | AF23: 24 | AG23: =AVERAGE(AB23:AF23)*(1+'2014 Farm Bill Calculator'!$B$21) -> 4.9288 | AH23: =AVERAGE(AC23:AG23)*(1+'2014 Farm Bill Calculator'!$B$21)*AH$87 -> 4.4281632 | AI23: =AVERAGE(AD23:AH23)*(1+'2014 Farm Bill Calculator'!$B$21) -> 6.778506566 | AJ23: =AVERAGE(AE23:AI23)*(1+'2014 Farm Bill Calculator'!$B$21) -> 8.127564893 | AK23: =AVERAGE(V23:AE23) -> 0.1 | AL23: =AVERAGE(W23:AF23) -> 4.083333333 | AM23: =AVERAGE(X23:AG23) -> 4.204114286 | AN23: =AVERAGE(Y23:AH23) -> 4.2321204 | AO23: =AVERAGE(Z23:AI23) -> 4.515052196 | AU23: 0.1 | AV23: =AU23 -> 0.1 | AW23: =AV23 -> 0.1 | AX23: =AW23 -> 0.1 | AY23: =AX23 -> 0.1 | AZ23: 47 | BA23: =AVERAGE(AV23:AZ23)*(1+'2014 Farm Bill Calculator'!$B$22) -> 9.5748 | BB23: =AVERAGE(AW23:BA23)*(1+'2014 Farm Bill Calculator'!$B$22) -> 11.4887096 | BC23: =AVERAGE(AX23:BB23)*(1+'2014 Farm Bill Calculator'!$B$22) -> 13.78922894 | BD23: =AVERAGE(AY23:BC23)*(1+'2014 Farm Bill Calculator'!$B$22) -> 16.55445318 | BE23: =AVERAGE(AP23:AY23) -> 0.1 | BF23: =AVERAGE(AQ23:AZ23) -> 7.916666667 | BG23: =AVERAGE(AR23:BA23) -> 8.153542857 | BH23: =AVERAGE(AS23:BB23) -> 8.5704387 | BI23: =AVERAGE(AT23:BC23) -> 9.150304282 | BK23: =IF(COUNT(G23:K23)=5,((SUM(G23:K23)-MIN(G23:K23)-MAX(G23:K23))/3),"Data Error") -> 92.33333333 | BL23: =IF(COUNT(H23:L23)=5,((SUM(H23:L23)-MIN(H23:L23)-MAX(H23:L23))/3),"Data Error") -> 92.33333333 | BM23: =IF(COUNT(I23:M23)=5,((SUM(I23:M23)-MIN(I23:M23)-MAX(I23:M23))/3),"Data Error") -> 92.33333333 | BN23: =IF(COUNT(J23:N23)=5,((SUM(J23:N23)-MIN(J23:N23)-MAX(J23:N23))/3),"Data Error") -> 95.899 | BO23: =IF(COUNT(K23:O23)=5,((SUM(K23:O23)-MIN(K23:O23)-MAX(K23:O23))/3),"Data Error") -> 94.158396 | BQ23: =IF(COUNT(AA23:AE23)=5,((SUM(AA23:AE23)-MIN(AA23:AE23)-MAX(AA23:AE23))/3),"Data Error") -> 0.1 | BR23: =IF(COUNT(AB23:AF23)=5,((SUM(AB23:AF23)-MIN(AB23:AF23)-MAX(AB23:AF23))/3),"Data Error") -> 0.1 | BS23: =IF(COUNT(AC23:AG23)=5,((SUM(AC23:AG23)-MIN(AC23:AG23)-MAX(AC23:AG23))/3),"Data Error") -> 1.7096 | BT23: =IF(COUNT(AD23:AH23)=5,((SUM(AD23:AH23)-MIN(AD23:AH23)-MAX(AD23:AH23))/3),"Data Error") -> 3.152321067 | BU23: =IF(COUNT(AE23:AI23)=5,((SUM(AE23:AI23)-MIN(AE23:AI23)-MAX(AE23:AI23))/3),"Data Error") -> 5.378489922 | BW23: =IF(COUNT(AU23:AY23)=5,((SUM(AU23:AY23)-MIN(AU23:AY23)-MAX(AU23:AY23))/3),"Data Error") -> 0.1 | BX23: =IF(COUNT(AV23:AZ23)=5,((SUM(AV23:AZ23)-MIN(AV23:AZ23)-MAX(AV23:AZ23))/3),"Data Error") -> 0.1 | BY23: =IF(COUNT(AW23:BA23)=5,((SUM(AW23:BA23)-MIN(AW23:BA23)-MAX(AW23:BA23))/3),"Data Error") -> 3.258266667 | BZ23: =IF(COUNT(AX23:BB23)=5,((SUM(AX23:BB23)-MIN(AX23:BB23)-MAX(AX23:BB23))/3),"Data Error") -> 7.0545032 | CA23: =IF(COUNT(AY23:BC23)=5,((SUM(AY23:BC23)-MIN(AY23:BC23)-MAX(AY23:BC23))/3),"Data Error") -> 11.61757951
A24: DICKINSON | G24: 49 | H24: 139 | I24: 49 | J24: 102 | K24: 117 | L24: 38 | M24: =AVERAGE(H24:L24)*(1+'2014 Farm Bill Calculator'!$B$20) -> 90.78 | N24: =AVERAGE(I24:M24)*(1+'2014 Farm Bill Calculator'!$B$20)*N$87 -> 60.70734 | O24: =AVERAGE(J24:N24)*(1+'2014 Farm Bill Calculator'!$B$20) -> 83.33141736 | P24: =AVERAGE(K24:O24)*(1+'2014 Farm Bill Calculator'!$B$20) -> 79.5230265 | Q24: =AVERAGE(B24:K24) -> 91.2 | R24: =AVERAGE(C24:L24) -> 82.33333333 | S24: =AVERAGE(D24:M24) -> 83.54 | T24: =AVERAGE(E24:N24) -> 80.6859175 | U24: =AVERAGE(F24:O24) -> 80.97986193 | AA24: 0.1 | AB24: =AA24 -> 0.1 | AC24: =AB24 -> 0.1 | AD24: =AC24 -> 0.1 | AE24: =AD24 -> 0.1 | AF24: =AVERAGE(AA24:AE24)*(1+'2014 Farm Bill Calculator'!$B$21) -> 0.101 | AG24: =AVERAGE(AB24:AF24)*(1+'2014 Farm Bill Calculator'!$B$21) -> 0.101202 | AH24: =AVERAGE(AC24:AG24)*(1+'2014 Farm Bill Calculator'!$B$21)*AH$87 -> 0.076083603 | AI24: =AVERAGE(AD24:AH24)*(1+'2014 Farm Bill Calculator'!$B$21) -> 0.09661369181 | AJ24: =AVERAGE(AE24:AI24)*(1+'2014 Farm Bill Calculator'!$B$21) -> 0.09592965755 | AK24: =AVERAGE(V24:AE24) -> 0.1 | AL24: =AVERAGE(W24:AF24) -> 0.1001666667 | AM24: =AVERAGE(X24:AG24) -> 0.1003145714 | AN24: =AVERAGE(Y24:AH24) -> 0.09728570038 | AO24: =AVERAGE(Z24:AI24) -> 0.09721103276 | AU24: 0.1 | AV24: =AU24 -> 0.1 | AW24: =AV24 -> 0.1 | AX24: =AW24 -> 0.1 | AY24: =AX24 -> 0.1 | AZ24: 47 | BA24: =AVERAGE(AV24:AZ24)*(1+'2014 Farm Bill Calculator'!$B$22) -> 9.5748 | BB24: =AVERAGE(AW24:BA24)*(1+'2014 Farm Bill Calculator'!$B$22) -> 11.4887096 | BC24: =AVERAGE(AX24:BB24)*(1+'2014 Farm Bill Calculator'!$B$22) -> 13.78922894 | BD24: =AVERAGE(AY24:BC24)*(1+'2014 Farm Bill Calculator'!$B$22) -> 16.55445318 | BE24: =AVERAGE(AP24:AY24) -> 0.1 | BF24: =AVERAGE(AQ24:AZ24) -> 7.916666667 | BG24: =AVERAGE(AR24:BA24) -> 8.153542857 | BH24: =AVERAGE(AS24:BB24) -> 8.5704387 | BI24: =AVERAGE(AT24:BC24) -> 9.150304282 | BK24: =IF(COUNT(G24:K24)=5,((SUM(G24:K24)-MIN(G24:K24)-MAX(G24:K24))/3),"Data Error") -> 89.33333333 | BL24: =IF(COUNT(H24:L24)=5,((SUM(H24:L24)-MIN(H24:L24)-MAX(H24:L24))/3),"Data Error") -> 89.33333333 | BM24: =IF(COUNT(I24:M24)=5,((SUM(I24:M24)-MIN(I24:M24)-MAX(I24:M24))/3),"Data Error") -> 80.59333333 | BN24: =IF(COUNT(J24:N24)=5,((SUM(J24:N24)-MIN(J24:N24)-MAX(J24:N24))/3),"Data Error") -> 84.49578 | BO24: =IF(COUNT(K24:O24)=5,((SUM(K24:O24)-MIN(K24:O24)-MAX(K24:O24))/3),"Data Error") -> 78.27291912 | BQ24: =IF(COUNT(AA24:AE24)=5,((SUM(AA24:AE24)-MIN(AA24:AE24)-MAX(AA24:AE24))/3),"Data Error") -> 0.1 | BR24: =IF(COUNT(AB24:AF24)=5,((SUM(AB24:AF24)-MIN(AB24:AF24)-MAX(AB24:AF24))/3),"Data Error") -> 0.1 | BS24: =IF(COUNT(AC24:AG24)=5,((SUM(AC24:AG24)-MIN(AC24:AG24)-MAX(AC24:AG24))/3),"Data Error") -> 0.1003333333 | BT24: =IF(COUNT(AD24:AH24)=5,((SUM(AD24:AH24)-MIN(AD24:AH24)-MAX(AD24:AH24))/3),"Data Error") -> 0.1003333333 | BU24: =IF(COUNT(AE24:AI24)=5,((SUM(AE24:AI24)-MIN(AE24:AI24)-MAX(AE24:AI24))/3),"Data Error") -> 0.09920456394 | BW24: =IF(COUNT(AU24:AY24)=5,((SUM(AU24:AY24)-MIN(AU24:AY24)-MAX(AU24:AY24))/3),"Data Error") -> 0.1 | BX24: =IF(COUNT(AV24:AZ24)=5,((SUM(AV24:AZ24)-MIN(AV24:AZ24)-MAX(AV24:AZ24))/3),"Data Error") -> 0.1 | BY24: =IF(COUNT(AW24:BA24)=5,((SUM(AW24:BA24)-MIN(AW24:BA24)-MAX(AW24:BA24))/3),"Data Error") -> 3.258266667 | BZ24: =IF(COUNT(AX24:BB24)=5,((SUM(AX24:BB24)-MIN(AX24:BB24)-MAX(AX24:BB24))/3),"Data Error") -> 7.0545032 | CA24: =IF(COUNT(AY24:BC24)=5,((SUM(AY24:BC24)-MIN(AY24:BC24)-MAX(AY24:BC24))/3),"Data Error") -> 11.61757951
A25: EATON | B25: 153 | C25: 145 | D25: 144 | E25: 118 | F25: 129 | G25: 152 | H25: 162 | I25: 147 | J25: 124 | K25: 170 | L25: 176 | M25: 163.2 | N25: =AVERAGE(I25:M25)*(1+'2014 Farm Bill Calculator'!$B$20)*N$87 -> 119.3706 | O25: 163.2 | P25: =AVERAGE(K25:O25)*(1+'2014 Farm Bill Calculator'!$B$20) -> 161.5212024 | Q25: =AVERAGE(B25:K25) -> 144.4 | R25: =AVERAGE(C25:L25) -> 146.7 | S25: =AVERAGE(D25:M25) -> 148.52 | T25: =AVERAGE(E25:N25) -> 146.05706 | U25: =AVERAGE(F25:O25) -> 150.57706 | V25: 44 | W25: 33 | X25: 48 | Y25: 42 | Z25: 33.5 | AA25: 42 | AB25: 47 | AC25: 43 | AD25: 40 | AE25: 48 | AF25: 45 | AG25: 48.6 | AH25: =AVERAGE(AC25:AG25)*(1+'2014 Farm Bill Calculator'!$B$21)*AH$87 -> 34.0269 | AI25: =AVERAGE(AD25:AH25)*(1+'2014 Farm Bill Calculator'!$B$21) -> 43.5566338 | AJ25: =AVERAGE(AE25:AI25)*(1+'2014 Farm Bill Calculator'!$B$21) -> 44.27507383 | AK25: =AVERAGE(V25:AE25) -> 42.05 | AL25: =AVERAGE(W25:AF25) -> 42.15 | AM25: =AVERAGE(X25:AG25) -> 43.71 | AN25: =AVERAGE(Y25:AH25) -> 42.31269 | AO25: =AVERAGE(Z25:AI25) -> 42.46835338 | AP25: 58 | AQ25: 63 | AR25: 71 | AS25: 64 | AT25: 55.5 | AU25: 64 | AV25: 65 | AW25: 76 | AX25: 75 | AY25: 72 | AZ25: 77 | BA25: 69.4 | BB25: =AVERAGE(AW25:BA25)*(1+'2014 Farm Bill Calculator'!$B$22) -> 74.6188 | BC25: =AVERAGE(AX25:BB25)*(1+'2014 Farm Bill Calculator'!$B$22) -> 74.3397976 | BD25: =AVERAGE(AY25:BC25)*(1+'2014 Farm Bill Calculator'!$B$22) -> 74.20643672 | BE25: =AVERAGE(AP25:AY25) -> 66.35 | BF25: =AVERAGE(AQ25:AZ25) -> 68.25 | BG25: =AVERAGE(AR25:BA25) -> 68.89 | BH25: =AVERAGE(AS25:BB25) -> 69.25188 | BI25: =AVERAGE(AT25:BC25) -> 70.28585976 | BK25: =IF(COUNT(G25:K25)=5,((SUM(G25:K25)-MIN(G25:K25)-MAX(G25:K25))/3),"Data Error") -> 153.6666667 | BL25: =IF(COUNT(H25:L25)=5,((SUM(H25:L25)-MIN(H25:L25)-MAX(H25:L25))/3),"Data Error") -> 159.6666667 | BM25: =IF(COUNT(I25:M25)=5,((SUM(I25:M25)-MIN(I25:M25)-MAX(I25:M25))/3),"Data Error") -> 160.0666667 | BN25: =IF(COUNT(J25:N25)=5,((SUM(J25:N25)-MIN(J25:N25)-MAX(J25:N25))/3),"Data Error") -> 152.4 | BO25: =IF(COUNT(K25:O25)=5,((SUM(K25:O25)-MIN(K25:O25)-MAX(K25:O25))/3),"Data Error") -> 165.4666667 | BQ25: =IF(COUNT(AA25:AE25)=5,((SUM(AA25:AE25)-MIN(AA25:AE25)-MAX(AA25:AE25))/3),"Data Error") -> 44 | BR25: =IF(COUNT(AB25:AF25)=5,((SUM(AB25:AF25)-MIN(AB25:AF25)-MAX(AB25:AF25))/3),"Data Error") -> 45 | BS25: =IF(COUNT(AC25:AG25)=5,((SUM(AC25:AG25)-MIN(AC25:AG25)-MAX(AC25:AG25))/3),"Data Error") -> 45.33333333 | BT25: =IF(COUNT(AD25:AH25)=5,((SUM(AD25:AH25)-MIN(AD25:AH25)-MAX(AD25:AH25))/3),"Data Error") -> 44.33333333 | BU25: =IF(COUNT(AE25:AI25)=5,((SUM(AE25:AI25)-MIN(AE25:AI25)-MAX(AE25:AI25))/3),"Data Error") -> 45.51887793 | BW25: =IF(COUNT(AU25:AY25)=5,((SUM(AU25:AY25)-MIN(AU25:AY25)-MAX(AU25:AY25))/3),"Data Error") -> 70.66666667 | BX25: =IF(COUNT(AV25:AZ25)=5,((SUM(AV25:AZ25)-MIN(AV25:AZ25)-MAX(AV25:AZ25))/3),"Data Error") -> 74.33333333 | BY25: =IF(COUNT(AW25:BA25)=5,((SUM(AW25:BA25)-MIN(AW25:BA25)-MAX(AW25:BA25))/3),"Data Error") -> 74.33333333 | BZ25: =IF(COUNT(AX25:BB25)=5,((SUM(AX25:BB25)-MIN(AX25:BB25)-MAX(AX25:BB25))/3),"Data Error") -> 73.87293333 | CA25: =IF(COUNT(AY25:BC25)=5,((SUM(AY25:BC25)-MIN(AY25:BC25)-MAX(AY25:BC25))/3),"Data Error") -> 73.65286587
A26: EMMET | B26: 80 | C26: 95 | D26: 111 | E26: 75 | F26: 89 | G26: 84 | H26: 127 | I26: 109 | J26: 117 | K26: 78 | L26: 91 | M26: =AVERAGE(H26:L26)*(1+'2014 Farm Bill Calculator'!$B$20) -> 106.488 | N26: =AVERAGE(I26:M26)*(1+'2014 Farm Bill Calculator'!$B$20)*N$87 -> 76.727664 | O26: =AVERAGE(J26:N26)*(1+'2014 Farm Bill Calculator'!$B$20) -> 95.71999546 | P26: =AVERAGE(K26:O26)*(1+'2014 Farm Bill Calculator'!$B$20) -> 91.37887453 | Q26: =AVERAGE(B26:K26) -> 96.5 | R26: =AVERAGE(C26:L26) -> 97.6 | S26: =AVERAGE(D26:M26) -> 98.7488 | T26: =AVERAGE(E26:N26) -> 95.3215664 | U26: =AVERAGE(F26:O26) -> 97.39356595 | AA26: 0.1 | AB26: =AA26 -> 0.1 | AC26: =AB26 -> 0.1 | AD26: =AC26 -> 0.1 | AE26: =AD26 -> 0.1 | AF26: =AVERAGE(AA26:AE26)*(1+'2014 Farm Bill Calculator'!$B$21) -> 0.101 | AG26: =AVERAGE(AB26:AF26)*(1+'2014 Farm Bill Calculator'!$B$21) -> 0.101202 | AH26: =AVERAGE(AC26:AG26)*(1+'2014 Farm Bill Calculator'!$B$21)*AH$87 -> 0.076083603 | AI26: =AVERAGE(AD26:AH26)*(1+'2014 Farm Bill Calculator'!$B$21) -> 0.09661369181 | AJ26: =AVERAGE(AE26:AI26)*(1+'2014 Farm Bill Calculator'!$B$21) -> 0.09592965755 | AK26: =AVERAGE(V26:AE26) -> 0.1 | AL26: =AVERAGE(W26:AF26) -> 0.1001666667 | AM26: =AVERAGE(X26:AG26) -> 0.1003145714 | AN26: =AVERAGE(Y26:AH26) -> 0.09728570038 | AO26: =AVERAGE(Z26:AI26) -> 0.09721103276 | AU26: 0.1 | AV26: =AU26 -> 0.1 | AW26: =AV26 -> 0.1 | AX26: =AW26 -> 0.1 | AY26: =AX26 -> 0.1 | AZ26: 52 | BA26: =AVERAGE(AV26:AZ26)*(1+'2014 Farm Bill Calculator'!$B$22) -> 10.5848 | BB26: =AVERAGE(AW26:BA26)*(1+'2014 Farm Bill Calculator'!$B$22) -> 12.7027296 | BC26: =AVERAGE(AX26:BB26)*(1+'2014 Farm Bill Calculator'!$B$22) -> 15.24848098 | BD26: =AVERAGE(AY26:BC26)*(1+'2014 Farm Bill Calculator'!$B$22) -> 18.30847414 | BE26: =AVERAGE(AP26:AY26) -> 0.1 | BF26: =AVERAGE(AQ26:AZ26) -> 8.75 | BG26: =AVERAGE(AR26:BA26) -> 9.012114286 | BH26: =AVERAGE(AS26:BB26) -> 9.4734412 | BI26: =AVERAGE(AT26:BC26) -> 10.11511229 | BK26: =IF(COUNT(G26:K26)=5,((SUM(G26:K26)-MIN(G26:K26)-MAX(G26:K26))/3),"Data Error") -> 103.3333333 | BL26: =IF(COUNT(H26:L26)=5,((SUM(H26:L26)-MIN(H26:L26)-MAX(H26:L26))/3),"Data Error") -> 105.6666667 | BM26: =IF(COUNT(I26:M26)=5,((SUM(I26:M26)-MIN(I26:M26)-MAX(I26:M26))/3),"Data Error") -> 102.1626667 | BN26: =IF(COUNT(J26:N26)=5,((SUM(J26:N26)-MIN(J26:N26)-MAX(J26:N26))/3),"Data Error") -> 91.82933333 | BO26: =IF(COUNT(K26:O26)=5,((SUM(K26:O26)-MIN(K26:O26)-MAX(K26:O26))/3),"Data Error") -> 88.23999849 | BQ26: =IF(COUNT(AA26:AE26)=5,((SUM(AA26:AE26)-MIN(AA26:AE26)-MAX(AA26:AE26))/3),"Data Error") -> 0.1 | BR26: =IF(COUNT(AB26:AF26)=5,((SUM(AB26:AF26)-MIN(AB26:AF26)-MAX(AB26:AF26))/3),"Data Error") -> 0.1 | BS26: =IF(COUNT(AC26:AG26)=5,((SUM(AC26:AG26)-MIN(AC26:AG26)-MAX(AC26:AG26))/3),"Data Error") -> 0.1003333333 | BT26: =IF(COUNT(AD26:AH26)=5,((SUM(AD26:AH26)-MIN(AD26:AH26)-MAX(AD26:AH26))/3),"Data Error") -> 0.1003333333 | BU26: =IF(COUNT(AE26:AI26)=5,((SUM(AE26:AI26)-MIN(AE26:AI26)-MAX(AE26:AI26))/3),"Data Error") -> 0.09920456394 | BW26: =IF(COUNT(AU26:AY26)=5,((SUM(AU26:AY26)-MIN(AU26:AY26)-MAX(AU26:AY26))/3),"Data Error") -> 0.1 | BX26: =IF(COUNT(AV26:AZ26)=5,((SUM(AV26:AZ26)-MIN(AV26:AZ26)-MAX(AV26:AZ26))/3),"Data Error") -> 0.1 | BY26: =IF(COUNT(AW26:BA26)=5,((SUM(AW26:BA26)-MIN(AW26:BA26)-MAX(AW26:BA26))/3),"Data Error") -> 3.594933333 | BZ26: =IF(COUNT(AX26:BB26)=5,((SUM(AX26:BB26)-MIN(AX26:BB26)-MAX(AX26:BB26))/3),"Data Error") -> 7.7958432 | CA26: =IF(COUNT(AY26:BC26)=5,((SUM(AY26:BC26)-MIN(AY26:BC26)-MAX(AY26:BC26))/3),"Data Error") -> 12.84533686
A27: GENESEE | B27: 109 | C27: 137 | D27: 121 | E27: 120 | F27: 138 | G27: 123 | H27: 131 | I27: 132 | J27: 134 | K27: 141 | L27: 142 | M27: 165.5 | N27: =AVERAGE(I27:M27)*(1+'2014 Farm Bill Calculator'!$B$20)*N$87 -> 109.3185 | O27: =AVERAGE(J27:N27)*(1+'2014 Farm Bill Calculator'!$B$20) -> 141.130974 | P27: =AVERAGE(K27:O27)*(1+'2014 Farm Bill Calculator'!$B$20) -> 142.5856927 | Q27: =AVERAGE(B27:K27) -> 128.6 | R27: =AVERAGE(C27:L27) -> 131.9 | S27: =AVERAGE(D27:M27) -> 134.75 | T27: =AVERAGE(E27:N27) -> 133.58185 | U27: =AVERAGE(F27:O27) -> 135.6949474 | V27: 31 | W27: 38 | X27: 37 | Y27: 38 | Z27: 38 | AA27: 33 | AB27: 38 | AC27: 37 | AD27: 42 | AE27: 41 | AF27: 37 | AG27: 46 | AH27: =AVERAGE(AC27:AG27)*(1+'2014 Farm Bill Calculator'!$B$21)*AH$87 -> 30.7545 | AI27: =AVERAGE(AD27:AH27)*(1+'2014 Farm Bill Calculator'!$B$21) -> 39.744409 | AJ27: =AVERAGE(AE27:AI27)*(1+'2014 Farm Bill Calculator'!$B$21) -> 39.28877962 | AK27: =AVERAGE(V27:AE27) -> 37.3 | AL27: =AVERAGE(W27:AF27) -> 37.9 | AM27: =AVERAGE(X27:AG27) -> 38.7 | AN27: =AVERAGE(Y27:AH27) -> 38.07545 | AO27: =AVERAGE(Z27:AI27) -> 38.2498909 | AP27: 57 | AQ27: 58 | AR27: 62 | AS27: 57 | AT27: 57.5 | AU27: 49 | AV27: 58 | AW27: 60 | AX27: 66 | AY27: 63 | AZ27: 58 | BA27: 71.8 | BB27: =AVERAGE(AW27:BA27)*(1+'2014 Farm Bill Calculator'!$B$22) -> 64.3976 | BC27: =AVERAGE(AX27:BB27)*(1+'2014 Farm Bill Calculator'!$B$22) -> 65.2859152 | BD27: =AVERAGE(AY27:BC27)*(1+'2014 Farm Bill Calculator'!$B$22) -> 65.14167007 | BE27: =AVERAGE(AP27:AY27) -> 58.75 | BF27: =AVERAGE(AQ27:AZ27) -> 58.85 | BG27: =AVERAGE(AR27:BA27) -> 60.23 | BH27: =AVERAGE(AS27:BB27) -> 60.46976 | BI27: =AVERAGE(AT27:BC27) -> 61.29835152 | BK27: =IF(COUNT(G27:K27)=5,((SUM(G27:K27)-MIN(G27:K27)-MAX(G27:K27))/3),"Data Error") -> 132.3333333 | BL27: =IF(COUNT(H27:L27)=5,((SUM(H27:L27)-MIN(H27:L27)-MAX(H27:L27))/3),"Data Error") -> 135.6666667 | BM27: =IF(COUNT(I27:M27)=5,((SUM(I27:M27)-MIN(I27:M27)-MAX(I27:M27))/3),"Data Error") -> 139 | BN27: =IF(COUNT(J27:N27)=5,((SUM(J27:N27)-MIN(J27:N27)-MAX(J27:N27))/3),"Data Error") -> 139 | BO27: =IF(COUNT(K27:O27)=5,((SUM(K27:O27)-MIN(K27:O27)-MAX(K27:O27))/3),"Data Error") -> 141.3769913 | BQ27: =IF(COUNT(AA27:AE27)=5,((SUM(AA27:AE27)-MIN(AA27:AE27)-MAX(AA27:AE27))/3),"Data Error") -> 38.66666667 | BR27: =IF(COUNT(AB27:AF27)=5,((SUM(AB27:AF27)-MIN(AB27:AF27)-MAX(AB27:AF27))/3),"Data Error") -> 38.66666667 | BS27: =IF(COUNT(AC27:AG27)=5,((SUM(AC27:AG27)-MIN(AC27:AG27)-MAX(AC27:AG27))/3),"Data Error") -> 40 | BT27: =IF(COUNT(AD27:AH27)=5,((SUM(AD27:AH27)-MIN(AD27:AH27)-MAX(AD27:AH27))/3),"Data Error") -> 40 | BU27: =IF(COUNT(AE27:AI27)=5,((SUM(AE27:AI27)-MIN(AE27:AI27)-MAX(AE27:AI27))/3),"Data Error") -> 39.24813633 | BW27: =IF(COUNT(AU27:AY27)=5,((SUM(AU27:AY27)-MIN(AU27:AY27)-MAX(AU27:AY27))/3),"Data Error") -> 60.33333333 | BX27: =IF(COUNT(AV27:AZ27)=5,((SUM(AV27:AZ27)-MIN(AV27:AZ27)-MAX(AV27:AZ27))/3),"Data Error") -> 60.33333333 | BY27: =IF(COUNT(AW27:BA27)=5,((SUM(AW27:BA27)-MIN(AW27:BA27)-MAX(AW27:BA27))/3),"Data Error") -> 63 | BZ27: =IF(COUNT(AX27:BB27)=5,((SUM(AX27:BB27)-MIN(AX27:BB27)-MAX(AX27:BB27))/3),"Data Error") -> 64.46586667 | CA27: =IF(COUNT(AY27:BC27)=5,((SUM(AY27:BC27)-MIN(AY27:BC27)-MAX(AY27:BC27))/3),"Data Error") -> 64.2278384
A28: GLADWIN | B28: 113 | C28: 162 | D28: 134 | F28: 138 | G28: 116 | H28: 153 | I28: 156 | J28: 148 | K28: 117 | L28: 152 | M28: 151.4 | N28: =AVERAGE(I28:M28)*(1+'2014 Farm Bill Calculator'!$B$20)*N$87 -> 110.8332 | O28: =AVERAGE(J28:N28)*(1+'2014 Farm Bill Calculator'!$B$20) -> 138.5635728 | P28: =AVERAGE(K28:O28)*(1+'2014 Farm Bill Calculator'!$B$20) -> 136.6385417 | Q28: =AVERAGE(B28:K28) -> 137.4444444 | R28: =AVERAGE(C28:L28) -> 141.7777778 | S28: =AVERAGE(D28:M28) -> 140.6 | T28: =AVERAGE(E28:N28) -> 138.0259111 | U28: =AVERAGE(F28:O28) -> 138.0796773 | V28: 29 | W28: 42 | X28: 41 | Y28: 37 | AA28: 36 | AB28: 49 | AC28: 45 | AD28: 52 | AE28: 37 | AF28: 40 | AG28: 45.4 | AH28: =AVERAGE(AC28:AG28)*(1+'2014 Farm Bill Calculator'!$B$21)*AH$87 -> 33.2391 | AI28: =AVERAGE(AD28:AH28)*(1+'2014 Farm Bill Calculator'!$B$21) -> 41.9430982 | AJ28: =AVERAGE(AE28:AI28)*(1+'2014 Farm Bill Calculator'!$B$21) -> 39.91160404 | AK28: =AVERAGE(V28:AE28) -> 40.88888889 | AL28: =AVERAGE(W28:AF28) -> 42.11111111 | AM28: =AVERAGE(X28:AG28) -> 42.48888889 | AN28: =AVERAGE(Y28:AH28) -> 41.62656667 | AO28: =AVERAGE(Z28:AI28) -> 42.1757998 | AP28: 59 | AQ28: 46 | AR28: 62 | AS28: 69 | AT28: 62.5 | AU28: 63 | AV28: 76 | AW28: 64 | AX28: 78 | AY28: 71 | AZ28: 68 | BA28: =AVERAGE(AV28:AZ28)*(1+'2014 Farm Bill Calculator'!$B$22) -> 72.114 | BB28: =AVERAGE(AW28:BA28)*(1+'2014 Farm Bill Calculator'!$B$22) -> 71.329028 | BC28: =AVERAGE(AX28:BB28)*(1+'2014 Farm Bill Calculator'!$B$22) -> 72.80949166 | BD28: =AVERAGE(AY28:BC28)*(1+'2014 Farm Bill Calculator'!$B$22) -> 71.76100897 | BE28: =AVERAGE(AP28:AY28) -> 65.05 | BF28: =AVERAGE(AQ28:AZ28) -> 65.95 | BG28: =AVERAGE(AR28:BA28) -> 68.5614 | BH28: =AVERAGE(AS28:BB28) -> 69.4943028 | BI28: =AVERAGE(AT28:BC28) -> 69.87525197 | BK28: =IF(COUNT(G28:K28)=5,((SUM(G28:K28)-MIN(G28:K28)-MAX(G28:K28))/3),"Data Error") -> 139.3333333 | BL28: =IF(COUNT(H28:L28)=5,((SUM(H28:L28)-MIN(H28:L28)-MAX(H28:L28))/3),"Data Error") -> 151 | BM28: =IF(COUNT(I28:M28)=5,((SUM(I28:M28)-MIN(I28:M28)-MAX(I28:M28))/3),"Data Error") -> 150.4666667 | BN28: =IF(COUNT(J28:N28)=5,((SUM(J28:N28)-MIN(J28:N28)-MAX(J28:N28))/3),"Data Error") -> 138.8 | BO28: =IF(COUNT(K28:O28)=5,((SUM(K28:O28)-MIN(K28:O28)-MAX(K28:O28))/3),"Data Error") -> 135.6545243 | BQ28: =IF(COUNT(AA28:AE28)=5,((SUM(AA28:AE28)-MIN(AA28:AE28)-MAX(AA28:AE28))/3),"Data Error") -> 43.66666667 | BR28: =IF(COUNT(AB28:AF28)=5,((SUM(AB28:AF28)-MIN(AB28:AF28)-MAX(AB28:AF28))/3),"Data Error") -> 44.66666667 | BS28: =IF(COUNT(AC28:AG28)=5,((SUM(AC28:AG28)-MIN(AC28:AG28)-MAX(AC28:AG28))/3),"Data Error") -> 43.46666667 | BT28: =IF(COUNT(AD28:AH28)=5,((SUM(AD28:AH28)-MIN(AD28:AH28)-MAX(AD28:AH28))/3),"Data Error") -> 40.8 | BU28: =IF(COUNT(AE28:AI28)=5,((SUM(AE28:AI28)-MIN(AE28:AI28)-MAX(AE28:AI28))/3),"Data Error") -> 39.6476994 | BW28: =IF(COUNT(AU28:AY28)=5,((SUM(AU28:AY28)-MIN(AU28:AY28)-MAX(AU28:AY28))/3),"Data Error") -> 70.33333333 | BX28: =IF(COUNT(AV28:AZ28)=5,((SUM(AV28:AZ28)-MIN(AV28:AZ28)-MAX(AV28:AZ28))/3),"Data Error") -> 71.66666667 | BY28: =IF(COUNT(AW28:BA28)=5,((SUM(AW28:BA28)-MIN(AW28:BA28)-MAX(AW28:BA28))/3),"Data Error") -> 70.37133333 | BZ28: =IF(COUNT(AX28:BB28)=5,((SUM(AX28:BB28)-MIN(AX28:BB28)-MAX(AX28:BB28))/3),"Data Error") -> 71.48100933 | CA28: =IF(COUNT(AY28:BC28)=5,((SUM(AY28:BC28)-MIN(AY28:BC28)-MAX(AY28:BC28))/3),"Data Error") -> 71.48100933
A29: GOGEBIC | G29: 0.1 | H29: =G29 -> 0.1 | I29: =H29 -> 0.1 | J29: =I29 -> 0.1 | K29: =J29 -> 0.1 | L29: =AVERAGE(G29:K29)*(1+'2014 Farm Bill Calculator'!$B$20) -> 0.102 | M29: =AVERAGE(H29:L29)*(1+'2014 Farm Bill Calculator'!$B$20) -> 0.102408 | N29: =AVERAGE(I29:M29)*(1+'2014 Farm Bill Calculator'!$B$20)*N$87 -> 0.077174424 | O29: =AVERAGE(J29:N29)*(1+'2014 Farm Bill Calculator'!$B$20) -> 0.0982428145 | P29: =AVERAGE(K29:O29)*(1+'2014 Farm Bill Calculator'!$B$20) -> 0.09788434865 | Q29: =AVERAGE(B29:K29) -> 0.1 | R29: =AVERAGE(C29:L29) -> 0.1003333333 | S29: =AVERAGE(D29:M29) -> 0.1006297143 | T29: =AVERAGE(E29:N29) -> 0.097697803 | U29: =AVERAGE(F29:O29) -> 0.09775835983 | AA29: 0.1 | AB29: =AA29 -> 0.1 | AC29: =AB29 -> 0.1 | AD29: =AC29 -> 0.1 | AE29: =AD29 -> 0.1 | AF29: =AVERAGE(AA29:AE29)*(1+'2014 Farm Bill Calculator'!$B$21) -> 0.101 | AG29: =AVERAGE(AB29:AF29)*(1+'2014 Farm Bill Calculator'!$B$21) -> 0.101202 | AH29: =AVERAGE(AC29:AG29)*(1+'2014 Farm Bill Calculator'!$B$21)*AH$87 -> 0.076083603 | AI29: =AVERAGE(AD29:AH29)*(1+'2014 Farm Bill Calculator'!$B$21) -> 0.09661369181 | AJ29: =AVERAGE(AE29:AI29)*(1+'2014 Farm Bill Calculator'!$B$21) -> 0.09592965755 | AK29: =AVERAGE(V29:AE29) -> 0.1 | AL29: =AVERAGE(W29:AF29) -> 0.1001666667 | AM29: =AVERAGE(X29:AG29) -> 0.1003145714 | AN29: =AVERAGE(Y29:AH29) -> 0.09728570038 | AO29: =AVERAGE(Z29:AI29) -> 0.09721103276 | AU29: 0.1 | AV29: =AU29 -> 0.1 | AW29: =AV29 -> 0.1 | AX29: =AW29 -> 0.1 | AY29: =AX29 -> 0.1 | AZ29: =AVERAGE(AU29:AY29)*(1+'2014 Farm Bill Calculator'!$B$22) -> 0.101 | BA29: =AVERAGE(AV29:AZ29)*(1+'2014 Farm Bill Calculator'!$B$22) -> 0.101202 | BB29: =AVERAGE(AW29:BA29)*(1+'2014 Farm Bill Calculator'!$B$22) -> 0.101444804 | BC29: =AVERAGE(AX29:BB29)*(1+'2014 Farm Bill Calculator'!$B$22) -> 0.1017366544 | BD29: =AVERAGE(AY29:BC29)*(1+'2014 Farm Bill Calculator'!$B$22) -> 0.1020874586 | BE29: =AVERAGE(AP29:AY29) -> 0.1 | BF29: =AVERAGE(AQ29:AZ29) -> 0.1001666667 | BG29: =AVERAGE(AR29:BA29) -> 0.1003145714 | BH29: =AVERAGE(AS29:BB29) -> 0.1004558505 | BI29: =AVERAGE(AT29:BC29) -> 0.100598162 | BK29: =IF(COUNT(G29:K29)=5,((SUM(G29:K29)-MIN(G29:K29)-MAX(G29:K29))/3),"Data Error") -> 0.1 | BL29: =IF(COUNT(H29:L29)=5,((SUM(H29:L29)-MIN(H29:L29)-MAX(H29:L29))/3),"Data Error") -> 0.1 | BM29: =IF(COUNT(I29:M29)=5,((SUM(I29:M29)-MIN(I29:M29)-MAX(I29:M29))/3),"Data Error") -> 0.1006666667 | BN29: =IF(COUNT(J29:N29)=5,((SUM(J29:N29)-MIN(J29:N29)-MAX(J29:N29))/3),"Data Error") -> 0.1006666667 | BO29: =IF(COUNT(K29:O29)=5,((SUM(K29:O29)-MIN(K29:O29)-MAX(K29:O29))/3),"Data Error") -> 0.1000809382 | BQ29: =IF(COUNT(AA29:AE29)=5,((SUM(AA29:AE29)-MIN(AA29:AE29)-MAX(AA29:AE29))/3),"Data Error") -> 0.1 | BR29: =IF(COUNT(AB29:AF29)=5,((SUM(AB29:AF29)-MIN(AB29:AF29)-MAX(AB29:AF29))/3),"Data Error") -> 0.1 | BS29: =IF(COUNT(AC29:AG29)=5,((SUM(AC29:AG29)-MIN(AC29:AG29)-MAX(AC29:AG29))/3),"Data Error") -> 0.1003333333 | BT29: =IF(COUNT(AD29:AH29)=5,((SUM(AD29:AH29)-MIN(AD29:AH29)-MAX(AD29:AH29))/3),"Data Error") -> 0.1003333333 | BU29: =IF(COUNT(AE29:AI29)=5,((SUM(AE29:AI29)-MIN(AE29:AI29)-MAX(AE29:AI29))/3),"Data Error") -> 0.09920456394 | BW29: =IF(COUNT(AU29:AY29)=5,((SUM(AU29:AY29)-MIN(AU29:AY29)-MAX(AU29:AY29))/3),"Data Error") -> 0.1 | BX29: =IF(COUNT(AV29:AZ29)=5,((SUM(AV29:AZ29)-MIN(AV29:AZ29)-MAX(AV29:AZ29))/3),"Data Error") -> 0.1 | BY29: =IF(COUNT(AW29:BA29)=5,((SUM(AW29:BA29)-MIN(AW29:BA29)-MAX(AW29:BA29))/3),"Data Error") -> 0.1003333333 | BZ29: =IF(COUNT(AX29:BB29)=5,((SUM(AX29:BB29)-MIN(AX29:BB29)-MAX(AX29:BB29))/3),"Data Error") -> 0.100734 | CA29: =IF(COUNT(AY29:BC29)=5,((SUM(AY29:BC29)-MIN(AY29:BC29)-MAX(AY29:BC29))/3),"Data Error") -> 0.1012156013
A30: GRAND TRAVERSE | B30: 81 | C30: 100 | D30: 98 | E30: 44 | F30: 77 | G30: 91 | H30: 116 | I30: 102 | J30: 65 | K30: 81 | L30: 74 | M30: 123.7 | N30: =AVERAGE(I30:M30)*(1+'2014 Farm Bill Calculator'!$B$20)*N$87 -> 68.1921 | O30: =AVERAGE(J30:N30)*(1+'2014 Farm Bill Calculator'!$B$20) -> 84.0259884 | P30: =AVERAGE(K30:O30)*(1+'2014 Farm Bill Calculator'!$B$20) -> 87.90729003 | Q30: =AVERAGE(B30:K30) -> 85.5 | R30: =AVERAGE(C30:L30) -> 84.8 | S30: =AVERAGE(D30:M30) -> 87.17 | T30: =AVERAGE(E30:N30) -> 84.18921 | U30: =AVERAGE(F30:O30) -> 88.19180884 | X30: 27 | Y30: 10 | AA30: 28 | AB30: 33 | AC30: 35 | AD30: 28 | AE30: 27 | AF30: 19 | AG30: =AVERAGE(AB30:AF30)*(1+'2014 Farm Bill Calculator'!$B$21) -> 28.684 | AH30: =AVERAGE(AC30:AG30)*(1+'2014 Farm Bill Calculator'!$B$21)*AH$87 -> 20.859126 | AI30: =AVERAGE(AD30:AH30)*(1+'2014 Farm Bill Calculator'!$B$21) -> 24.95571145 | AJ30: =AVERAGE(AE30:AI30)*(1+'2014 Farm Bill Calculator'!$B$21) -> 24.34076517 | AK30: =AVERAGE(V30:AE30) -> 26.85714286 | AL30: =AVERAGE(W30:AF30) -> 25.875 | AM30: =AVERAGE(X30:AG30) -> 26.18711111 | AN30: =AVERAGE(Y30:AH30) -> 25.50479178 | AO30: =AVERAGE(Z30:AI30) -> 27.16653749 | AP30: 55 | AQ30: 43 | AR30: 55 | AS30: 36 | AT30: 53 | AU30: 44 | AV30: 35 | AW30: 49 | AX30: 47 | AY30: 40 | AZ30: 31 | BA30: =AVERAGE(AV30:AZ30)*(1+'2014 Farm Bill Calculator'!$B$22) -> 40.804 | BB30: =AVERAGE(AW30:BA30)*(1+'2014 Farm Bill Calculator'!$B$22) -> 41.976408 | BC30: =AVERAGE(AX30:BB30)*(1+'2014 Farm Bill Calculator'!$B$22) -> 40.55764242 | BD30: =AVERAGE(AY30:BC30)*(1+'2014 Farm Bill Calculator'!$B$22) -> 39.25628618 | BE30: =AVERAGE(AP30:AY30) -> 45.7 | BF30: =AVERAGE(AQ30:AZ30) -> 43.3 | BG30: =AVERAGE(AR30:BA30) -> 43.0804 | BH30: =AVERAGE(AS30:BB30) -> 41.7780408 | BI30: =AVERAGE(AT30:BC30) -> 42.23380504 | BK30: =IF(COUNT(G30:K30)=5,((SUM(G30:K30)-MIN(G30:K30)-MAX(G30:K30))/3),"Data Error") -> 91.33333333 | BL30: =IF(COUNT(H30:L30)=5,((SUM(H30:L30)-MIN(H30:L30)-MAX(H30:L30))/3),"Data Error") -> 85.66666667 | BM30: =IF(COUNT(I30:M30)=5,((SUM(I30:M30)-MIN(I30:M30)-MAX(I30:M30))/3),"Data Error") -> 85.66666667 | BN30: =IF(COUNT(J30:N30)=5,((SUM(J30:N30)-MIN(J30:N30)-MAX(J30:N30))/3),"Data Error") -> 74.39736667 | BO30: =IF(COUNT(K30:O30)=5,((SUM(K30:O30)-MIN(K30:O30)-MAX(K30:O30))/3),"Data Error") -> 79.67532947 | BQ30: =IF(COUNT(AA30:AE30)=5,((SUM(AA30:AE30)-MIN(AA30:AE30)-MAX(AA30:AE30))/3),"Data Error") -> 29.66666667 | BR30: =IF(COUNT(AB30:AF30)=5,((SUM(AB30:AF30)-MIN(AB30:AF30)-MAX(AB30:AF30))/3),"Data Error") -> 29.33333333 | BS30: =IF(COUNT(AC30:AG30)=5,((SUM(AC30:AG30)-MIN(AC30:AG30)-MAX(AC30:AG30))/3),"Data Error") -> 27.89466667 | BT30: =IF(COUNT(AD30:AH30)=5,((SUM(AD30:AH30)-MIN(AD30:AH30)-MAX(AD30:AH30))/3),"Data Error") -> 25.28637533 | BU30: =IF(COUNT(AE30:AI30)=5,((SUM(AE30:AI30)-MIN(AE30:AI30)-MAX(AE30:AI30))/3),"Data Error") -> 24.27161248 | BW30: =IF(COUNT(AU30:AY30)=5,((SUM(AU30:AY30)-MIN(AU30:AY30)-MAX(AU30:AY30))/3),"Data Error") -> 43.66666667 | BX30: =IF(COUNT(AV30:AZ30)=5,((SUM(AV30:AZ30)-MIN(AV30:AZ30)-MAX(AV30:AZ30))/3),"Data Error") -> 40.66666667 | BY30: =IF(COUNT(AW30:BA30)=5,((SUM(AW30:BA30)-MIN(AW30:BA30)-MAX(AW30:BA30))/3),"Data Error") -> 42.60133333 | BZ30: =IF(COUNT(AX30:BB30)=5,((SUM(AX30:BB30)-MIN(AX30:BB30)-MAX(AX30:BB30))/3),"Data Error") -> 40.92680267 | CA30: =IF(COUNT(AY30:BC30)=5,((SUM(AY30:BC30)-MIN(AY30:BC30)-MAX(AY30:BC30))/3),"Data Error") -> 40.45388081
A31: GRATIOT | B31: 125 | C31: 145 | D31: 141 | E31: 125 | F31: 138 | G31: 156 | H31: 145 | I31: 155 | J31: 173 | K31: 135 | L31: 145 | M31: 170.8 | N31: =AVERAGE(I31:M31)*(1+'2014 Farm Bill Calculator'!$B$20)*N$87 -> 119.1564 | O31: =AVERAGE(J31:N31)*(1+'2014 Farm Bill Calculator'!$B$20) -> 151.5631056 | P31: =AVERAGE(K31:O31)*(1+'2014 Farm Bill Calculator'!$B$20) -> 147.1899791 | Q31: =AVERAGE(B31:K31) -> 143.8 | R31: =AVERAGE(C31:L31) -> 145.8 | S31: =AVERAGE(D31:M31) -> 148.38 | T31: =AVERAGE(E31:N31) -> 146.19564 | U31: =AVERAGE(F31:O31) -> 148.8519506 | V31: 33 | W31: 39 | X31: 48 | Y31: 38 | Z31: 36 | AA31: 43 | AB31: 41 | AC31: 45 | AD31: 53 | AE31: 41 | AF31: 42 | AG31: 53 | AH31: =AVERAGE(AC31:AG31)*(1+'2014 Farm Bill Calculator'!$B$21)*AH$87 -> 35.451 | AI31: =AVERAGE(AD31:AH31)*(1+'2014 Farm Bill Calculator'!$B$21) -> 45.339102 | AJ31: =AVERAGE(AE31:AI31)*(1+'2014 Farm Bill Calculator'!$B$21) -> 43.7916006 | AK31: =AVERAGE(V31:AE31) -> 41.7 | AL31: =AVERAGE(W31:AF31) -> 42.6 | AM31: =AVERAGE(X31:AG31) -> 44 | AN31: =AVERAGE(Y31:AH31) -> 42.7451 | AO31: =AVERAGE(Z31:AI31) -> 43.4790102 | AP31: 69 | AQ31: 72 | AR31: 76 | AS31: 67 | AT31: 72 | AU31: 70 | AV31: 73 | AW31: 74 | AX31: 92 | AY31: 72 | AZ31: 78 | BA31: 86.6 | BB31: =AVERAGE(AW31:BA31)*(1+'2014 Farm Bill Calculator'!$B$22) -> 81.3252 | BC31: =AVERAGE(AX31:BB31)*(1+'2014 Farm Bill Calculator'!$B$22) -> 82.8048904 | BD31: =AVERAGE(AY31:BC31)*(1+'2014 Farm Bill Calculator'!$B$22) -> 80.94747826 | BE31: =AVERAGE(AP31:AY31) -> 73.7 | BF31: =AVERAGE(AQ31:AZ31) -> 74.6 | BG31: =AVERAGE(AR31:BA31) -> 76.06 | BH31: =AVERAGE(AS31:BB31) -> 76.59252 | BI31: =AVERAGE(AT31:BC31) -> 78.17300904 | BK31: =IF(COUNT(G31:K31)=5,((SUM(G31:K31)-MIN(G31:K31)-MAX(G31:K31))/3),"Data Error") -> 152 | BL31: =IF(COUNT(H31:L31)=5,((SUM(H31:L31)-MIN(H31:L31)-MAX(H31:L31))/3),"Data Error") -> 148.3333333 | BM31: =IF(COUNT(I31:M31)=5,((SUM(I31:M31)-MIN(I31:M31)-MAX(I31:M31))/3),"Data Error") -> 156.9333333 | BN31: =IF(COUNT(J31:N31)=5,((SUM(J31:N31)-MIN(J31:N31)-MAX(J31:N31))/3),"Data Error") -> 150.2666667 | BO31: =IF(COUNT(K31:O31)=5,((SUM(K31:O31)-MIN(K31:O31)-MAX(K31:O31))/3),"Data Error") -> 143.8543685 | BQ31: =IF(COUNT(AA31:AE31)=5,((SUM(AA31:AE31)-MIN(AA31:AE31)-MAX(AA31:AE31))/3),"Data Error") -> 43 | BR31: =IF(COUNT(AB31:AF31)=5,((SUM(AB31:AF31)-MIN(AB31:AF31)-MAX(AB31:AF31))/3),"Data Error") -> 42.66666667 | BS31: =IF(COUNT(AC31:AG31)=5,((SUM(AC31:AG31)-MIN(AC31:AG31)-MAX(AC31:AG31))/3),"Data Error") -> 46.66666667 | BT31: =IF(COUNT(AD31:AH31)=5,((SUM(AD31:AH31)-MIN(AD31:AH31)-MAX(AD31:AH31))/3),"Data Error") -> 45.33333333 | BU31: =IF(COUNT(AE31:AI31)=5,((SUM(AE31:AI31)-MIN(AE31:AI31)-MAX(AE31:AI31))/3),"Data Error") -> 42.77970067 | BW31: =IF(COUNT(AU31:AY31)=5,((SUM(AU31:AY31)-MIN(AU31:AY31)-MAX(AU31:AY31))/3),"Data Error") -> 73 | BX31: =IF(COUNT(AV31:AZ31)=5,((SUM(AV31:AZ31)-MIN(AV31:AZ31)-MAX(AV31:AZ31))/3),"Data Error") -> 75 | BY31: =IF(COUNT(AW31:BA31)=5,((SUM(AW31:BA31)-MIN(AW31:BA31)-MAX(AW31:BA31))/3),"Data Error") -> 79.53333333 | BZ31: =IF(COUNT(AX31:BB31)=5,((SUM(AX31:BB31)-MIN(AX31:BB31)-MAX(AX31:BB31))/3),"Data Error") -> 81.97506667 | CA31: =IF(COUNT(AY31:BC31)=5,((SUM(AY31:BC31)-MIN(AY31:BC31)-MAX(AY31:BC31))/3),"Data Error") -> 80.71003013
A32: HILLSDALE | B32: 135 | C32: 151 | D32: 149 | E32: 113 | F32: 124 | G32: 133 | H32: 140 | I32: 139 | J32: 109 | K32: 169 | L32: 153 | M32: 155.9 | N32: =AVERAGE(I32:M32)*(1+'2014 Farm Bill Calculator'!$B$20)*N$87 -> 111.0627 | O32: =AVERAGE(J32:N32)*(1+'2014 Farm Bill Calculator'!$B$20) -> 142.3843908 | P32: =AVERAGE(K32:O32)*(1+'2014 Farm Bill Calculator'!$B$20) -> 149.1948065 | Q32: =AVERAGE(B32:K32) -> 136.2 | R32: =AVERAGE(C32:L32) -> 138 | S32: =AVERAGE(D32:M32) -> 138.49 | T32: =AVERAGE(E32:N32) -> 134.69627 | U32: =AVERAGE(F32:O32) -> 137.6347091 | V32: 40 | W32: 42 | X32: 48 | Y32: 39 | Z32: 32.5 | AA32: 36 | AB32: 45 | AC32: 44 | AD32: 40 | AE32: 47 | AF32: 39 | AG32: 46.8 | AH32: =AVERAGE(AC32:AG32)*(1+'2014 Farm Bill Calculator'!$B$21)*AH$87 -> 32.8452 | AI32: =AVERAGE(AD32:AH32)*(1+'2014 Farm Bill Calculator'!$B$21) -> 41.5403304 | AJ32: =AVERAGE(AE32:AI32)*(1+'2014 Farm Bill Calculator'!$B$21) -> 41.85147714 | AK32: =AVERAGE(V32:AE32) -> 41.35 | AL32: =AVERAGE(W32:AF32) -> 41.25 | AM32: =AVERAGE(X32:AG32) -> 41.73 | AN32: =AVERAGE(Y32:AH32) -> 40.21452 | AO32: =AVERAGE(Z32:AI32) -> 40.46855304 | AP32: 50 | AQ32: 64 | AR32: 63 | AS32: 54 | AT32: 64 | AU32: 66 | AV32: 62 | AW32: 65 | AX32: 69 | AY32: 74 | AZ32: 70 | BA32: 73.2 | BB32: =AVERAGE(AW32:BA32)*(1+'2014 Farm Bill Calculator'!$B$22) -> 70.9424 | BC32: =AVERAGE(AX32:BB32)*(1+'2014 Farm Bill Calculator'!$B$22) -> 72.1427648 | BD32: =AVERAGE(AY32:BC32)*(1+'2014 Farm Bill Calculator'!$B$22) -> 72.77760329 | BE32: =AVERAGE(AP32:AY32) -> 63.1 | BF32: =AVERAGE(AQ32:AZ32) -> 65.1 | BG32: =AVERAGE(AR32:BA32) -> 66.02 | BH32: =AVERAGE(AS32:BB32) -> 66.81424 | BI32: =AVERAGE(AT32:BC32) -> 68.62851648 | BK32: =IF(COUNT(G32:K32)=5,((SUM(G32:K32)-MIN(G32:K32)-MAX(G32:K32))/3),"Data Error") -> 137.3333333 | BL32: =IF(COUNT(H32:L32)=5,((SUM(H32:L32)-MIN(H32:L32)-MAX(H32:L32))/3),"Data Error") -> 144 | BM32: =IF(COUNT(I32:M32)=5,((SUM(I32:M32)-MIN(I32:M32)-MAX(I32:M32))/3),"Data Error") -> 149.3 | BN32: =IF(COUNT(J32:N32)=5,((SUM(J32:N32)-MIN(J32:N32)-MAX(J32:N32))/3),"Data Error") -> 139.9875667 | BO32: =IF(COUNT(K32:O32)=5,((SUM(K32:O32)-MIN(K32:O32)-MAX(K32:O32))/3),"Data Error") -> 150.4281303 | BQ32: =IF(COUNT(AA32:AE32)=5,((SUM(AA32:AE32)-MIN(AA32:AE32)-MAX(AA32:AE32))/3),"Data Error") -> 43 | BR32: =IF(COUNT(AB32:AF32)=5,((SUM(AB32:AF32)-MIN(AB32:AF32)-MAX(AB32:AF32))/3),"Data Error") -> 43 | BS32: =IF(COUNT(AC32:AG32)=5,((SUM(AC32:AG32)-MIN(AC32:AG32)-MAX(AC32:AG32))/3),"Data Error") -> 43.6 | BT32: =IF(COUNT(AD32:AH32)=5,((SUM(AD32:AH32)-MIN(AD32:AH32)-MAX(AD32:AH32))/3),"Data Error") -> 41.93333333 | BU32: =IF(COUNT(AE32:AI32)=5,((SUM(AE32:AI32)-MIN(AE32:AI32)-MAX(AE32:AI32))/3),"Data Error") -> 42.4467768 | BW32: =IF(COUNT(AU32:AY32)=5,((SUM(AU32:AY32)-MIN(AU32:AY32)-MAX(AU32:AY32))/3),"Data Error") -> 66.66666667 | BX32: =IF(COUNT(AV32:AZ32)=5,((SUM(AV32:AZ32)-MIN(AV32:AZ32)-MAX(AV32:AZ32))/3),"Data Error") -> 68 | BY32: =IF(COUNT(AW32:BA32)=5,((SUM(AW32:BA32)-MIN(AW32:BA32)-MAX(AW32:BA32))/3),"Data Error") -> 70.73333333 | BZ32: =IF(COUNT(AX32:BB32)=5,((SUM(AX32:BB32)-MIN(AX32:BB32)-MAX(AX32:BB32))/3),"Data Error") -> 71.3808 | CA32: =IF(COUNT(AY32:BC32)=5,((SUM(AY32:BC32)-MIN(AY32:BC32)-MAX(AY32:BC32))/3),"Data Error") -> 72.09505493
A33: HOUGHTON | G33: 0.1 | H33: =G33 -> 0.1 | I33: =H33 -> 0.1 | J33: =I33 -> 0.1 | K33: =J33 -> 0.1 | L33: 38 | M33: =AVERAGE(H33:L33)*(1+'2014 Farm Bill Calculator'!$B$20) -> 7.8336 | N33: =AVERAGE(I33:M33)*(1+'2014 Farm Bill Calculator'!$B$20)*N$87 -> 7.0584408 | O33: =AVERAGE(J33:N33)*(1+'2014 Farm Bill Calculator'!$B$20) -> 10.83077632 | P33: =AVERAGE(K33:O33)*(1+'2014 Farm Bill Calculator'!$B$20) -> 13.01985469 | Q33: =AVERAGE(B33:K33) -> 0.1 | R33: =AVERAGE(C33:L33) -> 6.416666667 | S33: =AVERAGE(D33:M33) -> 6.619085714 | T33: =AVERAGE(E33:N33) -> 6.6740051 | U33: =AVERAGE(F33:O33) -> 7.135868569 | AA33: 0.1 | AB33: =AA33 -> 0.1 | AC33: =AB33 -> 0.1 | AD33: =AC33 -> 0.1 | AE33: =AD33 -> 0.1 | AF33: =AVERAGE(AA33:AE33)*(1+'2014 Farm Bill Calculator'!$B$21) -> 0.101 | AG33: =AVERAGE(AB33:AF33)*(1+'2014 Farm Bill Calculator'!$B$21) -> 0.101202 | AH33: =AVERAGE(AC33:AG33)*(1+'2014 Farm Bill Calculator'!$B$21)*AH$87 -> 0.076083603 | AI33: =AVERAGE(AD33:AH33)*(1+'2014 Farm Bill Calculator'!$B$21) -> 0.09661369181 | AJ33: =AVERAGE(AE33:AI33)*(1+'2014 Farm Bill Calculator'!$B$21) -> 0.09592965755 | AK33: =AVERAGE(V33:AE33) -> 0.1 | AL33: =AVERAGE(W33:AF33) -> 0.1001666667 | AM33: =AVERAGE(X33:AG33) -> 0.1003145714 | AN33: =AVERAGE(Y33:AH33) -> 0.09728570038 | AO33: =AVERAGE(Z33:AI33) -> 0.09721103276 | AU33: 0.1 | AV33: =AU33 -> 0.1 | AW33: =AV33 -> 0.1 | AX33: =AW33 -> 0.1 | AY33: =AX33 -> 0.1 | AZ33: 47 | BA33: =AVERAGE(AV33:AZ33)*(1+'2014 Farm Bill Calculator'!$B$22) -> 9.5748 | BB33: =AVERAGE(AW33:BA33)*(1+'2014 Farm Bill Calculator'!$B$22) -> 11.4887096 | BC33: =AVERAGE(AX33:BB33)*(1+'2014 Farm Bill Calculator'!$B$22) -> 13.78922894 | BD33: =AVERAGE(AY33:BC33)*(1+'2014 Farm Bill Calculator'!$B$22) -> 16.55445318 | BE33: =AVERAGE(AP33:AY33) -> 0.1 | BF33: =AVERAGE(AQ33:AZ33) -> 7.916666667 | BG33: =AVERAGE(AR33:BA33) -> 8.153542857 | BH33: =AVERAGE(AS33:BB33) -> 8.5704387 | BI33: =AVERAGE(AT33:BC33) -> 9.150304282 | BK33: =IF(COUNT(G33:K33)=5,((SUM(G33:K33)-MIN(G33:K33)-MAX(G33:K33))/3),"Data Error") -> 0.1 | BL33: =IF(COUNT(H33:L33)=5,((SUM(H33:L33)-MIN(H33:L33)-MAX(H33:L33))/3),"Data Error") -> 0.1 | BM33: =IF(COUNT(I33:M33)=5,((SUM(I33:M33)-MIN(I33:M33)-MAX(I33:M33))/3),"Data Error") -> 2.677866667 | BN33: =IF(COUNT(J33:N33)=5,((SUM(J33:N33)-MIN(J33:N33)-MAX(J33:N33))/3),"Data Error") -> 4.997346933 | BO33: =IF(COUNT(K33:O33)=5,((SUM(K33:O33)-MIN(K33:O33)-MAX(K33:O33))/3),"Data Error") -> 8.574272374 | BQ33: =IF(COUNT(AA33:AE33)=5,((SUM(AA33:AE33)-MIN(AA33:AE33)-MAX(AA33:AE33))/3),"Data Error") -> 0.1 | BR33: =IF(COUNT(AB33:AF33)=5,((SUM(AB33:AF33)-MIN(AB33:AF33)-MAX(AB33:AF33))/3),"Data Error") -> 0.1 | BS33: =IF(COUNT(AC33:AG33)=5,((SUM(AC33:AG33)-MIN(AC33:AG33)-MAX(AC33:AG33))/3),"Data Error") -> 0.1003333333 | BT33: =IF(COUNT(AD33:AH33)=5,((SUM(AD33:AH33)-MIN(AD33:AH33)-MAX(AD33:AH33))/3),"Data Error") -> 0.1003333333 | BU33: =IF(COUNT(AE33:AI33)=5,((SUM(AE33:AI33)-MIN(AE33:AI33)-MAX(AE33:AI33))/3),"Data Error") -> 0.09920456394 | BW33: =IF(COUNT(AU33:AY33)=5,((SUM(AU33:AY33)-MIN(AU33:AY33)-MAX(AU33:AY33))/3),"Data Error") -> 0.1 | BX33: =IF(COUNT(AV33:AZ33)=5,((SUM(AV33:AZ33)-MIN(AV33:AZ33)-MAX(AV33:AZ33))/3),"Data Error") -> 0.1 | BY33: =IF(COUNT(AW33:BA33)=5,((SUM(AW33:BA33)-MIN(AW33:BA33)-MAX(AW33:BA33))/3),"Data Error") -> 3.258266667 | BZ33: =IF(COUNT(AX33:BB33)=5,((SUM(AX33:BB33)-MIN(AX33:BB33)-MAX(AX33:BB33))/3),"Data Error") -> 7.0545032 | CA33: =IF(COUNT(AY33:BC33)=5,((SUM(AY33:BC33)-MIN(AY33:BC33)-MAX(AY33:BC33))/3),"Data Error") -> 11.61757951
A34: HURON | B34: 139 | C34: 160 | D34: 167 | E34: 147 | F34: 174 | G34: 167 | H34: 172 | I34: 175 | J34: 129 | K34: 164 | L34: 161 | M34: 198.8 | N34: =AVERAGE(I34:M34)*(1+'2014 Farm Bill Calculator'!$B$20)*N$87 -> 126.6534 | O34: =AVERAGE(J34:N34)*(1+'2014 Farm Bill Calculator'!$B$20) -> 159.0084936 | P34: =AVERAGE(K34:O34)*(1+'2014 Farm Bill Calculator'!$B$20) -> 165.1302263 | Q34: =AVERAGE(B34:K34) -> 159.4 | R34: =AVERAGE(C34:L34) -> 161.6 | S34: =AVERAGE(D34:M34) -> 165.48 | T34: =AVERAGE(E34:N34) -> 161.44534 | U34: =AVERAGE(F34:O34) -> 162.6461894 | V34: 43 | W34: 46 | X34: 50 | Y34: 45 | Z34: 48.5 | AA34: 40 | AB34: 46 | AC34: 48 | AD34: 50 | AE34: 47 | AF34: 39 | AG34: 52.6 | AH34: =AVERAGE(AC34:AG34)*(1+'2014 Farm Bill Calculator'!$B$21)*AH$87 -> 35.8449 | AI34: =AVERAGE(AD34:AH34)*(1+'2014 Farm Bill Calculator'!$B$21) -> 45.3378698 | AJ34: =AVERAGE(AE34:AI34)*(1+'2014 Farm Bill Calculator'!$B$21) -> 44.3961195 | AK34: =AVERAGE(V34:AE34) -> 46.35 | AL34: =AVERAGE(W34:AF34) -> 45.95 | AM34: =AVERAGE(X34:AG34) -> 46.61 | AN34: =AVERAGE(Y34:AH34) -> 45.19449 | AO34: =AVERAGE(Z34:AI34) -> 45.22827698 | AP34: 82 | AQ34: 80 | AR34: 86 | AS34: 80 | AT34: 87.5 | AU34: 64 | AV34: 86 | AW34: 91 | AX34: 88 | AY34: 92 | AZ34: 81 | BA34: 104.5 | BB34: =AVERAGE(AW34:BA34)*(1+'2014 Farm Bill Calculator'!$B$22) -> 92.213 | BC34: =AVERAGE(AX34:BB34)*(1+'2014 Farm Bill Calculator'!$B$22) -> 92.458026 | BD34: =AVERAGE(AY34:BC34)*(1+'2014 Farm Bill Calculator'!$B$22) -> 93.35854725 | BE34: =AVERAGE(AP34:AY34) -> 83.65 | BF34: =AVERAGE(AQ34:AZ34) -> 83.55 | BG34: =AVERAGE(AR34:BA34) -> 86 | BH34: =AVERAGE(AS34:BB34) -> 86.6213 | BI34: =AVERAGE(AT34:BC34) -> 87.8671026 | BK34: =IF(COUNT(G34:K34)=5,((SUM(G34:K34)-MIN(G34:K34)-MAX(G34:K34))/3),"Data Error") -> 167.6666667 | BL34: =IF(COUNT(H34:L34)=5,((SUM(H34:L34)-MIN(H34:L34)-MAX(H34:L34))/3),"Data Error") -> 165.6666667 | BM34: =IF(COUNT(I34:M34)=5,((SUM(I34:M34)-MIN(I34:M34)-MAX(I34:M34))/3),"Data Error") -> 166.6666667 | BN34: =IF(COUNT(J34:N34)=5,((SUM(J34:N34)-MIN(J34:N34)-MAX(J34:N34))/3),"Data Error") -> 151.3333333 | BO34: =IF(COUNT(K34:O34)=5,((SUM(K34:O34)-MIN(K34:O34)-MAX(K34:O34))/3),"Data Error") -> 161.3361645 | BQ34: =IF(COUNT(AA34:AE34)=5,((SUM(AA34:AE34)-MIN(AA34:AE34)-MAX(AA34:AE34))/3),"Data Error") -> 47 | BR34: =IF(COUNT(AB34:AF34)=5,((SUM(AB34:AF34)-MIN(AB34:AF34)-MAX(AB34:AF34))/3),"Data Error") -> 47 | BS34: =IF(COUNT(AC34:AG34)=5,((SUM(AC34:AG34)-MIN(AC34:AG34)-MAX(AC34:AG34))/3),"Data Error") -> 48.33333333 | BT34: =IF(COUNT(AD34:AH34)=5,((SUM(AD34:AH34)-MIN(AD34:AH34)-MAX(AD34:AH34))/3),"Data Error") -> 45.33333333 | BU34: =IF(COUNT(AE34:AI34)=5,((SUM(AE34:AI34)-MIN(AE34:AI34)-MAX(AE34:AI34))/3),"Data Error") -> 43.77928993 | BW34: =IF(COUNT(AU34:AY34)=5,((SUM(AU34:AY34)-MIN(AU34:AY34)-MAX(AU34:AY34))/3),"Data Error") -> 88.33333333 | BX34: =IF(COUNT(AV34:AZ34)=5,((SUM(AV34:AZ34)-MIN(AV34:AZ34)-MAX(AV34:AZ34))/3),"Data Error") -> 88.33333333 | BY34: =IF(COUNT(AW34:BA34)=5,((SUM(AW34:BA34)-MIN(AW34:BA34)-MAX(AW34:BA34))/3),"Data Error") -> 90.33333333 | BZ34: =IF(COUNT(AX34:BB34)=5,((SUM(AX34:BB34)-MIN(AX34:BB34)-MAX(AX34:BB34))/3),"Data Error") -> 90.73766667 | CA34: =IF(COUNT(AY34:BC34)=5,((SUM(AY34:BC34)-MIN(AY34:BC34)-MAX(AY34:BC34))/3),"Data Error") -> 92.22367533
A35: INGHAM | B35: 159 | C35: 145 | D35: 151 | E35: 118 | F35: 129 | G35: 151 | H35: 159 | I35: 148 | J35: 116 | K35: 161 | L35: 175 | M35: 171.9 | N35: =AVERAGE(I35:M35)*(1+'2014 Farm Bill Calculator'!$B$20)*N$87 -> 118.1007 | O35: =AVERAGE(J35:N35)*(1+'2014 Farm Bill Calculator'!$B$20) -> 151.3681428 | P35: =AVERAGE(K35:O35)*(1+'2014 Farm Bill Calculator'!$B$20) -> 158.5832439 | Q35: =AVERAGE(B35:K35) -> 143.7 | R35: =AVERAGE(C35:L35) -> 145.3 | S35: =AVERAGE(D35:M35) -> 147.99 | T35: =AVERAGE(E35:N35) -> 144.70007 | U35: =AVERAGE(F35:O35) -> 148.0368843 | V35: 47 | W35: 37 | X35: 47 | Y35: 41 | Z35: 34.5 | AA35: 41 | AB35: 47 | AC35: 46 | AD35: 39 | AE35: 48 | AF35: 50 | AG35: 50.1 | AH35: =AVERAGE(AC35:AG35)*(1+'2014 Farm Bill Calculator'!$B$21)*AH$87 -> 35.31465 | AI35: =AVERAGE(AD35:AH35)*(1+'2014 Farm Bill Calculator'!$B$21) -> 44.9277593 | AJ35: =AVERAGE(AE35:AI35)*(1+'2014 Farm Bill Calculator'!$B$21) -> 46.12516668 | AK35: =AVERAGE(V35:AE35) -> 42.75 | AL35: =AVERAGE(W35:AF35) -> 43.05 | AM35: =AVERAGE(X35:AG35) -> 44.36 | AN35: =AVERAGE(Y35:AH35) -> 43.191465 | AO35: =AVERAGE(Z35:AI35) -> 43.58424093 | AP35: 61 | AQ35: 66 | AR35: 74 | AS35: 66 | AT35: 65.5 | AU35: 66 | AV35: 70 | AW35: 80 | AX35: 84 | AY35: 84 | AZ35: 83 | BA35: 84.9 | BB35: =AVERAGE(AW35:BA35)*(1+'2014 Farm Bill Calculator'!$B$22) -> 84.0118 | BC35: =AVERAGE(AX35:BB35)*(1+'2014 Farm Bill Calculator'!$B$22) -> 84.8221836 | BD35: =AVERAGE(AY35:BC35)*(1+'2014 Farm Bill Calculator'!$B$22) -> 84.98826469 | BE35: =AVERAGE(AP35:AY35) -> 71.65 | BF35: =AVERAGE(AQ35:AZ35) -> 73.85 | BG35: =AVERAGE(AR35:BA35) -> 75.74 | BH35: =AVERAGE(AS35:BB35) -> 76.74118 | BI35: =AVERAGE(AT35:BC35) -> 78.62339836 | BK35: =IF(COUNT(G35:K35)=5,((SUM(G35:K35)-MIN(G35:K35)-MAX(G35:K35))/3),"Data Error") -> 152.6666667 | BL35: =IF(COUNT(H35:L35)=5,((SUM(H35:L35)-MIN(H35:L35)-MAX(H35:L35))/3),"Data Error") -> 156 | BM35: =IF(COUNT(I35:M35)=5,((SUM(I35:M35)-MIN(I35:M35)-MAX(I35:M35))/3),"Data Error") -> 160.3 | BN35: =IF(COUNT(J35:N35)=5,((SUM(J35:N35)-MIN(J35:N35)-MAX(J35:N35))/3),"Data Error") -> 150.3335667 | BO35: =IF(COUNT(K35:O35)=5,((SUM(K35:O35)-MIN(K35:O35)-MAX(K35:O35))/3),"Data Error") -> 161.4227143 | BQ35: =IF(COUNT(AA35:AE35)=5,((SUM(AA35:AE35)-MIN(AA35:AE35)-MAX(AA35:AE35))/3),"Data Error") -> 44.66666667 | BR35: =IF(COUNT(AB35:AF35)=5,((SUM(AB35:AF35)-MIN(AB35:AF35)-MAX(AB35:AF35))/3),"Data Error") -> 47 | BS35: =IF(COUNT(AC35:AG35)=5,((SUM(AC35:AG35)-MIN(AC35:AG35)-MAX(AC35:AG35))/3),"Data Error") -> 48 | BT35: =IF(COUNT(AD35:AH35)=5,((SUM(AD35:AH35)-MIN(AD35:AH35)-MAX(AD35:AH35))/3),"Data Error") -> 45.66666667 | BU35: =IF(COUNT(AE35:AI35)=5,((SUM(AE35:AI35)-MIN(AE35:AI35)-MAX(AE35:AI35))/3),"Data Error") -> 47.64258643 | BW35: =IF(COUNT(AU35:AY35)=5,((SUM(AU35:AY35)-MIN(AU35:AY35)-MAX(AU35:AY35))/3),"Data Error") -> 78 | BX35: =IF(COUNT(AV35:AZ35)=5,((SUM(AV35:AZ35)-MIN(AV35:AZ35)-MAX(AV35:AZ35))/3),"Data Error") -> 82.33333333 | BY35: =IF(COUNT(AW35:BA35)=5,((SUM(AW35:BA35)-MIN(AW35:BA35)-MAX(AW35:BA35))/3),"Data Error") -> 83.66666667 | BZ35: =IF(COUNT(AX35:BB35)=5,((SUM(AX35:BB35)-MIN(AX35:BB35)-MAX(AX35:BB35))/3),"Data Error") -> 84.00393333 | CA35: =IF(COUNT(AY35:BC35)=5,((SUM(AY35:BC35)-MIN(AY35:BC35)-MAX(AY35:BC35))/3),"Data Error") -> 84.27799453
A36: IONIA | B36: 146 | C36: 142 | D36: 147 | E36: 132 | F36: 148 | G36: 153 | H36: 160 | I36: 165 | J36: 139 | K36: 159 | L36: 157 | M36: 183.3 | N36: =AVERAGE(I36:M36)*(1+'2014 Farm Bill Calculator'!$B$20)*N$87 -> 122.9049 | O36: =AVERAGE(J36:N36)*(1+'2014 Farm Bill Calculator'!$B$20) -> 155.2857996 | P36: =AVERAGE(K36:O36)*(1+'2014 Farm Bill Calculator'!$B$20) -> 158.6081027 | Q36: =AVERAGE(B36:K36) -> 149.1 | R36: =AVERAGE(C36:L36) -> 150.2 | S36: =AVERAGE(D36:M36) -> 154.33 | T36: =AVERAGE(E36:N36) -> 151.92049 | U36: =AVERAGE(F36:O36) -> 154.24907 | V36: 43 | W36: 40 | X36: 46 | Y36: 41 | Z36: 37 | AA36: 45 | AB36: 48 | AC36: 48 | AD36: 50 | AE36: 47 | AF36: 45 | AG36: 52.7 | AH36: =AVERAGE(AC36:AG36)*(1+'2014 Farm Bill Calculator'!$B$21)*AH$87 -> 36.76905 | AI36: =AVERAGE(AD36:AH36)*(1+'2014 Farm Bill Calculator'!$B$21) -> 46.7567481 | AJ36: =AVERAGE(AE36:AI36)*(1+'2014 Farm Bill Calculator'!$B$21) -> 46.10161122 | AK36: =AVERAGE(V36:AE36) -> 44.5 | AL36: =AVERAGE(W36:AF36) -> 44.7 | AM36: =AVERAGE(X36:AG36) -> 45.97 | AN36: =AVERAGE(Y36:AH36) -> 45.046905 | AO36: =AVERAGE(Z36:AI36) -> 45.62257981 | AP36: 57 | AQ36: 64 | AR36: 66 | AS36: 62 | AT36: 64 | AU36: 66 | AV36: 63 | AW36: 77 | AX36: 74 | AY36: 78 | AZ36: 77 | BA36: 78.4 | BB36: =AVERAGE(AW36:BA36)*(1+'2014 Farm Bill Calculator'!$B$22) -> 77.6488 | BC36: =AVERAGE(AX36:BB36)*(1+'2014 Farm Bill Calculator'!$B$22) -> 77.7798576 | BD36: =AVERAGE(AY36:BC36)*(1+'2014 Farm Bill Calculator'!$B$22) -> 78.54338884 | BE36: =AVERAGE(AP36:AY36) -> 67.1 | BF36: =AVERAGE(AQ36:AZ36) -> 69.1 | BG36: =AVERAGE(AR36:BA36) -> 70.54 | BH36: =AVERAGE(AS36:BB36) -> 71.70488 | BI36: =AVERAGE(AT36:BC36) -> 73.28286576 | BK36: =IF(COUNT(G36:K36)=5,((SUM(G36:K36)-MIN(G36:K36)-MAX(G36:K36))/3),"Data Error") -> 157.3333333 | BL36: =IF(COUNT(H36:L36)=5,((SUM(H36:L36)-MIN(H36:L36)-MAX(H36:L36))/3),"Data Error") -> 158.6666667 | BM36: =IF(COUNT(I36:M36)=5,((SUM(I36:M36)-MIN(I36:M36)-MAX(I36:M36))/3),"Data Error") -> 160.3333333 | BN36: =IF(COUNT(J36:N36)=5,((SUM(J36:N36)-MIN(J36:N36)-MAX(J36:N36))/3),"Data Error") -> 151.6666667 | BO36: =IF(COUNT(K36:O36)=5,((SUM(K36:O36)-MIN(K36:O36)-MAX(K36:O36))/3),"Data Error") -> 157.0952665 | BQ36: =IF(COUNT(AA36:AE36)=5,((SUM(AA36:AE36)-MIN(AA36:AE36)-MAX(AA36:AE36))/3),"Data Error") -> 47.66666667 | BR36: =IF(COUNT(AB36:AF36)=5,((SUM(AB36:AF36)-MIN(AB36:AF36)-MAX(AB36:AF36))/3),"Data Error") -> 47.66666667 | BS36: =IF(COUNT(AC36:AG36)=5,((SUM(AC36:AG36)-MIN(AC36:AG36)-MAX(AC36:AG36))/3),"Data Error") -> 48.33333333 | BT36: =IF(COUNT(AD36:AH36)=5,((SUM(AD36:AH36)-MIN(AD36:AH36)-MAX(AD36:AH36))/3),"Data Error") -> 47.33333333 | BU36: =IF(COUNT(AE36:AI36)=5,((SUM(AE36:AI36)-MIN(AE36:AI36)-MAX(AE36:AI36))/3),"Data Error") -> 46.25224937 | BW36: =IF(COUNT(AU36:AY36)=5,((SUM(AU36:AY36)-MIN(AU36:AY36)-MAX(AU36:AY36))/3),"Data Error") -> 72.33333333 | BX36: =IF(COUNT(AV36:AZ36)=5,((SUM(AV36:AZ36)-MIN(AV36:AZ36)-MAX(AV36:AZ36))/3),"Data Error") -> 76 | BY36: =IF(COUNT(AW36:BA36)=5,((SUM(AW36:BA36)-MIN(AW36:BA36)-MAX(AW36:BA36))/3),"Data Error") -> 77.33333333 | BZ36: =IF(COUNT(AX36:BB36)=5,((SUM(AX36:BB36)-MIN(AX36:BB36)-MAX(AX36:BB36))/3),"Data Error") -> 77.5496 | CA36: =IF(COUNT(AY36:BC36)=5,((SUM(AY36:BC36)-MIN(AY36:BC36)-MAX(AY36:BC36))/3),"Data Error") -> 77.80955253
A37: IOSCO | B37: 92 | C37: 142 | D37: 138 | E37: 110 | F37: 131 | G37: 119 | H37: 146 | I37: 150 | J37: 133 | K37: 122 | L37: 122 | M37: 140 | N37: =AVERAGE(I37:M37)*(1+'2014 Farm Bill Calculator'!$B$20)*N$87 -> 102.051 | O37: =AVERAGE(J37:N37)*(1+'2014 Farm Bill Calculator'!$B$20) -> 126.286404 | P37: =AVERAGE(K37:O37)*(1+'2014 Farm Bill Calculator'!$B$20) -> 124.9168304 | Q37: =AVERAGE(B37:K37) -> 128.3 | R37: =AVERAGE(C37:L37) -> 131.3 | S37: =AVERAGE(D37:M37) -> 131.1 | T37: =AVERAGE(E37:N37) -> 127.5051 | U37: =AVERAGE(F37:O37) -> 129.1337404 | X37: 44 | Y37: 32 | Z37: 33 | AA37: 35 | AB37: 44 | AC37: 34 | AD37: 43 | AE37: 33 | AF37: 32 | AG37: =AVERAGE(AB37:AF37)*(1+'2014 Farm Bill Calculator'!$B$21) -> 37.572 | AH37: =AVERAGE(AC37:AG37)*(1+'2014 Farm Bill Calculator'!$B$21)*AH$87 -> 27.205158 | AI37: =AVERAGE(AD37:AH37)*(1+'2014 Farm Bill Calculator'!$B$21) -> 34.90098592 | AJ37: =AVERAGE(AE37:AI37)*(1+'2014 Farm Bill Calculator'!$B$21) -> 33.26498507 | AK37: =AVERAGE(V37:AE37) -> 37.25 | AL37: =AVERAGE(W37:AF37) -> 36.66666667 | AM37: =AVERAGE(X37:AG37) -> 36.7572 | AN37: =AVERAGE(Y37:AH37) -> 35.0777158 | AO37: =AVERAGE(Z37:AI37) -> 35.36781439 | AP37: 60 | AQ37: 74 | AR37: 78 | AS37: 66 | AT37: 58 | AU37: 71 | AV37: 52 | AW37: 77 | AX37: 67 | AY37: 64 | AZ37: 68 | BA37: =AVERAGE(AV37:AZ37)*(1+'2014 Farm Bill Calculator'!$B$22) -> 66.256 | BB37: =AVERAGE(AW37:BA37)*(1+'2014 Farm Bill Calculator'!$B$22) -> 69.135712 | BC37: =AVERAGE(AX37:BB37)*(1+'2014 Farm Bill Calculator'!$B$22) -> 67.54712582 | BD37: =AVERAGE(AY37:BC37)*(1+'2014 Farm Bill Calculator'!$B$22) -> 67.65764524 | BE37: =AVERAGE(AP37:AY37) -> 66.7 | BF37: =AVERAGE(AQ37:AZ37) -> 67.5 | BG37: =AVERAGE(AR37:BA37) -> 66.7256 | BH37: =AVERAGE(AS37:BB37) -> 65.8391712 | BI37: =AVERAGE(AT37:BC37) -> 65.99388378 | BK37: =IF(COUNT(G37:K37)=5,((SUM(G37:K37)-MIN(G37:K37)-MAX(G37:K37))/3),"Data Error") -> 133.6666667 | BL37: =IF(COUNT(H37:L37)=5,((SUM(H37:L37)-MIN(H37:L37)-MAX(H37:L37))/3),"Data Error") -> 133.6666667 | BM37: =IF(COUNT(I37:M37)=5,((SUM(I37:M37)-MIN(I37:M37)-MAX(I37:M37))/3),"Data Error") -> 131.6666667 | BN37: =IF(COUNT(J37:N37)=5,((SUM(J37:N37)-MIN(J37:N37)-MAX(J37:N37))/3),"Data Error") -> 125.6666667 | BO37: =IF(COUNT(K37:O37)=5,((SUM(K37:O37)-MIN(K37:O37)-MAX(K37:O37))/3),"Data Error") -> 123.4288013 | BQ37: =IF(COUNT(AA37:AE37)=5,((SUM(AA37:AE37)-MIN(AA37:AE37)-MAX(AA37:AE37))/3),"Data Error") -> 37.33333333 | BR37: =IF(COUNT(AB37:AF37)=5,((SUM(AB37:AF37)-MIN(AB37:AF37)-MAX(AB37:AF37))/3),"Data Error") -> 36.66666667 | BS37: =IF(COUNT(AC37:AG37)=5,((SUM(AC37:AG37)-MIN(AC37:AG37)-MAX(AC37:AG37))/3),"Data Error") -> 34.85733333 | BT37: =IF(COUNT(AD37:AH37)=5,((SUM(AD37:AH37)-MIN(AD37:AH37)-MAX(AD37:AH37))/3),"Data Error") -> 34.19066667 | BU37: =IF(COUNT(AE37:AI37)=5,((SUM(AE37:AI37)-MIN(AE37:AI37)-MAX(AE37:AI37))/3),"Data Error") -> 33.30032864 | BW37: =IF(COUNT(AU37:AY37)=5,((SUM(AU37:AY37)-MIN(AU37:AY37)-MAX(AU37:AY37))/3),"Data Error") -> 67.33333333 | BX37: =IF(COUNT(AV37:AZ37)=5,((SUM(AV37:AZ37)-MIN(AV37:AZ37)-MAX(AV37:AZ37))/3),"Data Error") -> 66.33333333 | BY37: =IF(COUNT(AW37:BA37)=5,((SUM(AW37:BA37)-MIN(AW37:BA37)-MAX(AW37:BA37))/3),"Data Error") -> 67.08533333 | BZ37: =IF(COUNT(AX37:BB37)=5,((SUM(AX37:BB37)-MIN(AX37:BB37)-MAX(AX37:BB37))/3),"Data Error") -> 67.08533333 | CA37: =IF(COUNT(AY37:BC37)=5,((SUM(AY37:BC37)-MIN(AY37:BC37)-MAX(AY37:BC37))/3),"Data Error") -> 67.26770861
A38: IRON | G38: 0.1 | H38: =G38 -> 0.1 | I38: =H38 -> 0.1 | J38: =I38 -> 0.1 | K38: =J38 -> 0.1 | L38: 38 | M38: =AVERAGE(H38:L38)*(1+'2014 Farm Bill Calculator'!$B$20) -> 7.8336 | N38: =AVERAGE(I38:M38)*(1+'2014 Farm Bill Calculator'!$B$20)*N$87 -> 7.0584408 | O38: =AVERAGE(J38:N38)*(1+'2014 Farm Bill Calculator'!$B$20) -> 10.83077632 | P38: =AVERAGE(K38:O38)*(1+'2014 Farm Bill Calculator'!$B$20) -> 13.01985469 | Q38: =AVERAGE(B38:K38) -> 0.1 | R38: =AVERAGE(C38:L38) -> 6.416666667 | S38: =AVERAGE(D38:M38) -> 6.619085714 | T38: =AVERAGE(E38:N38) -> 6.6740051 | U38: =AVERAGE(F38:O38) -> 7.135868569 | AA38: 0.1 | AB38: =AA38 -> 0.1 | AC38: =AB38 -> 0.1 | AD38: =AC38 -> 0.1 | AE38: =AD38 -> 0.1 | AF38: =AVERAGE(AA38:AE38)*(1+'2014 Farm Bill Calculator'!$B$21) -> 0.101 | AG38: =AVERAGE(AB38:AF38)*(1+'2014 Farm Bill Calculator'!$B$21) -> 0.101202 | AH38: =AVERAGE(AC38:AG38)*(1+'2014 Farm Bill Calculator'!$B$21)*AH$87 -> 0.076083603 | AI38: =AVERAGE(AD38:AH38)*(1+'2014 Farm Bill Calculator'!$B$21) -> 0.09661369181 | AJ38: =AVERAGE(AE38:AI38)*(1+'2014 Farm Bill Calculator'!$B$21) -> 0.09592965755 | AK38: =AVERAGE(V38:AE38) -> 0.1 | AL38: =AVERAGE(W38:AF38) -> 0.1001666667 | AM38: =AVERAGE(X38:AG38) -> 0.1003145714 | AN38: =AVERAGE(Y38:AH38) -> 0.09728570038 | AO38: =AVERAGE(Z38:AI38) -> 0.09721103276 | AU38: 0.1 | AV38: =AU38 -> 0.1 | AW38: =AV38 -> 0.1 | AX38: =AW38 -> 0.1 | AY38: =AX38 -> 0.1 | AZ38: 47 | BA38: =AVERAGE(AV38:AZ38)*(1+'2014 Farm Bill Calculator'!$B$22) -> 9.5748 | BB38: =AVERAGE(AW38:BA38)*(1+'2014 Farm Bill Calculator'!$B$22) -> 11.4887096 | BC38: =AVERAGE(AX38:BB38)*(1+'2014 Farm Bill Calculator'!$B$22) -> 13.78922894 | BD38: =AVERAGE(AY38:BC38)*(1+'2014 Farm Bill Calculator'!$B$22) -> 16.55445318 | BE38: =AVERAGE(AP38:AY38) -> 0.1 | BF38: =AVERAGE(AQ38:AZ38) -> 7.916666667 | BG38: =AVERAGE(AR38:BA38) -> 8.153542857 | BH38: =AVERAGE(AS38:BB38) -> 8.5704387 | BI38: =AVERAGE(AT38:BC38) -> 9.150304282 | BK38: =IF(COUNT(G38:K38)=5,((SUM(G38:K38)-MIN(G38:K38)-MAX(G38:K38))/3),"Data Error") -> 0.1 | BL38: =IF(COUNT(H38:L38)=5,((SUM(H38:L38)-MIN(H38:L38)-MAX(H38:L38))/3),"Data Error") -> 0.1 | BM38: =IF(COUNT(I38:M38)=5,((SUM(I38:M38)-MIN(I38:M38)-MAX(I38:M38))/3),"Data Error") -> 2.677866667 | BN38: =IF(COUNT(J38:N38)=5,((SUM(J38:N38)-MIN(J38:N38)-MAX(J38:N38))/3),"Data Error") -> 4.997346933 | BO38: =IF(COUNT(K38:O38)=5,((SUM(K38:O38)-MIN(K38:O38)-MAX(K38:O38))/3),"Data Error") -> 8.574272374 | BQ38: =IF(COUNT(AA38:AE38)=5,((SUM(AA38:AE38)-MIN(AA38:AE38)-MAX(AA38:AE38))/3),"Data Error") -> 0.1 | BR38: =IF(COUNT(AB38:AF38)=5,((SUM(AB38:AF38)-MIN(AB38:AF38)-MAX(AB38:AF38))/3),"Data Error") -> 0.1 | BS38: =IF(COUNT(AC38:AG38)=5,((SUM(AC38:AG38)-MIN(AC38:AG38)-MAX(AC38:AG38))/3),"Data Error") -> 0.1003333333 | BT38: =IF(COUNT(AD38:AH38)=5,((SUM(AD38:AH38)-MIN(AD38:AH38)-MAX(AD38:AH38))/3),"Data Error") -> 0.1003333333 | BU38: =IF(COUNT(AE38:AI38)=5,((SUM(AE38:AI38)-MIN(AE38:AI38)-MAX(AE38:AI38))/3),"Data Error") -> 0.09920456394 | BW38: =IF(COUNT(AU38:AY38)=5,((SUM(AU38:AY38)-MIN(AU38:AY38)-MAX(AU38:AY38))/3),"Data Error") -> 0.1 | BX38: =IF(COUNT(AV38:AZ38)=5,((SUM(AV38:AZ38)-MIN(AV38:AZ38)-MAX(AV38:AZ38))/3),"Data Error") -> 0.1 | BY38: =IF(COUNT(AW38:BA38)=5,((SUM(AW38:BA38)-MIN(AW38:BA38)-MAX(AW38:BA38))/3),"Data Error") -> 3.258266667 | BZ38: =IF(COUNT(AX38:BB38)=5,((SUM(AX38:BB38)-MIN(AX38:BB38)-MAX(AX38:BB38))/3),"Data Error") -> 7.0545032 | CA38: =IF(COUNT(AY38:BC38)=5,((SUM(AY38:BC38)-MIN(AY38:BC38)-MAX(AY38:BC38))/3),"Data Error") -> 11.61757951
A39: ISABELLA | B39: 119 | C39: 158 | D39: 136 | E39: 117 | F39: 134 | G39: 134 | H39: 145 | I39: 146 | J39: 156 | K39: 138 | L39: 143 | M39: 154.7 | N39: =AVERAGE(I39:M39)*(1+'2014 Farm Bill Calculator'!$B$20)*N$87 -> 112.8681 | O39: =AVERAGE(J39:N39)*(1+'2014 Farm Bill Calculator'!$B$20) -> 143.7318924 | P39: =AVERAGE(K39:O39)*(1+'2014 Farm Bill Calculator'!$B$20) -> 141.2291984 | Q39: =AVERAGE(B39:K39) -> 138.3 | R39: =AVERAGE(C39:L39) -> 140.7 | S39: =AVERAGE(D39:M39) -> 140.37 | T39: =AVERAGE(E39:N39) -> 138.05681 | U39: =AVERAGE(F39:O39) -> 140.7299992 | V39: 29 | W39: 46 | X39: 47 | Y39: 37 | Z39: 36.5 | AA39: 40 | AB39: 48 | AC39: 46 | AD39: 57 | AE39: 40 | AF39: 41 | AG39: 45.4 | AH39: =AVERAGE(AC39:AG39)*(1+'2014 Farm Bill Calculator'!$B$21)*AH$87 -> 34.7541 | AI39: =AVERAGE(AD39:AH39)*(1+'2014 Farm Bill Calculator'!$B$21) -> 44.0671282 | AJ39: =AVERAGE(AE39:AI39)*(1+'2014 Farm Bill Calculator'!$B$21) -> 41.4546881 | AK39: =AVERAGE(V39:AE39) -> 42.65 | AL39: =AVERAGE(W39:AF39) -> 43.85 | AM39: =AVERAGE(X39:AG39) -> 43.79 | AN39: =AVERAGE(Y39:AH39) -> 42.56541 | AO39: =AVERAGE(Z39:AI39) -> 43.27212282 | AP39: 83 | AQ39: 62 | AR39: 77 | AS39: 58 | AT39: 72 | AU39: 70 | AV39: 70 | AW39: 80 | AX39: 77 | AY39: 68 | AZ39: 65 | BA39: 80.5 | BB39: =AVERAGE(AW39:BA39)*(1+'2014 Farm Bill Calculator'!$B$22) -> 74.841 | BC39: =AVERAGE(AX39:BB39)*(1+'2014 Farm Bill Calculator'!$B$22) -> 73.798882 | BD39: =AVERAGE(AY39:BC39)*(1+'2014 Farm Bill Calculator'!$B$22) -> 73.15225616 | BE39: =AVERAGE(AP39:AY39) -> 71.7 | BF39: =AVERAGE(AQ39:AZ39) -> 69.9 | BG39: =AVERAGE(AR39:BA39) -> 71.75 | BH39: =AVERAGE(AS39:BB39) -> 71.5341 | BI39: =AVERAGE(AT39:BC39) -> 73.1139882 | BK39: =IF(COUNT(G39:K39)=5,((SUM(G39:K39)-MIN(G39:K39)-MAX(G39:K39))/3),"Data Error") -> 143 | BL39: =IF(COUNT(H39:L39)=5,((SUM(H39:L39)-MIN(H39:L39)-MAX(H39:L39))/3),"Data Error") -> 144.6666667 | BM39: =IF(COUNT(I39:M39)=5,((SUM(I39:M39)-MIN(I39:M39)-MAX(I39:M39))/3),"Data Error") -> 147.9 | BN39: =IF(COUNT(J39:N39)=5,((SUM(J39:N39)-MIN(J39:N39)-MAX(J39:N39))/3),"Data Error") -> 145.2333333 | BO39: =IF(COUNT(K39:O39)=5,((SUM(K39:O39)-MIN(K39:O39)-MAX(K39:O39))/3),"Data Error") -> 141.5772975 | BQ39: =IF(COUNT(AA39:AE39)=5,((SUM(AA39:AE39)-MIN(AA39:AE39)-MAX(AA39:AE39))/3),"Data Error") -> 44.66666667 | BR39: =IF(COUNT(AB39:AF39)=5,((SUM(AB39:AF39)-MIN(AB39:AF39)-MAX(AB39:AF39))/3),"Data Error") -> 45 | BS39: =IF(COUNT(AC39:AG39)=5,((SUM(AC39:AG39)-MIN(AC39:AG39)-MAX(AC39:AG39))/3),"Data Error") -> 44.13333333 | BT39: =IF(COUNT(AD39:AH39)=5,((SUM(AD39:AH39)-MIN(AD39:AH39)-MAX(AD39:AH39))/3),"Data Error") -> 42.13333333 | BU39: =IF(COUNT(AE39:AI39)=5,((SUM(AE39:AI39)-MIN(AE39:AI39)-MAX(AE39:AI39))/3),"Data Error") -> 41.68904273 | BW39: =IF(COUNT(AU39:AY39)=5,((SUM(AU39:AY39)-MIN(AU39:AY39)-MAX(AU39:AY39))/3),"Data Error") -> 72.33333333 | BX39: =IF(COUNT(AV39:AZ39)=5,((SUM(AV39:AZ39)-MIN(AV39:AZ39)-MAX(AV39:AZ39))/3),"Data Error") -> 71.66666667 | BY39: =IF(COUNT(AW39:BA39)=5,((SUM(AW39:BA39)-MIN(AW39:BA39)-MAX(AW39:BA39))/3),"Data Error") -> 75 | BZ39: =IF(COUNT(AX39:BB39)=5,((SUM(AX39:BB39)-MIN(AX39:BB39)-MAX(AX39:BB39))/3),"Data Error") -> 73.28033333 | CA39: =IF(COUNT(AY39:BC39)=5,((SUM(AY39:BC39)-MIN(AY39:BC39)-MAX(AY39:BC39))/3),"Data Error") -> 72.213294
A40: JACKSON | B40: 133 | C40: 143 | D40: 134 | E40: 103 | F40: 111 | G40: 122 | H40: 141 | I40: 130 | J40: 85 | K40: 156 | L40: 154 | M40: 141.1 | N40: =AVERAGE(I40:M40)*(1+'2014 Farm Bill Calculator'!$B$20)*N$87 -> 101.9133 | O40: =AVERAGE(J40:N40)*(1+'2014 Farm Bill Calculator'!$B$20) -> 130.1547132 | P40: =AVERAGE(K40:O40)*(1+'2014 Farm Bill Calculator'!$B$20) -> 139.3662747 | Q40: =AVERAGE(B40:K40) -> 125.8 | R40: =AVERAGE(C40:L40) -> 127.9 | S40: =AVERAGE(D40:M40) -> 127.71 | T40: =AVERAGE(E40:N40) -> 124.50133 | U40: =AVERAGE(F40:O40) -> 127.2168013 | V40: 41 | W40: 37 | X40: 44 | Y40: 38 | Z40: 26.5 | AA40: 39 | AB40: 46 | AC40: 40 | AD40: 29 | AE40: 46 | AF40: 41 | AG40: 44.1 | AH40: =AVERAGE(AC40:AG40)*(1+'2014 Farm Bill Calculator'!$B$21)*AH$87 -> 30.31515 | AI40: =AVERAGE(AD40:AH40)*(1+'2014 Farm Bill Calculator'!$B$21) -> 38.4638603 | AJ40: =AVERAGE(AE40:AI40)*(1+'2014 Farm Bill Calculator'!$B$21) -> 40.37556008 | AK40: =AVERAGE(V40:AE40) -> 38.65 | AL40: =AVERAGE(W40:AF40) -> 38.65 | AM40: =AVERAGE(X40:AG40) -> 39.36 | AN40: =AVERAGE(Y40:AH40) -> 37.991515 | AO40: =AVERAGE(Z40:AI40) -> 38.03790103 | AP40: 51 | AQ40: 53 | AR40: 57 | AS40: 51 | AT40: 59 | AU40: 57 | AV40: 55 | AW40: 66 | AX40: 63 | AY40: 64 | AZ40: 61 | BA40: 68.1 | BB40: =AVERAGE(AW40:BA40)*(1+'2014 Farm Bill Calculator'!$B$22) -> 65.0642 | BC40: =AVERAGE(AX40:BB40)*(1+'2014 Farm Bill Calculator'!$B$22) -> 64.8751684 | BD40: =AVERAGE(AY40:BC40)*(1+'2014 Farm Bill Calculator'!$B$22) -> 65.25395242 | BE40: =AVERAGE(AP40:AY40) -> 57.6 | BF40: =AVERAGE(AQ40:AZ40) -> 58.6 | BG40: =AVERAGE(AR40:BA40) -> 60.11 | BH40: =AVERAGE(AS40:BB40) -> 60.91642 | BI40: =AVERAGE(AT40:BC40) -> 62.30393684 | BK40: =IF(COUNT(G40:K40)=5,((SUM(G40:K40)-MIN(G40:K40)-MAX(G40:K40))/3),"Data Error") -> 131 | BL40: =IF(COUNT(H40:L40)=5,((SUM(H40:L40)-MIN(H40:L40)-MAX(H40:L40))/3),"Data Error") -> 141.6666667 | BM40: =IF(COUNT(I40:M40)=5,((SUM(I40:M40)-MIN(I40:M40)-MAX(I40:M40))/3),"Data Error") -> 141.7 | BN40: =IF(COUNT(J40:N40)=5,((SUM(J40:N40)-MIN(J40:N40)-MAX(J40:N40))/3),"Data Error") -> 132.3377667 | BO40: =IF(COUNT(K40:O40)=5,((SUM(K40:O40)-MIN(K40:O40)-MAX(K40:O40))/3),"Data Error") -> 141.7515711 | BQ40: =IF(COUNT(AA40:AE40)=5,((SUM(AA40:AE40)-MIN(AA40:AE40)-MAX(AA40:AE40))/3),"Data Error") -> 41.66666667 | BR40: =IF(COUNT(AB40:AF40)=5,((SUM(AB40:AF40)-MIN(AB40:AF40)-MAX(AB40:AF40))/3),"Data Error") -> 42.33333333 | BS40: =IF(COUNT(AC40:AG40)=5,((SUM(AC40:AG40)-MIN(AC40:AG40)-MAX(AC40:AG40))/3),"Data Error") -> 41.7 | BT40: =IF(COUNT(AD40:AH40)=5,((SUM(AD40:AH40)-MIN(AD40:AH40)-MAX(AD40:AH40))/3),"Data Error") -> 38.47171667 | BU40: =IF(COUNT(AE40:AI40)=5,((SUM(AE40:AI40)-MIN(AE40:AI40)-MAX(AE40:AI40))/3),"Data Error") -> 41.18795343 | BW40: =IF(COUNT(AU40:AY40)=5,((SUM(AU40:AY40)-MIN(AU40:AY40)-MAX(AU40:AY40))/3),"Data Error") -> 61.33333333 | BX40: =IF(COUNT(AV40:AZ40)=5,((SUM(AV40:AZ40)-MIN(AV40:AZ40)-MAX(AV40:AZ40))/3),"Data Error") -> 62.66666667 | BY40: =IF(COUNT(AW40:BA40)=5,((SUM(AW40:BA40)-MIN(AW40:BA40)-MAX(AW40:BA40))/3),"Data Error") -> 64.33333333 | BZ40: =IF(COUNT(AX40:BB40)=5,((SUM(AX40:BB40)-MIN(AX40:BB40)-MAX(AX40:BB40))/3),"Data Error") -> 64.0214 | CA40: =IF(COUNT(AY40:BC40)=5,((SUM(AY40:BC40)-MIN(AY40:BC40)-MAX(AY40:BC40))/3),"Data Error") -> 64.64645613
A41: KALAMAZOO | B41: 138 | C41: 135 | D41: 148 | E41: 109 | F41: 120 | G41: 150 | H41: 155.8 | I41: 162.3 | J41: 139.2 | K41: 178.8 | L41: =(200+148)/2 -> 174 | M41: 143.8 | N41: =AVERAGE(I41:M41)*(1+'2014 Farm Bill Calculator'!$B$20)*N$87 -> 122.1093 | O41: =AVERAGE(J41:N41)*(1+'2014 Farm Bill Calculator'!$B$20) -> 154.6134972 | P41: =AVERAGE(K41:O41)*(1+'2014 Farm Bill Calculator'!$B$20) -> 157.7578506 | Q41: =AVERAGE(B41:K41) -> 143.61 | R41: =AVERAGE(C41:L41) -> 147.21 | S41: =AVERAGE(D41:M41) -> 148.09 | T41: =AVERAGE(E41:N41) -> 145.50093 | U41: =AVERAGE(F41:O41) -> 150.0622797 | V41: 41 | W41: 40 | X41: 50 | Y41: 40 | Z41: 32 | AA41: 39 | AB41: 51.4 | AC41: 47.6 | AD41: 36.7 | AE41: 49.7 | AF41: =(59+41)/2 -> 50 | AG41: 52.5 | AH41: =AVERAGE(AC41:AG41)*(1+'2014 Farm Bill Calculator'!$B$21)*AH$87 -> 35.82975 | AI41: =AVERAGE(AD41:AH41)*(1+'2014 Farm Bill Calculator'!$B$21) -> 45.3954095 | AJ41: =AVERAGE(AE41:AI41)*(1+'2014 Farm Bill Calculator'!$B$21) -> 47.15188222 | AK41: =AVERAGE(V41:AE41) -> 42.74 | AL41: =AVERAGE(W41:AF41) -> 43.64 | AM41: =AVERAGE(X41:AG41) -> 44.89 | AN41: =AVERAGE(Y41:AH41) -> 43.472975 | AO41: =AVERAGE(Z41:AI41) -> 44.01251595 | AP41: 50 | AQ41: 50 | AR41: 57 | AS41: 50 | AT41: 54.5 | AU41: 66 | AV41: 67 | AW41: 68 | AX41: 66 | AY41: 73 | AZ41: 51 | BA41: 70.8 | BB41: =AVERAGE(AW41:BA41)*(1+'2014 Farm Bill Calculator'!$B$22) -> 66.4176 | BC41: =AVERAGE(AX41:BB41)*(1+'2014 Farm Bill Calculator'!$B$22) -> 66.0979552 | BD41: =AVERAGE(AY41:BC41)*(1+'2014 Farm Bill Calculator'!$B$22) -> 66.11774215 | BE41: =AVERAGE(AP41:AY41) -> 60.15 | BF41: =AVERAGE(AQ41:AZ41) -> 60.25 | BG41: =AVERAGE(AR41:BA41) -> 62.33 | BH41: =AVERAGE(AS41:BB41) -> 63.27176 | BI41: =AVERAGE(AT41:BC41) -> 64.88155552 | BK41: =IF(COUNT(G41:K41)=5,((SUM(G41:K41)-MIN(G41:K41)-MAX(G41:K41))/3),"Data Error") -> 156.0333333 | BL41: =IF(COUNT(H41:L41)=5,((SUM(H41:L41)-MIN(H41:L41)-MAX(H41:L41))/3),"Data Error") -> 164.0333333 | BM41: =IF(COUNT(I41:M41)=5,((SUM(I41:M41)-MIN(I41:M41)-MAX(I41:M41))/3),"Data Error") -> 160.0333333 | BN41: =IF(COUNT(J41:N41)=5,((SUM(J41:N41)-MIN(J41:N41)-MAX(J41:N41))/3),"Data Error") -> 152.3333333 | BO41: =IF(COUNT(K41:O41)=5,((SUM(K41:O41)-MIN(K41:O41)-MAX(K41:O41))/3),"Data Error") -> 157.4711657 | BQ41: =IF(COUNT(AA41:AE41)=5,((SUM(AA41:AE41)-MIN(AA41:AE41)-MAX(AA41:AE41))/3),"Data Error") -> 45.43333333 | BR41: =IF(COUNT(AB41:AF41)=5,((SUM(AB41:AF41)-MIN(AB41:AF41)-MAX(AB41:AF41))/3),"Data Error") -> 49.1 | BS41: =IF(COUNT(AC41:AG41)=5,((SUM(AC41:AG41)-MIN(AC41:AG41)-MAX(AC41:AG41))/3),"Data Error") -> 49.1 | BT41: =IF(COUNT(AD41:AH41)=5,((SUM(AD41:AH41)-MIN(AD41:AH41)-MAX(AD41:AH41))/3),"Data Error") -> 45.46666667 | BU41: =IF(COUNT(AE41:AI41)=5,((SUM(AE41:AI41)-MIN(AE41:AI41)-MAX(AE41:AI41))/3),"Data Error") -> 48.3651365 | BW41: =IF(COUNT(AU41:AY41)=5,((SUM(AU41:AY41)-MIN(AU41:AY41)-MAX(AU41:AY41))/3),"Data Error") -> 67 | BX41: =IF(COUNT(AV41:AZ41)=5,((SUM(AV41:AZ41)-MIN(AV41:AZ41)-MAX(AV41:AZ41))/3),"Data Error") -> 67 | BY41: =IF(COUNT(AW41:BA41)=5,((SUM(AW41:BA41)-MIN(AW41:BA41)-MAX(AW41:BA41))/3),"Data Error") -> 68.26666667 | BZ41: =IF(COUNT(AX41:BB41)=5,((SUM(AX41:BB41)-MIN(AX41:BB41)-MAX(AX41:BB41))/3),"Data Error") -> 67.7392 | CA41: =IF(COUNT(AY41:BC41)=5,((SUM(AY41:BC41)-MIN(AY41:BC41)-MAX(AY41:BC41))/3),"Data Error") -> 67.77185173
A42: KALKASKA | G42: 78 | H42: 115 | I42: 80 | J42: 61 | K42: 102 | L42: 101 | M42: =AVERAGE(H42:L42)*(1+'2014 Farm Bill Calculator'!$B$20) -> 93.636 | N42: =AVERAGE(I42:M42)*(1+'2014 Farm Bill Calculator'!$B$20)*N$87 -> 66.958308 | O42: =AVERAGE(J42:N42)*(1+'2014 Farm Bill Calculator'!$B$20) -> 86.61723883 | P42: =AVERAGE(K42:O42)*(1+'2014 Farm Bill Calculator'!$B$20) -> 91.84315555 | Q42: =AVERAGE(B42:K42) -> 87.2 | R42: =AVERAGE(C42:L42) -> 89.5 | S42: =AVERAGE(D42:M42) -> 90.09085714 | T42: =AVERAGE(E42:N42) -> 87.1992885 | U42: =AVERAGE(F42:O42) -> 87.13461631 | V42: 35 | W42: 41 | X42: 42 | Y42: 40 | Z42: 34.5 | AA42: 0.1 | AB42: =AA42 -> 0.1 | AC42: =AB42 -> 0.1 | AD42: =AC42 -> 0.1 | AE42: =AD42 -> 0.1 | AF42: 36 | AG42: =AVERAGE(AB42:AF42)*(1+'2014 Farm Bill Calculator'!$B$21) -> 7.3528 | AH42: =AVERAGE(AC42:AG42)*(1+'2014 Farm Bill Calculator'!$B$21)*AH$87 -> 6.6133992 | AI42: =AVERAGE(AD42:AH42)*(1+'2014 Farm Bill Calculator'!$B$21) -> 10.13357224 | AJ42: =AVERAGE(AE42:AI42)*(1+'2014 Farm Bill Calculator'!$B$21) -> 12.16035383 | AK42: =AVERAGE(V42:AE42) -> 19.3 | AL42: =AVERAGE(W42:AF42) -> 19.4 | AM42: =AVERAGE(X42:AG42) -> 16.03528 | AN42: =AVERAGE(Y42:AH42) -> 12.49661992 | AO42: =AVERAGE(Z42:AI42) -> 9.509977144 | AT42: 70 | AU42: 62 | AV42: 46 | AW42: 77 | AX42: 72 | AY42: 64 | AZ42: =(74+63)/2 -> 68.5 | BA42: =AVERAGE(AV42:AZ42)*(1+'2014 Farm Bill Calculator'!$B$22) -> 66.155 | BB42: =AVERAGE(AW42:BA42)*(1+'2014 Farm Bill Calculator'!$B$22) -> 70.22631 | BC42: =AVERAGE(AX42:BB42)*(1+'2014 Farm Bill Calculator'!$B$22) -> 68.85802462 | BD42: =AVERAGE(AY42:BC42)*(1+'2014 Farm Bill Calculator'!$B$22) -> 68.22334559 | BE42: =AVERAGE(AP42:AY42) -> 65.16666667 | BF42: =AVERAGE(AQ42:AZ42) -> 65.64285714 | BG42: =AVERAGE(AR42:BA42) -> 65.706875 | BH42: =AVERAGE(AS42:BB42) -> 66.20903444 | BI42: =AVERAGE(AT42:BC42) -> 66.47393346 | BK42: =IF(COUNT(G42:K42)=5,((SUM(G42:K42)-MIN(G42:K42)-MAX(G42:K42))/3),"Data Error") -> 86.66666667 | BL42: =IF(COUNT(H42:L42)=5,((SUM(H42:L42)-MIN(H42:L42)-MAX(H42:L42))/3),"Data Error") -> 94.33333333 | BM42: =IF(COUNT(I42:M42)=5,((SUM(I42:M42)-MIN(I42:M42)-MAX(I42:M42))/3),"Data Error") -> 91.54533333 | BN42: =IF(COUNT(J42:N42)=5,((SUM(J42:N42)-MIN(J42:N42)-MAX(J42:N42))/3),"Data Error") -> 87.19810267 | BO42: =IF(COUNT(K42:O42)=5,((SUM(K42:O42)-MIN(K42:O42)-MAX(K42:O42))/3),"Data Error") -> 93.75107961 | BQ42: =IF(COUNT(AA42:AE42)=5,((SUM(AA42:AE42)-MIN(AA42:AE42)-MAX(AA42:AE42))/3),"Data Error") -> 0.1 | BR42: =IF(COUNT(AB42:AF42)=5,((SUM(AB42:AF42)-MIN(AB42:AF42)-MAX(AB42:AF42))/3),"Data Error") -> 0.1 | BS42: =IF(COUNT(AC42:AG42)=5,((SUM(AC42:AG42)-MIN(AC42:AG42)-MAX(AC42:AG42))/3),"Data Error") -> 2.5176 | BT42: =IF(COUNT(AD42:AH42)=5,((SUM(AD42:AH42)-MIN(AD42:AH42)-MAX(AD42:AH42))/3),"Data Error") -> 4.688733067 | BU42: =IF(COUNT(AE42:AI42)=5,((SUM(AE42:AI42)-MIN(AE42:AI42)-MAX(AE42:AI42))/3),"Data Error") -> 8.033257146 | BW42: =IF(COUNT(AU42:AY42)=5,((SUM(AU42:AY42)-MIN(AU42:AY42)-MAX(AU42:AY42))/3),"Data Error") -> 66 | BX42: =IF(COUNT(AV42:AZ42)=5,((SUM(AV42:AZ42)-MIN(AV42:AZ42)-MAX(AV42:AZ42))/3),"Data Error") -> 68.16666667 | BY42: =IF(COUNT(AW42:BA42)=5,((SUM(AW42:BA42)-MIN(AW42:BA42)-MAX(AW42:BA42))/3),"Data Error") -> 68.885 | BZ42: =IF(COUNT(AX42:BB42)=5,((SUM(AX42:BB42)-MIN(AX42:BB42)-MAX(AX42:BB42))/3),"Data Error") -> 68.29377 | CA42: =IF(COUNT(AY42:BC42)=5,((SUM(AY42:BC42)-MIN(AY42:BC42)-MAX(AY42:BC42))/3),"Data Error") -> 67.83767487
A43: KENT | B43: 129 | C43: 138 | D43: 140 | E43: 115 | F43: 134 | G43: 141 | H43: 149 | I43: 163 | J43: 129 | K43: 149 | L43: 143 | M43: 170.6 | N43: =AVERAGE(I43:M43)*(1+'2014 Farm Bill Calculator'!$B$20)*N$87 -> 115.4538 | O43: =AVERAGE(J43:N43)*(1+'2014 Farm Bill Calculator'!$B$20) -> 144.2389752 | P43: =AVERAGE(K43:O43)*(1+'2014 Farm Bill Calculator'!$B$20) -> 147.3477261 | Q43: =AVERAGE(B43:K43) -> 138.7 | R43: =AVERAGE(C43:L43) -> 140.1 | S43: =AVERAGE(D43:M43) -> 143.36 | T43: =AVERAGE(E43:N43) -> 140.90538 | U43: =AVERAGE(F43:O43) -> 143.8292775 | AA43: 43 | AB43: 46 | AC43: 45 | AD43: 44 | AE43: 43 | AF43: 41 | AG43: 49.8 | AH43: =AVERAGE(AC43:AG43)*(1+'2014 Farm Bill Calculator'!$B$21)*AH$87 -> 33.7542 | AI43: =AVERAGE(AD43:AH43)*(1+'2014 Farm Bill Calculator'!$B$21) -> 42.7339484 | AJ43: =AVERAGE(AE43:AI43)*(1+'2014 Farm Bill Calculator'!$B$21) -> 42.47820598 | AK43: =AVERAGE(V43:AE43) -> 44.2 | AL43: =AVERAGE(W43:AF43) -> 43.66666667 | AM43: =AVERAGE(X43:AG43) -> 44.54285714 | AN43: =AVERAGE(Y43:AH43) -> 43.194275 | AO43: =AVERAGE(Z43:AI43) -> 43.1431276 | AP43: 53 | AQ43: 58 | AR43: 71 | AS43: 51 | AT43: 60.5 | AU43: 62 | AV43: 62 | AW43: 66 | AX43: 79 | AY43: 69 | AZ43: 66 | BA43: 80 | BB43: =AVERAGE(AW43:BA43)*(1+'2014 Farm Bill Calculator'!$B$22) -> 72.72 | BC43: =AVERAGE(AX43:BB43)*(1+'2014 Farm Bill Calculator'!$B$22) -> 74.07744 | BD43: =AVERAGE(AY43:BC43)*(1+'2014 Farm Bill Calculator'!$B$22) -> 73.08308288 | BE43: =AVERAGE(AP43:AY43) -> 63.15 | BF43: =AVERAGE(AQ43:AZ43) -> 64.45 | BG43: =AVERAGE(AR43:BA43) -> 66.65 | BH43: =AVERAGE(AS43:BB43) -> 66.822 | BI43: =AVERAGE(AT43:BC43) -> 69.129744 | BK43: =IF(COUNT(G43:K43)=5,((SUM(G43:K43)-MIN(G43:K43)-MAX(G43:K43))/3),"Data Error") -> 146.3333333 | BL43: =IF(COUNT(H43:L43)=5,((SUM(H43:L43)-MIN(H43:L43)-MAX(H43:L43))/3),"Data Error") -> 147 | BM43: =IF(COUNT(I43:M43)=5,((SUM(I43:M43)-MIN(I43:M43)-MAX(I43:M43))/3),"Data Error") -> 151.6666667 | BN43: =IF(COUNT(J43:N43)=5,((SUM(J43:N43)-MIN(J43:N43)-MAX(J43:N43))/3),"Data Error") -> 140.3333333 | BO43: =IF(COUNT(K43:O43)=5,((SUM(K43:O43)-MIN(K43:O43)-MAX(K43:O43))/3),"Data Error") -> 145.4129917 | BQ43: =IF(COUNT(AA43:AE43)=5,((SUM(AA43:AE43)-MIN(AA43:AE43)-MAX(AA43:AE43))/3),"Data Error") -> 44 | BR43: =IF(COUNT(AB43:AF43)=5,((SUM(AB43:AF43)-MIN(AB43:AF43)-MAX(AB43:AF43))/3),"Data Error") -> 44 | BS43: =IF(COUNT(AC43:AG43)=5,((SUM(AC43:AG43)-MIN(AC43:AG43)-MAX(AC43:AG43))/3),"Data Error") -> 44 | BT43: =IF(COUNT(AD43:AH43)=5,((SUM(AD43:AH43)-MIN(AD43:AH43)-MAX(AD43:AH43))/3),"Data Error") -> 42.66666667 | BU43: =IF(COUNT(AE43:AI43)=5,((SUM(AE43:AI43)-MIN(AE43:AI43)-MAX(AE43:AI43))/3),"Data Error") -> 42.24464947 | BW43: =IF(COUNT(AU43:AY43)=5,((SUM(AU43:AY43)-MIN(AU43:AY43)-MAX(AU43:AY43))/3),"Data Error") -> 65.66666667 | BX43: =IF(COUNT(AV43:AZ43)=5,((SUM(AV43:AZ43)-MIN(AV43:AZ43)-MAX(AV43:AZ43))/3),"Data Error") -> 67 | BY43: =IF(COUNT(AW43:BA43)=5,((SUM(AW43:BA43)-MIN(AW43:BA43)-MAX(AW43:BA43))/3),"Data Error") -> 71.33333333 | BZ43: =IF(COUNT(AX43:BB43)=5,((SUM(AX43:BB43)-MIN(AX43:BB43)-MAX(AX43:BB43))/3),"Data Error") -> 73.57333333 | CA43: =IF(COUNT(AY43:BC43)=5,((SUM(AY43:BC43)-MIN(AY43:BC43)-MAX(AY43:BC43))/3),"Data Error") -> 71.93248
A44: KEWEENAW | G44: 0.1 | H44: =G44 -> 0.1 | I44: =H44 -> 0.1 | J44: =I44 -> 0.1 | K44: =J44 -> 0.1 | L44: =AVERAGE(G44:K44)*(1+'2014 Farm Bill Calculator'!$B$20) -> 0.102 | M44: =AVERAGE(H44:L44)*(1+'2014 Farm Bill Calculator'!$B$20) -> 0.102408 | N44: =AVERAGE(I44:M44)*(1+'2014 Farm Bill Calculator'!$B$20)*N$87 -> 0.077174424 | O44: =AVERAGE(J44:N44)*(1+'2014 Farm Bill Calculator'!$B$20) -> 0.0982428145 | P44: =AVERAGE(K44:O44)*(1+'2014 Farm Bill Calculator'!$B$20) -> 0.09788434865 | Q44: =AVERAGE(B44:K44) -> 0.1 | R44: =AVERAGE(C44:L44) -> 0.1003333333 | S44: =AVERAGE(D44:M44) -> 0.1006297143 | T44: =AVERAGE(E44:N44) -> 0.097697803 | U44: =AVERAGE(F44:O44) -> 0.09775835983 | AA44: 0.1 | AB44: =AA44 -> 0.1 | AC44: =AB44 -> 0.1 | AD44: =AC44 -> 0.1 | AE44: =AD44 -> 0.1 | AF44: =AVERAGE(AA44:AE44)*(1+'2014 Farm Bill Calculator'!$B$21) -> 0.101 | AG44: =AVERAGE(AB44:AF44)*(1+'2014 Farm Bill Calculator'!$B$21) -> 0.101202 | AH44: =AVERAGE(AC44:AG44)*(1+'2014 Farm Bill Calculator'!$B$21)*AH$87 -> 0.076083603 | AI44: =AVERAGE(AD44:AH44)*(1+'2014 Farm Bill Calculator'!$B$21) -> 0.09661369181 | AJ44: =AVERAGE(AE44:AI44)*(1+'2014 Farm Bill Calculator'!$B$21) -> 0.09592965755 | AK44: =AVERAGE(V44:AE44) -> 0.1 | AL44: =AVERAGE(W44:AF44) -> 0.1001666667 | AM44: =AVERAGE(X44:AG44) -> 0.1003145714 | AN44: =AVERAGE(Y44:AH44) -> 0.09728570038 | AO44: =AVERAGE(Z44:AI44) -> 0.09721103276 | AU44: 0.1 | AV44: =AU44 -> 0.1 | AW44: =AV44 -> 0.1 | AX44: =AW44 -> 0.1 | AY44: =AX44 -> 0.1 | AZ44: =AVERAGE(AU44:AY44)*(1+'2014 Farm Bill Calculator'!$B$22) -> 0.101 | BA44: =AVERAGE(AV44:AZ44)*(1+'2014 Farm Bill Calculator'!$B$22) -> 0.101202 | BB44: =AVERAGE(AW44:BA44)*(1+'2014 Farm Bill Calculator'!$B$22) -> 0.101444804 | BC44: =AVERAGE(AX44:BB44)*(1+'2014 Farm Bill Calculator'!$B$22) -> 0.1017366544 | BD44: =AVERAGE(AY44:BC44)*(1+'2014 Farm Bill Calculator'!$B$22) -> 0.1020874586 | BE44: =AVERAGE(AP44:AY44) -> 0.1 | BF44: =AVERAGE(AQ44:AZ44) -> 0.1001666667 | BG44: =AVERAGE(AR44:BA44) -> 0.1003145714 | BH44: =AVERAGE(AS44:BB44) -> 0.1004558505 | BI44: =AVERAGE(AT44:BC44) -> 0.100598162 | BK44: =IF(COUNT(G44:K44)=5,((SUM(G44:K44)-MIN(G44:K44)-MAX(G44:K44))/3),"Data Error") -> 0.1 | BL44: =IF(COUNT(H44:L44)=5,((SUM(H44:L44)-MIN(H44:L44)-MAX(H44:L44))/3),"Data Error") -> 0.1 | BM44: =IF(COUNT(I44:M44)=5,((SUM(I44:M44)-MIN(I44:M44)-MAX(I44:M44))/3),"Data Error") -> 0.1006666667 | BN44: =IF(COUNT(J44:N44)=5,((SUM(J44:N44)-MIN(J44:N44)-MAX(J44:N44))/3),"Data Error") -> 0.1006666667 | BO44: =IF(COUNT(K44:O44)=5,((SUM(K44:O44)-MIN(K44:O44)-MAX(K44:O44))/3),"Data Error") -> 0.1000809382 | BQ44: =IF(COUNT(AA44:AE44)=5,((SUM(AA44:AE44)-MIN(AA44:AE44)-MAX(AA44:AE44))/3),"Data Error") -> 0.1 | BR44: =IF(COUNT(AB44:AF44)=5,((SUM(AB44:AF44)-MIN(AB44:AF44)-MAX(AB44:AF44))/3),"Data Error") -> 0.1 | BS44: =IF(COUNT(AC44:AG44)=5,((SUM(AC44:AG44)-MIN(AC44:AG44)-MAX(AC44:AG44))/3),"Data Error") -> 0.1003333333 | BT44: =IF(COUNT(AD44:AH44)=5,((SUM(AD44:AH44)-MIN(AD44:AH44)-MAX(AD44:AH44))/3),"Data Error") -> 0.1003333333 | BU44: =IF(COUNT(AE44:AI44)=5,((SUM(AE44:AI44)-MIN(AE44:AI44)-MAX(AE44:AI44))/3),"Data Error") -> 0.09920456394 | BW44: =IF(COUNT(AU44:AY44)=5,((SUM(AU44:AY44)-MIN(AU44:AY44)-MAX(AU44:AY44))/3),"Data Error") -> 0.1 | BX44: =IF(COUNT(AV44:AZ44)=5,((SUM(AV44:AZ44)-MIN(AV44:AZ44)-MAX(AV44:AZ44))/3),"Data Error") -> 0.1 | BY44: =IF(COUNT(AW44:BA44)=5,((SUM(AW44:BA44)-MIN(AW44:BA44)-MAX(AW44:BA44))/3),"Data Error") -> 0.1003333333 | BZ44: =IF(COUNT(AX44:BB44)=5,((SUM(AX44:BB44)-MIN(AX44:BB44)-MAX(AX44:BB44))/3),"Data Error") -> 0.100734 | CA44: =IF(COUNT(AY44:BC44)=5,((SUM(AY44:BC44)-MIN(AY44:BC44)-MAX(AY44:BC44))/3),"Data Error") -> 0.1012156013
A45: LAKE | G45: 93 | H45: 144 | I45: 138 | J45: 124 | K45: 94 | L45: 108 | M45: 115 | N45: =AVERAGE(I45:M45)*(1+'2014 Farm Bill Calculator'!$B$20)*N$87 -> 88.587 | O45: =AVERAGE(J45:N45)*(1+'2014 Farm Bill Calculator'!$B$20) -> 108.035748 | P45: =AVERAGE(K45:O45)*(1+'2014 Farm Bill Calculator'!$B$20) -> 104.7790406 | Q45: =AVERAGE(B45:K45) -> 118.6 | R45: =AVERAGE(C45:L45) -> 116.8333333 | S45: =AVERAGE(D45:M45) -> 116.5714286 | T45: =AVERAGE(E45:N45) -> 113.073375 | U45: =AVERAGE(F45:O45) -> 112.5136387 | AA45: 0.1 | AB45: =AA45 -> 0.1 | AC45: =AB45 -> 0.1 | AD45: =AC45 -> 0.1 | AE45: =AD45 -> 0.1 | AF45: =AVERAGE(AA45:AE45)*(1+'2014 Farm Bill Calculator'!$B$21) -> 0.101 | AG45: =AVERAGE(AB45:AF45)*(1+'2014 Farm Bill Calculator'!$B$21) -> 0.101202 | AH45: =AVERAGE(AC45:AG45)*(1+'2014 Farm Bill Calculator'!$B$21)*AH$87 -> 0.076083603 | AI45: =AVERAGE(AD45:AH45)*(1+'2014 Farm Bill Calculator'!$B$21) -> 0.09661369181 | AJ45: =AVERAGE(AE45:AI45)*(1+'2014 Farm Bill Calculator'!$B$21) -> 0.09592965755 | AK45: =AVERAGE(V45:AE45) -> 0.1 | AL45: =AVERAGE(W45:AF45) -> 0.1001666667 | AM45: =AVERAGE(X45:AG45) -> 0.1003145714 | AN45: =AVERAGE(Y45:AH45) -> 0.09728570038 | AO45: =AVERAGE(Z45:AI45) -> 0.09721103276 | AU45: 54 | AV45: 57 | AW45: 68 | AX45: 62 | AY45: 63 | AZ45: 51 | BA45: =AVERAGE(AV45:AZ45)*(1+'2014 Farm Bill Calculator'!$B$22) -> 60.802 | BB45: =AVERAGE(AW45:BA45)*(1+'2014 Farm Bill Calculator'!$B$22) -> 61.570004 | BC45: =AVERAGE(AX45:BB45)*(1+'2014 Farm Bill Calculator'!$B$22) -> 60.27114481 | BD45: =AVERAGE(AY45:BC45)*(1+'2014 Farm Bill Calculator'!$B$22) -> 59.92191606 | BE45: =AVERAGE(AP45:AY45) -> 60.8 | BF45: =AVERAGE(AQ45:AZ45) -> 59.16666667 | BG45: =AVERAGE(AR45:BA45) -> 59.40028571 | BH45: =AVERAGE(AS45:BB45) -> 59.6715005 | BI45: =AVERAGE(AT45:BC45) -> 59.73812765 | BK45: =IF(COUNT(G45:K45)=5,((SUM(G45:K45)-MIN(G45:K45)-MAX(G45:K45))/3),"Data Error") -> 118.6666667 | BL45: =IF(COUNT(H45:L45)=5,((SUM(H45:L45)-MIN(H45:L45)-MAX(H45:L45))/3),"Data Error") -> 123.3333333 | BM45: =IF(COUNT(I45:M45)=5,((SUM(I45:M45)-MIN(I45:M45)-MAX(I45:M45))/3),"Data Error") -> 115.6666667 | BN45: =IF(COUNT(J45:N45)=5,((SUM(J45:N45)-MIN(J45:N45)-MAX(J45:N45))/3),"Data Error") -> 105.6666667 | BO45: =IF(COUNT(K45:O45)=5,((SUM(K45:O45)-MIN(K45:O45)-MAX(K45:O45))/3),"Data Error") -> 103.3452493 | BQ45: =IF(COUNT(AA45:AE45)=5,((SUM(AA45:AE45)-MIN(AA45:AE45)-MAX(AA45:AE45))/3),"Data Error") -> 0.1 | BR45: =IF(COUNT(AB45:AF45)=5,((SUM(AB45:AF45)-MIN(AB45:AF45)-MAX(AB45:AF45))/3),"Data Error") -> 0.1 | BS45: =IF(COUNT(AC45:AG45)=5,((SUM(AC45:AG45)-MIN(AC45:AG45)-MAX(AC45:AG45))/3),"Data Error") -> 0.1003333333 | BT45: =IF(COUNT(AD45:AH45)=5,((SUM(AD45:AH45)-MIN(AD45:AH45)-MAX(AD45:AH45))/3),"Data Error") -> 0.1003333333 | BU45: =IF(COUNT(AE45:AI45)=5,((SUM(AE45:AI45)-MIN(AE45:AI45)-MAX(AE45:AI45))/3),"Data Error") -> 0.09920456394 | BW45: =IF(COUNT(AU45:AY45)=5,((SUM(AU45:AY45)-MIN(AU45:AY45)-MAX(AU45:AY45))/3),"Data Error") -> 60.66666667 | BX45: =IF(COUNT(AV45:AZ45)=5,((SUM(AV45:AZ45)-MIN(AV45:AZ45)-MAX(AV45:AZ45))/3),"Data Error") -> 60.66666667 | BY45: =IF(COUNT(AW45:BA45)=5,((SUM(AW45:BA45)-MIN(AW45:BA45)-MAX(AW45:BA45))/3),"Data Error") -> 61.934 | BZ45: =IF(COUNT(AX45:BB45)=5,((SUM(AX45:BB45)-MIN(AX45:BB45)-MAX(AX45:BB45))/3),"Data Error") -> 61.45733467 | CA45: =IF(COUNT(AY45:BC45)=5,((SUM(AY45:BC45)-MIN(AY45:BC45)-MAX(AY45:BC45))/3),"Data Error") -> 60.8810496
A46: LAPEER | B46: 123 | C46: 138 | D46: 156 | E46: 110 | F46: 150 | G46: 132 | H46: 137 | I46: 137 | J46: 149 | K46: 149 | L46: 146 | M46: 174.3 | N46: =AVERAGE(I46:M46)*(1+'2014 Farm Bill Calculator'!$B$20)*N$87 -> 115.5609 | O46: =AVERAGE(J46:N46)*(1+'2014 Farm Bill Calculator'!$B$20) -> 149.7076236 | P46: =AVERAGE(K46:O46)*(1+'2014 Farm Bill Calculator'!$B$20) -> 149.8519788 | Q46: =AVERAGE(B46:K46) -> 138.1 | R46: =AVERAGE(C46:L46) -> 140.4 | S46: =AVERAGE(D46:M46) -> 144.03 | T46: =AVERAGE(E46:N46) -> 139.98609 | U46: =AVERAGE(F46:O46) -> 143.9568524 | V46: 31 | W46: 39 | X46: 49 | Y46: 34 | Z46: 44 | AA46: 36 | AB46: 41 | AC46: 42 | AD46: 43 | AE46: 41 | AF46: 36 | AG46: 50.2 | AH46: =AVERAGE(AC46:AG46)*(1+'2014 Farm Bill Calculator'!$B$21)*AH$87 -> 32.1483 | AI46: =AVERAGE(AD46:AH46)*(1+'2014 Farm Bill Calculator'!$B$21) -> 40.8743566 | AJ46: =AVERAGE(AE46:AI46)*(1+'2014 Farm Bill Calculator'!$B$21) -> 40.44497663 | AK46: =AVERAGE(V46:AE46) -> 40 | AL46: =AVERAGE(W46:AF46) -> 40.5 | AM46: =AVERAGE(X46:AG46) -> 41.62 | AN46: =AVERAGE(Y46:AH46) -> 39.93483 | AO46: =AVERAGE(Z46:AI46) -> 40.62226566 | AP46: 61 | AQ46: 62 | AR46: 70 | AS46: 57 | AT46: 69 | AU46: 60 | AV46: 65 | AW46: 67 | AX46: 74 | AY46: 69 | AZ46: 58 | BA46: 88.9 | BB46: =AVERAGE(AW46:BA46)*(1+'2014 Farm Bill Calculator'!$B$22) -> 72.0938 | BC46: =AVERAGE(AX46:BB46)*(1+'2014 Farm Bill Calculator'!$B$22) -> 73.1227476 | BD46: =AVERAGE(AY46:BC46)*(1+'2014 Farm Bill Calculator'!$B$22) -> 72.94554262 | BE46: =AVERAGE(AP46:AY46) -> 65.4 | BF46: =AVERAGE(AQ46:AZ46) -> 65.1 | BG46: =AVERAGE(AR46:BA46) -> 67.79 | BH46: =AVERAGE(AS46:BB46) -> 67.99938 | BI46: =AVERAGE(AT46:BC46) -> 69.61165476 | BK46: =IF(COUNT(G46:K46)=5,((SUM(G46:K46)-MIN(G46:K46)-MAX(G46:K46))/3),"Data Error") -> 141 | BL46: =IF(COUNT(H46:L46)=5,((SUM(H46:L46)-MIN(H46:L46)-MAX(H46:L46))/3),"Data Error") -> 144 | BM46: =IF(COUNT(I46:M46)=5,((SUM(I46:M46)-MIN(I46:M46)-MAX(I46:M46))/3),"Data Error") -> 148 | BN46: =IF(COUNT(J46:N46)=5,((SUM(J46:N46)-MIN(J46:N46)-MAX(J46:N46))/3),"Data Error") -> 148 | BO46: =IF(COUNT(K46:O46)=5,((SUM(K46:O46)-MIN(K46:O46)-MAX(K46:O46))/3),"Data Error") -> 148.2358745 | BQ46: =IF(COUNT(AA46:AE46)=5,((SUM(AA46:AE46)-MIN(AA46:AE46)-MAX(AA46:AE46))/3),"Data Error") -> 41.33333333 | BR46: =IF(COUNT(AB46:AF46)=5,((SUM(AB46:AF46)-MIN(AB46:AF46)-MAX(AB46:AF46))/3),"Data Error") -> 41.33333333 | BS46: =IF(COUNT(AC46:AG46)=5,((SUM(AC46:AG46)-MIN(AC46:AG46)-MAX(AC46:AG46))/3),"Data Error") -> 42 | BT46: =IF(COUNT(AD46:AH46)=5,((SUM(AD46:AH46)-MIN(AD46:AH46)-MAX(AD46:AH46))/3),"Data Error") -> 40 | BU46: =IF(COUNT(AE46:AI46)=5,((SUM(AE46:AI46)-MIN(AE46:AI46)-MAX(AE46:AI46))/3),"Data Error") -> 39.2914522 | BW46: =IF(COUNT(AU46:AY46)=5,((SUM(AU46:AY46)-MIN(AU46:AY46)-MAX(AU46:AY46))/3),"Data Error") -> 67 | BX46: =IF(COUNT(AV46:AZ46)=5,((SUM(AV46:AZ46)-MIN(AV46:AZ46)-MAX(AV46:AZ46))/3),"Data Error") -> 67 | BY46: =IF(COUNT(AW46:BA46)=5,((SUM(AW46:BA46)-MIN(AW46:BA46)-MAX(AW46:BA46))/3),"Data Error") -> 70 | BZ46: =IF(COUNT(AX46:BB46)=5,((SUM(AX46:BB46)-MIN(AX46:BB46)-MAX(AX46:BB46))/3),"Data Error") -> 71.69793333 | CA46: =IF(COUNT(AY46:BC46)=5,((SUM(AY46:BC46)-MIN(AY46:BC46)-MAX(AY46:BC46))/3),"Data Error") -> 71.40551587
A47: LEELANAU | C47: 82 | E47: 56 | F47: 84 | G47: 93 | H47: 104 | I47: 75 | J47: 54 | K47: 98 | L47: 51 | M47: 82 | N47: =AVERAGE(I47:M47)*(1+'2014 Farm Bill Calculator'!$B$20)*N$87 -> 55.08 | O47: =AVERAGE(J47:N47)*(1+'2014 Farm Bill Calculator'!$B$20) -> 69.37632 | P47: =AVERAGE(K47:O47)*(1+'2014 Farm Bill Calculator'!$B$20) -> 72.51308928 | Q47: =AVERAGE(B47:K47) -> 80.75 | R47: =AVERAGE(C47:L47) -> 77.44444444 | S47: =AVERAGE(D47:M47) -> 77.44444444 | T47: =AVERAGE(E47:N47) -> 75.208 | U47: =AVERAGE(F47:O47) -> 76.545632 | AA47: 0.1 | AB47: =AA47 -> 0.1 | AC47: =AB47 -> 0.1 | AD47: =AC47 -> 0.1 | AE47: =AD47 -> 0.1 | AF47: 36 | AG47: =AVERAGE(AB47:AF47)*(1+'2014 Farm Bill Calculator'!$B$21) -> 7.3528 | AH47: =AVERAGE(AC47:AG47)*(1+'2014 Farm Bill Calculator'!$B$21)*AH$87 -> 6.6133992 | AI47: =AVERAGE(AD47:AH47)*(1+'2014 Farm Bill Calculator'!$B$21) -> 10.13357224 | AJ47: =AVERAGE(AE47:AI47)*(1+'2014 Farm Bill Calculator'!$B$21) -> 12.16035383 | AK47: =AVERAGE(V47:AE47) -> 0.1 | AL47: =AVERAGE(W47:AF47) -> 6.083333333 | AM47: =AVERAGE(X47:AG47) -> 6.264685714 | AN47: =AVERAGE(Y47:AH47) -> 6.3082749 | AO47: =AVERAGE(Z47:AI47) -> 6.733307938 | AU47: 0.1 | AV47: =AU47 -> 0.1 | AW47: =AV47 -> 0.1 | AX47: =AW47 -> 0.1 | AY47: =AX47 -> 0.1 | AZ47: 31 | BA47: =AVERAGE(AV47:AZ47)*(1+'2014 Farm Bill Calculator'!$B$22) -> 6.3428 | BB47: =AVERAGE(AW47:BA47)*(1+'2014 Farm Bill Calculator'!$B$22) -> 7.6038456 | BC47: =AVERAGE(AX47:BB47)*(1+'2014 Farm Bill Calculator'!$B$22) -> 9.119622411 | BD47: =AVERAGE(AY47:BC47)*(1+'2014 Farm Bill Calculator'!$B$22) -> 10.94158614 | BE47: =AVERAGE(AP47:AY47) -> 0.1 | BF47: =AVERAGE(AQ47:AZ47) -> 5.25 | BG47: =AVERAGE(AR47:BA47) -> 5.406114286 | BH47: =AVERAGE(AS47:BB47) -> 5.6808307 | BI47: =AVERAGE(AT47:BC47) -> 6.062918668 | BK47: =IF(COUNT(G47:K47)=5,((SUM(G47:K47)-MIN(G47:K47)-MAX(G47:K47))/3),"Data Error") -> 88.66666667 | BL47: =IF(COUNT(H47:L47)=5,((SUM(H47:L47)-MIN(H47:L47)-MAX(H47:L47))/3),"Data Error") -> 75.66666667 | BM47: =IF(COUNT(I47:M47)=5,((SUM(I47:M47)-MIN(I47:M47)-MAX(I47:M47))/3),"Data Error") -> 70.33333333 | BN47: =IF(COUNT(J47:N47)=5,((SUM(J47:N47)-MIN(J47:N47)-MAX(J47:N47))/3),"Data Error") -> 63.69333333 | BO47: =IF(COUNT(K47:O47)=5,((SUM(K47:O47)-MIN(K47:O47)-MAX(K47:O47))/3),"Data Error") -> 68.81877333 | BQ47: =IF(COUNT(AA47:AE47)=5,((SUM(AA47:AE47)-MIN(AA47:AE47)-MAX(AA47:AE47))/3),"Data Error") -> 0.1 | BR47: =IF(COUNT(AB47:AF47)=5,((SUM(AB47:AF47)-MIN(AB47:AF47)-MAX(AB47:AF47))/3),"Data Error") -> 0.1 | BS47: =IF(COUNT(AC47:AG47)=5,((SUM(AC47:AG47)-MIN(AC47:AG47)-MAX(AC47:AG47))/3),"Data Error") -> 2.5176 | BT47: =IF(COUNT(AD47:AH47)=5,((SUM(AD47:AH47)-MIN(AD47:AH47)-MAX(AD47:AH47))/3),"Data Error") -> 4.688733067 | BU47: =IF(COUNT(AE47:AI47)=5,((SUM(AE47:AI47)-MIN(AE47:AI47)-MAX(AE47:AI47))/3),"Data Error") -> 8.033257146 | BW47: =IF(COUNT(AU47:AY47)=5,((SUM(AU47:AY47)-MIN(AU47:AY47)-MAX(AU47:AY47))/3),"Data Error") -> 0.1 | BX47: =IF(COUNT(AV47:AZ47)=5,((SUM(AV47:AZ47)-MIN(AV47:AZ47)-MAX(AV47:AZ47))/3),"Data Error") -> 0.1 | BY47: =IF(COUNT(AW47:BA47)=5,((SUM(AW47:BA47)-MIN(AW47:BA47)-MAX(AW47:BA47))/3),"Data Error") -> 2.180933333 | BZ47: =IF(COUNT(AX47:BB47)=5,((SUM(AX47:BB47)-MIN(AX47:BB47)-MAX(AX47:BB47))/3),"Data Error") -> 4.6822152 | CA47: =IF(COUNT(AY47:BC47)=5,((SUM(AY47:BC47)-MIN(AY47:BC47)-MAX(AY47:BC47))/3),"Data Error") -> 7.688756004
A48: LENAWEE | B48: 150 | C48: 161 | D48: 158 | E48: 144 | F48: 134 | G48: 149 | H48: 156 | I48: 149 | J48: 100 | K48: 180 | L48: 164 | M48: 161.1 | N48: =AVERAGE(I48:M48)*(1+'2014 Farm Bill Calculator'!$B$20)*N$87 -> 115.3773 | O48: =AVERAGE(J48:N48)*(1+'2014 Farm Bill Calculator'!$B$20) -> 146.9773692 | P48: =AVERAGE(K48:O48)*(1+'2014 Farm Bill Calculator'!$B$20) -> 156.5607525 | Q48: =AVERAGE(B48:K48) -> 148.1 | R48: =AVERAGE(C48:L48) -> 149.5 | S48: =AVERAGE(D48:M48) -> 149.51 | T48: =AVERAGE(E48:N48) -> 145.24773 | U48: =AVERAGE(F48:O48) -> 145.5454669 | V48: 39 | W48: 44 | X48: 48 | Y48: 47 | Z48: 32 | AA48: 43 | AB48: 43 | AC48: 46 | AD48: 34 | AE48: 51 | AF48: 49 | AG48: 48.7 | AH48: =AVERAGE(AC48:AG48)*(1+'2014 Farm Bill Calculator'!$B$21)*AH$87 -> 34.64805 | AI48: =AVERAGE(AD48:AH48)*(1+'2014 Farm Bill Calculator'!$B$21) -> 43.9043061 | AJ48: =AVERAGE(AE48:AI48)*(1+'2014 Farm Bill Calculator'!$B$21) -> 45.90497593 | AK48: =AVERAGE(V48:AE48) -> 42.7 | AL48: =AVERAGE(W48:AF48) -> 43.7 | AM48: =AVERAGE(X48:AG48) -> 44.17 | AN48: =AVERAGE(Y48:AH48) -> 42.834805 | AO48: =AVERAGE(Z48:AI48) -> 42.52523561 | AP48: 65 | AQ48: 74 | AR48: 76 | AS48: 73 | AT48: 75.5 | AU48: 80 | AV48: 72 | AW48: 75 | AX48: 71 | AY48: 86 | AZ48: 82 | BA48: 76.5 | BB48: =AVERAGE(AW48:BA48)*(1+'2014 Farm Bill Calculator'!$B$22) -> 78.881 | BC48: =AVERAGE(AX48:BB48)*(1+'2014 Farm Bill Calculator'!$B$22) -> 79.664962 | BD48: =AVERAGE(AY48:BC48)*(1+'2014 Farm Bill Calculator'!$B$22) -> 81.41528432 | BE48: =AVERAGE(AP48:AY48) -> 74.75 | BF48: =AVERAGE(AQ48:AZ48) -> 76.45 | BG48: =AVERAGE(AR48:BA48) -> 76.7 | BH48: =AVERAGE(AS48:BB48) -> 76.9881 | BI48: =AVERAGE(AT48:BC48) -> 77.6545962 | BK48: =IF(COUNT(G48:K48)=5,((SUM(G48:K48)-MIN(G48:K48)-MAX(G48:K48))/3),"Data Error") -> 151.3333333 | BL48: =IF(COUNT(H48:L48)=5,((SUM(H48:L48)-MIN(H48:L48)-MAX(H48:L48))/3),"Data Error") -> 156.3333333 | BM48: =IF(COUNT(I48:M48)=5,((SUM(I48:M48)-MIN(I48:M48)-MAX(I48:M48))/3),"Data Error") -> 158.0333333 | BN48: =IF(COUNT(J48:N48)=5,((SUM(J48:N48)-MIN(J48:N48)-MAX(J48:N48))/3),"Data Error") -> 146.8257667 | BO48: =IF(COUNT(K48:O48)=5,((SUM(K48:O48)-MIN(K48:O48)-MAX(K48:O48))/3),"Data Error") -> 157.3591231 | BQ48: =IF(COUNT(AA48:AE48)=5,((SUM(AA48:AE48)-MIN(AA48:AE48)-MAX(AA48:AE48))/3),"Data Error") -> 44 | BR48: =IF(COUNT(AB48:AF48)=5,((SUM(AB48:AF48)-MIN(AB48:AF48)-MAX(AB48:AF48))/3),"Data Error") -> 46 | BS48: =IF(COUNT(AC48:AG48)=5,((SUM(AC48:AG48)-MIN(AC48:AG48)-MAX(AC48:AG48))/3),"Data Error") -> 47.9 | BT48: =IF(COUNT(AD48:AH48)=5,((SUM(AD48:AH48)-MIN(AD48:AH48)-MAX(AD48:AH48))/3),"Data Error") -> 44.11601667 | BU48: =IF(COUNT(AE48:AI48)=5,((SUM(AE48:AI48)-MIN(AE48:AI48)-MAX(AE48:AI48))/3),"Data Error") -> 47.20143537 | BW48: =IF(COUNT(AU48:AY48)=5,((SUM(AU48:AY48)-MIN(AU48:AY48)-MAX(AU48:AY48))/3),"Data Error") -> 75.66666667 | BX48: =IF(COUNT(AV48:AZ48)=5,((SUM(AV48:AZ48)-MIN(AV48:AZ48)-MAX(AV48:AZ48))/3),"Data Error") -> 76.33333333 | BY48: =IF(COUNT(AW48:BA48)=5,((SUM(AW48:BA48)-MIN(AW48:BA48)-MAX(AW48:BA48))/3),"Data Error") -> 77.83333333 | BZ48: =IF(COUNT(AX48:BB48)=5,((SUM(AX48:BB48)-MIN(AX48:BB48)-MAX(AX48:BB48))/3),"Data Error") -> 79.127 | CA48: =IF(COUNT(AY48:BC48)=5,((SUM(AY48:BC48)-MIN(AY48:BC48)-MAX(AY48:BC48))/3),"Data Error") -> 80.18198733
A49: LIVINGSTON | B49: 132 | C49: 135 | D49: 131 | E49: 107 | F49: 126 | G49: 137 | H49: 145 | I49: 139 | J49: 119 | K49: 152 | L49: 170 | M49: 161.1 | N49: =AVERAGE(I49:M49)*(1+'2014 Farm Bill Calculator'!$B$20)*N$87 -> 113.3883 | O49: =AVERAGE(J49:N49)*(1+'2014 Farm Bill Calculator'!$B$20) -> 145.9596132 | P49: =AVERAGE(K49:O49)*(1+'2014 Farm Bill Calculator'!$B$20) -> 151.4593743 | Q49: =AVERAGE(B49:K49) -> 132.3 | R49: =AVERAGE(C49:L49) -> 136.1 | S49: =AVERAGE(D49:M49) -> 138.71 | T49: =AVERAGE(E49:N49) -> 136.94883 | U49: =AVERAGE(F49:O49) -> 140.8447913 | V49: 42 | W49: 35 | X49: 44 | Y49: 37 | Z49: 33 | AA49: 38 | AB49: 41 | AC49: 42 | AD49: 41 | AE49: 44 | AF49: 44 | AG49: 47.6 | AH49: =AVERAGE(AC49:AG49)*(1+'2014 Farm Bill Calculator'!$B$21)*AH$87 -> 33.1179 | AI49: =AVERAGE(AD49:AH49)*(1+'2014 Farm Bill Calculator'!$B$21) -> 42.3630158 | AJ49: =AVERAGE(AE49:AI49)*(1+'2014 Farm Bill Calculator'!$B$21) -> 42.63834499 | AK49: =AVERAGE(V49:AE49) -> 39.7 | AL49: =AVERAGE(W49:AF49) -> 39.9 | AM49: =AVERAGE(X49:AG49) -> 41.16 | AN49: =AVERAGE(Y49:AH49) -> 40.07179 | AO49: =AVERAGE(Z49:AI49) -> 40.60809158 | AP49: 54 | AQ49: 61 | AR49: 77 | AS49: 55 | AT49: 56 | AU49: 56 | AV49: 58 | AW49: 64 | AX49: 65 | AY49: 55 | AZ49: 69 | BA49: 67.7 | BB49: =AVERAGE(AW49:BA49)*(1+'2014 Farm Bill Calculator'!$B$22) -> 64.7814 | BC49: =AVERAGE(AX49:BB49)*(1+'2014 Farm Bill Calculator'!$B$22) -> 64.9392428 | BD49: =AVERAGE(AY49:BC49)*(1+'2014 Farm Bill Calculator'!$B$22) -> 64.92696985 | BE49: =AVERAGE(AP49:AY49) -> 60.1 | BF49: =AVERAGE(AQ49:AZ49) -> 61.6 | BG49: =AVERAGE(AR49:BA49) -> 62.27 | BH49: =AVERAGE(AS49:BB49) -> 61.04814 | BI49: =AVERAGE(AT49:BC49) -> 62.04206428 | BK49: =IF(COUNT(G49:K49)=5,((SUM(G49:K49)-MIN(G49:K49)-MAX(G49:K49))/3),"Data Error") -> 140.3333333 | BL49: =IF(COUNT(H49:L49)=5,((SUM(H49:L49)-MIN(H49:L49)-MAX(H49:L49))/3),"Data Error") -> 145.3333333 | BM49: =IF(COUNT(I49:M49)=5,((SUM(I49:M49)-MIN(I49:M49)-MAX(I49:M49))/3),"Data Error") -> 150.7 | BN49: =IF(COUNT(J49:N49)=5,((SUM(J49:N49)-MIN(J49:N49)-MAX(J49:N49))/3),"Data Error") -> 144.0333333 | BO49: =IF(COUNT(K49:O49)=5,((SUM(K49:O49)-MIN(K49:O49)-MAX(K49:O49))/3),"Data Error") -> 153.0198711 | BQ49: =IF(COUNT(AA49:AE49)=5,((SUM(AA49:AE49)-MIN(AA49:AE49)-MAX(AA49:AE49))/3),"Data Error") -> 41.33333333 | BR49: =IF(COUNT(AB49:AF49)=5,((SUM(AB49:AF49)-MIN(AB49:AF49)-MAX(AB49:AF49))/3),"Data Error") -> 42.33333333 | BS49: =IF(COUNT(AC49:AG49)=5,((SUM(AC49:AG49)-MIN(AC49:AG49)-MAX(AC49:AG49))/3),"Data Error") -> 43.33333333 | BT49: =IF(COUNT(AD49:AH49)=5,((SUM(AD49:AH49)-MIN(AD49:AH49)-MAX(AD49:AH49))/3),"Data Error") -> 43 | BU49: =IF(COUNT(AE49:AI49)=5,((SUM(AE49:AI49)-MIN(AE49:AI49)-MAX(AE49:AI49))/3),"Data Error") -> 43.4543386 | BW49: =IF(COUNT(AU49:AY49)=5,((SUM(AU49:AY49)-MIN(AU49:AY49)-MAX(AU49:AY49))/3),"Data Error") -> 59.33333333 | BX49: =IF(COUNT(AV49:AZ49)=5,((SUM(AV49:AZ49)-MIN(AV49:AZ49)-MAX(AV49:AZ49))/3),"Data Error") -> 62.33333333 | BY49: =IF(COUNT(AW49:BA49)=5,((SUM(AW49:BA49)-MIN(AW49:BA49)-MAX(AW49:BA49))/3),"Data Error") -> 65.56666667 | BZ49: =IF(COUNT(AX49:BB49)=5,((SUM(AX49:BB49)-MIN(AX49:BB49)-MAX(AX49:BB49))/3),"Data Error") -> 65.82713333 | CA49: =IF(COUNT(AY49:BC49)=5,((SUM(AY49:BC49)-MIN(AY49:BC49)-MAX(AY49:BC49))/3),"Data Error") -> 65.80688093
A50: LUCE | G50: 0.1 | H50: =G50 -> 0.1 | I50: =H50 -> 0.1 | J50: =I50 -> 0.1 | K50: =J50 -> 0.1 | L50: 38 | M50: =AVERAGE(H50:L50)*(1+'2014 Farm Bill Calculator'!$B$20) -> 7.8336 | N50: =AVERAGE(I50:M50)*(1+'2014 Farm Bill Calculator'!$B$20)*N$87 -> 7.0584408 | O50: =AVERAGE(J50:N50)*(1+'2014 Farm Bill Calculator'!$B$20) -> 10.83077632 | P50: =AVERAGE(K50:O50)*(1+'2014 Farm Bill Calculator'!$B$20) -> 13.01985469 | Q50: =AVERAGE(B50:K50) -> 0.1 | R50: =AVERAGE(C50:L50) -> 6.416666667 | S50: =AVERAGE(D50:M50) -> 6.619085714 | T50: =AVERAGE(E50:N50) -> 6.6740051 | U50: =AVERAGE(F50:O50) -> 7.135868569 | AA50: 0.1 | AB50: =AA50 -> 0.1 | AC50: =AB50 -> 0.1 | AD50: =AC50 -> 0.1 | AE50: =AD50 -> 0.1 | AF50: 24 | AG50: =AVERAGE(AB50:AF50)*(1+'2014 Farm Bill Calculator'!$B$21) -> 4.9288 | AH50: =AVERAGE(AC50:AG50)*(1+'2014 Farm Bill Calculator'!$B$21)*AH$87 -> 4.4281632 | AI50: =AVERAGE(AD50:AH50)*(1+'2014 Farm Bill Calculator'!$B$21) -> 6.778506566 | AJ50: =AVERAGE(AE50:AI50)*(1+'2014 Farm Bill Calculator'!$B$21) -> 8.127564893 | AK50: =AVERAGE(V50:AE50) -> 0.1 | AL50: =AVERAGE(W50:AF50) -> 4.083333333 | AM50: =AVERAGE(X50:AG50) -> 4.204114286 | AN50: =AVERAGE(Y50:AH50) -> 4.2321204 | AO50: =AVERAGE(Z50:AI50) -> 4.515052196 | AU50: 0.1 | AV50: =AU50 -> 0.1 | AW50: =AV50 -> 0.1 | AX50: =AW50 -> 0.1 | AY50: =AX50 -> 0.1 | AZ50: 47 | BA50: =AVERAGE(AV50:AZ50)*(1+'2014 Farm Bill Calculator'!$B$22) -> 9.5748 | BB50: =AVERAGE(AW50:BA50)*(1+'2014 Farm Bill Calculator'!$B$22) -> 11.4887096 | BC50: =AVERAGE(AX50:BB50)*(1+'2014 Farm Bill Calculator'!$B$22) -> 13.78922894 | BD50: =AVERAGE(AY50:BC50)*(1+'2014 Farm Bill Calculator'!$B$22) -> 16.55445318 | BE50: =AVERAGE(AP50:AY50) -> 0.1 | BF50: =AVERAGE(AQ50:AZ50) -> 7.916666667 | BG50: =AVERAGE(AR50:BA50) -> 8.153542857 | BH50: =AVERAGE(AS50:BB50) -> 8.5704387 | BI50: =AVERAGE(AT50:BC50) -> 9.150304282 | BK50: =IF(COUNT(G50:K50)=5,((SUM(G50:K50)-MIN(G50:K50)-MAX(G50:K50))/3),"Data Error") -> 0.1 | BL50: =IF(COUNT(H50:L50)=5,((SUM(H50:L50)-MIN(H50:L50)-MAX(H50:L50))/3),"Data Error") -> 0.1 | BM50: =IF(COUNT(I50:M50)=5,((SUM(I50:M50)-MIN(I50:M50)-MAX(I50:M50))/3),"Data Error") -> 2.677866667 | BN50: =IF(COUNT(J50:N50)=5,((SUM(J50:N50)-MIN(J50:N50)-MAX(J50:N50))/3),"Data Error") -> 4.997346933 | BO50: =IF(COUNT(K50:O50)=5,((SUM(K50:O50)-MIN(K50:O50)-MAX(K50:O50))/3),"Data Error") -> 8.574272374 | BQ50: =IF(COUNT(AA50:AE50)=5,((SUM(AA50:AE50)-MIN(AA50:AE50)-MAX(AA50:AE50))/3),"Data Error") -> 0.1 | BR50: =IF(COUNT(AB50:AF50)=5,((SUM(AB50:AF50)-MIN(AB50:AF50)-MAX(AB50:AF50))/3),"Data Error") -> 0.1 | BS50: =IF(COUNT(AC50:AG50)=5,((SUM(AC50:AG50)-MIN(AC50:AG50)-MAX(AC50:AG50))/3),"Data Error") -> 1.7096 | BT50: =IF(COUNT(AD50:AH50)=5,((SUM(AD50:AH50)-MIN(AD50:AH50)-MAX(AD50:AH50))/3),"Data Error") -> 3.152321067 | BU50: =IF(COUNT(AE50:AI50)=5,((SUM(AE50:AI50)-MIN(AE50:AI50)-MAX(AE50:AI50))/3),"Data Error") -> 5.378489922 | BW50: =IF(COUNT(AU50:AY50)=5,((SUM(AU50:AY50)-MIN(AU50:AY50)-MAX(AU50:AY50))/3),"Data Error") -> 0.1 | BX50: =IF(COUNT(AV50:AZ50)=5,((SUM(AV50:AZ50)-MIN(AV50:AZ50)-MAX(AV50:AZ50))/3),"Data Error") -> 0.1 | BY50: =IF(COUNT(AW50:BA50)=5,((SUM(AW50:BA50)-MIN(AW50:BA50)-MAX(AW50:BA50))/3),"Data Error") -> 3.258266667 | BZ50: =IF(COUNT(AX50:BB50)=5,((SUM(AX50:BB50)-MIN(AX50:BB50)-MAX(AX50:BB50))/3),"Data Error") -> 7.0545032 | CA50: =IF(COUNT(AY50:BC50)=5,((SUM(AY50:BC50)-MIN(AY50:BC50)-MAX(AY50:BC50))/3),"Data Error") -> 11.61757951
A51: MACKINAC | G51: 0.1 | H51: =G51 -> 0.1 | I51: =H51 -> 0.1 | J51: =I51 -> 0.1 | K51: =J51 -> 0.1 | L51: 38 | M51: =AVERAGE(H51:L51)*(1+'2014 Farm Bill Calculator'!$B$20) -> 7.8336 | N51: =AVERAGE(I51:M51)*(1+'2014 Farm Bill Calculator'!$B$20)*N$87 -> 7.0584408 | O51: =AVERAGE(J51:N51)*(1+'2014 Farm Bill Calculator'!$B$20) -> 10.83077632 | P51: =AVERAGE(K51:O51)*(1+'2014 Farm Bill Calculator'!$B$20) -> 13.01985469 | Q51: =AVERAGE(B51:K51) -> 0.1 | R51: =AVERAGE(C51:L51) -> 6.416666667 | S51: =AVERAGE(D51:M51) -> 6.619085714 | T51: =AVERAGE(E51:N51) -> 6.6740051 | U51: =AVERAGE(F51:O51) -> 7.135868569 | AA51: 0.1 | AB51: =AA51 -> 0.1 | AC51: =AB51 -> 0.1 | AD51: =AC51 -> 0.1 | AE51: =AD51 -> 0.1 | AF51: =AVERAGE(AA51:AE51)*(1+'2014 Farm Bill Calculator'!$B$21) -> 0.101 | AG51: =AVERAGE(AB51:AF51)*(1+'2014 Farm Bill Calculator'!$B$21) -> 0.101202 | AH51: =AVERAGE(AC51:AG51)*(1+'2014 Farm Bill Calculator'!$B$21)*AH$87 -> 0.076083603 | AI51: =AVERAGE(AD51:AH51)*(1+'2014 Farm Bill Calculator'!$B$21) -> 0.09661369181 | AJ51: =AVERAGE(AE51:AI51)*(1+'2014 Farm Bill Calculator'!$B$21) -> 0.09592965755 | AK51: =AVERAGE(V51:AE51) -> 0.1 | AL51: =AVERAGE(W51:AF51) -> 0.1001666667 | AM51: =AVERAGE(X51:AG51) -> 0.1003145714 | AN51: =AVERAGE(Y51:AH51) -> 0.09728570038 | AO51: =AVERAGE(Z51:AI51) -> 0.09721103276 | AU51: 0.1 | AV51: =AU51 -> 0.1 | AW51: =AV51 -> 0.1 | AX51: =AW51 -> 0.1 | AY51: =AX51 -> 0.1 | AZ51: 47 | BA51: =AVERAGE(AV51:AZ51)*(1+'2014 Farm Bill Calculator'!$B$22) -> 9.5748 | BB51: =AVERAGE(AW51:BA51)*(1+'2014 Farm Bill Calculator'!$B$22) -> 11.4887096 | BC51: =AVERAGE(AX51:BB51)*(1+'2014 Farm Bill Calculator'!$B$22) -> 13.78922894 | BD51: =AVERAGE(AY51:BC51)*(1+'2014 Farm Bill Calculator'!$B$22) -> 16.55445318 | BE51: =AVERAGE(AP51:AY51) -> 0.1 | BF51: =AVERAGE(AQ51:AZ51) -> 7.916666667 | BG51: =AVERAGE(AR51:BA51) -> 8.153542857 | BH51: =AVERAGE(AS51:BB51) -> 8.5704387 | BI51: =AVERAGE(AT51:BC51) -> 9.150304282 | BK51: =IF(COUNT(G51:K51)=5,((SUM(G51:K51)-MIN(G51:K51)-MAX(G51:K51))/3),"Data Error") -> 0.1 | BL51: =IF(COUNT(H51:L51)=5,((SUM(H51:L51)-MIN(H51:L51)-MAX(H51:L51))/3),"Data Error") -> 0.1 | BM51: =IF(COUNT(I51:M51)=5,((SUM(I51:M51)-MIN(I51:M51)-MAX(I51:M51))/3),"Data Error") -> 2.677866667 | BN51: =IF(COUNT(J51:N51)=5,((SUM(J51:N51)-MIN(J51:N51)-MAX(J51:N51))/3),"Data Error") -> 4.997346933 | BO51: =IF(COUNT(K51:O51)=5,((SUM(K51:O51)-MIN(K51:O51)-MAX(K51:O51))/3),"Data Error") -> 8.574272374 | BQ51: =IF(COUNT(AA51:AE51)=5,((SUM(AA51:AE51)-MIN(AA51:AE51)-MAX(AA51:AE51))/3),"Data Error") -> 0.1 | BR51: =IF(COUNT(AB51:AF51)=5,((SUM(AB51:AF51)-MIN(AB51:AF51)-MAX(AB51:AF51))/3),"Data Error") -> 0.1 | BS51: =IF(COUNT(AC51:AG51)=5,((SUM(AC51:AG51)-MIN(AC51:AG51)-MAX(AC51:AG51))/3),"Data Error") -> 0.1003333333 | BT51: =IF(COUNT(AD51:AH51)=5,((SUM(AD51:AH51)-MIN(AD51:AH51)-MAX(AD51:AH51))/3),"Data Error") -> 0.1003333333 | BU51: =IF(COUNT(AE51:AI51)=5,((SUM(AE51:AI51)-MIN(AE51:AI51)-MAX(AE51:AI51))/3),"Data Error") -> 0.09920456394 | BW51: =IF(COUNT(AU51:AY51)=5,((SUM(AU51:AY51)-MIN(AU51:AY51)-MAX(AU51:AY51))/3),"Data Error") -> 0.1 | BX51: =IF(COUNT(AV51:AZ51)=5,((SUM(AV51:AZ51)-MIN(AV51:AZ51)-MAX(AV51:AZ51))/3),"Data Error") -> 0.1 | BY51: =IF(COUNT(AW51:BA51)=5,((SUM(AW51:BA51)-MIN(AW51:BA51)-MAX(AW51:BA51))/3),"Data Error") -> 3.258266667 | BZ51: =IF(COUNT(AX51:BB51)=5,((SUM(AX51:BB51)-MIN(AX51:BB51)-MAX(AX51:BB51))/3),"Data Error") -> 7.0545032 | CA51: =IF(COUNT(AY51:BC51)=5,((SUM(AY51:BC51)-MIN(AY51:BC51)-MAX(AY51:BC51))/3),"Data Error") -> 11.61757951
A52: MACOMB | B52: 130 | C52: 150 | D52: 153 | E52: 110 | F52: 160 | G52: 147 | H52: 136 | I52: 148 | J52: 168 | K52: 152 | L52: 160 | M52: 154.4 | N52: =AVERAGE(I52:M52)*(1+'2014 Farm Bill Calculator'!$B$20)*N$87 -> 119.7072 | O52: =AVERAGE(J52:N52)*(1+'2014 Farm Bill Calculator'!$B$20) -> 153.8378688 | P52: =AVERAGE(K52:O52)*(1+'2014 Farm Bill Calculator'!$B$20) -> 150.948794 | Q52: =AVERAGE(B52:K52) -> 145.4 | R52: =AVERAGE(C52:L52) -> 148.4 | S52: =AVERAGE(D52:M52) -> 148.84 | T52: =AVERAGE(E52:N52) -> 145.51072 | U52: =AVERAGE(F52:O52) -> 149.8945069 | V52: 37 | W52: 39 | X52: 43 | Y52: 33 | Z52: 45.5 | AA52: 38 | AB52: 37 | AC52: 42 | AD52: 43 | AE52: 38 | AF52: 40 | AG52: 43.3 | AH52: =AVERAGE(AC52:AG52)*(1+'2014 Farm Bill Calculator'!$B$21)*AH$87 -> 31.25445 | AI52: =AVERAGE(AD52:AH52)*(1+'2014 Farm Bill Calculator'!$B$21) -> 39.5019989 | AJ52: =AVERAGE(AE52:AI52)*(1+'2014 Farm Bill Calculator'!$B$21) -> 38.79540268 | AK52: =AVERAGE(V52:AE52) -> 39.55 | AL52: =AVERAGE(W52:AF52) -> 39.85 | AM52: =AVERAGE(X52:AG52) -> 40.28 | AN52: =AVERAGE(Y52:AH52) -> 39.105445 | AO52: =AVERAGE(Z52:AI52) -> 39.75564489 | AP52: 63 | AQ52: 63 | AR52: 62 | AS52: 57 | AT52: 65.5 | AU52: 52.5 | AV52: 71.4 | AW52: 50 | AX52: 61.1 | AY52: 70.7 | AZ52: 52 | BA52: 69.7 | BB52: =AVERAGE(AW52:BA52)*(1+'2014 Farm Bill Calculator'!$B$22) -> 61.307 | BC52: =AVERAGE(AX52:BB52)*(1+'2014 Farm Bill Calculator'!$B$22) -> 63.591014 | BD52: =AVERAGE(AY52:BC52)*(1+'2014 Farm Bill Calculator'!$B$22) -> 64.09419883 | BE52: =AVERAGE(AP52:AY52) -> 61.62 | BF52: =AVERAGE(AQ52:AZ52) -> 60.52 | BG52: =AVERAGE(AR52:BA52) -> 61.19 | BH52: =AVERAGE(AS52:BB52) -> 61.1207 | BI52: =AVERAGE(AT52:BC52) -> 61.7798014 | BK52: =IF(COUNT(G52:K52)=5,((SUM(G52:K52)-MIN(G52:K52)-MAX(G52:K52))/3),"Data Error") -> 149 | BL52: =IF(COUNT(H52:L52)=5,((SUM(H52:L52)-MIN(H52:L52)-MAX(H52:L52))/3),"Data Error") -> 153.3333333 | BM52: =IF(COUNT(I52:M52)=5,((SUM(I52:M52)-MIN(I52:M52)-MAX(I52:M52))/3),"Data Error") -> 155.4666667 | BN52: =IF(COUNT(J52:N52)=5,((SUM(J52:N52)-MIN(J52:N52)-MAX(J52:N52))/3),"Data Error") -> 155.4666667 | BO52: =IF(COUNT(K52:O52)=5,((SUM(K52:O52)-MIN(K52:O52)-MAX(K52:O52))/3),"Data Error") -> 153.4126229 | BQ52: =IF(COUNT(AA52:AE52)=5,((SUM(AA52:AE52)-MIN(AA52:AE52)-MAX(AA52:AE52))/3),"Data Error") -> 39.33333333 | BR52: =IF(COUNT(AB52:AF52)=5,((SUM(AB52:AF52)-MIN(AB52:AF52)-MAX(AB52:AF52))/3),"Data Error") -> 40 | BS52: =IF(COUNT(AC52:AG52)=5,((SUM(AC52:AG52)-MIN(AC52:AG52)-MAX(AC52:AG52))/3),"Data Error") -> 41.66666667 | BT52: =IF(COUNT(AD52:AH52)=5,((SUM(AD52:AH52)-MIN(AD52:AH52)-MAX(AD52:AH52))/3),"Data Error") -> 40.33333333 | BU52: =IF(COUNT(AE52:AI52)=5,((SUM(AE52:AI52)-MIN(AE52:AI52)-MAX(AE52:AI52))/3),"Data Error") -> 39.16733297 | BW52: =IF(COUNT(AU52:AY52)=5,((SUM(AU52:AY52)-MIN(AU52:AY52)-MAX(AU52:AY52))/3),"Data Error") -> 61.43333333 | BX52: =IF(COUNT(AV52:AZ52)=5,((SUM(AV52:AZ52)-MIN(AV52:AZ52)-MAX(AV52:AZ52))/3),"Data Error") -> 61.26666667 | BY52: =IF(COUNT(AW52:BA52)=5,((SUM(AW52:BA52)-MIN(AW52:BA52)-MAX(AW52:BA52))/3),"Data Error") -> 60.93333333 | BZ52: =IF(COUNT(AX52:BB52)=5,((SUM(AX52:BB52)-MIN(AX52:BB52)-MAX(AX52:BB52))/3),"Data Error") -> 64.03566667 | CA52: =IF(COUNT(AY52:BC52)=5,((SUM(AY52:BC52)-MIN(AY52:BC52)-MAX(AY52:BC52))/3),"Data Error") -> 64.86600467
A53: MANISTEE | B53: 93 | D53: 100 | E53: 64 | G53: 78 | H53: 130 | I53: 101 | J53: 61 | K53: 76 | L53: =(100+62)/2 -> 81 | M53: 91.3 | N53: =AVERAGE(I53:M53)*(1+'2014 Farm Bill Calculator'!$B$20)*N$87 -> 62.7759 | O53: =AVERAGE(J53:N53)*(1+'2014 Farm Bill Calculator'!$B$20) -> 75.9034836 | P53: =AVERAGE(K53:O53)*(1+'2014 Farm Bill Calculator'!$B$20) -> 78.94379425 | Q53: =AVERAGE(B53:K53) -> 87.875 | R53: =AVERAGE(C53:L53) -> 86.375 | S53: =AVERAGE(D53:M53) -> 86.92222222 | T53: =AVERAGE(E53:N53) -> 82.78621111 | U53: =AVERAGE(F53:O53) -> 84.1088204 | AA53: 0.1 | AB53: =AA53 -> 0.1 | AC53: =AB53 -> 0.1 | AD53: =AC53 -> 0.1 | AE53: =AD53 -> 0.1 | AF53: =AVERAGE(AA53:AE53)*(1+'2014 Farm Bill Calculator'!$B$21) -> 0.101 | AG53: =AVERAGE(AB53:AF53)*(1+'2014 Farm Bill Calculator'!$B$21) -> 0.101202 | AH53: =AVERAGE(AC53:AG53)*(1+'2014 Farm Bill Calculator'!$B$21)*AH$87 -> 0.076083603 | AI53: =AVERAGE(AD53:AH53)*(1+'2014 Farm Bill Calculator'!$B$21) -> 0.09661369181 | AJ53: =AVERAGE(AE53:AI53)*(1+'2014 Farm Bill Calculator'!$B$21) -> 0.09592965755 | AK53: =AVERAGE(V53:AE53) -> 0.1 | AL53: =AVERAGE(W53:AF53) -> 0.1001666667 | AM53: =AVERAGE(X53:AG53) -> 0.1003145714 | AN53: =AVERAGE(Y53:AH53) -> 0.09728570038 | AO53: =AVERAGE(Z53:AI53) -> 0.09721103276 | AU53: 0.1 | AV53: =AU53 -> 0.1 | AW53: =AV53 -> 0.1 | AX53: =AW53 -> 0.1 | AY53: =AX53 -> 0.1 | AZ53: 49 | BA53: =AVERAGE(AV53:AZ53)*(1+'2014 Farm Bill Calculator'!$B$22) -> 9.9788 | BB53: =AVERAGE(AW53:BA53)*(1+'2014 Farm Bill Calculator'!$B$22) -> 11.9743176 | BC53: =AVERAGE(AX53:BB53)*(1+'2014 Farm Bill Calculator'!$B$22) -> 14.37292976 | BD53: =AVERAGE(AY53:BC53)*(1+'2014 Farm Bill Calculator'!$B$22) -> 17.25606157 | BE53: =AVERAGE(AP53:AY53) -> 0.1 | BF53: =AVERAGE(AQ53:AZ53) -> 8.25 | BG53: =AVERAGE(AR53:BA53) -> 8.496971429 | BH53: =AVERAGE(AS53:BB53) -> 8.9316397 | BI53: =AVERAGE(AT53:BC53) -> 9.536227484 | BK53: =IF(COUNT(G53:K53)=5,((SUM(G53:K53)-MIN(G53:K53)-MAX(G53:K53))/3),"Data Error") -> 85 | BL53: =IF(COUNT(H53:L53)=5,((SUM(H53:L53)-MIN(H53:L53)-MAX(H53:L53))/3),"Data Error") -> 86 | BM53: =IF(COUNT(I53:M53)=5,((SUM(I53:M53)-MIN(I53:M53)-MAX(I53:M53))/3),"Data Error") -> 82.76666667 | BN53: =IF(COUNT(J53:N53)=5,((SUM(J53:N53)-MIN(J53:N53)-MAX(J53:N53))/3),"Data Error") -> 73.25863333 | BO53: =IF(COUNT(K53:O53)=5,((SUM(K53:O53)-MIN(K53:O53)-MAX(K53:O53))/3),"Data Error") -> 77.63449453 | BQ53: =IF(COUNT(AA53:AE53)=5,((SUM(AA53:AE53)-MIN(AA53:AE53)-MAX(AA53:AE53))/3),"Data Error") -> 0.1 | BR53: =IF(COUNT(AB53:AF53)=5,((SUM(AB53:AF53)-MIN(AB53:AF53)-MAX(AB53:AF53))/3),"Data Error") -> 0.1 | BS53: =IF(COUNT(AC53:AG53)=5,((SUM(AC53:AG53)-MIN(AC53:AG53)-MAX(AC53:AG53))/3),"Data Error") -> 0.1003333333 | BT53: =IF(COUNT(AD53:AH53)=5,((SUM(AD53:AH53)-MIN(AD53:AH53)-MAX(AD53:AH53))/3),"Data Error") -> 0.1003333333 | BU53: =IF(COUNT(AE53:AI53)=5,((SUM(AE53:AI53)-MIN(AE53:AI53)-MAX(AE53:AI53))/3),"Data Error") -> 0.09920456394 | BW53: =IF(COUNT(AU53:AY53)=5,((SUM(AU53:AY53)-MIN(AU53:AY53)-MAX(AU53:AY53))/3),"Data Error") -> 0.1 | BX53: =IF(COUNT(AV53:AZ53)=5,((SUM(AV53:AZ53)-MIN(AV53:AZ53)-MAX(AV53:AZ53))/3),"Data Error") -> 0.1 | BY53: =IF(COUNT(AW53:BA53)=5,((SUM(AW53:BA53)-MIN(AW53:BA53)-MAX(AW53:BA53))/3),"Data Error") -> 3.392933333 | BZ53: =IF(COUNT(AX53:BB53)=5,((SUM(AX53:BB53)-MIN(AX53:BB53)-MAX(AX53:BB53))/3),"Data Error") -> 7.3510392 | CA53: =IF(COUNT(AY53:BC53)=5,((SUM(AY53:BC53)-MIN(AY53:BC53)-MAX(AY53:BC53))/3),"Data Error") -> 12.10868245
A54: MARQUETTE | G54: 0.1 | H54: =G54 -> 0.1 | I54: =H54 -> 0.1 | J54: =I54 -> 0.1 | K54: =J54 -> 0.1 | L54: 38 | M54: 131.8 | N54: =AVERAGE(I54:M54)*(1+'2014 Farm Bill Calculator'!$B$20)*N$87 -> 26.0253 | O54: =AVERAGE(J54:N54)*(1+'2014 Farm Bill Calculator'!$B$20) -> 39.9891612 | P54: =AVERAGE(K54:O54)*(1+'2014 Farm Bill Calculator'!$B$20) -> 48.12655008 | Q54: =AVERAGE(B54:K54) -> 0.1 | R54: =AVERAGE(C54:L54) -> 6.416666667 | S54: =AVERAGE(D54:M54) -> 24.32857143 | T54: =AVERAGE(E54:N54) -> 24.5406625 | U54: =AVERAGE(F54:O54) -> 26.25716236 | AA54: 0.1 | AB54: =AA54 -> 0.1 | AC54: =AB54 -> 0.1 | AD54: =AC54 -> 0.1 | AE54: =AD54 -> 0.1 | AF54: =AVERAGE(AA54:AE54)*(1+'2014 Farm Bill Calculator'!$B$21) -> 0.101 | AG54: =AVERAGE(AB54:AF54)*(1+'2014 Farm Bill Calculator'!$B$21) -> 0.101202 | AH54: =AVERAGE(AC54:AG54)*(1+'2014 Farm Bill Calculator'!$B$21)*AH$87 -> 0.076083603 | AI54: =AVERAGE(AD54:AH54)*(1+'2014 Farm Bill Calculator'!$B$21) -> 0.09661369181 | AJ54: =AVERAGE(AE54:AI54)*(1+'2014 Farm Bill Calculator'!$B$21) -> 0.09592965755 | AK54: =AVERAGE(V54:AE54) -> 0.1 | AL54: =AVERAGE(W54:AF54) -> 0.1001666667 | AM54: =AVERAGE(X54:AG54) -> 0.1003145714 | AN54: =AVERAGE(Y54:AH54) -> 0.09728570038 | AO54: =AVERAGE(Z54:AI54) -> 0.09721103276 | AU54: 0.1 | AV54: =AU54 -> 0.1 | AW54: =AV54 -> 0.1 | AX54: =AW54 -> 0.1 | AY54: =AX54 -> 0.1 | AZ54: =AVERAGE(AU54:AY54)*(1+'2014 Farm Bill Calculator'!$B$22) -> 0.101 | BA54: =AVERAGE(AV54:AZ54)*(1+'2014 Farm Bill Calculator'!$B$22) -> 0.101202 | BB54: =AVERAGE(AW54:BA54)*(1+'2014 Farm Bill Calculator'!$B$22) -> 0.101444804 | BC54: =AVERAGE(AX54:BB54)*(1+'2014 Farm Bill Calculator'!$B$22) -> 0.1017366544 | BD54: =AVERAGE(AY54:BC54)*(1+'2014 Farm Bill Calculator'!$B$22) -> 0.1020874586 | BE54: =AVERAGE(AP54:AY54) -> 0.1 | BF54: =AVERAGE(AQ54:AZ54) -> 0.1001666667 | BG54: =AVERAGE(AR54:BA54) -> 0.1003145714 | BH54: =AVERAGE(AS54:BB54) -> 0.1004558505 | BI54: =AVERAGE(AT54:BC54) -> 0.100598162 | BK54: =IF(COUNT(G54:K54)=5,((SUM(G54:K54)-MIN(G54:K54)-MAX(G54:K54))/3),"Data Error") -> 0.1 | BL54: =IF(COUNT(H54:L54)=5,((SUM(H54:L54)-MIN(H54:L54)-MAX(H54:L54))/3),"Data Error") -> 0.1 | BM54: =IF(COUNT(I54:M54)=5,((SUM(I54:M54)-MIN(I54:M54)-MAX(I54:M54))/3),"Data Error") -> 12.73333333 | BN54: =IF(COUNT(J54:N54)=5,((SUM(J54:N54)-MIN(J54:N54)-MAX(J54:N54))/3),"Data Error") -> 21.3751 | BO54: =IF(COUNT(K54:O54)=5,((SUM(K54:O54)-MIN(K54:O54)-MAX(K54:O54))/3),"Data Error") -> 34.67148707 | BQ54: =IF(COUNT(AA54:AE54)=5,((SUM(AA54:AE54)-MIN(AA54:AE54)-MAX(AA54:AE54))/3),"Data Error") -> 0.1 | BR54: =IF(COUNT(AB54:AF54)=5,((SUM(AB54:AF54)-MIN(AB54:AF54)-MAX(AB54:AF54))/3),"Data Error") -> 0.1 | BS54: =IF(COUNT(AC54:AG54)=5,((SUM(AC54:AG54)-MIN(AC54:AG54)-MAX(AC54:AG54))/3),"Data Error") -> 0.1003333333 | BT54: =IF(COUNT(AD54:AH54)=5,((SUM(AD54:AH54)-MIN(AD54:AH54)-MAX(AD54:AH54))/3),"Data Error") -> 0.1003333333 | BU54: =IF(COUNT(AE54:AI54)=5,((SUM(AE54:AI54)-MIN(AE54:AI54)-MAX(AE54:AI54))/3),"Data Error") -> 0.09920456394 | BW54: =IF(COUNT(AU54:AY54)=5,((SUM(AU54:AY54)-MIN(AU54:AY54)-MAX(AU54:AY54))/3),"Data Error") -> 0.1 | BX54: =IF(COUNT(AV54:AZ54)=5,((SUM(AV54:AZ54)-MIN(AV54:AZ54)-MAX(AV54:AZ54))/3),"Data Error") -> 0.1 | BY54: =IF(COUNT(AW54:BA54)=5,((SUM(AW54:BA54)-MIN(AW54:BA54)-MAX(AW54:BA54))/3),"Data Error") -> 0.1003333333 | BZ54: =IF(COUNT(AX54:BB54)=5,((SUM(AX54:BB54)-MIN(AX54:BB54)-MAX(AX54:BB54))/3),"Data Error") -> 0.100734 | CA54: =IF(COUNT(AY54:BC54)=5,((SUM(AY54:BC54)-MIN(AY54:BC54)-MAX(AY54:BC54))/3),"Data Error") -> 0.1012156013
A55: MASON | C55: 132 | D55: 116 | E55: 109 | F55: 99 | G55: 102 | H55: 151 | I55: 128 | J55: 138 | K55: 110 | L55: 115 | M55: 131.8 | N55: =AVERAGE(I55:M55)*(1+'2014 Farm Bill Calculator'!$B$20)*N$87 -> 95.2884 | O55: =AVERAGE(J55:N55)*(1+'2014 Farm Bill Calculator'!$B$20) -> 120.3780336 | P55: =AVERAGE(K55:O55)*(1+'2014 Farm Bill Calculator'!$B$20) -> 116.7831525 | Q55: =AVERAGE(B55:K55) -> 120.5555556 | R55: =AVERAGE(C55:L55) -> 120 | S55: =AVERAGE(D55:M55) -> 119.98 | T55: =AVERAGE(E55:N55) -> 117.90884 | U55: =AVERAGE(F55:O55) -> 119.0466434 | V55: 27 | W55: 40 | X55: 35 | Y55: 35 | Z55: 28.5 | AA55: 33 | AB55: 56 | AC55: 38 | AD55: 45 | AE55: 38 | AF55: 34 | AG55: 47.2 | AH55: =AVERAGE(AC55:AG55)*(1+'2014 Farm Bill Calculator'!$B$21)*AH$87 -> 30.6333 | AI55: =AVERAGE(AD55:AH55)*(1+'2014 Farm Bill Calculator'!$B$21) -> 39.3563266 | AJ55: =AVERAGE(AE55:AI55)*(1+'2014 Farm Bill Calculator'!$B$21) -> 38.21630457 | AK55: =AVERAGE(V55:AE55) -> 37.55 | AL55: =AVERAGE(W55:AF55) -> 38.25 | AM55: =AVERAGE(X55:AG55) -> 38.97 | AN55: =AVERAGE(Y55:AH55) -> 38.53333 | AO55: =AVERAGE(Z55:AI55) -> 38.96896266 | AP55: 51 | AQ55: 60 | AR55: 60 | AS55: 43 | AT55: 65 | AU55: 52 | AV55: 60 | AW55: 62 | AX55: 65 | AY55: 64 | AZ55: 47 | BA55: 60.8 | BB55: =AVERAGE(AW55:BA55)*(1+'2014 Farm Bill Calculator'!$B$22) -> 60.3576 | BC55: =AVERAGE(AX55:BB55)*(1+'2014 Farm Bill Calculator'!$B$22) -> 60.0258352 | BD55: =AVERAGE(AY55:BC55)*(1+'2014 Farm Bill Calculator'!$B$22) -> 59.02105391 | BE55: =AVERAGE(AP55:AY55) -> 58.2 | BF55: =AVERAGE(AQ55:AZ55) -> 57.8 | BG55: =AVERAGE(AR55:BA55) -> 57.88 | BH55: =AVERAGE(AS55:BB55) -> 57.91576 | BI55: =AVERAGE(AT55:BC55) -> 59.61834352 | BK55: =IF(COUNT(G55:K55)=5,((SUM(G55:K55)-MIN(G55:K55)-MAX(G55:K55))/3),"Data Error") -> 125.3333333 | BL55: =IF(COUNT(H55:L55)=5,((SUM(H55:L55)-MIN(H55:L55)-MAX(H55:L55))/3),"Data Error") -> 127 | BM55: =IF(COUNT(I55:M55)=5,((SUM(I55:M55)-MIN(I55:M55)-MAX(I55:M55))/3),"Data Error") -> 124.9333333 | BN55: =IF(COUNT(J55:N55)=5,((SUM(J55:N55)-MIN(J55:N55)-MAX(J55:N55))/3),"Data Error") -> 118.9333333 | BO55: =IF(COUNT(K55:O55)=5,((SUM(K55:O55)-MIN(K55:O55)-MAX(K55:O55))/3),"Data Error") -> 115.1260112 | BQ55: =IF(COUNT(AA55:AE55)=5,((SUM(AA55:AE55)-MIN(AA55:AE55)-MAX(AA55:AE55))/3),"Data Error") -> 40.33333333 | BR55: =IF(COUNT(AB55:AF55)=5,((SUM(AB55:AF55)-MIN(AB55:AF55)-MAX(AB55:AF55))/3),"Data Error") -> 40.33333333 | BS55: =IF(COUNT(AC55:AG55)=5,((SUM(AC55:AG55)-MIN(AC55:AG55)-MAX(AC55:AG55))/3),"Data Error") -> 40.33333333 | BT55: =IF(COUNT(AD55:AH55)=5,((SUM(AD55:AH55)-MIN(AD55:AH55)-MAX(AD55:AH55))/3),"Data Error") -> 39 | BU55: =IF(COUNT(AE55:AI55)=5,((SUM(AE55:AI55)-MIN(AE55:AI55)-MAX(AE55:AI55))/3),"Data Error") -> 37.11877553 | BW55: =IF(COUNT(AU55:AY55)=5,((SUM(AU55:AY55)-MIN(AU55:AY55)-MAX(AU55:AY55))/3),"Data Error") -> 62 | BX55: =IF(COUNT(AV55:AZ55)=5,((SUM(AV55:AZ55)-MIN(AV55:AZ55)-MAX(AV55:AZ55))/3),"Data Error") -> 62 | BY55: =IF(COUNT(AW55:BA55)=5,((SUM(AW55:BA55)-MIN(AW55:BA55)-MAX(AW55:BA55))/3),"Data Error") -> 62.26666667 | BZ55: =IF(COUNT(AX55:BB55)=5,((SUM(AX55:BB55)-MIN(AX55:BB55)-MAX(AX55:BB55))/3),"Data Error") -> 61.7192 | CA55: =IF(COUNT(AY55:BC55)=5,((SUM(AY55:BC55)-MIN(AY55:BC55)-MAX(AY55:BC55))/3),"Data Error") -> 60.3944784
A56: MECOSTA | B56: 102 | C56: 139 | D56: 132 | E56: 100 | F56: 108 | G56: 126 | H56: 142.5 | I56: 136.6 | J56: 146.8 | K56: 132.8 | L56: =(150+104)/2 -> 127 | M56: 133.2 | N56: =AVERAGE(I56:M56)*(1+'2014 Farm Bill Calculator'!$B$20)*N$87 -> 103.4892 | O56: =AVERAGE(J56:N56)*(1+'2014 Farm Bill Calculator'!$B$20) -> 131.2309968 | P56: =AVERAGE(K56:O56)*(1+'2014 Farm Bill Calculator'!$B$20) -> 128.0549201 | Q56: =AVERAGE(B56:K56) -> 126.57 | R56: =AVERAGE(C56:L56) -> 129.07 | S56: =AVERAGE(D56:M56) -> 128.49 | T56: =AVERAGE(E56:N56) -> 125.63892 | U56: =AVERAGE(F56:O56) -> 128.7620197 | W56: 36 | X56: 20 | Y56: 23 | Z56: 27.5 | AA56: 24 | AB56: 36 | AC56: 34 | AD56: 32 | AE56: 25 | AF56: 34 | AG56: 38.3 | AH56: =AVERAGE(AC56:AG56)*(1+'2014 Farm Bill Calculator'!$B$21)*AH$87 -> 24.73995 | AI56: =AVERAGE(AD56:AH56)*(1+'2014 Farm Bill Calculator'!$B$21) -> 31.1160699 | AJ56: =AVERAGE(AE56:AI56)*(1+'2014 Farm Bill Calculator'!$B$21) -> 30.93751602 | AK56: =AVERAGE(V56:AE56) -> 28.61111111 | AL56: =AVERAGE(W56:AF56) -> 29.15 | AM56: =AVERAGE(X56:AG56) -> 29.38 | AN56: =AVERAGE(Y56:AH56) -> 29.853995 | AO56: =AVERAGE(Z56:AI56) -> 30.66560199 | AP56: 49 | AQ56: 35 | AR56: 42 | AS56: 43 | AT56: 59.5 | AU56: 49 | AV56: 65 | AW56: 51 | AX56: 48 | AY56: 42 | AZ56: 36 | BA56: 57.8 | BB56: =AVERAGE(AW56:BA56)*(1+'2014 Farm Bill Calculator'!$B$22) -> 47.4296 | BC56: =AVERAGE(AX56:BB56)*(1+'2014 Farm Bill Calculator'!$B$22) -> 46.7083792 | BD56: =AVERAGE(AY56:BC56)*(1+'2014 Farm Bill Calculator'!$B$22) -> 46.4474718 | BE56: =AVERAGE(AP56:AY56) -> 48.35 | BF56: =AVERAGE(AQ56:AZ56) -> 47.05 | BG56: =AVERAGE(AR56:BA56) -> 49.33 | BH56: =AVERAGE(AS56:BB56) -> 49.87296 | BI56: =AVERAGE(AT56:BC56) -> 50.24379792 | BK56: =IF(COUNT(G56:K56)=5,((SUM(G56:K56)-MIN(G56:K56)-MAX(G56:K56))/3),"Data Error") -> 137.3 | BL56: =IF(COUNT(H56:L56)=5,((SUM(H56:L56)-MIN(H56:L56)-MAX(H56:L56))/3),"Data Error") -> 137.3 | BM56: =IF(COUNT(I56:M56)=5,((SUM(I56:M56)-MIN(I56:M56)-MAX(I56:M56))/3),"Data Error") -> 134.2 | BN56: =IF(COUNT(J56:N56)=5,((SUM(J56:N56)-MIN(J56:N56)-MAX(J56:N56))/3),"Data Error") -> 131 | BO56: =IF(COUNT(K56:O56)=5,((SUM(K56:O56)-MIN(K56:O56)-MAX(K56:O56))/3),"Data Error") -> 130.3436656 | BQ56: =IF(COUNT(AA56:AE56)=5,((SUM(AA56:AE56)-MIN(AA56:AE56)-MAX(AA56:AE56))/3),"Data Error") -> 30.33333333 | BR56: =IF(COUNT(AB56:AF56)=5,((SUM(AB56:AF56)-MIN(AB56:AF56)-MAX(AB56:AF56))/3),"Data Error") -> 33.33333333 | BS56: =IF(COUNT(AC56:AG56)=5,((SUM(AC56:AG56)-MIN(AC56:AG56)-MAX(AC56:AG56))/3),"Data Error") -> 33.33333333 | BT56: =IF(COUNT(AD56:AH56)=5,((SUM(AD56:AH56)-MIN(AD56:AH56)-MAX(AD56:AH56))/3),"Data Error") -> 30.33333333 | BU56: =IF(COUNT(AE56:AI56)=5,((SUM(AE56:AI56)-MIN(AE56:AI56)-MAX(AE56:AI56))/3),"Data Error") -> 30.03868997 | BW56: =IF(COUNT(AU56:AY56)=5,((SUM(AU56:AY56)-MIN(AU56:AY56)-MAX(AU56:AY56))/3),"Data Error") -> 49.33333333 | BX56: =IF(COUNT(AV56:AZ56)=5,((SUM(AV56:AZ56)-MIN(AV56:AZ56)-MAX(AV56:AZ56))/3),"Data Error") -> 47 | BY56: =IF(COUNT(AW56:BA56)=5,((SUM(AW56:BA56)-MIN(AW56:BA56)-MAX(AW56:BA56))/3),"Data Error") -> 47 | BZ56: =IF(COUNT(AX56:BB56)=5,((SUM(AX56:BB56)-MIN(AX56:BB56)-MAX(AX56:BB56))/3),"Data Error") -> 45.80986667 | CA56: =IF(COUNT(AY56:BC56)=5,((SUM(AY56:BC56)-MIN(AY56:BC56)-MAX(AY56:BC56))/3),"Data Error") -> 45.3793264
A57: MENOMINEE | B57: 82 | C57: 122 | D57: 138 | E57: 77 | F57: 76 | G57: 51 | H57: 124 | I57: 51 | J57: 95 | K57: 139 | L57: 37 | M57: 140 | N57: =AVERAGE(I57:M57)*(1+'2014 Farm Bill Calculator'!$B$20)*N$87 -> 70.686 | O57: =AVERAGE(J57:N57)*(1+'2014 Farm Bill Calculator'!$B$20) -> 98.263944 | P57: =AVERAGE(K57:O57)*(1+'2014 Farm Bill Calculator'!$B$20) -> 98.92978858 | Q57: =AVERAGE(B57:K57) -> 95.5 | R57: =AVERAGE(C57:L57) -> 91 | S57: =AVERAGE(D57:M57) -> 92.8 | T57: =AVERAGE(E57:N57) -> 86.0686 | U57: =AVERAGE(F57:O57) -> 88.1949944 | AA57: 17 | AB57: 35 | AC57: 17 | AD57: 23 | AE57: 25 | AF57: 23 | AG57: =AVERAGE(AB57:AF57)*(1+'2014 Farm Bill Calculator'!$B$21) -> 24.846 | AH57: =AVERAGE(AC57:AG57)*(1+'2014 Farm Bill Calculator'!$B$21)*AH$87 -> 17.096169 | AI57: =AVERAGE(AD57:AH57)*(1+'2014 Farm Bill Calculator'!$B$21) -> 22.81431814 | AJ57: =AVERAGE(AE57:AI57)*(1+'2014 Farm Bill Calculator'!$B$21) -> 22.7768104 | AK57: =AVERAGE(V57:AE57) -> 23.4 | AL57: =AVERAGE(W57:AF57) -> 23.33333333 | AM57: =AVERAGE(X57:AG57) -> 23.54942857 | AN57: =AVERAGE(Y57:AH57) -> 22.74277113 | AO57: =AVERAGE(Z57:AI57) -> 22.75072079 | AU57: 0.1 | AV57: =AU57 -> 0.1 | AW57: =AV57 -> 0.1 | AX57: =AW57 -> 0.1 | AY57: =AX57 -> 0.1 | AZ57: 47 | BA57: =AVERAGE(AV57:AZ57)*(1+'2014 Farm Bill Calculator'!$B$22) -> 9.5748 | BB57: =AVERAGE(AW57:BA57)*(1+'2014 Farm Bill Calculator'!$B$22) -> 11.4887096 | BC57: =AVERAGE(AX57:BB57)*(1+'2014 Farm Bill Calculator'!$B$22) -> 13.78922894 | BD57: =AVERAGE(AY57:BC57)*(1+'2014 Farm Bill Calculator'!$B$22) -> 16.55445318 | BE57: =AVERAGE(AP57:AY57) -> 0.1 | BF57: =AVERAGE(AQ57:AZ57) -> 7.916666667 | BG57: =AVERAGE(AR57:BA57) -> 8.153542857 | BH57: =AVERAGE(AS57:BB57) -> 8.5704387 | BI57: =AVERAGE(AT57:BC57) -> 9.150304282 | BK57: =IF(COUNT(G57:K57)=5,((SUM(G57:K57)-MIN(G57:K57)-MAX(G57:K57))/3),"Data Error") -> 90 | BL57: =IF(COUNT(H57:L57)=5,((SUM(H57:L57)-MIN(H57:L57)-MAX(H57:L57))/3),"Data Error") -> 90 | BM57: =IF(COUNT(I57:M57)=5,((SUM(I57:M57)-MIN(I57:M57)-MAX(I57:M57))/3),"Data Error") -> 95 | BN57: =IF(COUNT(J57:N57)=5,((SUM(J57:N57)-MIN(J57:N57)-MAX(J57:N57))/3),"Data Error") -> 101.562 | BO57: =IF(COUNT(K57:O57)=5,((SUM(K57:O57)-MIN(K57:O57)-MAX(K57:O57))/3),"Data Error") -> 102.6499813 | BQ57: =IF(COUNT(AA57:AE57)=5,((SUM(AA57:AE57)-MIN(AA57:AE57)-MAX(AA57:AE57))/3),"Data Error") -> 21.66666667 | BR57: =IF(COUNT(AB57:AF57)=5,((SUM(AB57:AF57)-MIN(AB57:AF57)-MAX(AB57:AF57))/3),"Data Error") -> 23.66666667 | BS57: =IF(COUNT(AC57:AG57)=5,((SUM(AC57:AG57)-MIN(AC57:AG57)-MAX(AC57:AG57))/3),"Data Error") -> 23.61533333 | BT57: =IF(COUNT(AD57:AH57)=5,((SUM(AD57:AH57)-MIN(AD57:AH57)-MAX(AD57:AH57))/3),"Data Error") -> 23.61533333 | BU57: =IF(COUNT(AE57:AI57)=5,((SUM(AE57:AI57)-MIN(AE57:AI57)-MAX(AE57:AI57))/3),"Data Error") -> 23.55343938 | BW57: =IF(COUNT(AU57:AY57)=5,((SUM(AU57:AY57)-MIN(AU57:AY57)-MAX(AU57:AY57))/3),"Data Error") -> 0.1 | BX57: =IF(COUNT(AV57:AZ57)=5,((SUM(AV57:AZ57)-MIN(AV57:AZ57)-MAX(AV57:AZ57))/3),"Data Error") -> 0.1 | BY57: =IF(COUNT(AW57:BA57)=5,((SUM(AW57:BA57)-MIN(AW57:BA57)-MAX(AW57:BA57))/3),"Data Error") -> 3.258266667 | BZ57: =IF(COUNT(AX57:BB57)=5,((SUM(AX57:BB57)-MIN(AX57:BB57)-MAX(AX57:BB57))/3),"Data Error") -> 7.0545032 | CA57: =IF(COUNT(AY57:BC57)=5,((SUM(AY57:BC57)-MIN(AY57:BC57)-MAX(AY57:BC57))/3),"Data Error") -> 11.61757951
A58: MIDLAND | B58: 122 | C58: 152 | D58: 136 | E58: 134 | F58: 151 | G58: 155 | H58: 161 | I58: 162 | J58: 164 | K58: 147 | L58: 165 | M58: 159.5 | N58: =AVERAGE(I58:M58)*(1+'2014 Farm Bill Calculator'!$B$20)*N$87 -> 122.0175 | O58: =AVERAGE(J58:N58)*(1+'2014 Farm Bill Calculator'!$B$20) -> 154.53357 | P58: =AVERAGE(K58:O58)*(1+'2014 Farm Bill Calculator'!$B$20) -> 152.6024183 | Q58: =AVERAGE(B58:K58) -> 148.4 | R58: =AVERAGE(C58:L58) -> 152.7 | S58: =AVERAGE(D58:M58) -> 153.45 | T58: =AVERAGE(E58:N58) -> 152.05175 | U58: =AVERAGE(F58:O58) -> 154.105107 | V58: 31 | W58: 40 | X58: 40 | Y58: 42 | Z58: 40.5 | AA58: 40 | AB58: 46 | AC58: 46 | AD58: 53 | AE58: 40 | AF58: 46 | AG58: 49.1 | AH58: =AVERAGE(AC58:AG58)*(1+'2014 Farm Bill Calculator'!$B$21)*AH$87 -> 35.46615 | AI58: =AVERAGE(AD58:AH58)*(1+'2014 Farm Bill Calculator'!$B$21) -> 45.1603623 | AJ58: =AVERAGE(AE58:AI58)*(1+'2014 Farm Bill Calculator'!$B$21) -> 43.57675548 | AK58: =AVERAGE(V58:AE58) -> 41.85 | AL58: =AVERAGE(W58:AF58) -> 43.35 | AM58: =AVERAGE(X58:AG58) -> 44.26 | AN58: =AVERAGE(Y58:AH58) -> 43.806615 | AO58: =AVERAGE(Z58:AI58) -> 44.12265123 | AP58: 72 | AQ58: 67 | AR58: 75 | AS58: 72 | AT58: 74 | AU58: 69 | AV58: 71 | AW58: 79 | AX58: 98 | AY58: 67 | AZ58: 67 | BA58: 87.9 | BB58: =AVERAGE(AW58:BA58)*(1+'2014 Farm Bill Calculator'!$B$22) -> 80.5778 | BC58: =AVERAGE(AX58:BB58)*(1+'2014 Farm Bill Calculator'!$B$22) -> 80.8965156 | BD58: =AVERAGE(AY58:BC58)*(1+'2014 Farm Bill Calculator'!$B$22) -> 77.44161175 | BE58: =AVERAGE(AP58:AY58) -> 74.4 | BF58: =AVERAGE(AQ58:AZ58) -> 73.9 | BG58: =AVERAGE(AR58:BA58) -> 75.99 | BH58: =AVERAGE(AS58:BB58) -> 76.54778 | BI58: =AVERAGE(AT58:BC58) -> 77.43743156 | BK58: =IF(COUNT(G58:K58)=5,((SUM(G58:K58)-MIN(G58:K58)-MAX(G58:K58))/3),"Data Error") -> 159.3333333 | BL58: =IF(COUNT(H58:L58)=5,((SUM(H58:L58)-MIN(H58:L58)-MAX(H58:L58))/3),"Data Error") -> 162.3333333 | BM58: =IF(COUNT(I58:M58)=5,((SUM(I58:M58)-MIN(I58:M58)-MAX(I58:M58))/3),"Data Error") -> 161.8333333 | BN58: =IF(COUNT(J58:N58)=5,((SUM(J58:N58)-MIN(J58:N58)-MAX(J58:N58))/3),"Data Error") -> 156.8333333 | BO58: =IF(COUNT(K58:O58)=5,((SUM(K58:O58)-MIN(K58:O58)-MAX(K58:O58))/3),"Data Error") -> 153.6778567 | BQ58: =IF(COUNT(AA58:AE58)=5,((SUM(AA58:AE58)-MIN(AA58:AE58)-MAX(AA58:AE58))/3),"Data Error") -> 44 | BR58: =IF(COUNT(AB58:AF58)=5,((SUM(AB58:AF58)-MIN(AB58:AF58)-MAX(AB58:AF58))/3),"Data Error") -> 46 | BS58: =IF(COUNT(AC58:AG58)=5,((SUM(AC58:AG58)-MIN(AC58:AG58)-MAX(AC58:AG58))/3),"Data Error") -> 47.03333333 | BT58: =IF(COUNT(AD58:AH58)=5,((SUM(AD58:AH58)-MIN(AD58:AH58)-MAX(AD58:AH58))/3),"Data Error") -> 45.03333333 | BU58: =IF(COUNT(AE58:AI58)=5,((SUM(AE58:AI58)-MIN(AE58:AI58)-MAX(AE58:AI58))/3),"Data Error") -> 43.72012077 | BW58: =IF(COUNT(AU58:AY58)=5,((SUM(AU58:AY58)-MIN(AU58:AY58)-MAX(AU58:AY58))/3),"Data Error") -> 73 | BX58: =IF(COUNT(AV58:AZ58)=5,((SUM(AV58:AZ58)-MIN(AV58:AZ58)-MAX(AV58:AZ58))/3),"Data Error") -> 72.33333333 | BY58: =IF(COUNT(AW58:BA58)=5,((SUM(AW58:BA58)-MIN(AW58:BA58)-MAX(AW58:BA58))/3),"Data Error") -> 77.96666667 | BZ58: =IF(COUNT(AX58:BB58)=5,((SUM(AX58:BB58)-MIN(AX58:BB58)-MAX(AX58:BB58))/3),"Data Error") -> 78.4926 | CA58: =IF(COUNT(AY58:BC58)=5,((SUM(AY58:BC58)-MIN(AY58:BC58)-MAX(AY58:BC58))/3),"Data Error") -> 76.1581052
A59: MISSAUKEE | B59: 97 | C59: 136 | D59: 136 | E59: 94 | F59: 122 | G59: 75 | H59: 151 | I59: 141 | J59: 123 | K59: 111 | L59: 109 | M59: 131.8 | N59: =AVERAGE(I59:M59)*(1+'2014 Farm Bill Calculator'!$B$20)*N$87 -> 94.2174 | O59: =AVERAGE(J59:N59)*(1+'2014 Farm Bill Calculator'!$B$20) -> 116.0795496 | P59: =AVERAGE(K59:O59)*(1+'2014 Farm Bill Calculator'!$B$20) -> 114.6677777 | Q59: =AVERAGE(B59:K59) -> 118.6 | R59: =AVERAGE(C59:L59) -> 119.8 | S59: =AVERAGE(D59:M59) -> 119.38 | T59: =AVERAGE(E59:N59) -> 115.20174 | U59: =AVERAGE(F59:O59) -> 117.409695 | AA59: 0.1 | AB59: =AA59 -> 0.1 | AC59: =AB59 -> 0.1 | AD59: =AC59 -> 0.1 | AE59: =AD59 -> 0.1 | AF59: 36 | AG59: 46.6 | AH59: =AVERAGE(AC59:AG59)*(1+'2014 Farm Bill Calculator'!$B$21)*AH$87 -> 12.55935 | AI59: =AVERAGE(AD59:AH59)*(1+'2014 Farm Bill Calculator'!$B$21) -> 19.2625887 | AJ59: =AVERAGE(AE59:AI59)*(1+'2014 Farm Bill Calculator'!$B$21) -> 23.13343162 | AK59: =AVERAGE(V59:AE59) -> 0.1 | AL59: =AVERAGE(W59:AF59) -> 6.083333333 | AM59: =AVERAGE(X59:AG59) -> 11.87142857 | AN59: =AVERAGE(Y59:AH59) -> 11.95741875 | AO59: =AVERAGE(Z59:AI59) -> 12.7691043 | AP59: 49 | AQ59: 45 | AR59: 68 | AS59: 57 | AT59: 63 | AU59: 54 | AV59: 43 | AW59: 62 | AX59: 64 | AY59: 70 | AZ59: =(74+59)/2 -> 66.5 | BA59: =AVERAGE(AV59:AZ59)*(1+'2014 Farm Bill Calculator'!$B$22) -> 61.711 | BB59: =AVERAGE(AW59:BA59)*(1+'2014 Farm Bill Calculator'!$B$22) -> 65.490622 | BC59: =AVERAGE(AX59:BB59)*(1+'2014 Farm Bill Calculator'!$B$22) -> 66.19572764 | BD59: =AVERAGE(AY59:BC59)*(1+'2014 Farm Bill Calculator'!$B$22) -> 66.63926463 | BE59: =AVERAGE(AP59:AY59) -> 57.5 | BF59: =AVERAGE(AQ59:AZ59) -> 59.25 | BG59: =AVERAGE(AR59:BA59) -> 60.9211 | BH59: =AVERAGE(AS59:BB59) -> 60.6701622 | BI59: =AVERAGE(AT59:BC59) -> 61.58973496 | BK59: =IF(COUNT(G59:K59)=5,((SUM(G59:K59)-MIN(G59:K59)-MAX(G59:K59))/3),"Data Error") -> 125 | BL59: =IF(COUNT(H59:L59)=5,((SUM(H59:L59)-MIN(H59:L59)-MAX(H59:L59))/3),"Data Error") -> 125 | BM59: =IF(COUNT(I59:M59)=5,((SUM(I59:M59)-MIN(I59:M59)-MAX(I59:M59))/3),"Data Error") -> 121.9333333 | BN59: =IF(COUNT(J59:N59)=5,((SUM(J59:N59)-MIN(J59:N59)-MAX(J59:N59))/3),"Data Error") -> 114.3333333 | BO59: =IF(COUNT(K59:O59)=5,((SUM(K59:O59)-MIN(K59:O59)-MAX(K59:O59))/3),"Data Error") -> 112.0265165 | BQ59: =IF(COUNT(AA59:AE59)=5,((SUM(AA59:AE59)-MIN(AA59:AE59)-MAX(AA59:AE59))/3),"Data Error") -> 0.1 | BR59: =IF(COUNT(AB59:AF59)=5,((SUM(AB59:AF59)-MIN(AB59:AF59)-MAX(AB59:AF59))/3),"Data Error") -> 0.1 | BS59: =IF(COUNT(AC59:AG59)=5,((SUM(AC59:AG59)-MIN(AC59:AG59)-MAX(AC59:AG59))/3),"Data Error") -> 12.06666667 | BT59: =IF(COUNT(AD59:AH59)=5,((SUM(AD59:AH59)-MIN(AD59:AH59)-MAX(AD59:AH59))/3),"Data Error") -> 16.21978333 | BU59: =IF(COUNT(AE59:AI59)=5,((SUM(AE59:AI59)-MIN(AE59:AI59)-MAX(AE59:AI59))/3),"Data Error") -> 22.6073129 | BW59: =IF(COUNT(AU59:AY59)=5,((SUM(AU59:AY59)-MIN(AU59:AY59)-MAX(AU59:AY59))/3),"Data Error") -> 60 | BX59: =IF(COUNT(AV59:AZ59)=5,((SUM(AV59:AZ59)-MIN(AV59:AZ59)-MAX(AV59:AZ59))/3),"Data Error") -> 64.16666667 | BY59: =IF(COUNT(AW59:BA59)=5,((SUM(AW59:BA59)-MIN(AW59:BA59)-MAX(AW59:BA59))/3),"Data Error") -> 64.16666667 | BZ59: =IF(COUNT(AX59:BB59)=5,((SUM(AX59:BB59)-MIN(AX59:BB59)-MAX(AX59:BB59))/3),"Data Error") -> 65.33020733 | CA59: =IF(COUNT(AY59:BC59)=5,((SUM(AY59:BC59)-MIN(AY59:BC59)-MAX(AY59:BC59))/3),"Data Error") -> 66.06211655
A60: MONROE | B60: 145 | C60: 163 | D60: 163 | E60: 154 | F60: 139 | G60: 164 | H60: 154 | I60: 157 | J60: 106 | K60: 151 | L60: 175 | M60: 150.3 | N60: =AVERAGE(I60:M60)*(1+'2014 Farm Bill Calculator'!$B$20)*N$87 -> 113.1129 | O60: =AVERAGE(J60:N60)*(1+'2014 Farm Bill Calculator'!$B$20) -> 141.8642316 | P60: =AVERAGE(K60:O60)*(1+'2014 Farm Bill Calculator'!$B$20) -> 149.1805348 | Q60: =AVERAGE(B60:K60) -> 149.6 | R60: =AVERAGE(C60:L60) -> 152.6 | S60: =AVERAGE(D60:M60) -> 151.33 | T60: =AVERAGE(E60:N60) -> 146.34129 | U60: =AVERAGE(F60:O60) -> 145.1277132 | V60: 37 | W60: 42 | X60: 46 | Y60: 42 | Z60: 32 | AA60: 44 | AB60: 41 | AC60: 44 | AD60: 35 | AE60: 48 | AF60: 48 | AG60: 44.4 | AH60: =AVERAGE(AC60:AG60)*(1+'2014 Farm Bill Calculator'!$B$21)*AH$87 -> 33.2391 | AI60: =AVERAGE(AD60:AH60)*(1+'2014 Farm Bill Calculator'!$B$21) -> 42.1450982 | AJ60: =AVERAGE(AE60:AI60)*(1+'2014 Farm Bill Calculator'!$B$21) -> 43.58840804 | AK60: =AVERAGE(V60:AE60) -> 41.1 | AL60: =AVERAGE(W60:AF60) -> 42.2 | AM60: =AVERAGE(X60:AG60) -> 42.44 | AN60: =AVERAGE(Y60:AH60) -> 41.16391 | AO60: =AVERAGE(Z60:AI60) -> 41.17841982 | AP60: 67 | AQ60: 72 | AR60: 77 | AS60: 71 | AT60: 70 | AU60: 75 | AV60: 72 | AW60: 72 | AX60: 76 | AY60: 79 | AZ60: 77 | BA60: 70.4 | BB60: =AVERAGE(AW60:BA60)*(1+'2014 Farm Bill Calculator'!$B$22) -> 75.6288 | BC60: =AVERAGE(AX60:BB60)*(1+'2014 Farm Bill Calculator'!$B$22) -> 76.3618176 | BD60: =AVERAGE(AY60:BC60)*(1+'2014 Farm Bill Calculator'!$B$22) -> 76.43490476 | BE60: =AVERAGE(AP60:AY60) -> 73.1 | BF60: =AVERAGE(AQ60:AZ60) -> 74.1 | BG60: =AVERAGE(AR60:BA60) -> 73.94 | BH60: =AVERAGE(AS60:BB60) -> 73.80288 | BI60: =AVERAGE(AT60:BC60) -> 74.33906176 | BK60: =IF(COUNT(G60:K60)=5,((SUM(G60:K60)-MIN(G60:K60)-MAX(G60:K60))/3),"Data Error") -> 154 | BL60: =IF(COUNT(H60:L60)=5,((SUM(H60:L60)-MIN(H60:L60)-MAX(H60:L60))/3),"Data Error") -> 154 | BM60: =IF(COUNT(I60:M60)=5,((SUM(I60:M60)-MIN(I60:M60)-MAX(I60:M60))/3),"Data Error") -> 152.7666667 | BN60: =IF(COUNT(J60:N60)=5,((SUM(J60:N60)-MIN(J60:N60)-MAX(J60:N60))/3),"Data Error") -> 138.1376333 | BO60: =IF(COUNT(K60:O60)=5,((SUM(K60:O60)-MIN(K60:O60)-MAX(K60:O60))/3),"Data Error") -> 147.7214105 | BQ60: =IF(COUNT(AA60:AE60)=5,((SUM(AA60:AE60)-MIN(AA60:AE60)-MAX(AA60:AE60))/3),"Data Error") -> 43 | BR60: =IF(COUNT(AB60:AF60)=5,((SUM(AB60:AF60)-MIN(AB60:AF60)-MAX(AB60:AF60))/3),"Data Error") -> 44.33333333 | BS60: =IF(COUNT(AC60:AG60)=5,((SUM(AC60:AG60)-MIN(AC60:AG60)-MAX(AC60:AG60))/3),"Data Error") -> 45.46666667 | BT60: =IF(COUNT(AD60:AH60)=5,((SUM(AD60:AH60)-MIN(AD60:AH60)-MAX(AD60:AH60))/3),"Data Error") -> 42.46666667 | BU60: =IF(COUNT(AE60:AI60)=5,((SUM(AE60:AI60)-MIN(AE60:AI60)-MAX(AE60:AI60))/3),"Data Error") -> 44.84836607 | BW60: =IF(COUNT(AU60:AY60)=5,((SUM(AU60:AY60)-MIN(AU60:AY60)-MAX(AU60:AY60))/3),"Data Error") -> 74.33333333 | BX60: =IF(COUNT(AV60:AZ60)=5,((SUM(AV60:AZ60)-MIN(AV60:AZ60)-MAX(AV60:AZ60))/3),"Data Error") -> 75 | BY60: =IF(COUNT(AW60:BA60)=5,((SUM(AW60:BA60)-MIN(AW60:BA60)-MAX(AW60:BA60))/3),"Data Error") -> 75 | BZ60: =IF(COUNT(AX60:BB60)=5,((SUM(AX60:BB60)-MIN(AX60:BB60)-MAX(AX60:BB60))/3),"Data Error") -> 76.2096 | CA60: =IF(COUNT(AY60:BC60)=5,((SUM(AY60:BC60)-MIN(AY60:BC60)-MAX(AY60:BC60))/3),"Data Error") -> 76.33020587
A61: MONTCALM | B61: 120 | C61: 135 | D61: 134 | E61: 110 | F61: 126 | G61: 136 | H61: 135.9 | I61: 146.8 | J61: 142.3 | K61: 140.2 | L61: =(162+131)/2 -> 146.5 | M61: 159.3 | N61: =AVERAGE(I61:M61)*(1+'2014 Farm Bill Calculator'!$B$20)*N$87 -> 112.4703 | O61: =AVERAGE(J61:N61)*(1+'2014 Farm Bill Calculator'!$B$20) -> 142.9571412 | P61: =AVERAGE(K61:O61)*(1+'2014 Farm Bill Calculator'!$B$20) -> 143.091198 | Q61: =AVERAGE(B61:K61) -> 132.62 | R61: =AVERAGE(C61:L61) -> 135.27 | S61: =AVERAGE(D61:M61) -> 137.7 | T61: =AVERAGE(E61:N61) -> 135.54703 | U61: =AVERAGE(F61:O61) -> 138.8427441 | V61: 29 | W61: 40 | X61: 40 | Y61: 31 | Z61: 35 | AA61: 38 | AB61: 38 | AC61: 42 | AD61: 43 | AE61: 34 | AF61: 36 | AG61: =AVERAGE(AB61:AF61)*(1+'2014 Farm Bill Calculator'!$B$21) -> 38.986 | AH61: =AVERAGE(AC61:AG61)*(1+'2014 Farm Bill Calculator'!$B$21)*AH$87 -> 29.388879 | AI61: =AVERAGE(AD61:AH61)*(1+'2014 Farm Bill Calculator'!$B$21) -> 36.63772556 | AJ61: =AVERAGE(AE61:AI61)*(1+'2014 Farm Bill Calculator'!$B$21) -> 35.35254612 | AK61: =AVERAGE(V61:AE61) -> 37 | AL61: =AVERAGE(W61:AF61) -> 37.7 | AM61: =AVERAGE(X61:AG61) -> 37.5986 | AN61: =AVERAGE(Y61:AH61) -> 36.5374879 | AO61: =AVERAGE(Z61:AI61) -> 37.10126046 | AP61: 60 | AQ61: 53 | AR61: 66 | AS61: 52 | AT61: 63 | AU61: 56 | AV61: 54.8 | AW61: 62.1 | AX61: 57.6 | AY61: 65 | AZ61: =(67+65)/2 -> 66 | BA61: 73.5 | BB61: =AVERAGE(AW61:BA61)*(1+'2014 Farm Bill Calculator'!$B$22) -> 65.4884 | BC61: =AVERAGE(AX61:BB61)*(1+'2014 Farm Bill Calculator'!$B$22) -> 66.1728568 | BD61: =AVERAGE(AY61:BC61)*(1+'2014 Farm Bill Calculator'!$B$22) -> 67.90457387 | BE61: =AVERAGE(AP61:AY61) -> 58.95 | BF61: =AVERAGE(AQ61:AZ61) -> 59.55 | BG61: =AVERAGE(AR61:BA61) -> 61.6 | BH61: =AVERAGE(AS61:BB61) -> 61.54884 | BI61: =AVERAGE(AT61:BC61) -> 62.96612568 | BK61: =IF(COUNT(G61:K61)=5,((SUM(G61:K61)-MIN(G61:K61)-MAX(G61:K61))/3),"Data Error") -> 139.5 | BL61: =IF(COUNT(H61:L61)=5,((SUM(H61:L61)-MIN(H61:L61)-MAX(H61:L61))/3),"Data Error") -> 143 | BM61: =IF(COUNT(I61:M61)=5,((SUM(I61:M61)-MIN(I61:M61)-MAX(I61:M61))/3),"Data Error") -> 145.2 | BN61: =IF(COUNT(J61:N61)=5,((SUM(J61:N61)-MIN(J61:N61)-MAX(J61:N61))/3),"Data Error") -> 143 | BO61: =IF(COUNT(K61:O61)=5,((SUM(K61:O61)-MIN(K61:O61)-MAX(K61:O61))/3),"Data Error") -> 143.2190471 | BQ61: =IF(COUNT(AA61:AE61)=5,((SUM(AA61:AE61)-MIN(AA61:AE61)-MAX(AA61:AE61))/3),"Data Error") -> 39.33333333 | BR61: =IF(COUNT(AB61:AF61)=5,((SUM(AB61:AF61)-MIN(AB61:AF61)-MAX(AB61:AF61))/3),"Data Error") -> 38.66666667 | BS61: =IF(COUNT(AC61:AG61)=5,((SUM(AC61:AG61)-MIN(AC61:AG61)-MAX(AC61:AG61))/3),"Data Error") -> 38.99533333 | BT61: =IF(COUNT(AD61:AH61)=5,((SUM(AD61:AH61)-MIN(AD61:AH61)-MAX(AD61:AH61))/3),"Data Error") -> 36.32866667 | BU61: =IF(COUNT(AE61:AI61)=5,((SUM(AE61:AI61)-MIN(AE61:AI61)-MAX(AE61:AI61))/3),"Data Error") -> 35.54590852 | BW61: =IF(COUNT(AU61:AY61)=5,((SUM(AU61:AY61)-MIN(AU61:AY61)-MAX(AU61:AY61))/3),"Data Error") -> 58.56666667 | BX61: =IF(COUNT(AV61:AZ61)=5,((SUM(AV61:AZ61)-MIN(AV61:AZ61)-MAX(AV61:AZ61))/3),"Data Error") -> 61.56666667 | BY61: =IF(COUNT(AW61:BA61)=5,((SUM(AW61:BA61)-MIN(AW61:BA61)-MAX(AW61:BA61))/3),"Data Error") -> 64.36666667 | BZ61: =IF(COUNT(AX61:BB61)=5,((SUM(AX61:BB61)-MIN(AX61:BB61)-MAX(AX61:BB61))/3),"Data Error") -> 65.49613333 | CA61: =IF(COUNT(AY61:BC61)=5,((SUM(AY61:BC61)-MIN(AY61:BC61)-MAX(AY61:BC61))/3),"Data Error") -> 65.8870856
A62: MONTMORENCY | B62: 100 | C62: 124 | D62: 125 | E62: 83 | F62: 106 | G62: 110 | H62: 118 | I62: 109 | J62: 111 | K62: 102 | L62: 105 | M62: 125 | N62: =AVERAGE(I62:M62)*(1+'2014 Farm Bill Calculator'!$B$20)*N$87 -> 84.456 | O62: =AVERAGE(J62:N62)*(1+'2014 Farm Bill Calculator'!$B$20) -> 107.601024 | P62: =AVERAGE(K62:O62)*(1+'2014 Farm Bill Calculator'!$B$20) -> 106.9076329 | Q62: =AVERAGE(B62:K62) -> 108.8 | R62: =AVERAGE(C62:L62) -> 109.3 | S62: =AVERAGE(D62:M62) -> 109.4 | T62: =AVERAGE(E62:N62) -> 105.3456 | U62: =AVERAGE(F62:O62) -> 107.8057024 | V62: 37 | W62: 39 | X62: 44 | Y62: 29 | Z62: 35.5 | AA62: 24 | AB62: 41 | AC62: 30 | AD62: 30 | AE62: 29 | AF62: 25 | AG62: =AVERAGE(AB62:AF62)*(1+'2014 Farm Bill Calculator'!$B$21) -> 31.31 | AH62: =AVERAGE(AC62:AG62)*(1+'2014 Farm Bill Calculator'!$B$21)*AH$87 -> 22.014465 | AI62: =AVERAGE(AD62:AH62)*(1+'2014 Farm Bill Calculator'!$B$21) -> 27.73954193 | AJ62: =AVERAGE(AE62:AI62)*(1+'2014 Farm Bill Calculator'!$B$21) -> 27.2829294 | AK62: =AVERAGE(V62:AE62) -> 33.85 | AL62: =AVERAGE(W62:AF62) -> 32.65 | AM62: =AVERAGE(X62:AG62) -> 31.881 | AN62: =AVERAGE(Y62:AH62) -> 29.6824465 | AO62: =AVERAGE(Z62:AI62) -> 29.55640069 | AP62: 70 | AQ62: 48 | AR62: 62 | AS62: 54 | AT62: 56 | AU62: 65 | AV62: 52 | AW62: 62 | AX62: 68 | AY62: 55 | AZ62: 52 | BA62: =AVERAGE(AV62:AZ62)*(1+'2014 Farm Bill Calculator'!$B$22) -> 58.378 | BB62: =AVERAGE(AW62:BA62)*(1+'2014 Farm Bill Calculator'!$B$22) -> 59.666356 | BC62: =AVERAGE(AX62:BB62)*(1+'2014 Farm Bill Calculator'!$B$22) -> 59.19495991 | BD62: =AVERAGE(AY62:BC62)*(1+'2014 Farm Bill Calculator'!$B$22) -> 57.41634181 | BE62: =AVERAGE(AP62:AY62) -> 59.2 | BF62: =AVERAGE(AQ62:AZ62) -> 57.4 | BG62: =AVERAGE(AR62:BA62) -> 58.4378 | BH62: =AVERAGE(AS62:BB62) -> 58.2044356 | BI62: =AVERAGE(AT62:BC62) -> 58.72393159 | BK62: =IF(COUNT(G62:K62)=5,((SUM(G62:K62)-MIN(G62:K62)-MAX(G62:K62))/3),"Data Error") -> 110 | BL62: =IF(COUNT(H62:L62)=5,((SUM(H62:L62)-MIN(H62:L62)-MAX(H62:L62))/3),"Data Error") -> 108.3333333 | BM62: =IF(COUNT(I62:M62)=5,((SUM(I62:M62)-MIN(I62:M62)-MAX(I62:M62))/3),"Data Error") -> 108.3333333 | BN62: =IF(COUNT(J62:N62)=5,((SUM(J62:N62)-MIN(J62:N62)-MAX(J62:N62))/3),"Data Error") -> 106 | BO62: =IF(COUNT(K62:O62)=5,((SUM(K62:O62)-MIN(K62:O62)-MAX(K62:O62))/3),"Data Error") -> 104.867008 | BQ62: =IF(COUNT(AA62:AE62)=5,((SUM(AA62:AE62)-MIN(AA62:AE62)-MAX(AA62:AE62))/3),"Data Error") -> 29.66666667 | BR62: =IF(COUNT(AB62:AF62)=5,((SUM(AB62:AF62)-MIN(AB62:AF62)-MAX(AB62:AF62))/3),"Data Error") -> 29.66666667 | BS62: =IF(COUNT(AC62:AG62)=5,((SUM(AC62:AG62)-MIN(AC62:AG62)-MAX(AC62:AG62))/3),"Data Error") -> 29.66666667 | BT62: =IF(COUNT(AD62:AH62)=5,((SUM(AD62:AH62)-MIN(AD62:AH62)-MAX(AD62:AH62))/3),"Data Error") -> 28 | BU62: =IF(COUNT(AE62:AI62)=5,((SUM(AE62:AI62)-MIN(AE62:AI62)-MAX(AE62:AI62))/3),"Data Error") -> 27.24651398 | BW62: =IF(COUNT(AU62:AY62)=5,((SUM(AU62:AY62)-MIN(AU62:AY62)-MAX(AU62:AY62))/3),"Data Error") -> 60.66666667 | BX62: =IF(COUNT(AV62:AZ62)=5,((SUM(AV62:AZ62)-MIN(AV62:AZ62)-MAX(AV62:AZ62))/3),"Data Error") -> 56.33333333 | BY62: =IF(COUNT(AW62:BA62)=5,((SUM(AW62:BA62)-MIN(AW62:BA62)-MAX(AW62:BA62))/3),"Data Error") -> 58.45933333 | BZ62: =IF(COUNT(AX62:BB62)=5,((SUM(AX62:BB62)-MIN(AX62:BB62)-MAX(AX62:BB62))/3),"Data Error") -> 57.681452 | CA62: =IF(COUNT(AY62:BC62)=5,((SUM(AY62:BC62)-MIN(AY62:BC62)-MAX(AY62:BC62))/3),"Data Error") -> 57.52431997
A63: MUSKEGON | B63: 84 | C63: 112 | E63: 106 | F63: 119 | G63: 122 | H63: 154 | I63: 139 | J63: 112 | K63: 111 | L63: 103 | M63: 144.4 | N63: =AVERAGE(I63:M63)*(1+'2014 Farm Bill Calculator'!$B$20)*N$87 -> 93.2382 | O63: =AVERAGE(J63:N63)*(1+'2014 Farm Bill Calculator'!$B$20) -> 114.9821928 | P63: =AVERAGE(K63:O63)*(1+'2014 Farm Bill Calculator'!$B$20) -> 115.5905601 | Q63: =AVERAGE(B63:K63) -> 117.6666667 | R63: =AVERAGE(C63:L63) -> 119.7777778 | S63: =AVERAGE(D63:M63) -> 123.3777778 | T63: =AVERAGE(E63:N63) -> 120.36382 | U63: =AVERAGE(F63:O63) -> 121.2620393 | V63: 32 | W63: 33 | X63: 39 | Y63: 38 | Z63: 33.5 | AA63: 41 | AB63: 49 | AC63: 45 | AD63: 40 | AE63: 38 | AF63: 40 | AG63: 44.5 | AH63: =AVERAGE(AC63:AG63)*(1+'2014 Farm Bill Calculator'!$B$21)*AH$87 -> 31.43625 | AI63: =AVERAGE(AD63:AH63)*(1+'2014 Farm Bill Calculator'!$B$21) -> 39.1751225 | AJ63: =AVERAGE(AE63:AI63)*(1+'2014 Farm Bill Calculator'!$B$21) -> 39.00849725 | AK63: =AVERAGE(V63:AE63) -> 38.85 | AL63: =AVERAGE(W63:AF63) -> 39.65 | AM63: =AVERAGE(X63:AG63) -> 40.8 | AN63: =AVERAGE(Y63:AH63) -> 40.043625 | AO63: =AVERAGE(Z63:AI63) -> 40.16113725 | AP63: 36 | AQ63: 54 | AR63: 61 | AS63: 48 | AT63: 52 | AU63: 49 | AV63: 49 | AW63: 76 | AX63: 57 | AY63: 51 | AZ63: 39 | BA63: =AVERAGE(AV63:AZ63)*(1+'2014 Farm Bill Calculator'!$B$22) -> 54.944 | BB63: =AVERAGE(AW63:BA63)*(1+'2014 Farm Bill Calculator'!$B$22) -> 56.144688 | BC63: =AVERAGE(AX63:BB63)*(1+'2014 Farm Bill Calculator'!$B$22) -> 52.13391498 | BD63: =AVERAGE(AY63:BC63)*(1+'2014 Farm Bill Calculator'!$B$22) -> 51.1509658 | BE63: =AVERAGE(AP63:AY63) -> 53.3 | BF63: =AVERAGE(AQ63:AZ63) -> 53.6 | BG63: =AVERAGE(AR63:BA63) -> 53.6944 | BH63: =AVERAGE(AS63:BB63) -> 53.2088688 | BI63: =AVERAGE(AT63:BC63) -> 53.6222603 | BK63: =IF(COUNT(G63:K63)=5,((SUM(G63:K63)-MIN(G63:K63)-MAX(G63:K63))/3),"Data Error") -> 124.3333333 | BL63: =IF(COUNT(H63:L63)=5,((SUM(H63:L63)-MIN(H63:L63)-MAX(H63:L63))/3),"Data Error") -> 120.6666667 | BM63: =IF(COUNT(I63:M63)=5,((SUM(I63:M63)-MIN(I63:M63)-MAX(I63:M63))/3),"Data Error") -> 120.6666667 | BN63: =IF(COUNT(J63:N63)=5,((SUM(J63:N63)-MIN(J63:N63)-MAX(J63:N63))/3),"Data Error") -> 108.6666667 | BO63: =IF(COUNT(K63:O63)=5,((SUM(K63:O63)-MIN(K63:O63)-MAX(K63:O63))/3),"Data Error") -> 109.6607309 | BQ63: =IF(COUNT(AA63:AE63)=5,((SUM(AA63:AE63)-MIN(AA63:AE63)-MAX(AA63:AE63))/3),"Data Error") -> 42 | BR63: =IF(COUNT(AB63:AF63)=5,((SUM(AB63:AF63)-MIN(AB63:AF63)-MAX(AB63:AF63))/3),"Data Error") -> 41.66666667 | BS63: =IF(COUNT(AC63:AG63)=5,((SUM(AC63:AG63)-MIN(AC63:AG63)-MAX(AC63:AG63))/3),"Data Error") -> 41.5 | BT63: =IF(COUNT(AD63:AH63)=5,((SUM(AD63:AH63)-MIN(AD63:AH63)-MAX(AD63:AH63))/3),"Data Error") -> 39.33333333 | BU63: =IF(COUNT(AE63:AI63)=5,((SUM(AE63:AI63)-MIN(AE63:AI63)-MAX(AE63:AI63))/3),"Data Error") -> 39.05837417 | BW63: =IF(COUNT(AU63:AY63)=5,((SUM(AU63:AY63)-MIN(AU63:AY63)-MAX(AU63:AY63))/3),"Data Error") -> 52.33333333 | BX63: =IF(COUNT(AV63:AZ63)=5,((SUM(AV63:AZ63)-MIN(AV63:AZ63)-MAX(AV63:AZ63))/3),"Data Error") -> 52.33333333 | BY63: =IF(COUNT(AW63:BA63)=5,((SUM(AW63:BA63)-MIN(AW63:BA63)-MAX(AW63:BA63))/3),"Data Error") -> 54.31466667 | BZ63: =IF(COUNT(AX63:BB63)=5,((SUM(AX63:BB63)-MIN(AX63:BB63)-MAX(AX63:BB63))/3),"Data Error") -> 54.02956267 | CA63: =IF(COUNT(AY63:BC63)=5,((SUM(AY63:BC63)-MIN(AY63:BC63)-MAX(AY63:BC63))/3),"Data Error") -> 52.69263833
A64: NEWAYGO | B64: 91 | C64: 106 | D64: 132 | E64: 102 | F64: 108 | G64: 121 | H64: 135 | I64: 127 | J64: 129 | K64: 98 | L64: 101 | M64: 139.3 | N64: =AVERAGE(I64:M64)*(1+'2014 Farm Bill Calculator'!$B$20)*N$87 -> 90.9279 | O64: =AVERAGE(J64:N64)*(1+'2014 Farm Bill Calculator'!$B$20) -> 113.8784916 | P64: =AVERAGE(K64:O64)*(1+'2014 Farm Bill Calculator'!$B$20) -> 110.7937039 | Q64: =AVERAGE(B64:K64) -> 114.9 | R64: =AVERAGE(C64:L64) -> 115.9 | S64: =AVERAGE(D64:M64) -> 119.23 | T64: =AVERAGE(E64:N64) -> 115.12279 | U64: =AVERAGE(F64:O64) -> 116.3106392 | V64: 27 | W64: 27 | X64: 38 | Y64: 36 | Z64: 30 | AA64: 36 | AB64: 44 | AC64: 42 | AD64: 42 | AE64: 38 | AF64: 32 | AG64: 41.1 | AH64: =AVERAGE(AC64:AG64)*(1+'2014 Farm Bill Calculator'!$B$21)*AH$87 -> 29.55765 | AI64: =AVERAGE(AD64:AH64)*(1+'2014 Farm Bill Calculator'!$B$21) -> 36.8968453 | AJ64: =AVERAGE(AE64:AI64)*(1+'2014 Farm Bill Calculator'!$B$21) -> 35.86600805 | AK64: =AVERAGE(V64:AE64) -> 36 | AL64: =AVERAGE(W64:AF64) -> 36.5 | AM64: =AVERAGE(X64:AG64) -> 37.91 | AN64: =AVERAGE(Y64:AH64) -> 37.065765 | AO64: =AVERAGE(Z64:AI64) -> 37.15544953 | AQ64: 52 | AS64: 43 | AU64: 57 | AV64: 60 | AW64: 65 | AX64: 61 | AY64: 55 | AZ64: 55 | BA64: 78.9 | BB64: =AVERAGE(AW64:BA64)*(1+'2014 Farm Bill Calculator'!$B$22) -> 63.6098 | BC64: =AVERAGE(AX64:BB64)*(1+'2014 Farm Bill Calculator'!$B$22) -> 63.3289796 | BD64: =AVERAGE(AY64:BC64)*(1+'2014 Farm Bill Calculator'!$B$22) -> 63.79943348 | BE64: =AVERAGE(AP64:AY64) -> 56.14285714 | BF64: =AVERAGE(AQ64:AZ64) -> 56 | BG64: =AVERAGE(AR64:BA64) -> 59.3625 | BH64: =AVERAGE(AS64:BB64) -> 59.83442222 | BI64: =AVERAGE(AT64:BC64) -> 62.09319773 | BK64: =IF(COUNT(G64:K64)=5,((SUM(G64:K64)-MIN(G64:K64)-MAX(G64:K64))/3),"Data Error") -> 125.6666667 | BL64: =IF(COUNT(H64:L64)=5,((SUM(H64:L64)-MIN(H64:L64)-MAX(H64:L64))/3),"Data Error") -> 119 | BM64: =IF(COUNT(I64:M64)=5,((SUM(I64:M64)-MIN(I64:M64)-MAX(I64:M64))/3),"Data Error") -> 119 | BN64: =IF(COUNT(J64:N64)=5,((SUM(J64:N64)-MIN(J64:N64)-MAX(J64:N64))/3),"Data Error") -> 109.3333333 | BO64: =IF(COUNT(K64:O64)=5,((SUM(K64:O64)-MIN(K64:O64)-MAX(K64:O64))/3),"Data Error") -> 104.2928305 | BQ64: =IF(COUNT(AA64:AE64)=5,((SUM(AA64:AE64)-MIN(AA64:AE64)-MAX(AA64:AE64))/3),"Data Error") -> 40.66666667 | BR64: =IF(COUNT(AB64:AF64)=5,((SUM(AB64:AF64)-MIN(AB64:AF64)-MAX(AB64:AF64))/3),"Data Error") -> 40.66666667 | BS64: =IF(COUNT(AC64:AG64)=5,((SUM(AC64:AG64)-MIN(AC64:AG64)-MAX(AC64:AG64))/3),"Data Error") -> 40.36666667 | BT64: =IF(COUNT(AD64:AH64)=5,((SUM(AD64:AH64)-MIN(AD64:AH64)-MAX(AD64:AH64))/3),"Data Error") -> 37.03333333 | BU64: =IF(COUNT(AE64:AI64)=5,((SUM(AE64:AI64)-MIN(AE64:AI64)-MAX(AE64:AI64))/3),"Data Error") -> 35.63228177 | BW64: =IF(COUNT(AU64:AY64)=5,((SUM(AU64:AY64)-MIN(AU64:AY64)-MAX(AU64:AY64))/3),"Data Error") -> 59.33333333 | BX64: =IF(COUNT(AV64:AZ64)=5,((SUM(AV64:AZ64)-MIN(AV64:AZ64)-MAX(AV64:AZ64))/3),"Data Error") -> 58.66666667 | BY64: =IF(COUNT(AW64:BA64)=5,((SUM(AW64:BA64)-MIN(AW64:BA64)-MAX(AW64:BA64))/3),"Data Error") -> 60.33333333 | BZ64: =IF(COUNT(AX64:BB64)=5,((SUM(AX64:BB64)-MIN(AX64:BB64)-MAX(AX64:BB64))/3),"Data Error") -> 59.86993333 | CA64: =IF(COUNT(AY64:BC64)=5,((SUM(AY64:BC64)-MIN(AY64:BC64)-MAX(AY64:BC64))/3),"Data Error") -> 60.64625987
A65: OAKLAND | G65: 114 | H65: 124 | I65: 129 | J65: 121 | K65: 153 | L65: 139 | M65: 145 | N65: =AVERAGE(I65:M65)*(1+'2014 Farm Bill Calculator'!$B$20)*N$87 -> 105.111 | O65: =AVERAGE(J65:N65)*(1+'2014 Farm Bill Calculator'!$B$20) -> 135.274644 | P65: =AVERAGE(K65:O65)*(1+'2014 Farm Bill Calculator'!$B$20) -> 138.1866714 | Q65: =AVERAGE(B65:K65) -> 128.2 | R65: =AVERAGE(C65:L65) -> 130 | S65: =AVERAGE(D65:M65) -> 132.1428571 | T65: =AVERAGE(E65:N65) -> 128.763875 | U65: =AVERAGE(F65:O65) -> 129.4872938 | V65: 31 | W65: 27 | X65: 45 | Y65: 36 | Z65: 38 | AA65: 38 | AB65: 37 | AC65: 40 | AD65: 37 | AE65: 45 | AF65: 39 | AG65: 46 | AH65: =AVERAGE(AC65:AG65)*(1+'2014 Farm Bill Calculator'!$B$21)*AH$87 -> 31.3605 | AI65: =AVERAGE(AD65:AH65)*(1+'2014 Farm Bill Calculator'!$B$21) -> 40.068821 | AJ65: =AVERAGE(AE65:AI65)*(1+'2014 Farm Bill Calculator'!$B$21) -> 40.68872284 | AK65: =AVERAGE(V65:AE65) -> 37.4 | AL65: =AVERAGE(W65:AF65) -> 38.2 | AM65: =AVERAGE(X65:AG65) -> 40.1 | AN65: =AVERAGE(Y65:AH65) -> 38.73605 | AO65: =AVERAGE(Z65:AI65) -> 39.1429321 | AP65: 50 | AQ65: 45 | AR65: 61 | AT65: 61.5 | AU65: 49 | AV65: 56 | AW65: 76 | AX65: 65 | AY65: 74 | AZ65: 54 | BA65: =AVERAGE(AV65:AZ65)*(1+'2014 Farm Bill Calculator'!$B$22) -> 65.65 | BB65: =AVERAGE(AW65:BA65)*(1+'2014 Farm Bill Calculator'!$B$22) -> 67.5993 | BC65: =AVERAGE(AX65:BB65)*(1+'2014 Farm Bill Calculator'!$B$22) -> 65.9023586 | BD65: =AVERAGE(AY65:BC65)*(1+'2014 Farm Bill Calculator'!$B$22) -> 66.08463504 | BE65: =AVERAGE(AP65:AY65) -> 59.72222222 | BF65: =AVERAGE(AQ65:AZ65) -> 60.16666667 | BG65: =AVERAGE(AR65:BA65) -> 62.46111111 | BH65: =AVERAGE(AS65:BB65) -> 63.19436667 | BI65: =AVERAGE(AT65:BC65) -> 63.46516586 | BK65: =IF(COUNT(G65:K65)=5,((SUM(G65:K65)-MIN(G65:K65)-MAX(G65:K65))/3),"Data Error") -> 124.6666667 | BL65: =IF(COUNT(H65:L65)=5,((SUM(H65:L65)-MIN(H65:L65)-MAX(H65:L65))/3),"Data Error") -> 130.6666667 | BM65: =IF(COUNT(I65:M65)=5,((SUM(I65:M65)-MIN(I65:M65)-MAX(I65:M65))/3),"Data Error") -> 137.6666667 | BN65: =IF(COUNT(J65:N65)=5,((SUM(J65:N65)-MIN(J65:N65)-MAX(J65:N65))/3),"Data Error") -> 135 | BO65: =IF(COUNT(K65:O65)=5,((SUM(K65:O65)-MIN(K65:O65)-MAX(K65:O65))/3),"Data Error") -> 139.7582147 | BQ65: =IF(COUNT(AA65:AE65)=5,((SUM(AA65:AE65)-MIN(AA65:AE65)-MAX(AA65:AE65))/3),"Data Error") -> 38.33333333 | BR65: =IF(COUNT(AB65:AF65)=5,((SUM(AB65:AF65)-MIN(AB65:AF65)-MAX(AB65:AF65))/3),"Data Error") -> 38.66666667 | BS65: =IF(COUNT(AC65:AG65)=5,((SUM(AC65:AG65)-MIN(AC65:AG65)-MAX(AC65:AG65))/3),"Data Error") -> 41.33333333 | BT65: =IF(COUNT(AD65:AH65)=5,((SUM(AD65:AH65)-MIN(AD65:AH65)-MAX(AD65:AH65))/3),"Data Error") -> 40.33333333 | BU65: =IF(COUNT(AE65:AI65)=5,((SUM(AE65:AI65)-MIN(AE65:AI65)-MAX(AE65:AI65))/3),"Data Error") -> 41.35627367 | BW65: =IF(COUNT(AU65:AY65)=5,((SUM(AU65:AY65)-MIN(AU65:AY65)-MAX(AU65:AY65))/3),"Data Error") -> 65 | BX65: =IF(COUNT(AV65:AZ65)=5,((SUM(AV65:AZ65)-MIN(AV65:AZ65)-MAX(AV65:AZ65))/3),"Data Error") -> 65 | BY65: =IF(COUNT(AW65:BA65)=5,((SUM(AW65:BA65)-MIN(AW65:BA65)-MAX(AW65:BA65))/3),"Data Error") -> 68.21666667 | BZ65: =IF(COUNT(AX65:BB65)=5,((SUM(AX65:BB65)-MIN(AX65:BB65)-MAX(AX65:BB65))/3),"Data Error") -> 66.0831 | CA65: =IF(COUNT(AY65:BC65)=5,((SUM(AY65:BC65)-MIN(AY65:BC65)-MAX(AY65:BC65))/3),"Data Error") -> 66.3838862
A66: OCEANA | B66: 84 | D66: 119 | G66: 111 | H66: 146 | I66: 127 | J66: 123 | K66: 129 | L66: 111 | M66: 123 | N66: =AVERAGE(I66:M66)*(1+'2014 Farm Bill Calculator'!$B$20)*N$87 -> 93.789 | O66: =AVERAGE(J66:N66)*(1+'2014 Farm Bill Calculator'!$B$20) -> 118.276956 | P66: =AVERAGE(K66:O66)*(1+'2014 Farm Bill Calculator'!$B$20) -> 117.313455 | Q66: =AVERAGE(B66:K66) -> 119.8571429 | R66: =AVERAGE(C66:L66) -> 123.7142857 | S66: =AVERAGE(D66:M66) -> 123.625 | T66: =AVERAGE(E66:N66) -> 120.473625 | U66: =AVERAGE(F66:O66) -> 120.2295507 | V66: 30 | W66: 30 | X66: 29 | Y66: 30 | Z66: 30.5 | AA66: 34 | AB66: 42 | AC66: 45 | AD66: 41 | AE66: 37 | AF66: 33 | AG66: =AVERAGE(AB66:AF66)*(1+'2014 Farm Bill Calculator'!$B$21) -> 39.996 | AH66: =AVERAGE(AC66:AG66)*(1+'2014 Farm Bill Calculator'!$B$21)*AH$87 -> 29.693394 | AI66: =AVERAGE(AD66:AH66)*(1+'2014 Farm Bill Calculator'!$B$21) -> 36.49925759 | AJ66: =AVERAGE(AE66:AI66)*(1+'2014 Farm Bill Calculator'!$B$21) -> 35.59010762 | AK66: =AVERAGE(V66:AE66) -> 34.85 | AL66: =AVERAGE(W66:AF66) -> 35.15 | AM66: =AVERAGE(X66:AG66) -> 36.1496 | AN66: =AVERAGE(Y66:AH66) -> 36.2189394 | AO66: =AVERAGE(Z66:AI66) -> 36.86886516 | AP66: 47 | AR66: 56 | AS66: 43 | AT66: 49.5 | AU66: 51 | AV66: 58 | AW66: 63 | AX66: 67 | AY66: 63 | AZ66: 59 | BA66: =AVERAGE(AV66:AZ66)*(1+'2014 Farm Bill Calculator'!$B$22) -> 62.62 | BB66: =AVERAGE(AW66:BA66)*(1+'2014 Farm Bill Calculator'!$B$22) -> 63.55324 | BC66: =AVERAGE(AX66:BB66)*(1+'2014 Farm Bill Calculator'!$B$22) -> 63.66499448 | BD66: =AVERAGE(AY66:BC66)*(1+'2014 Farm Bill Calculator'!$B$22) -> 62.99132336 | BE66: =AVERAGE(AP66:AY66) -> 55.27777778 | BF66: =AVERAGE(AQ66:AZ66) -> 56.61111111 | BG66: =AVERAGE(AR66:BA66) -> 57.212 | BH66: =AVERAGE(AS66:BB66) -> 57.967324 | BI66: =AVERAGE(AT66:BC66) -> 60.03382345 | BK66: =IF(COUNT(G66:K66)=5,((SUM(G66:K66)-MIN(G66:K66)-MAX(G66:K66))/3),"Data Error") -> 126.3333333 | BL66: =IF(COUNT(H66:L66)=5,((SUM(H66:L66)-MIN(H66:L66)-MAX(H66:L66))/3),"Data Error") -> 126.3333333 | BM66: =IF(COUNT(I66:M66)=5,((SUM(I66:M66)-MIN(I66:M66)-MAX(I66:M66))/3),"Data Error") -> 124.3333333 | BN66: =IF(COUNT(J66:N66)=5,((SUM(J66:N66)-MIN(J66:N66)-MAX(J66:N66))/3),"Data Error") -> 119 | BO66: =IF(COUNT(K66:O66)=5,((SUM(K66:O66)-MIN(K66:O66)-MAX(K66:O66))/3),"Data Error") -> 117.425652 | BQ66: =IF(COUNT(AA66:AE66)=5,((SUM(AA66:AE66)-MIN(AA66:AE66)-MAX(AA66:AE66))/3),"Data Error") -> 40 | BR66: =IF(COUNT(AB66:AF66)=5,((SUM(AB66:AF66)-MIN(AB66:AF66)-MAX(AB66:AF66))/3),"Data Error") -> 40 | BS66: =IF(COUNT(AC66:AG66)=5,((SUM(AC66:AG66)-MIN(AC66:AG66)-MAX(AC66:AG66))/3),"Data Error") -> 39.332 | BT66: =IF(COUNT(AD66:AH66)=5,((SUM(AD66:AH66)-MIN(AD66:AH66)-MAX(AD66:AH66))/3),"Data Error") -> 36.66533333 | BU66: =IF(COUNT(AE66:AI66)=5,((SUM(AE66:AI66)-MIN(AE66:AI66)-MAX(AE66:AI66))/3),"Data Error") -> 35.49975253 | BW66: =IF(COUNT(AU66:AY66)=5,((SUM(AU66:AY66)-MIN(AU66:AY66)-MAX(AU66:AY66))/3),"Data Error") -> 61.33333333 | BX66: =IF(COUNT(AV66:AZ66)=5,((SUM(AV66:AZ66)-MIN(AV66:AZ66)-MAX(AV66:AZ66))/3),"Data Error") -> 61.66666667 | BY66: =IF(COUNT(AW66:BA66)=5,((SUM(AW66:BA66)-MIN(AW66:BA66)-MAX(AW66:BA66))/3),"Data Error") -> 62.87333333 | BZ66: =IF(COUNT(AX66:BB66)=5,((SUM(AX66:BB66)-MIN(AX66:BB66)-MAX(AX66:BB66))/3),"Data Error") -> 63.05774667 | CA66: =IF(COUNT(AY66:BC66)=5,((SUM(AY66:BC66)-MIN(AY66:BC66)-MAX(AY66:BC66))/3),"Data Error") -> 63.05774667
A67: OGEMAW | B67: 80 | C67: 152 | D67: 131 | E67: 116 | F67: 139 | G67: 89 | H67: 128 | I67: 142 | J67: 109 | K67: 114 | L67: 88 | M67: 129.5 | N67: =AVERAGE(I67:M67)*(1+'2014 Farm Bill Calculator'!$B$20)*N$87 -> 89.1225 | O67: =AVERAGE(J67:N67)*(1+'2014 Farm Bill Calculator'!$B$20) -> 108.04299 | P67: =AVERAGE(K67:O67)*(1+'2014 Farm Bill Calculator'!$B$20) -> 107.84776 | Q67: =AVERAGE(B67:K67) -> 120 | R67: =AVERAGE(C67:L67) -> 120.8 | S67: =AVERAGE(D67:M67) -> 118.55 | T67: =AVERAGE(E67:N67) -> 114.36225 | U67: =AVERAGE(F67:O67) -> 113.566549 | V67: 24 | W67: 44 | X67: 42 | Y67: 35 | Z67: 44.5 | AA67: 39 | AB67: 45 | AC67: 38 | AD67: 48 | AE67: 31 | AF67: 32 | AG67: =AVERAGE(AB67:AF67)*(1+'2014 Farm Bill Calculator'!$B$21) -> 39.188 | AH67: =AVERAGE(AC67:AG67)*(1+'2014 Farm Bill Calculator'!$B$21)*AH$87 -> 28.510482 | AI67: =AVERAGE(AD67:AH67)*(1+'2014 Farm Bill Calculator'!$B$21) -> 36.09709336 | AJ67: =AVERAGE(AE67:AI67)*(1+'2014 Farm Bill Calculator'!$B$21) -> 33.69270622 | AK67: =AVERAGE(V67:AE67) -> 39.05 | AL67: =AVERAGE(W67:AF67) -> 39.85 | AM67: =AVERAGE(X67:AG67) -> 39.3688 | AN67: =AVERAGE(Y67:AH67) -> 38.0198482 | AO67: =AVERAGE(Z67:AI67) -> 38.12955754 | AP67: 78 | AQ67: 76 | AR67: 86 | AS67: 74 | AT67: 81.5 | AU67: 62 | AV67: 65 | AW67: 72 | AX67: 75 | AY67: 73 | AZ67: 70 | BA67: 99.6 | BB67: =AVERAGE(AW67:BA67)*(1+'2014 Farm Bill Calculator'!$B$22) -> 78.6992 | BC67: =AVERAGE(AX67:BB67)*(1+'2014 Farm Bill Calculator'!$B$22) -> 80.0524384 | BD67: =AVERAGE(AY67:BC67)*(1+'2014 Farm Bill Calculator'!$B$22) -> 81.07303096 | BE67: =AVERAGE(AP67:AY67) -> 74.25 | BF67: =AVERAGE(AQ67:AZ67) -> 73.45 | BG67: =AVERAGE(AR67:BA67) -> 75.81 | BH67: =AVERAGE(AS67:BB67) -> 75.07992 | BI67: =AVERAGE(AT67:BC67) -> 75.68516384 | BK67: =IF(COUNT(G67:K67)=5,((SUM(G67:K67)-MIN(G67:K67)-MAX(G67:K67))/3),"Data Error") -> 117 | BL67: =IF(COUNT(H67:L67)=5,((SUM(H67:L67)-MIN(H67:L67)-MAX(H67:L67))/3),"Data Error") -> 117 | BM67: =IF(COUNT(I67:M67)=5,((SUM(I67:M67)-MIN(I67:M67)-MAX(I67:M67))/3),"Data Error") -> 117.5 | BN67: =IF(COUNT(J67:N67)=5,((SUM(J67:N67)-MIN(J67:N67)-MAX(J67:N67))/3),"Data Error") -> 104.0408333 | BO67: =IF(COUNT(K67:O67)=5,((SUM(K67:O67)-MIN(K67:O67)-MAX(K67:O67))/3),"Data Error") -> 103.72183 | BQ67: =IF(COUNT(AA67:AE67)=5,((SUM(AA67:AE67)-MIN(AA67:AE67)-MAX(AA67:AE67))/3),"Data Error") -> 40.66666667 | BR67: =IF(COUNT(AB67:AF67)=5,((SUM(AB67:AF67)-MIN(AB67:AF67)-MAX(AB67:AF67))/3),"Data Error") -> 38.33333333 | BS67: =IF(COUNT(AC67:AG67)=5,((SUM(AC67:AG67)-MIN(AC67:AG67)-MAX(AC67:AG67))/3),"Data Error") -> 36.396 | BT67: =IF(COUNT(AD67:AH67)=5,((SUM(AD67:AH67)-MIN(AD67:AH67)-MAX(AD67:AH67))/3),"Data Error") -> 34.06266667 | BU67: =IF(COUNT(AE67:AI67)=5,((SUM(AE67:AI67)-MIN(AE67:AI67)-MAX(AE67:AI67))/3),"Data Error") -> 33.03236445 | BW67: =IF(COUNT(AU67:AY67)=5,((SUM(AU67:AY67)-MIN(AU67:AY67)-MAX(AU67:AY67))/3),"Data Error") -> 70 | BX67: =IF(COUNT(AV67:AZ67)=5,((SUM(AV67:AZ67)-MIN(AV67:AZ67)-MAX(AV67:AZ67))/3),"Data Error") -> 71.66666667 | BY67: =IF(COUNT(AW67:BA67)=5,((SUM(AW67:BA67)-MIN(AW67:BA67)-MAX(AW67:BA67))/3),"Data Error") -> 73.33333333 | BZ67: =IF(COUNT(AX67:BB67)=5,((SUM(AX67:BB67)-MIN(AX67:BB67)-MAX(AX67:BB67))/3),"Data Error") -> 75.5664 | CA67: =IF(COUNT(AY67:BC67)=5,((SUM(AY67:BC67)-MIN(AY67:BC67)-MAX(AY67:BC67))/3),"Data Error") -> 77.25054613
A68: ONTONAGON | G68: 0.1 | H68: =G68 -> 0.1 | I68: =H68 -> 0.1 | J68: =I68 -> 0.1 | K68: =J68 -> 0.1 | L68: 38 | M68: =AVERAGE(H68:L68)*(1+'2014 Farm Bill Calculator'!$B$20) -> 7.8336 | N68: =AVERAGE(I68:M68)*(1+'2014 Farm Bill Calculator'!$B$20)*N$87 -> 7.0584408 | O68: =AVERAGE(J68:N68)*(1+'2014 Farm Bill Calculator'!$B$20) -> 10.83077632 | P68: =AVERAGE(K68:O68)*(1+'2014 Farm Bill Calculator'!$B$20) -> 13.01985469 | Q68: =AVERAGE(B68:K68) -> 0.1 | R68: =AVERAGE(C68:L68) -> 6.416666667 | S68: =AVERAGE(D68:M68) -> 6.619085714 | T68: =AVERAGE(E68:N68) -> 6.6740051 | U68: =AVERAGE(F68:O68) -> 7.135868569 | AA68: 0.1 | AB68: =AA68 -> 0.1 | AC68: =AB68 -> 0.1 | AD68: =AC68 -> 0.1 | AE68: =AD68 -> 0.1 | AF68: =AVERAGE(AA68:AE68)*(1+'2014 Farm Bill Calculator'!$B$21) -> 0.101 | AG68: =AVERAGE(AB68:AF68)*(1+'2014 Farm Bill Calculator'!$B$21) -> 0.101202 | AH68: =AVERAGE(AC68:AG68)*(1+'2014 Farm Bill Calculator'!$B$21)*AH$87 -> 0.076083603 | AI68: =AVERAGE(AD68:AH68)*(1+'2014 Farm Bill Calculator'!$B$21) -> 0.09661369181 | AJ68: =AVERAGE(AE68:AI68)*(1+'2014 Farm Bill Calculator'!$B$21) -> 0.09592965755 | AK68: =AVERAGE(V68:AE68) -> 0.1 | AL68: =AVERAGE(W68:AF68) -> 0.1001666667 | AM68: =AVERAGE(X68:AG68) -> 0.1003145714 | AN68: =AVERAGE(Y68:AH68) -> 0.09728570038 | AO68: =AVERAGE(Z68:AI68) -> 0.09721103276 | AT68: 54.5 | AU68: 0.1 | AV68: =AU68 -> 0.1 | AW68: =AV68 -> 0.1 | AX68: =AW68 -> 0.1 | AY68: =AX68 -> 0.1 | AZ68: 47 | BA68: =AVERAGE(AV68:AZ68)*(1+'2014 Farm Bill Calculator'!$B$22) -> 9.5748 | BB68: =AVERAGE(AW68:BA68)*(1+'2014 Farm Bill Calculator'!$B$22) -> 11.4887096 | BC68: =AVERAGE(AX68:BB68)*(1+'2014 Farm Bill Calculator'!$B$22) -> 13.78922894 | BD68: =AVERAGE(AY68:BC68)*(1+'2014 Farm Bill Calculator'!$B$22) -> 16.55445318 | BE68: =AVERAGE(AP68:AY68) -> 9.166666667 | BF68: =AVERAGE(AQ68:AZ68) -> 14.57142857 | BG68: =AVERAGE(AR68:BA68) -> 13.94685 | BH68: =AVERAGE(AS68:BB68) -> 13.67372329 | BI68: =AVERAGE(AT68:BC68) -> 13.68527385 | BK68: =IF(COUNT(G68:K68)=5,((SUM(G68:K68)-MIN(G68:K68)-MAX(G68:K68))/3),"Data Error") -> 0.1 | BL68: =IF(COUNT(H68:L68)=5,((SUM(H68:L68)-MIN(H68:L68)-MAX(H68:L68))/3),"Data Error") -> 0.1 | BM68: =IF(COUNT(I68:M68)=5,((SUM(I68:M68)-MIN(I68:M68)-MAX(I68:M68))/3),"Data Error") -> 2.677866667 | BN68: =IF(COUNT(J68:N68)=5,((SUM(J68:N68)-MIN(J68:N68)-MAX(J68:N68))/3),"Data Error") -> 4.997346933 | BO68: =IF(COUNT(K68:O68)=5,((SUM(K68:O68)-MIN(K68:O68)-MAX(K68:O68))/3),"Data Error") -> 8.574272374 | BQ68: =IF(COUNT(AA68:AE68)=5,((SUM(AA68:AE68)-MIN(AA68:AE68)-MAX(AA68:AE68))/3),"Data Error") -> 0.1 | BR68: =IF(COUNT(AB68:AF68)=5,((SUM(AB68:AF68)-MIN(AB68:AF68)-MAX(AB68:AF68))/3),"Data Error") -> 0.1 | BS68: =IF(COUNT(AC68:AG68)=5,((SUM(AC68:AG68)-MIN(AC68:AG68)-MAX(AC68:AG68))/3),"Data Error") -> 0.1003333333 | BT68: =IF(COUNT(AD68:AH68)=5,((SUM(AD68:AH68)-MIN(AD68:AH68)-MAX(AD68:AH68))/3),"Data Error") -> 0.1003333333 | BU68: =IF(COUNT(AE68:AI68)=5,((SUM(AE68:AI68)-MIN(AE68:AI68)-MAX(AE68:AI68))/3),"Data Error") -> 0.09920456394 | BW68: =IF(COUNT(AU68:AY68)=5,((SUM(AU68:AY68)-MIN(AU68:AY68)-MAX(AU68:AY68))/3),"Data Error") -> 0.1 | BX68: =IF(COUNT(AV68:AZ68)=5,((SUM(AV68:AZ68)-MIN(AV68:AZ68)-MAX(AV68:AZ68))/3),"Data Error") -> 0.1 | BY68: =IF(COUNT(AW68:BA68)=5,((SUM(AW68:BA68)-MIN(AW68:BA68)-MAX(AW68:BA68))/3),"Data Error") -> 3.258266667 | BZ68: =IF(COUNT(AX68:BB68)=5,((SUM(AX68:BB68)-MIN(AX68:BB68)-MAX(AX68:BB68))/3),"Data Error") -> 7.0545032 | CA68: =IF(COUNT(AY68:BC68)=5,((SUM(AY68:BC68)-MIN(AY68:BC68)-MAX(AY68:BC68))/3),"Data Error") -> 11.61757951
A69: OSCEOLA | B69: 106 | C69: 136 | D69: 132 | E69: 98 | F69: 109 | G69: 83 | H69: 145 | I69: 126 | J69: 133 | K69: 106 | L69: 96 | M69: =AVERAGE(H69:L69)*(1+'2014 Farm Bill Calculator'!$B$20) -> 123.624 | N69: =AVERAGE(I69:M69)*(1+'2014 Farm Bill Calculator'!$B$20)*N$87 -> 89.447472 | O69: =AVERAGE(J69:N69)*(1+'2014 Farm Bill Calculator'!$B$20) -> 111.8065803 | P69: =AVERAGE(K69:O69)*(1+'2014 Farm Bill Calculator'!$B$20) -> 107.4831227 | Q69: =AVERAGE(B69:K69) -> 117.4 | R69: =AVERAGE(C69:L69) -> 116.4 | S69: =AVERAGE(D69:M69) -> 115.1624 | T69: =AVERAGE(E69:N69) -> 110.9071472 | U69: =AVERAGE(F69:O69) -> 112.2878052 | Y69: 22 | AA69: 28 | AB69: 39 | AC69: 36 | AD69: 37 | AE69: 35 | AF69: 30 | AG69: =AVERAGE(AB69:AF69)*(1+'2014 Farm Bill Calculator'!$B$21) -> 35.754 | AH69: =AVERAGE(AC69:AG69)*(1+'2014 Farm Bill Calculator'!$B$21)*AH$87 -> 26.323731 | AI69: =AVERAGE(AD69:AH69)*(1+'2014 Farm Bill Calculator'!$B$21) -> 33.14370166 | AJ69: =AVERAGE(AE69:AI69)*(1+'2014 Farm Bill Calculator'!$B$21) -> 32.3647294 | AK69: =AVERAGE(V69:AE69) -> 32.83333333 | AL69: =AVERAGE(W69:AF69) -> 32.42857143 | AM69: =AVERAGE(X69:AG69) -> 32.84425 | AN69: =AVERAGE(Y69:AH69) -> 32.11974789 | AO69: =AVERAGE(Z69:AI69) -> 33.35793696 | AQ69: 40 | AR69: 66 | AS69: 50 | AU69: 51 | AV69: 54 | AW69: 40 | AX69: 56 | AY69: 36 | AZ69: =(74+41)/2 -> 57.5 | BA69: 74 | BB69: =AVERAGE(AW69:BA69)*(1+'2014 Farm Bill Calculator'!$B$22) -> 53.227 | BC69: =AVERAGE(AX69:BB69)*(1+'2014 Farm Bill Calculator'!$B$22) -> 55.898854 | BD69: =AVERAGE(AY69:BC69)*(1+'2014 Farm Bill Calculator'!$B$22) -> 55.87842251 | BE69: =AVERAGE(AP69:AY69) -> 49.125 | BF69: =AVERAGE(AQ69:AZ69) -> 50.05555556 | BG69: =AVERAGE(AR69:BA69) -> 53.83333333 | BH69: =AVERAGE(AS69:BB69) -> 52.41411111 | BI69: =AVERAGE(AT69:BC69) -> 53.06953933 | BK69: =IF(COUNT(G69:K69)=5,((SUM(G69:K69)-MIN(G69:K69)-MAX(G69:K69))/3),"Data Error") -> 121.6666667 | BL69: =IF(COUNT(H69:L69)=5,((SUM(H69:L69)-MIN(H69:L69)-MAX(H69:L69))/3),"Data Error") -> 121.6666667 | BM69: =IF(COUNT(I69:M69)=5,((SUM(I69:M69)-MIN(I69:M69)-MAX(I69:M69))/3),"Data Error") -> 118.5413333 | BN69: =IF(COUNT(J69:N69)=5,((SUM(J69:N69)-MIN(J69:N69)-MAX(J69:N69))/3),"Data Error") -> 108.5413333 | BO69: =IF(COUNT(K69:O69)=5,((SUM(K69:O69)-MIN(K69:O69)-MAX(K69:O69))/3),"Data Error") -> 104.6021934 | BQ69: =IF(COUNT(AA69:AE69)=5,((SUM(AA69:AE69)-MIN(AA69:AE69)-MAX(AA69:AE69))/3),"Data Error") -> 36 | BR69: =IF(COUNT(AB69:AF69)=5,((SUM(AB69:AF69)-MIN(AB69:AF69)-MAX(AB69:AF69))/3),"Data Error") -> 36 | BS69: =IF(COUNT(AC69:AG69)=5,((SUM(AC69:AG69)-MIN(AC69:AG69)-MAX(AC69:AG69))/3),"Data Error") -> 35.58466667 | BT69: =IF(COUNT(AD69:AH69)=5,((SUM(AD69:AH69)-MIN(AD69:AH69)-MAX(AD69:AH69))/3),"Data Error") -> 33.58466667 | BU69: =IF(COUNT(AE69:AI69)=5,((SUM(AE69:AI69)-MIN(AE69:AI69)-MAX(AE69:AI69))/3),"Data Error") -> 32.71456722 | BW69: =IF(COUNT(AU69:AY69)=5,((SUM(AU69:AY69)-MIN(AU69:AY69)-MAX(AU69:AY69))/3),"Data Error") -> 48.33333333 | BX69: =IF(COUNT(AV69:AZ69)=5,((SUM(AV69:AZ69)-MIN(AV69:AZ69)-MAX(AV69:AZ69))/3),"Data Error") -> 50 | BY69: =IF(COUNT(AW69:BA69)=5,((SUM(AW69:BA69)-MIN(AW69:BA69)-MAX(AW69:BA69))/3),"Data Error") -> 51.16666667 | BZ69: =IF(COUNT(AX69:BB69)=5,((SUM(AX69:BB69)-MIN(AX69:BB69)-MAX(AX69:BB69))/3),"Data Error") -> 55.57566667 | CA69: =IF(COUNT(AY69:BC69)=5,((SUM(AY69:BC69)-MIN(AY69:BC69)-MAX(AY69:BC69))/3),"Data Error") -> 55.54195133
